Workbook

Sheet Forklaring

Sheet Planleggingsmodell
A1: 10 | B1: Kontrollpanel
A2: =+(Iterasjoner*(1+AntallSimuleringer)/14)/60 -> 13.0952381
B4: Iterasjoner | C4: 1000 | F4: Simuleringer: | G4: 10 | I4: Antall sjokk: | J4: 1000 | Y4: AvkastningSPU
B5: Nye sjokk? | C5: Ja | F5: Navn på celle som skal endres: | G5: SubstitusjonselNytte | Y5: SubstitusjonselNytte
B6: Sjokk i oljeformuen? | C6: Ja | F6: Startverdi for cellen: | G6: 0.05 | Y6: SubstitusjonselProdK
F7: Endring per simulering: | G7: 0.5 | Y7: SubstitusjonselProdS
B8: Eksogene variable | Y8: StdavvikSjokkK
B9: Variabel | C9: Verdi | D9: Startverdi | E9: Stdavvik | F9: Beskrivelse | Y9: StdavvikSjokkO
D10: 0.04 | F10: Avkastning på SPU | Y10: StdavvikSjokkS
D11: 1 | F11: Produktpris konkurranseutsatt sektor (industrien) | K11: Numeraire | Y11: SubstitusjonsElGodeT
D12: =(D11*D43*D20+D11*D42*D19)/D26 -> 1085553 | F12: Ressursskranke for arbeidsskraft. Lønnssummen i fastlandsøkonomien når w=1. MNOK i 2010
C13: 1 | D13: 1 | E13: 0.2 | F13: Produktivitetssjokk k-sektor | K13: Endrer disse ved simuleringer og @Risk. Kan ikke være negativt
C14: 1 | D14: 1 | E14: 0.1 | F14: Produktivitetssjokk s-sektor | K14: Endrer disse ved simuleringer og @Risk. Kan ikke være negativt
C15: 1 | D15: 1 | E15: 0.1 | F15: Sjokk Statens Pensjonsfond Utland (SPU) | Y15: ="@Riskformler" -> @Riskformler | Z15: Trekning fra normal | AA15: Valgt sjokk
Y16: =MAXA(_xll.RiskNormal(1,$E$13,_xll.RiskStatic(1)),0.01) ->  | Z16: =_xlfn.NORM.INV(RAND(),D13,E13) -> 1.38862513 | AA16: =IF(StdavvikSjokkK=0,1,IF(Z16>0.05,Z16,0.05)) -> 1.38862513
B17: Endogene variable | Y17: =MAXA(_xll.RiskNormal(1,$E$14,_xll.RiskStatic(1)),0.01) ->  | Z17: =_xlfn.NORM.INV(RAND(),D14,E14) -> 0.9550963601 | AA17: =IF(StdavvikSjokkS=0,1,IF(Z17>0.05,Z17,0.05)) -> 0.9550963601
B18: Variabel | C18: Verdi | D18: Startverdi | E18: Endring | F18: Beskrivelse | Y18: =MAXA(_xll.RiskNormal(1,$E$15,_xll.RiskStatic(1)),0.01) ->  | Z18: =_xlfn.NORM.INV(RAND(),D15,E15) -> 1.035925615 | AA18: =IF(StdavvikSjokkO=0,1,IF(Z18>0.05,Z18,0.05)) -> 1.035925615
A19: =+C19/D19-1 -> 0 | C19: =+C33 -> 175093 | D19: =D47/$D$11 -> 175093 | E19: =+ProdK-D19 -> 0 | F19: Bruttoproduksjon k-sektor
A20: =+C20/D20-1 -> 0 | C20: =+C34 -> 1527539 | D20: =D48/$D$25 -> 1527539 | E20: =ProdS-D20 -> 0 | F20: Bruttoproduksjon s-sektor
A21: 0.001 | C21: 126195 | D21: =+D11*D42*D19/D26 -> 126195 | E21: =+ArbeidK-D21 -> 0 | F21: Etterspørsel etter arbeidskraft k-sektor
A22: =+ArbeidTot-0.001 -> 1085552.999 | C22: =+D12-C21 -> 959358 | D22: =(D11*D43*D20)/D26 -> 959358 | E22: =+ArbeidS-D22 -> 0 | F22: Etterspørsel etter arbeidskraft s-sektor | K22: Andel av arbeidsinnsats i fastlands Norge er egentlig 89,0 % Men satt ulikt dette for å oppfylle andre krav til kalibrering
A23: =+C23/C27 -> 0.1544824845 | C23: =+C19+(C28*D10)/D11 -> 279093 | D23: =+D19+(D28*D10)/D11 -> 279093 | E23: =+SluttleveringK-D23 -> 0 | F23: Sluttlevering i k-sektor
A24: =+C24/C27 -> 0.8455175155 | C24: =+C20 -> 1527539 | D24: =+D20 -> 1527539 | E24: =+SluttleveringS-D24 -> 0 | F24: Sluttlevering i s-sektor (C+I)
A25: =+(C24*D11^(F35-1)*F32/(C23*H32))^(1/(F35-1)) -> 1 | C25: =+D11*((F32*C24)/(H32*C23))^(1/(F35-1)) -> 1 | D25: =+D11 -> 1 | E25: =+PrisS-D25 -> 0 | F25: Produktpris skjermet sektor
A26: =+SjokkK*PrisK*(F33+H33*ArbeidK^J33)^((1/J33)-1)*H33*ArbeidK^(J33-1) -> 1 | C26: =+SjokkS*PrisS*((F34+H34*(ArbeidS^J34))^((1/J34)-1))*H34*(ArbeidS^(J34-1)) -> 1 | D26: 1 | E26: =+Lønn-D26 -> 0 | F26: Lønn (bestemt av grenseproduktiviteten av arbeid)
A27: =+C27/D27 -> 1 | C27: =+C19*D11+C20*C25+C28*D10 -> 1806632 | D27: =+D19*D11+D20*D25++D28*D10 -> 1806632 | E27: =+NasjonalInntekt-NasjonalinntektBasis -> 0 | F27: Nasjonalinntekt (fastlands bruttoprodukt + rF)
C28: =+D28*SjokkUtland -> 2600000 | D28: 2600000 | E28: =+C28-D28 -> 0 | F28: SPU
B30: Funksjoner
B31: Funksjon | C31: Verdi | D31: Startverdi | E31: Parameter 1 | F31: Verdi | G31: Parameter 2 | H31: Verdi | I31: Parameter 3 | J31: Verdi | M31: Beskrivelse
C32: =(H32^(1-J32)*C24^(J32)+F32^(1-J32)*C23^J32)^(1/J32) -> 1806632 | D32: =(H32^(1-J32)*D24^(J32)+F32^(1-J32)*D23^J32)^(1/J32) -> 1806632 | F32: =+D23/(D23+D24) -> 0.1544824845 | H32: =1-F32 -> 0.8455175155 | J32: =(SubstitusjonselNytte-1)/SubstitusjonselNytte -> -1 | K32: Subsel | L32: 0.5 | M32: Nyttefunksjon og parametre
C33: =+SjokkK*(F33+H33*(C21^J33))^(1/J33) -> 175093 | D33: =+(F33+H33*(D21^J33))^(1/J33) -> 175093 | F33: =+D19^J33*(1-D42) -> 1.594973708e-06 | H33: =+D42*(D19/D21)^J33 -> 0.5194535614 | J33: =(SubstitusjonselProdK-1)/SubstitusjonselProdK -> -1 | K33: Subsel | L33: 0.5 | M33: Produktfunksjon og parametre
C34: =+SjokkS*(F34+H34*(C22^J34))^(1/J34) -> 1527539 | D34: =+(F34+H34*(D22^J34))^(1/J34) -> 1527539 | F34: =+D20^J34*(1-D43) -> 2.435017532e-07 | H34: =+D43*(D20/D22)^J34 -> 0.3944362204 | J34: =(SubstitusjonselProdS-1)/SubstitusjonselProdS -> -1 | K34: Subsel | L34: 0.5 | M34: Produktfunksjon og parametre
C35: =+D11^(F35-1)*F32*C27/(H32*C25^F35+F32*D11^F35) -> 279093 | D35: =+D11^(F35-1)*F32*D27/(H32*D25^F35+F32*D11^F35) -> 279093 | E35: r | F35: =+J32/(J32-1) -> 0.5
B37: Andre endogene størrelser
B38: Beskrivelse | C38: Verdi | D38: Startverdi | E38: Endring
B39: Lønnssummen i k-sektor | C39: =+C26*C21 -> 126195 | D39: =+D26*D21 -> 126195 | E39: =+C39-D39 -> 0
B40: Lønnssummen i s-sektor | C40: =+C26*C22 -> 959358 | D40: =+D26*D22 -> 959358 | E40: 0
B41: Lønnssummen totalt | C41: =+C26*(C22+C21) -> 1085553 | D41: =+D40+D39 -> 1085553 | E41: 0
B42: Lønnssandel i k-sektor | C42: =+Lønn*ArbeidK/(ProdK*PrisK) -> 0.7207312685 | D42: 0.7207312685
B43: Lønnssandel i s-sektor | C43: =+Lønn*ArbeidS/(ProdS*PrisS) -> 0.6280415754 | D43: 0.6280415754
B44: Kapitalinntekt i k-sektor | C44: =+(PrisK*C19)-C39 -> 48898 | D44: =+D47-D39 -> 48898 | E44: 0
B45: Kapitalinntekt i s-sektor | C45: =+(C25*C20)-C40 -> 568181 | D45: =+D48-D40 -> 568181 | E45: 0
B46: Kapitalinntekt totalt (eks rF) | C46: =+(C45+C44) -> 617079 | D46: =+D45+D44 -> 617079 | E46: 0
B47: Nasjonalinntekt fra k-sektor | C47: =+PrisK*C19 -> 175093 | D47: 175093 | E47: 0
B48: Nasjonalinntekt fra s-sektor | C48: =+C25*C20 -> 1527539 | D48: 1527539 | E48: 0
B49: Avkastning på oljeformuen | C49: =+C28*$D$10 -> 104000 | D49: =+D28*$D$10 -> 104000 | E49: 0
B51: Beregning av gode utenom markedet
B52: Substitusjonselastisitet (sluttlevering, gode utenom markedet) | C52: 0.999
B53: Vektet prisindeks | C53: =+(H32*PrisS^(1-SubstitusjonselNytte)+F32*PrisK^(1-SubstitusjonselNytte))^(1/(1-SubstitusjonselNytte)) -> 1
A54: =+Prisindeks^((SubstitusjonsElGodeT-1)/SubstitusjonsElGodeT)*(NasjonalInntekt/D27)^(1/SubstitusjonsElGodeT) -> 1 | B54: Pris på gode utenom markedet | C54: =+Prisindeks*((C32/D32)^(1/C52)) -> 1

Sheet Figur (hidden)
D2: Produksjon k-sektor | E2: Produksjon s-sektor | F2: Sluttlevering k-sektor | G2: Sluttlevering s-sektor | H2: Nasjonal-inntekt | I2: Vektet prisnivå | J2: Reallønn | K2: Defl nasjonalinntekt | L2: Vise PMK: | M2: nei
C3: Før sjokk | D3: =+IF($M$2="Ja",Planleggingsmodell!D19,) -> 0 | E3: =+IF($M$2="Ja",Planleggingsmodell!D20,) -> 0 | F3: =+Planleggingsmodell!D23 -> 279093 | G3: =+Planleggingsmodell!D24 -> 1527539 | H3: =+Planleggingsmodell!D27 -> 1806632 | I3: =(Planleggingsmodell!D25*Planleggingsmodell!D24+Planleggingsmodell!D23*Planleggingsmodell!D11)/(Planleggingsmodell!D23+Planleggingsmodell!D24) -> 1 | J3: =+Planleggingsmodell!D26/I3 -> 1 | K3: =+Planleggingsmodell!D27/I3 -> 1806632 | L3: Vise Hicks: | M3: nei
C4: Etter sjokk | D4: =+IF($M$2="Ja",ProdK,) -> 0 | E4: =+IF($M$2="Ja",ProdS,) -> 0 | F4: =+Planleggingsmodell!C23 -> 279093 | G4: =+Planleggingsmodell!C24 -> 1527539 | H4: =+Planleggingsmodell!C27 -> 1806632 | I4: =(Planleggingsmodell!C25*Planleggingsmodell!C24+Planleggingsmodell!C23*Planleggingsmodell!D11)/(Planleggingsmodell!C23+Planleggingsmodell!C24) -> 1 | J4: =+Planleggingsmodell!C26/I4 -> 1 | K4: =+Planleggingsmodell!C27/I4 -> 1806632
C5: Total effekt | F5: =+F4-F3 -> 0 | G5: =+G4-G3 -> 0 | H5: =+H4/H3-1 -> 0 | I5: =+I4/I3-1 -> 0 | J5: =+J4/J3-1 -> 0 | K5: =+K4/K3-1 -> 0
C6: Hicks etterspørsel | F6: =IF(M3="ja",Planleggingsmodell!D32*Planleggingsmodell!F32/((Planleggingsmodell!H32*((Planleggingsmodell!C25/Planleggingsmodell!D11)^Planleggingsmodell!F35)+Planleggingsmodell!F32)^(1/Planleggingsmodell!J32)),) -> 0 | G6: =IF(M3="Ja",Planleggingsmodell!D32*Planleggingsmodell!H32/((Planleggingsmodell!H32+Planleggingsmodell!F32*((Planleggingsmodell!D11/Planleggingsmodell!C25)^Planleggingsmodell!F35))^(1/Planleggingsmodell!J32)),) -> 0 | H6: =+F6*Planleggingsmodell!D11+G6*Planleggingsmodell!C25 -> 0
C7: Substitusjonseffekt | F7: =+IF($M$3="ja",F6-F3,0) -> 0 | G7: =+IF($M$3="ja",G6-G3,0) -> 0
C8: Inntektseffekt | F8: =+IF($M$3="ja",F5-F7,0) -> 0 | G8: =+IF($M$3="ja",G5-G7,0) -> 0
I9: =IF($M$2="Ja",Planleggingsmodell!$D$14*(Planleggingsmodell!$F$34+Planleggingsmodell!$H$34*((ArbeidTot-((((C13/Planleggingsmodell!$D$13-OljePenger/(Planleggingsmodell!$D$13*PrisK))^Planleggingsmodell!$J$33-Planleggingsmodell!$F$33)/Planleggingsmodell!$H$33)^(1/Planleggingsmodell!$J$33)))^Planleggingsmodell!$J$34))^(1/Planleggingsmodell!$J$34),0) -> 0
E10: Etter sjokk | I10: Startverdier
A11: =+A12+-B12 -> 139 | D11: PMK | E11: KMK | F11: Indifferensk | G11: Budsjettbetingelse | H11: Hicks-etterspørsel | I11: PMK | J11: KMK | K11: Indifferensk | L11: Budsjettbetingelse
A12: =MIN(A13:A153)-13 -> 140 | B12: =MAXA(B13:B153)-12 -> 1 | C12: Sluttlevering-k | D12: Prod-S | E12: Sluttlevering-S | F12: Sluttlevering-S | G12: Sluttlevering-S | H12: Sluttlevering-S | I12: Prod-S | J12: Sluttlevering-S | K12: Sluttlevering-S | L12: Sluttlevering-S
A13: =IF(A14="","",IF(IFERROR(D13*E13*F13*I13*J13*K13,1)=1,ROW(),"")) ->  | B13: 13 | C13: 0 | D13: =IF($M$2="Ja",SjokkS*(Planleggingsmodell!$F$34+Planleggingsmodell!$H$34*((ArbeidTot-((((C13/SjokkK)^Planleggingsmodell!$J$33-Planleggingsmodell!$F$33)/Planleggingsmodell!$H$33)^(1/Planleggingsmodell!$J$33)))^Planleggingsmodell!$J$34))^(1/Planleggingsmodell!$J$34),-1000) -> -1000 | E13: =+SjokkS*(Planleggingsmodell!$F$34+Planleggingsmodell!$H$34*((ArbeidTot-((((C13/SjokkK-OljePenger/(SjokkK*PrisK))^Planleggingsmodell!$J$33-Planleggingsmodell!$F$33)/Planleggingsmodell!$H$33)^(1/Planleggingsmodell!$J$33)))^Planleggingsmodell!$J$34))^(1/Planleggingsmodell!$J$34) -> 1689253.31 | F13: =+((Planleggingsmodell!$C$32^Planleggingsmodell!$J$32-Planleggingsmodell!$F$32^(1-Planleggingsmodell!$J$32)*C13^Planleggingsmodell!$J$32)/(Planleggingsmodell!$H$32^(1-Planleggingsmodell!$J$32)))^(1/Planleggingsmodell!$J$32) ->  | G13: =+Planleggingsmodell!$C$27/Planleggingsmodell!$C$25-Planleggingsmodell!$D$11/Planleggingsmodell!$C$25*C13 -> 1806632 | H13: =+IF($M$3="Ja",($H$6-Planleggingsmodell!$D$11*Figur!C13)/Planleggingsmodell!$C$25,-1000) -> -1000 | I13: =IF($M$2="ja",Planleggingsmodell!$D$14*(Planleggingsmodell!$F$34+Planleggingsmodell!$H$34*((ArbeidTot-((((C13/Planleggingsmodell!$D$13)^Planleggingsmodell!$J$33-Planleggingsmodell!$F$33)/Planleggingsmodell!$H$33)^(1/Planleggingsmodell!$J$33)))^Planleggingsmodell!$J$34))^(1/Planleggingsmodell!$J$34),-1000) -> -1000 | J13: =Planleggingsmodell!$D$14*(Planleggingsmodell!$F$34+Planleggingsmodell!$H$34*((ArbeidTot-((((C13/Planleggingsmodell!$D$13-OljePengerOrg/(Planleggingsmodell!$D$13*PrisK))^Planleggingsmodell!$J$33-Planleggingsmodell!$F$33)/Planleggingsmodell!$H$33)^(1/Planleggingsmodell!$J$33)))^Planleggingsmodell!$J$34))^(1/Planleggingsmodell!$J$34) -> 1689253.31 | K13: =+((Planleggingsmodell!$D$32^Planleggingsmodell!$J$32-Planleggingsmodell!$F$32^(1-Planleggingsmodell!$J$32)*C13^Planleggingsmodell!$J$32)/(Planleggingsmodell!$H$32^(1-Planleggingsmodell!$J$32)))^(1/Planleggingsmodell!$J$32) ->  | L13: =+Planleggingsmodell!$D$27/Planleggingsmodell!$D$25-Planleggingsmodell!$D$11/Planleggingsmodell!$D$25*C13 -> 1806632
A14: =IF(A15="","",IF(IFERROR(D14*E14*F14*I14*J14*K14,1)=1,ROW(),"")) ->  | B14: =IF(B13="","",IF(IFERROR(D14*E14*F14*I14*J14*K14,1)=1,ROW(),"")) ->  | C14: =+C13+10000 -> 10000 | D14: =IF($M$2="Ja",SjokkS*(Planleggingsmodell!$F$34+Planleggingsmodell!$H$34*((ArbeidTot-((((C14/SjokkK)^Planleggingsmodell!$J$33-Planleggingsmodell!$F$33)/Planleggingsmodell!$H$33)^(1/Planleggingsmodell!$J$33)))^Planleggingsmodell!$J$34))^(1/Planleggingsmodell!$J$34),-1000) -> -1000 | E14: =+SjokkS*(Planleggingsmodell!$F$34+Planleggingsmodell!$H$34*((ArbeidTot-((((C14/SjokkK-OljePenger/(SjokkK*PrisK))^Planleggingsmodell!$J$33-Planleggingsmodell!$F$33)/Planleggingsmodell!$H$33)^(1/Planleggingsmodell!$J$33)))^Planleggingsmodell!$J$34))^(1/Planleggingsmodell!$J$34) -> 1685844.574 | F14: =+((Planleggingsmodell!$C$32^Planleggingsmodell!$J$32-Planleggingsmodell!$F$32^(1-Planleggingsmodell!$J$32)*C14^Planleggingsmodell!$J$32)/(Planleggingsmodell!$H$32^(1-Planleggingsmodell!$J$32)))^(1/Planleggingsmodell!$J$32) -> -390023.1792 | G14: =+Planleggingsmodell!$C$27/Planleggingsmodell!$C$25-Planleggingsmodell!$D$11/Planleggingsmodell!$C$25*C14 -> 1796632 | H14: =+IF($M$3="Ja",($H$6-Planleggingsmodell!$D$11*Figur!C14)/Planleggingsmodell!$C$25,-1000) -> -1000 | I14: =IF($M$2="ja",Planleggingsmodell!$D$14*(Planleggingsmodell!$F$34+Planleggingsmodell!$H$34*((ArbeidTot-((((C14/Planleggingsmodell!$D$13)^Planleggingsmodell!$J$33-Planleggingsmodell!$F$33)/Planleggingsmodell!$H$33)^(1/Planleggingsmodell!$J$33)))^Planleggingsmodell!$J$34))^(1/Planleggingsmodell!$J$34),-1000) -> -1000 | J14: =Planleggingsmodell!$D$14*(Planleggingsmodell!$F$34+Planleggingsmodell!$H$34*((ArbeidTot-((((C14/Planleggingsmodell!$D$13-OljePengerOrg/(Planleggingsmodell!$D$13*PrisK))^Planleggingsmodell!$J$33-Planleggingsmodell!$F$33)/Planleggingsmodell!$H$33)^(1/Planleggingsmodell!$J$33)))^Planleggingsmodell!$J$34))^(1/Planleggingsmodell!$J$34) -> 1685844.574 | K14: =+((Planleggingsmodell!$D$32^Planleggingsmodell!$J$32-Planleggingsmodell!$F$32^(1-Planleggingsmodell!$J$32)*C14^Planleggingsmodell!$J$32)/(Planleggingsmodell!$H$32^(1-Planleggingsmodell!$J$32)))^(1/Planleggingsmodell!$J$32) -> -390023.1792 | L14: =+Planleggingsmodell!$D$27/Planleggingsmodell!$D$25-Planleggingsmodell!$D$11/Planleggingsmodell!$D$25*C14 -> 1796632
A15: =IF(A16="","",IF(IFERROR(D15*E15*F15*I15*J15*K15,1)=1,ROW(),"")) ->  | B15: =IF(B14="","",IF(IFERROR(D15*E15*F15*I15*J15*K15,1)=1,ROW(),"")) ->  | C15: =+C14+10000 -> 20000 | D15: =IF($M$2="Ja",SjokkS*(Planleggingsmodell!$F$34+Planleggingsmodell!$H$34*((ArbeidTot-((((C15/SjokkK)^Planleggingsmodell!$J$33-Planleggingsmodell!$F$33)/Planleggingsmodell!$H$33)^(1/Planleggingsmodell!$J$33)))^Planleggingsmodell!$J$34))^(1/Planleggingsmodell!$J$34),-1000) -> -1000 | E15: =+SjokkS*(Planleggingsmodell!$F$34+Planleggingsmodell!$H$34*((ArbeidTot-((((C15/SjokkK-OljePenger/(SjokkK*PrisK))^Planleggingsmodell!$J$33-Planleggingsmodell!$F$33)/Planleggingsmodell!$H$33)^(1/Planleggingsmodell!$J$33)))^Planleggingsmodell!$J$34))^(1/Planleggingsmodell!$J$34) -> 1682329.912 | F15: =+((Planleggingsmodell!$C$32^Planleggingsmodell!$J$32-Planleggingsmodell!$F$32^(1-Planleggingsmodell!$J$32)*C15^Planleggingsmodell!$J$32)/(Planleggingsmodell!$H$32^(1-Planleggingsmodell!$J$32)))^(1/Planleggingsmodell!$J$32) -> -1117509.924 | G15: =+Planleggingsmodell!$C$27/Planleggingsmodell!$C$25-Planleggingsmodell!$D$11/Planleggingsmodell!$C$25*C15 -> 1786632 | H15: =+IF($M$3="Ja",($H$6-Planleggingsmodell!$D$11*Figur!C15)/Planleggingsmodell!$C$25,-1000) -> -1000 | I15: =IF($M$2="ja",Planleggingsmodell!$D$14*(Planleggingsmodell!$F$34+Planleggingsmodell!$H$34*((ArbeidTot-((((C15/Planleggingsmodell!$D$13)^Planleggingsmodell!$J$33-Planleggingsmodell!$F$33)/Planleggingsmodell!$H$33)^(1/Planleggingsmodell!$J$33)))^Planleggingsmodell!$J$34))^(1/Planleggingsmodell!$J$34),-1000) -> -1000 | J15: =Planleggingsmodell!$D$14*(Planleggingsmodell!$F$34+Planleggingsmodell!$H$34*((ArbeidTot-((((C15/Planleggingsmodell!$D$13-OljePengerOrg/(Planleggingsmodell!$D$13*PrisK))^Planleggingsmodell!$J$33-Planleggingsmodell!$F$33)/Planleggingsmodell!$H$33)^(1/Planleggingsmodell!$J$33)))^Planleggingsmodell!$J$34))^(1/Planleggingsmodell!$J$34) -> 1682329.912 | K15: =+((Planleggingsmodell!$D$32^Planleggingsmodell!$J$32-Planleggingsmodell!$F$32^(1-Planleggingsmodell!$J$32)*C15^Planleggingsmodell!$J$32)/(Planleggingsmodell!$H$32^(1-Planleggingsmodell!$J$32)))^(1/Planleggingsmodell!$J$32) -> -1117509.924 | L15: =+Planleggingsmodell!$D$27/Planleggingsmodell!$D$25-Planleggingsmodell!$D$11/Planleggingsmodell!$D$25*C15 -> 1786632
C16: 30000 | D16: =IF($M$2="Ja",SjokkS*(Planleggingsmodell!$F$34+Planleggingsmodell!$H$34*((ArbeidTot-((((C16/SjokkK)^Planleggingsmodell!$J$33-Planleggingsmodell!$F$33)/Planleggingsmodell!$H$33)^(1/Planleggingsmodell!$J$33)))^Planleggingsmodell!$J$34))^(1/Planleggingsmodell!$J$34),-1000) -> -1000 | E16: =+SjokkS*(Planleggingsmodell!$F$34+Planleggingsmodell!$H$34*((ArbeidTot-((((C16/SjokkK-OljePenger/(SjokkK*PrisK))^Planleggingsmodell!$J$33-Planleggingsmodell!$F$33)/Planleggingsmodell!$H$33)^(1/Planleggingsmodell!$J$33)))^Planleggingsmodell!$J$34))^(1/Planleggingsmodell!$J$34) -> 1678704.308 | F16: =+((Planleggingsmodell!$C$32^Planleggingsmodell!$J$32-Planleggingsmodell!$F$32^(1-Planleggingsmodell!$J$32)*C16^Planleggingsmodell!$J$32)/(Planleggingsmodell!$H$32^(1-Planleggingsmodell!$J$32)))^(1/Planleggingsmodell!$J$32) -> -2954394.84 | G16: =+Planleggingsmodell!$C$27/Planleggingsmodell!$C$25-Planleggingsmodell!$D$11/Planleggingsmodell!$C$25*C16 -> 1776632 | H16: =+IF($M$3="Ja",($H$6-Planleggingsmodell!$D$11*Figur!C16)/Planleggingsmodell!$C$25,-1000) -> -1000 | I16: =IF($M$2="ja",Planleggingsmodell!$D$14*(Planleggingsmodell!$F$34+Planleggingsmodell!$H$34*((ArbeidTot-((((C16/Planleggingsmodell!$D$13)^Planleggingsmodell!$J$33-Planleggingsmodell!$F$33)/Planleggingsmodell!$H$33)^(1/Planleggingsmodell!$J$33)))^Planleggingsmodell!$J$34))^(1/Planleggingsmodell!$J$34),-1000) -> -1000 | J16: =Planleggingsmodell!$D$14*(Planleggingsmodell!$F$34+Planleggingsmodell!$H$34*((ArbeidTot-((((C16/Planleggingsmodell!$D$13-OljePengerOrg/(Planleggingsmodell!$D$13*PrisK))^Planleggingsmodell!$J$33-Planleggingsmodell!$F$33)/Planleggingsmodell!$H$33)^(1/Planleggingsmodell!$J$33)))^Planleggingsmodell!$J$34))^(1/Planleggingsmodell!$J$34) -> 1678704.308 | K16: =+((Planleggingsmodell!$D$32^Planleggingsmodell!$J$32-Planleggingsmodell!$F$32^(1-Planleggingsmodell!$J$32)*C16^Planleggingsmodell!$J$32)/(Planleggingsmodell!$H$32^(1-Planleggingsmodell!$J$32)))^(1/Planleggingsmodell!$J$32) -> -2954394.84 | L16: =+Planleggingsmodell!$D$27/Planleggingsmodell!$D$25-Planleggingsmodell!$D$11/Planleggingsmodell!$D$25*C16 -> 1776632
C17: 40000 | D17: =IF($M$2="Ja",SjokkS*(Planleggingsmodell!$F$34+Planleggingsmodell!$H$34*((ArbeidTot-((((C17/SjokkK)^Planleggingsmodell!$J$33-Planleggingsmodell!$F$33)/Planleggingsmodell!$H$33)^(1/Planleggingsmodell!$J$33)))^Planleggingsmodell!$J$34))^(1/Planleggingsmodell!$J$34),-1000) -> -1000 | E17: =+SjokkS*(Planleggingsmodell!$F$34+Planleggingsmodell!$H$34*((ArbeidTot-((((C17/SjokkK-OljePenger/(SjokkK*PrisK))^Planleggingsmodell!$J$33-Planleggingsmodell!$F$33)/Planleggingsmodell!$H$33)^(1/Planleggingsmodell!$J$33)))^Planleggingsmodell!$J$34))^(1/Planleggingsmodell!$J$34) -> 1674962.425 | F17: =+((Planleggingsmodell!$C$32^Planleggingsmodell!$J$32-Planleggingsmodell!$F$32^(1-Planleggingsmodell!$J$32)*C17^Planleggingsmodell!$J$32)/(Planleggingsmodell!$H$32^(1-Planleggingsmodell!$J$32)))^(1/Planleggingsmodell!$J$32) -> -16585158.9 | G17: =+Planleggingsmodell!$C$27/Planleggingsmodell!$C$25-Planleggingsmodell!$D$11/Planleggingsmodell!$C$25*C17 -> 1766632 | H17: =+IF($M$3="Ja",($H$6-Planleggingsmodell!$D$11*Figur!C17)/Planleggingsmodell!$C$25,-1000) -> -1000 | I17: =IF($M$2="ja",Planleggingsmodell!$D$14*(Planleggingsmodell!$F$34+Planleggingsmodell!$H$34*((ArbeidTot-((((C17/Planleggingsmodell!$D$13)^Planleggingsmodell!$J$33-Planleggingsmodell!$F$33)/Planleggingsmodell!$H$33)^(1/Planleggingsmodell!$J$33)))^Planleggingsmodell!$J$34))^(1/Planleggingsmodell!$J$34),-1000) -> -1000 | J17: =Planleggingsmodell!$D$14*(Planleggingsmodell!$F$34+Planleggingsmodell!$H$34*((ArbeidTot-((((C17/Planleggingsmodell!$D$13-OljePengerOrg/(Planleggingsmodell!$D$13*PrisK))^Planleggingsmodell!$J$33-Planleggingsmodell!$F$33)/Planleggingsmodell!$H$33)^(1/Planleggingsmodell!$J$33)))^Planleggingsmodell!$J$34))^(1/Planleggingsmodell!$J$34) -> 1674962.425 | K17: =+((Planleggingsmodell!$D$32^Planleggingsmodell!$J$32-Planleggingsmodell!$F$32^(1-Planleggingsmodell!$J$32)*C17^Planleggingsmodell!$J$32)/(Planleggingsmodell!$H$32^(1-Planleggingsmodell!$J$32)))^(1/Planleggingsmodell!$J$32) -> -16585158.9 | L17: =+Planleggingsmodell!$D$27/Planleggingsmodell!$D$25-Planleggingsmodell!$D$11/Planleggingsmodell!$D$25*C17 -> 1766632
C18: 50000 | D18: =IF($M$2="Ja",SjokkS*(Planleggingsmodell!$F$34+Planleggingsmodell!$H$34*((ArbeidTot-((((C18/SjokkK)^Planleggingsmodell!$J$33-Planleggingsmodell!$F$33)/Planleggingsmodell!$H$33)^(1/Planleggingsmodell!$J$33)))^Planleggingsmodell!$J$34))^(1/Planleggingsmodell!$J$34),-1000) -> -1000 | E18: =+SjokkS*(Planleggingsmodell!$F$34+Planleggingsmodell!$H$34*((ArbeidTot-((((C18/SjokkK-OljePenger/(SjokkK*PrisK))^Planleggingsmodell!$J$33-Planleggingsmodell!$F$33)/Planleggingsmodell!$H$33)^(1/Planleggingsmodell!$J$33)))^Planleggingsmodell!$J$34))^(1/Planleggingsmodell!$J$34) -> 1671098.577 | F18: =+((Planleggingsmodell!$C$32^Planleggingsmodell!$J$32-Planleggingsmodell!$F$32^(1-Planleggingsmodell!$J$32)*C18^Planleggingsmodell!$J$32)/(Planleggingsmodell!$H$32^(1-Planleggingsmodell!$J$32)))^(1/Planleggingsmodell!$J$32) -> 9379500.645 | G18: =+Planleggingsmodell!$C$27/Planleggingsmodell!$C$25-Planleggingsmodell!$D$11/Planleggingsmodell!$C$25*C18 -> 1756632 | H18: =+IF($M$3="Ja",($H$6-Planleggingsmodell!$D$11*Figur!C18)/Planleggingsmodell!$C$25,-1000) -> -1000 | I18: =IF($M$2="ja",Planleggingsmodell!$D$14*(Planleggingsmodell!$F$34+Planleggingsmodell!$H$34*((ArbeidTot-((((C18/Planleggingsmodell!$D$13)^Planleggingsmodell!$J$33-Planleggingsmodell!$F$33)/Planleggingsmodell!$H$33)^(1/Planleggingsmodell!$J$33)))^Planleggingsmodell!$J$34))^(1/Planleggingsmodell!$J$34),-1000) -> -1000 | J18: =Planleggingsmodell!$D$14*(Planleggingsmodell!$F$34+Planleggingsmodell!$H$34*((ArbeidTot-((((C18/Planleggingsmodell!$D$13-OljePengerOrg/(Planleggingsmodell!$D$13*PrisK))^Planleggingsmodell!$J$33-Planleggingsmodell!$F$33)/Planleggingsmodell!$H$33)^(1/Planleggingsmodell!$J$33)))^Planleggingsmodell!$J$34))^(1/Planleggingsmodell!$J$34) -> 1671098.577 | K18: =+((Planleggingsmodell!$D$32^Planleggingsmodell!$J$32-Planleggingsmodell!$F$32^(1-Planleggingsmodell!$J$32)*C18^Planleggingsmodell!$J$32)/(Planleggingsmodell!$H$32^(1-Planleggingsmodell!$J$32)))^(1/Planleggingsmodell!$J$32) -> 9379500.645 | L18: =+Planleggingsmodell!$D$27/Planleggingsmodell!$D$25-Planleggingsmodell!$D$11/Planleggingsmodell!$D$25*C18 -> 1756632
C19: 60000 | D19: =IF($M$2="Ja",SjokkS*(Planleggingsmodell!$F$34+Planleggingsmodell!$H$34*((ArbeidTot-((((C19/SjokkK)^Planleggingsmodell!$J$33-Planleggingsmodell!$F$33)/Planleggingsmodell!$H$33)^(1/Planleggingsmodell!$J$33)))^Planleggingsmodell!$J$34))^(1/Planleggingsmodell!$J$34),-1000) -> -1000 | E19: =+SjokkS*(Planleggingsmodell!$F$34+Planleggingsmodell!$H$34*((ArbeidTot-((((C19/SjokkK-OljePenger/(SjokkK*PrisK))^Planleggingsmodell!$J$33-Planleggingsmodell!$F$33)/Planleggingsmodell!$H$33)^(1/Planleggingsmodell!$J$33)))^Planleggingsmodell!$J$34))^(1/Planleggingsmodell!$J$34) -> 1667106.703 | F19: =+((Planleggingsmodell!$C$32^Planleggingsmodell!$J$32-Planleggingsmodell!$F$32^(1-Planleggingsmodell!$J$32)*C19^Planleggingsmodell!$J$32)/(Planleggingsmodell!$H$32^(1-Planleggingsmodell!$J$32)))^(1/Planleggingsmodell!$J$32) -> 4589491.695 | G19: =+Planleggingsmodell!$C$27/Planleggingsmodell!$C$25-Planleggingsmodell!$D$11/Planleggingsmodell!$C$25*C19 -> 1746632 | H19: =+IF($M$3="Ja",($H$6-Planleggingsmodell!$D$11*Figur!C19)/Planleggingsmodell!$C$25,-1000) -> -1000 | I19: =IF($M$2="ja",Planleggingsmodell!$D$14*(Planleggingsmodell!$F$34+Planleggingsmodell!$H$34*((ArbeidTot-((((C19/Planleggingsmodell!$D$13)^Planleggingsmodell!$J$33-Planleggingsmodell!$F$33)/Planleggingsmodell!$H$33)^(1/Planleggingsmodell!$J$33)))^Planleggingsmodell!$J$34))^(1/Planleggingsmodell!$J$34),-1000) -> -1000 | J19: =Planleggingsmodell!$D$14*(Planleggingsmodell!$F$34+Planleggingsmodell!$H$34*((ArbeidTot-((((C19/Planleggingsmodell!$D$13-OljePengerOrg/(Planleggingsmodell!$D$13*PrisK))^Planleggingsmodell!$J$33-Planleggingsmodell!$F$33)/Planleggingsmodell!$H$33)^(1/Planleggingsmodell!$J$33)))^Planleggingsmodell!$J$34))^(1/Planleggingsmodell!$J$34) -> 1667106.703 | K19: =+((Planleggingsmodell!$D$32^Planleggingsmodell!$J$32-Planleggingsmodell!$F$32^(1-Planleggingsmodell!$J$32)*C19^Planleggingsmodell!$J$32)/(Planleggingsmodell!$H$32^(1-Planleggingsmodell!$J$32)))^(1/Planleggingsmodell!$J$32) -> 4589491.695 | L19: =+Planleggingsmodell!$D$27/Planleggingsmodell!$D$25-Planleggingsmodell!$D$11/Planleggingsmodell!$D$25*C19 -> 1746632
C20: 70000 | D20: =IF($M$2="Ja",SjokkS*(Planleggingsmodell!$F$34+Planleggingsmodell!$H$34*((ArbeidTot-((((C20/SjokkK)^Planleggingsmodell!$J$33-Planleggingsmodell!$F$33)/Planleggingsmodell!$H$33)^(1/Planleggingsmodell!$J$33)))^Planleggingsmodell!$J$34))^(1/Planleggingsmodell!$J$34),-1000) -> -1000 | E20: =+SjokkS*(Planleggingsmodell!$F$34+Planleggingsmodell!$H$34*((ArbeidTot-((((C20/SjokkK-OljePenger/(SjokkK*PrisK))^Planleggingsmodell!$J$33-Planleggingsmodell!$F$33)/Planleggingsmodell!$H$33)^(1/Planleggingsmodell!$J$33)))^Planleggingsmodell!$J$34))^(1/Planleggingsmodell!$J$34) -> 1662980.334 | F20: =+((Planleggingsmodell!$C$32^Planleggingsmodell!$J$32-Planleggingsmodell!$F$32^(1-Planleggingsmodell!$J$32)*C20^Planleggingsmodell!$J$32)/(Planleggingsmodell!$H$32^(1-Planleggingsmodell!$J$32)))^(1/Planleggingsmodell!$J$32) -> 3362812.034 | G20: =+Planleggingsmodell!$C$27/Planleggingsmodell!$C$25-Planleggingsmodell!$D$11/Planleggingsmodell!$C$25*C20 -> 1736632 | H20: =+IF($M$3="Ja",($H$6-Planleggingsmodell!$D$11*Figur!C20)/Planleggingsmodell!$C$25,-1000) -> -1000 | I20: =IF($M$2="ja",Planleggingsmodell!$D$14*(Planleggingsmodell!$F$34+Planleggingsmodell!$H$34*((ArbeidTot-((((C20/Planleggingsmodell!$D$13)^Planleggingsmodell!$J$33-Planleggingsmodell!$F$33)/Planleggingsmodell!$H$33)^(1/Planleggingsmodell!$J$33)))^Planleggingsmodell!$J$34))^(1/Planleggingsmodell!$J$34),-1000) -> -1000 | J20: =Planleggingsmodell!$D$14*(Planleggingsmodell!$F$34+Planleggingsmodell!$H$34*((ArbeidTot-((((C20/Planleggingsmodell!$D$13-OljePengerOrg/(Planleggingsmodell!$D$13*PrisK))^Planleggingsmodell!$J$33-Planleggingsmodell!$F$33)/Planleggingsmodell!$H$33)^(1/Planleggingsmodell!$J$33)))^Planleggingsmodell!$J$34))^(1/Planleggingsmodell!$J$34) -> 1662980.334 | K20: =+((Planleggingsmodell!$D$32^Planleggingsmodell!$J$32-Planleggingsmodell!$F$32^(1-Planleggingsmodell!$J$32)*C20^Planleggingsmodell!$J$32)/(Planleggingsmodell!$H$32^(1-Planleggingsmodell!$J$32)))^(1/Planleggingsmodell!$J$32) -> 3362812.034 | L20: =+Planleggingsmodell!$D$27/Planleggingsmodell!$D$25-Planleggingsmodell!$D$11/Planleggingsmodell!$D$25*C20 -> 1736632
C21: 80000 | D21: =IF($M$2="Ja",SjokkS*(Planleggingsmodell!$F$34+Planleggingsmodell!$H$34*((ArbeidTot-((((C21/SjokkK)^Planleggingsmodell!$J$33-Planleggingsmodell!$F$33)/Planleggingsmodell!$H$33)^(1/Planleggingsmodell!$J$33)))^Planleggingsmodell!$J$34))^(1/Planleggingsmodell!$J$34),-1000) -> -1000 | E21: =+SjokkS*(Planleggingsmodell!$F$34+Planleggingsmodell!$H$34*((ArbeidTot-((((C21/SjokkK-OljePenger/(SjokkK*PrisK))^Planleggingsmodell!$J$33-Planleggingsmodell!$F$33)/Planleggingsmodell!$H$33)^(1/Planleggingsmodell!$J$33)))^Planleggingsmodell!$J$34))^(1/Planleggingsmodell!$J$34) -> 1658712.554 | F21: =+((Planleggingsmodell!$C$32^Planleggingsmodell!$J$32-Planleggingsmodell!$F$32^(1-Planleggingsmodell!$J$32)*C21^Planleggingsmodell!$J$32)/(Planleggingsmodell!$H$32^(1-Planleggingsmodell!$J$32)))^(1/Planleggingsmodell!$J$32) -> 2801269.419 | G21: =+Planleggingsmodell!$C$27/Planleggingsmodell!$C$25-Planleggingsmodell!$D$11/Planleggingsmodell!$C$25*C21 -> 1726632 | H21: =+IF($M$3="Ja",($H$6-Planleggingsmodell!$D$11*Figur!C21)/Planleggingsmodell!$C$25,-1000) -> -1000 | I21: =IF($M$2="ja",Planleggingsmodell!$D$14*(Planleggingsmodell!$F$34+Planleggingsmodell!$H$34*((ArbeidTot-((((C21/Planleggingsmodell!$D$13)^Planleggingsmodell!$J$33-Planleggingsmodell!$F$33)/Planleggingsmodell!$H$33)^(1/Planleggingsmodell!$J$33)))^Planleggingsmodell!$J$34))^(1/Planleggingsmodell!$J$34),-1000) -> -1000 | J21: =Planleggingsmodell!$D$14*(Planleggingsmodell!$F$34+Planleggingsmodell!$H$34*((ArbeidTot-((((C21/Planleggingsmodell!$D$13-OljePengerOrg/(Planleggingsmodell!$D$13*PrisK))^Planleggingsmodell!$J$33-Planleggingsmodell!$F$33)/Planleggingsmodell!$H$33)^(1/Planleggingsmodell!$J$33)))^Planleggingsmodell!$J$34))^(1/Planleggingsmodell!$J$34) -> 1658712.554 | K21: =+((Planleggingsmodell!$D$32^Planleggingsmodell!$J$32-Planleggingsmodell!$F$32^(1-Planleggingsmodell!$J$32)*C21^Planleggingsmodell!$J$32)/(Planleggingsmodell!$H$32^(1-Planleggingsmodell!$J$32)))^(1/Planleggingsmodell!$J$32) -> 2801269.419 | L21: =+Planleggingsmodell!$D$27/Planleggingsmodell!$D$25-Planleggingsmodell!$D$11/Planleggingsmodell!$D$25*C21 -> 1726632
C22: 90000 | D22: =IF($M$2="Ja",SjokkS*(Planleggingsmodell!$F$34+Planleggingsmodell!$H$34*((ArbeidTot-((((C22/SjokkK)^Planleggingsmodell!$J$33-Planleggingsmodell!$F$33)/Planleggingsmodell!$H$33)^(1/Planleggingsmodell!$J$33)))^Planleggingsmodell!$J$34))^(1/Planleggingsmodell!$J$34),-1000) -> -1000 | E22: =+SjokkS*(Planleggingsmodell!$F$34+Planleggingsmodell!$H$34*((ArbeidTot-((((C22/SjokkK-OljePenger/(SjokkK*PrisK))^Planleggingsmodell!$J$33-Planleggingsmodell!$F$33)/Planleggingsmodell!$H$33)^(1/Planleggingsmodell!$J$33)))^Planleggingsmodell!$J$34))^(1/Planleggingsmodell!$J$34) -> 1654295.968 | F22: =+((Planleggingsmodell!$C$32^Planleggingsmodell!$J$32-Planleggingsmodell!$F$32^(1-Planleggingsmodell!$J$32)*C22^Planleggingsmodell!$J$32)/(Planleggingsmodell!$H$32^(1-Planleggingsmodell!$J$32)))^(1/Planleggingsmodell!$J$32) -> 2479267.117 | G22: =+Planleggingsmodell!$C$27/Planleggingsmodell!$C$25-Planleggingsmodell!$D$11/Planleggingsmodell!$C$25*C22 -> 1716632 | H22: =+IF($M$3="Ja",($H$6-Planleggingsmodell!$D$11*Figur!C22)/Planleggingsmodell!$C$25,-1000) -> -1000 | I22: =IF($M$2="ja",Planleggingsmodell!$D$14*(Planleggingsmodell!$F$34+Planleggingsmodell!$H$34*((ArbeidTot-((((C22/Planleggingsmodell!$D$13)^Planleggingsmodell!$J$33-Planleggingsmodell!$F$33)/Planleggingsmodell!$H$33)^(1/Planleggingsmodell!$J$33)))^Planleggingsmodell!$J$34))^(1/Planleggingsmodell!$J$34),-1000) -> -1000 | J22: =Planleggingsmodell!$D$14*(Planleggingsmodell!$F$34+Planleggingsmodell!$H$34*((ArbeidTot-((((C22/Planleggingsmodell!$D$13-OljePengerOrg/(Planleggingsmodell!$D$13*PrisK))^Planleggingsmodell!$J$33-Planleggingsmodell!$F$33)/Planleggingsmodell!$H$33)^(1/Planleggingsmodell!$J$33)))^Planleggingsmodell!$J$34))^(1/Planleggingsmodell!$J$34) -> 1654295.968 | K22: =+((Planleggingsmodell!$D$32^Planleggingsmodell!$J$32-Planleggingsmodell!$F$32^(1-Planleggingsmodell!$J$32)*C22^Planleggingsmodell!$J$32)/(Planleggingsmodell!$H$32^(1-Planleggingsmodell!$J$32)))^(1/Planleggingsmodell!$J$32) -> 2479267.117 | L22: =+Planleggingsmodell!$D$27/Planleggingsmodell!$D$25-Planleggingsmodell!$D$11/Planleggingsmodell!$D$25*C22 -> 1716632
C23: 100000 | D23: =IF($M$2="Ja",SjokkS*(Planleggingsmodell!$F$34+Planleggingsmodell!$H$34*((ArbeidTot-((((C23/SjokkK)^Planleggingsmodell!$J$33-Planleggingsmodell!$F$33)/Planleggingsmodell!$H$33)^(1/Planleggingsmodell!$J$33)))^Planleggingsmodell!$J$34))^(1/Planleggingsmodell!$J$34),-1000) -> -1000 | E23: =+SjokkS*(Planleggingsmodell!$F$34+Planleggingsmodell!$H$34*((ArbeidTot-((((C23/SjokkK-OljePenger/(SjokkK*PrisK))^Planleggingsmodell!$J$33-Planleggingsmodell!$F$33)/Planleggingsmodell!$H$33)^(1/Planleggingsmodell!$J$33)))^Planleggingsmodell!$J$34))^(1/Planleggingsmodell!$J$34) -> 1649722.655 | F23: =+((Planleggingsmodell!$C$32^Planleggingsmodell!$J$32-Planleggingsmodell!$F$32^(1-Planleggingsmodell!$J$32)*C23^Planleggingsmodell!$J$32)/(Planleggingsmodell!$H$32^(1-Planleggingsmodell!$J$32)))^(1/Planleggingsmodell!$J$32) -> 2270476.448 | G23: =+Planleggingsmodell!$C$27/Planleggingsmodell!$C$25-Planleggingsmodell!$D$11/Planleggingsmodell!$C$25*C23 -> 1706632 | H23: =+IF($M$3="Ja",($H$6-Planleggingsmodell!$D$11*Figur!C23)/Planleggingsmodell!$C$25,-1000) -> -1000 | I23: =IF($M$2="ja",Planleggingsmodell!$D$14*(Planleggingsmodell!$F$34+Planleggingsmodell!$H$34*((ArbeidTot-((((C23/Planleggingsmodell!$D$13)^Planleggingsmodell!$J$33-Planleggingsmodell!$F$33)/Planleggingsmodell!$H$33)^(1/Planleggingsmodell!$J$33)))^Planleggingsmodell!$J$34))^(1/Planleggingsmodell!$J$34),-1000) -> -1000 | J23: =Planleggingsmodell!$D$14*(Planleggingsmodell!$F$34+Planleggingsmodell!$H$34*((ArbeidTot-((((C23/Planleggingsmodell!$D$13-OljePengerOrg/(Planleggingsmodell!$D$13*PrisK))^Planleggingsmodell!$J$33-Planleggingsmodell!$F$33)/Planleggingsmodell!$H$33)^(1/Planleggingsmodell!$J$33)))^Planleggingsmodell!$J$34))^(1/Planleggingsmodell!$J$34) -> 1649722.655 | K23: =+((Planleggingsmodell!$D$32^Planleggingsmodell!$J$32-Planleggingsmodell!$F$32^(1-Planleggingsmodell!$J$32)*C23^Planleggingsmodell!$J$32)/(Planleggingsmodell!$H$32^(1-Planleggingsmodell!$J$32)))^(1/Planleggingsmodell!$J$32) -> 2270476.448 | L23: =+Planleggingsmodell!$D$27/Planleggingsmodell!$D$25-Planleggingsmodell!$D$11/Planleggingsmodell!$D$25*C23 -> 1706632
C24: 110000 | D24: =IF($M$2="Ja",SjokkS*(Planleggingsmodell!$F$34+Planleggingsmodell!$H$34*((ArbeidTot-((((C24/SjokkK)^Planleggingsmodell!$J$33-Planleggingsmodell!$F$33)/Planleggingsmodell!$H$33)^(1/Planleggingsmodell!$J$33)))^Planleggingsmodell!$J$34))^(1/Planleggingsmodell!$J$34),-1000) -> -1000 | E24: =+SjokkS*(Planleggingsmodell!$F$34+Planleggingsmodell!$H$34*((ArbeidTot-((((C24/SjokkK-OljePenger/(SjokkK*PrisK))^Planleggingsmodell!$J$33-Planleggingsmodell!$F$33)/Planleggingsmodell!$H$33)^(1/Planleggingsmodell!$J$33)))^Planleggingsmodell!$J$34))^(1/Planleggingsmodell!$J$34) -> 1644984.123 | F24: =+((Planleggingsmodell!$C$32^Planleggingsmodell!$J$32-Planleggingsmodell!$F$32^(1-Planleggingsmodell!$J$32)*C24^Planleggingsmodell!$J$32)/(Planleggingsmodell!$H$32^(1-Planleggingsmodell!$J$32)))^(1/Planleggingsmodell!$J$32) -> 2124118.494 | G24: =+Planleggingsmodell!$C$27/Planleggingsmodell!$C$25-Planleggingsmodell!$D$11/Planleggingsmodell!$C$25*C24 -> 1696632 | H24: =+IF($M$3="Ja",($H$6-Planleggingsmodell!$D$11*Figur!C24)/Planleggingsmodell!$C$25,-1000) -> -1000 | I24: =IF($M$2="ja",Planleggingsmodell!$D$14*(Planleggingsmodell!$F$34+Planleggingsmodell!$H$34*((ArbeidTot-((((C24/Planleggingsmodell!$D$13)^Planleggingsmodell!$J$33-Planleggingsmodell!$F$33)/Planleggingsmodell!$H$33)^(1/Planleggingsmodell!$J$33)))^Planleggingsmodell!$J$34))^(1/Planleggingsmodell!$J$34),-1000) -> -1000 | J24: =Planleggingsmodell!$D$14*(Planleggingsmodell!$F$34+Planleggingsmodell!$H$34*((ArbeidTot-((((C24/Planleggingsmodell!$D$13-OljePengerOrg/(Planleggingsmodell!$D$13*PrisK))^Planleggingsmodell!$J$33-Planleggingsmodell!$F$33)/Planleggingsmodell!$H$33)^(1/Planleggingsmodell!$J$33)))^Planleggingsmodell!$J$34))^(1/Planleggingsmodell!$J$34) -> 1644984.123 | K24: =+((Planleggingsmodell!$D$32^Planleggingsmodell!$J$32-Planleggingsmodell!$F$32^(1-Planleggingsmodell!$J$32)*C24^Planleggingsmodell!$J$32)/(Planleggingsmodell!$H$32^(1-Planleggingsmodell!$J$32)))^(1/Planleggingsmodell!$J$32) -> 2124118.494 | L24: =+Planleggingsmodell!$D$27/Planleggingsmodell!$D$25-Planleggingsmodell!$D$11/Planleggingsmodell!$D$25*C24 -> 1696632
C25: 120000 | D25: =IF($M$2="Ja",SjokkS*(Planleggingsmodell!$F$34+Planleggingsmodell!$H$34*((ArbeidTot-((((C25/SjokkK)^Planleggingsmodell!$J$33-Planleggingsmodell!$F$33)/Planleggingsmodell!$H$33)^(1/Planleggingsmodell!$J$33)))^Planleggingsmodell!$J$34))^(1/Planleggingsmodell!$J$34),-1000) -> -1000 | E25: =+SjokkS*(Planleggingsmodell!$F$34+Planleggingsmodell!$H$34*((ArbeidTot-((((C25/SjokkK-OljePenger/(SjokkK*PrisK))^Planleggingsmodell!$J$33-Planleggingsmodell!$F$33)/Planleggingsmodell!$H$33)^(1/Planleggingsmodell!$J$33)))^Planleggingsmodell!$J$34))^(1/Planleggingsmodell!$J$34) -> 1640071.252 | F25: =+((Planleggingsmodell!$C$32^Planleggingsmodell!$J$32-Planleggingsmodell!$F$32^(1-Planleggingsmodell!$J$32)*C25^Planleggingsmodell!$J$32)/(Planleggingsmodell!$H$32^(1-Planleggingsmodell!$J$32)))^(1/Planleggingsmodell!$J$32) -> 2015832.443 | G25: =+Planleggingsmodell!$C$27/Planleggingsmodell!$C$25-Planleggingsmodell!$D$11/Planleggingsmodell!$C$25*C25 -> 1686632 | H25: =+IF($M$3="Ja",($H$6-Planleggingsmodell!$D$11*Figur!C25)/Planleggingsmodell!$C$25,-1000) -> -1000 | I25: =IF($M$2="ja",Planleggingsmodell!$D$14*(Planleggingsmodell!$F$34+Planleggingsmodell!$H$34*((ArbeidTot-((((C25/Planleggingsmodell!$D$13)^Planleggingsmodell!$J$33-Planleggingsmodell!$F$33)/Planleggingsmodell!$H$33)^(1/Planleggingsmodell!$J$33)))^Planleggingsmodell!$J$34))^(1/Planleggingsmodell!$J$34),-1000) -> -1000 | J25: =Planleggingsmodell!$D$14*(Planleggingsmodell!$F$34+Planleggingsmodell!$H$34*((ArbeidTot-((((C25/Planleggingsmodell!$D$13-OljePengerOrg/(Planleggingsmodell!$D$13*PrisK))^Planleggingsmodell!$J$33-Planleggingsmodell!$F$33)/Planleggingsmodell!$H$33)^(1/Planleggingsmodell!$J$33)))^Planleggingsmodell!$J$34))^(1/Planleggingsmodell!$J$34) -> 1640071.252 | K25: =+((Planleggingsmodell!$D$32^Planleggingsmodell!$J$32-Planleggingsmodell!$F$32^(1-Planleggingsmodell!$J$32)*C25^Planleggingsmodell!$J$32)/(Planleggingsmodell!$H$32^(1-Planleggingsmodell!$J$32)))^(1/Planleggingsmodell!$J$32) -> 2015832.443 | L25: =+Planleggingsmodell!$D$27/Planleggingsmodell!$D$25-Planleggingsmodell!$D$11/Planleggingsmodell!$D$25*C25 -> 1686632
C26: 130000 | D26: =IF($M$2="Ja",SjokkS*(Planleggingsmodell!$F$34+Planleggingsmodell!$H$34*((ArbeidTot-((((C26/SjokkK)^Planleggingsmodell!$J$33-Planleggingsmodell!$F$33)/Planleggingsmodell!$H$33)^(1/Planleggingsmodell!$J$33)))^Planleggingsmodell!$J$34))^(1/Planleggingsmodell!$J$34),-1000) -> -1000 | E26: =+SjokkS*(Planleggingsmodell!$F$34+Planleggingsmodell!$H$34*((ArbeidTot-((((C26/SjokkK-OljePenger/(SjokkK*PrisK))^Planleggingsmodell!$J$33-Planleggingsmodell!$F$33)/Planleggingsmodell!$H$33)^(1/Planleggingsmodell!$J$33)))^Planleggingsmodell!$J$34))^(1/Planleggingsmodell!$J$34) -> 1634974.243 | F26: =+((Planleggingsmodell!$C$32^Planleggingsmodell!$J$32-Planleggingsmodell!$F$32^(1-Planleggingsmodell!$J$32)*C26^Planleggingsmodell!$J$32)/(Planleggingsmodell!$H$32^(1-Planleggingsmodell!$J$32)))^(1/Planleggingsmodell!$J$32) -> 1932472.681 | G26: =+Planleggingsmodell!$C$27/Planleggingsmodell!$C$25-Planleggingsmodell!$D$11/Planleggingsmodell!$C$25*C26 -> 1676632 | H26: =+IF($M$3="Ja",($H$6-Planleggingsmodell!$D$11*Figur!C26)/Planleggingsmodell!$C$25,-1000) -> -1000 | I26: =IF($M$2="ja",Planleggingsmodell!$D$14*(Planleggingsmodell!$F$34+Planleggingsmodell!$H$34*((ArbeidTot-((((C26/Planleggingsmodell!$D$13)^Planleggingsmodell!$J$33-Planleggingsmodell!$F$33)/Planleggingsmodell!$H$33)^(1/Planleggingsmodell!$J$33)))^Planleggingsmodell!$J$34))^(1/Planleggingsmodell!$J$34),-1000) -> -1000 | J26: =Planleggingsmodell!$D$14*(Planleggingsmodell!$F$34+Planleggingsmodell!$H$34*((ArbeidTot-((((C26/Planleggingsmodell!$D$13-OljePengerOrg/(Planleggingsmodell!$D$13*PrisK))^Planleggingsmodell!$J$33-Planleggingsmodell!$F$33)/Planleggingsmodell!$H$33)^(1/Planleggingsmodell!$J$33)))^Planleggingsmodell!$J$34))^(1/Planleggingsmodell!$J$34) -> 1634974.243 | K26: =+((Planleggingsmodell!$D$32^Planleggingsmodell!$J$32-Planleggingsmodell!$F$32^(1-Planleggingsmodell!$J$32)*C26^Planleggingsmodell!$J$32)/(Planleggingsmodell!$H$32^(1-Planleggingsmodell!$J$32)))^(1/Planleggingsmodell!$J$32) -> 1932472.681 | L26: =+Planleggingsmodell!$D$27/Planleggingsmodell!$D$25-Planleggingsmodell!$D$11/Planleggingsmodell!$D$25*C26 -> 1676632
C27: 140000 | D27: =IF($M$2="Ja",SjokkS*(Planleggingsmodell!$F$34+Planleggingsmodell!$H$34*((ArbeidTot-((((C27/SjokkK)^Planleggingsmodell!$J$33-Planleggingsmodell!$F$33)/Planleggingsmodell!$H$33)^(1/Planleggingsmodell!$J$33)))^Planleggingsmodell!$J$34))^(1/Planleggingsmodell!$J$34),-1000) -> -1000 | E27: =+SjokkS*(Planleggingsmodell!$F$34+Planleggingsmodell!$H$34*((ArbeidTot-((((C27/SjokkK-OljePenger/(SjokkK*PrisK))^Planleggingsmodell!$J$33-Planleggingsmodell!$F$33)/Planleggingsmodell!$H$33)^(1/Planleggingsmodell!$J$33)))^Planleggingsmodell!$J$34))^(1/Planleggingsmodell!$J$34) -> 1629682.543 | F27: =+((Planleggingsmodell!$C$32^Planleggingsmodell!$J$32-Planleggingsmodell!$F$32^(1-Planleggingsmodell!$J$32)*C27^Planleggingsmodell!$J$32)/(Planleggingsmodell!$H$32^(1-Planleggingsmodell!$J$32)))^(1/Planleggingsmodell!$J$32) -> 1866320.896 | G27: =+Planleggingsmodell!$C$27/Planleggingsmodell!$C$25-Planleggingsmodell!$D$11/Planleggingsmodell!$C$25*C27 -> 1666632 | H27: =+IF($M$3="Ja",($H$6-Planleggingsmodell!$D$11*Figur!C27)/Planleggingsmodell!$C$25,-1000) -> -1000 | I27: =IF($M$2="ja",Planleggingsmodell!$D$14*(Planleggingsmodell!$F$34+Planleggingsmodell!$H$34*((ArbeidTot-((((C27/Planleggingsmodell!$D$13)^Planleggingsmodell!$J$33-Planleggingsmodell!$F$33)/Planleggingsmodell!$H$33)^(1/Planleggingsmodell!$J$33)))^Planleggingsmodell!$J$34))^(1/Planleggingsmodell!$J$34),-1000) -> -1000 | J27: =Planleggingsmodell!$D$14*(Planleggingsmodell!$F$34+Planleggingsmodell!$H$34*((ArbeidTot-((((C27/Planleggingsmodell!$D$13-OljePengerOrg/(Planleggingsmodell!$D$13*PrisK))^Planleggingsmodell!$J$33-Planleggingsmodell!$F$33)/Planleggingsmodell!$H$33)^(1/Planleggingsmodell!$J$33)))^Planleggingsmodell!$J$34))^(1/Planleggingsmodell!$J$34) -> 1629682.543 | K27: =+((Planleggingsmodell!$D$32^Planleggingsmodell!$J$32-Planleggingsmodell!$F$32^(1-Planleggingsmodell!$J$32)*C27^Planleggingsmodell!$J$32)/(Planleggingsmodell!$H$32^(1-Planleggingsmodell!$J$32)))^(1/Planleggingsmodell!$J$32) -> 1866320.896 | L27: =+Planleggingsmodell!$D$27/Planleggingsmodell!$D$25-Planleggingsmodell!$D$11/Planleggingsmodell!$D$25*C27 -> 1666632
C28: 150000 | D28: =IF($M$2="Ja",SjokkS*(Planleggingsmodell!$F$34+Planleggingsmodell!$H$34*((ArbeidTot-((((C28/SjokkK)^Planleggingsmodell!$J$33-Planleggingsmodell!$F$33)/Planleggingsmodell!$H$33)^(1/Planleggingsmodell!$J$33)))^Planleggingsmodell!$J$34))^(1/Planleggingsmodell!$J$34),-1000) -> -1000 | E28: =+SjokkS*(Planleggingsmodell!$F$34+Planleggingsmodell!$H$34*((ArbeidTot-((((C28/SjokkK-OljePenger/(SjokkK*PrisK))^Planleggingsmodell!$J$33-Planleggingsmodell!$F$33)/Planleggingsmodell!$H$33)^(1/Planleggingsmodell!$J$33)))^Planleggingsmodell!$J$34))^(1/Planleggingsmodell!$J$34) -> 1624184.782 | F28: =+((Planleggingsmodell!$C$32^Planleggingsmodell!$J$32-Planleggingsmodell!$F$32^(1-Planleggingsmodell!$J$32)*C28^Planleggingsmodell!$J$32)/(Planleggingsmodell!$H$32^(1-Planleggingsmodell!$J$32)))^(1/Planleggingsmodell!$J$32) -> 1812547.232 | G28: =+Planleggingsmodell!$C$27/Planleggingsmodell!$C$25-Planleggingsmodell!$D$11/Planleggingsmodell!$C$25*C28 -> 1656632 | H28: =+IF($M$3="Ja",($H$6-Planleggingsmodell!$D$11*Figur!C28)/Planleggingsmodell!$C$25,-1000) -> -1000 | I28: =IF($M$2="ja",Planleggingsmodell!$D$14*(Planleggingsmodell!$F$34+Planleggingsmodell!$H$34*((ArbeidTot-((((C28/Planleggingsmodell!$D$13)^Planleggingsmodell!$J$33-Planleggingsmodell!$F$33)/Planleggingsmodell!$H$33)^(1/Planleggingsmodell!$J$33)))^Planleggingsmodell!$J$34))^(1/Planleggingsmodell!$J$34),-1000) -> -1000 | J28: =Planleggingsmodell!$D$14*(Planleggingsmodell!$F$34+Planleggingsmodell!$H$34*((ArbeidTot-((((C28/Planleggingsmodell!$D$13-OljePengerOrg/(Planleggingsmodell!$D$13*PrisK))^Planleggingsmodell!$J$33-Planleggingsmodell!$F$33)/Planleggingsmodell!$H$33)^(1/Planleggingsmodell!$J$33)))^Planleggingsmodell!$J$34))^(1/Planleggingsmodell!$J$34) -> 1624184.782 | K28: =+((Planleggingsmodell!$D$32^Planleggingsmodell!$J$32-Planleggingsmodell!$F$32^(1-Planleggingsmodell!$J$32)*C28^Planleggingsmodell!$J$32)/(Planleggingsmodell!$H$32^(1-Planleggingsmodell!$J$32)))^(1/Planleggingsmodell!$J$32) -> 1812547.232 | L28: =+Planleggingsmodell!$D$27/Planleggingsmodell!$D$25-Planleggingsmodell!$D$11/Planleggingsmodell!$D$25*C28 -> 1656632
C29: 160000 | D29: =IF($M$2="Ja",SjokkS*(Planleggingsmodell!$F$34+Planleggingsmodell!$H$34*((ArbeidTot-((((C29/SjokkK)^Planleggingsmodell!$J$33-Planleggingsmodell!$F$33)/Planleggingsmodell!$H$33)^(1/Planleggingsmodell!$J$33)))^Planleggingsmodell!$J$34))^(1/Planleggingsmodell!$J$34),-1000) -> -1000 | E29: =+SjokkS*(Planleggingsmodell!$F$34+Planleggingsmodell!$H$34*((ArbeidTot-((((C29/SjokkK-OljePenger/(SjokkK*PrisK))^Planleggingsmodell!$J$33-Planleggingsmodell!$F$33)/Planleggingsmodell!$H$33)^(1/Planleggingsmodell!$J$33)))^Planleggingsmodell!$J$34))^(1/Planleggingsmodell!$J$34) -> 1618468.684 | F29: =+((Planleggingsmodell!$C$32^Planleggingsmodell!$J$32-Planleggingsmodell!$F$32^(1-Planleggingsmodell!$J$32)*C29^Planleggingsmodell!$J$32)/(Planleggingsmodell!$H$32^(1-Planleggingsmodell!$J$32)))^(1/Planleggingsmodell!$J$32) -> 1767974.689 | G29: =+Planleggingsmodell!$C$27/Planleggingsmodell!$C$25-Planleggingsmodell!$D$11/Planleggingsmodell!$C$25*C29 -> 1646632 | H29: =+IF($M$3="Ja",($H$6-Planleggingsmodell!$D$11*Figur!C29)/Planleggingsmodell!$C$25,-1000) -> -1000 | I29: =IF($M$2="ja",Planleggingsmodell!$D$14*(Planleggingsmodell!$F$34+Planleggingsmodell!$H$34*((ArbeidTot-((((C29/Planleggingsmodell!$D$13)^Planleggingsmodell!$J$33-Planleggingsmodell!$F$33)/Planleggingsmodell!$H$33)^(1/Planleggingsmodell!$J$33)))^Planleggingsmodell!$J$34))^(1/Planleggingsmodell!$J$34),-1000) -> -1000 | J29: =Planleggingsmodell!$D$14*(Planleggingsmodell!$F$34+Planleggingsmodell!$H$34*((ArbeidTot-((((C29/Planleggingsmodell!$D$13-OljePengerOrg/(Planleggingsmodell!$D$13*PrisK))^Planleggingsmodell!$J$33-Planleggingsmodell!$F$33)/Planleggingsmodell!$H$33)^(1/Planleggingsmodell!$J$33)))^Planleggingsmodell!$J$34))^(1/Planleggingsmodell!$J$34) -> 1618468.684 | K29: =+((Planleggingsmodell!$D$32^Planleggingsmodell!$J$32-Planleggingsmodell!$F$32^(1-Planleggingsmodell!$J$32)*C29^Planleggingsmodell!$J$32)/(Planleggingsmodell!$H$32^(1-Planleggingsmodell!$J$32)))^(1/Planleggingsmodell!$J$32) -> 1767974.689 | L29: =+Planleggingsmodell!$D$27/Planleggingsmodell!$D$25-Planleggingsmodell!$D$11/Planleggingsmodell!$D$25*C29 -> 1646632
C30: 170000 | D30: =IF($M$2="Ja",SjokkS*(Planleggingsmodell!$F$34+Planleggingsmodell!$H$34*((ArbeidTot-((((C30/SjokkK)^Planleggingsmodell!$J$33-Planleggingsmodell!$F$33)/Planleggingsmodell!$H$33)^(1/Planleggingsmodell!$J$33)))^Planleggingsmodell!$J$34))^(1/Planleggingsmodell!$J$34),-1000) -> -1000 | E30: =+SjokkS*(Planleggingsmodell!$F$34+Planleggingsmodell!$H$34*((ArbeidTot-((((C30/SjokkK-OljePenger/(SjokkK*PrisK))^Planleggingsmodell!$J$33-Planleggingsmodell!$F$33)/Planleggingsmodell!$H$33)^(1/Planleggingsmodell!$J$33)))^Planleggingsmodell!$J$34))^(1/Planleggingsmodell!$J$34) -> 1612520.98 | F30: =+((Planleggingsmodell!$C$32^Planleggingsmodell!$J$32-Planleggingsmodell!$F$32^(1-Planleggingsmodell!$J$32)*C30^Planleggingsmodell!$J$32)/(Planleggingsmodell!$H$32^(1-Planleggingsmodell!$J$32)))^(1/Planleggingsmodell!$J$32) -> 1730427.805 | G30: =+Planleggingsmodell!$C$27/Planleggingsmodell!$C$25-Planleggingsmodell!$D$11/Planleggingsmodell!$C$25*C30 -> 1636632 | H30: =+IF($M$3="Ja",($H$6-Planleggingsmodell!$D$11*Figur!C30)/Planleggingsmodell!$C$25,-1000) -> -1000 | I30: =IF($M$2="ja",Planleggingsmodell!$D$14*(Planleggingsmodell!$F$34+Planleggingsmodell!$H$34*((ArbeidTot-((((C30/Planleggingsmodell!$D$13)^Planleggingsmodell!$J$33-Planleggingsmodell!$F$33)/Planleggingsmodell!$H$33)^(1/Planleggingsmodell!$J$33)))^Planleggingsmodell!$J$34))^(1/Planleggingsmodell!$J$34),-1000) -> -1000 | J30: =Planleggingsmodell!$D$14*(Planleggingsmodell!$F$34+Planleggingsmodell!$H$34*((ArbeidTot-((((C30/Planleggingsmodell!$D$13-OljePengerOrg/(Planleggingsmodell!$D$13*PrisK))^Planleggingsmodell!$J$33-Planleggingsmodell!$F$33)/Planleggingsmodell!$H$33)^(1/Planleggingsmodell!$J$33)))^Planleggingsmodell!$J$34))^(1/Planleggingsmodell!$J$34) -> 1612520.98 | K30: =+((Planleggingsmodell!$D$32^Planleggingsmodell!$J$32-Planleggingsmodell!$F$32^(1-Planleggingsmodell!$J$32)*C30^Planleggingsmodell!$J$32)/(Planleggingsmodell!$H$32^(1-Planleggingsmodell!$J$32)))^(1/Planleggingsmodell!$J$32) -> 1730427.805 | L30: =+Planleggingsmodell!$D$27/Planleggingsmodell!$D$25-Planleggingsmodell!$D$11/Planleggingsmodell!$D$25*C30 -> 1636632
C31: 180000 | D31: =IF($M$2="Ja",SjokkS*(Planleggingsmodell!$F$34+Planleggingsmodell!$H$34*((ArbeidTot-((((C31/SjokkK)^Planleggingsmodell!$J$33-Planleggingsmodell!$F$33)/Planleggingsmodell!$H$33)^(1/Planleggingsmodell!$J$33)))^Planleggingsmodell!$J$34))^(1/Planleggingsmodell!$J$34),-1000) -> -1000 | E31: =+SjokkS*(Planleggingsmodell!$F$34+Planleggingsmodell!$H$34*((ArbeidTot-((((C31/SjokkK-OljePenger/(SjokkK*PrisK))^Planleggingsmodell!$J$33-Planleggingsmodell!$F$33)/Planleggingsmodell!$H$33)^(1/Planleggingsmodell!$J$33)))^Planleggingsmodell!$J$34))^(1/Planleggingsmodell!$J$34) -> 1606327.3 | F31: =+((Planleggingsmodell!$C$32^Planleggingsmodell!$J$32-Planleggingsmodell!$F$32^(1-Planleggingsmodell!$J$32)*C31^Planleggingsmodell!$J$32)/(Planleggingsmodell!$H$32^(1-Planleggingsmodell!$J$32)))^(1/Planleggingsmodell!$J$32) -> 1698366.823 | G31: =+Planleggingsmodell!$C$27/Planleggingsmodell!$C$25-Planleggingsmodell!$D$11/Planleggingsmodell!$C$25*C31 -> 1626632 | H31: =+IF($M$3="Ja",($H$6-Planleggingsmodell!$D$11*Figur!C31)/Planleggingsmodell!$C$25,-1000) -> -1000 | I31: =IF($M$2="ja",Planleggingsmodell!$D$14*(Planleggingsmodell!$F$34+Planleggingsmodell!$H$34*((ArbeidTot-((((C31/Planleggingsmodell!$D$13)^Planleggingsmodell!$J$33-Planleggingsmodell!$F$33)/Planleggingsmodell!$H$33)^(1/Planleggingsmodell!$J$33)))^Planleggingsmodell!$J$34))^(1/Planleggingsmodell!$J$34),-1000) -> -1000 | J31: =Planleggingsmodell!$D$14*(Planleggingsmodell!$F$34+Planleggingsmodell!$H$34*((ArbeidTot-((((C31/Planleggingsmodell!$D$13-OljePengerOrg/(Planleggingsmodell!$D$13*PrisK))^Planleggingsmodell!$J$33-Planleggingsmodell!$F$33)/Planleggingsmodell!$H$33)^(1/Planleggingsmodell!$J$33)))^Planleggingsmodell!$J$34))^(1/Planleggingsmodell!$J$34) -> 1606327.3 | K31: =+((Planleggingsmodell!$D$32^Planleggingsmodell!$J$32-Planleggingsmodell!$F$32^(1-Planleggingsmodell!$J$32)*C31^Planleggingsmodell!$J$32)/(Planleggingsmodell!$H$32^(1-Planleggingsmodell!$J$32)))^(1/Planleggingsmodell!$J$32) -> 1698366.823 | L31: =+Planleggingsmodell!$D$27/Planleggingsmodell!$D$25-Planleggingsmodell!$D$11/Planleggingsmodell!$D$25*C31 -> 1626632
C32: 190000 | D32: =IF($M$2="Ja",SjokkS*(Planleggingsmodell!$F$34+Planleggingsmodell!$H$34*((ArbeidTot-((((C32/SjokkK)^Planleggingsmodell!$J$33-Planleggingsmodell!$F$33)/Planleggingsmodell!$H$33)^(1/Planleggingsmodell!$J$33)))^Planleggingsmodell!$J$34))^(1/Planleggingsmodell!$J$34),-1000) -> -1000 | E32: =+SjokkS*(Planleggingsmodell!$F$34+Planleggingsmodell!$H$34*((ArbeidTot-((((C32/SjokkK-OljePenger/(SjokkK*PrisK))^Planleggingsmodell!$J$33-Planleggingsmodell!$F$33)/Planleggingsmodell!$H$33)^(1/Planleggingsmodell!$J$33)))^Planleggingsmodell!$J$34))^(1/Planleggingsmodell!$J$34) -> 1599872.066 | F32: =+((Planleggingsmodell!$C$32^Planleggingsmodell!$J$32-Planleggingsmodell!$F$32^(1-Planleggingsmodell!$J$32)*C32^Planleggingsmodell!$J$32)/(Planleggingsmodell!$H$32^(1-Planleggingsmodell!$J$32)))^(1/Planleggingsmodell!$J$32) -> 1670671.293 | G32: =+Planleggingsmodell!$C$27/Planleggingsmodell!$C$25-Planleggingsmodell!$D$11/Planleggingsmodell!$C$25*C32 -> 1616632 | H32: =+IF($M$3="Ja",($H$6-Planleggingsmodell!$D$11*Figur!C32)/Planleggingsmodell!$C$25,-1000) -> -1000 | I32: =IF($M$2="ja",Planleggingsmodell!$D$14*(Planleggingsmodell!$F$34+Planleggingsmodell!$H$34*((ArbeidTot-((((C32/Planleggingsmodell!$D$13)^Planleggingsmodell!$J$33-Planleggingsmodell!$F$33)/Planleggingsmodell!$H$33)^(1/Planleggingsmodell!$J$33)))^Planleggingsmodell!$J$34))^(1/Planleggingsmodell!$J$34),-1000) -> -1000 | J32: =Planleggingsmodell!$D$14*(Planleggingsmodell!$F$34+Planleggingsmodell!$H$34*((ArbeidTot-((((C32/Planleggingsmodell!$D$13-OljePengerOrg/(Planleggingsmodell!$D$13*PrisK))^Planleggingsmodell!$J$33-Planleggingsmodell!$F$33)/Planleggingsmodell!$H$33)^(1/Planleggingsmodell!$J$33)))^Planleggingsmodell!$J$34))^(1/Planleggingsmodell!$J$34) -> 1599872.066 | K32: =+((Planleggingsmodell!$D$32^Planleggingsmodell!$J$32-Planleggingsmodell!$F$32^(1-Planleggingsmodell!$J$32)*C32^Planleggingsmodell!$J$32)/(Planleggingsmodell!$H$32^(1-Planleggingsmodell!$J$32)))^(1/Planleggingsmodell!$J$32) -> 1670671.293 | L32: =+Planleggingsmodell!$D$27/Planleggingsmodell!$D$25-Planleggingsmodell!$D$11/Planleggingsmodell!$D$25*C32 -> 1616632
C33: 200000 | D33: =IF($M$2="Ja",SjokkS*(Planleggingsmodell!$F$34+Planleggingsmodell!$H$34*((ArbeidTot-((((C33/SjokkK)^Planleggingsmodell!$J$33-Planleggingsmodell!$F$33)/Planleggingsmodell!$H$33)^(1/Planleggingsmodell!$J$33)))^Planleggingsmodell!$J$34))^(1/Planleggingsmodell!$J$34),-1000) -> -1000 | E33: =+SjokkS*(Planleggingsmodell!$F$34+Planleggingsmodell!$H$34*((ArbeidTot-((((C33/SjokkK-OljePenger/(SjokkK*PrisK))^Planleggingsmodell!$J$33-Planleggingsmodell!$F$33)/Planleggingsmodell!$H$33)^(1/Planleggingsmodell!$J$33)))^Planleggingsmodell!$J$34))^(1/Planleggingsmodell!$J$34) -> 1593138.35 | F33: =+((Planleggingsmodell!$C$32^Planleggingsmodell!$J$32-Planleggingsmodell!$F$32^(1-Planleggingsmodell!$J$32)*C33^Planleggingsmodell!$J$32)/(Planleggingsmodell!$H$32^(1-Planleggingsmodell!$J$32)))^(1/Planleggingsmodell!$J$32) -> 1646506.442 | G33: =+Planleggingsmodell!$C$27/Planleggingsmodell!$C$25-Planleggingsmodell!$D$11/Planleggingsmodell!$C$25*C33 -> 1606632 | H33: =+IF($M$3="Ja",($H$6-Planleggingsmodell!$D$11*Figur!C33)/Planleggingsmodell!$C$25,-1000) -> -1000 | I33: =IF($M$2="ja",Planleggingsmodell!$D$14*(Planleggingsmodell!$F$34+Planleggingsmodell!$H$34*((ArbeidTot-((((C33/Planleggingsmodell!$D$13)^Planleggingsmodell!$J$33-Planleggingsmodell!$F$33)/Planleggingsmodell!$H$33)^(1/Planleggingsmodell!$J$33)))^Planleggingsmodell!$J$34))^(1/Planleggingsmodell!$J$34),-1000) -> -1000 | J33: =Planleggingsmodell!$D$14*(Planleggingsmodell!$F$34+Planleggingsmodell!$H$34*((ArbeidTot-((((C33/Planleggingsmodell!$D$13-OljePengerOrg/(Planleggingsmodell!$D$13*PrisK))^Planleggingsmodell!$J$33-Planleggingsmodell!$F$33)/Planleggingsmodell!$H$33)^(1/Planleggingsmodell!$J$33)))^Planleggingsmodell!$J$34))^(1/Planleggingsmodell!$J$34) -> 1593138.35 | K33: =+((Planleggingsmodell!$D$32^Planleggingsmodell!$J$32-Planleggingsmodell!$F$32^(1-Planleggingsmodell!$J$32)*C33^Planleggingsmodell!$J$32)/(Planleggingsmodell!$H$32^(1-Planleggingsmodell!$J$32)))^(1/Planleggingsmodell!$J$32) -> 1646506.442 | L33: =+Planleggingsmodell!$D$27/Planleggingsmodell!$D$25-Planleggingsmodell!$D$11/Planleggingsmodell!$D$25*C33 -> 1606632
C34: 210000 | D34: =IF($M$2="Ja",SjokkS*(Planleggingsmodell!$F$34+Planleggingsmodell!$H$34*((ArbeidTot-((((C34/SjokkK)^Planleggingsmodell!$J$33-Planleggingsmodell!$F$33)/Planleggingsmodell!$H$33)^(1/Planleggingsmodell!$J$33)))^Planleggingsmodell!$J$34))^(1/Planleggingsmodell!$J$34),-1000) -> -1000 | E34: =+SjokkS*(Planleggingsmodell!$F$34+Planleggingsmodell!$H$34*((ArbeidTot-((((C34/SjokkK-OljePenger/(SjokkK*PrisK))^Planleggingsmodell!$J$33-Planleggingsmodell!$F$33)/Planleggingsmodell!$H$33)^(1/Planleggingsmodell!$J$33)))^Planleggingsmodell!$J$34))^(1/Planleggingsmodell!$J$34) -> 1586107.735 | F34: =+((Planleggingsmodell!$C$32^Planleggingsmodell!$J$32-Planleggingsmodell!$F$32^(1-Planleggingsmodell!$J$32)*C34^Planleggingsmodell!$J$32)/(Planleggingsmodell!$H$32^(1-Planleggingsmodell!$J$32)))^(1/Planleggingsmodell!$J$32) -> 1625237.579 | G34: =+Planleggingsmodell!$C$27/Planleggingsmodell!$C$25-Planleggingsmodell!$D$11/Planleggingsmodell!$C$25*C34 -> 1596632 | H34: =+IF($M$3="Ja",($H$6-Planleggingsmodell!$D$11*Figur!C34)/Planleggingsmodell!$C$25,-1000) -> -1000 | I34: =IF($M$2="ja",Planleggingsmodell!$D$14*(Planleggingsmodell!$F$34+Planleggingsmodell!$H$34*((ArbeidTot-((((C34/Planleggingsmodell!$D$13)^Planleggingsmodell!$J$33-Planleggingsmodell!$F$33)/Planleggingsmodell!$H$33)^(1/Planleggingsmodell!$J$33)))^Planleggingsmodell!$J$34))^(1/Planleggingsmodell!$J$34),-1000) -> -1000 | J34: =Planleggingsmodell!$D$14*(Planleggingsmodell!$F$34+Planleggingsmodell!$H$34*((ArbeidTot-((((C34/Planleggingsmodell!$D$13-OljePengerOrg/(Planleggingsmodell!$D$13*PrisK))^Planleggingsmodell!$J$33-Planleggingsmodell!$F$33)/Planleggingsmodell!$H$33)^(1/Planleggingsmodell!$J$33)))^Planleggingsmodell!$J$34))^(1/Planleggingsmodell!$J$34) -> 1586107.735 | K34: =+((Planleggingsmodell!$D$32^Planleggingsmodell!$J$32-Planleggingsmodell!$F$32^(1-Planleggingsmodell!$J$32)*C34^Planleggingsmodell!$J$32)/(Planleggingsmodell!$H$32^(1-Planleggingsmodell!$J$32)))^(1/Planleggingsmodell!$J$32) -> 1625237.579 | L34: =+Planleggingsmodell!$D$27/Planleggingsmodell!$D$25-Planleggingsmodell!$D$11/Planleggingsmodell!$D$25*C34 -> 1596632
C35: 220000 | D35: =IF($M$2="Ja",SjokkS*(Planleggingsmodell!$F$34+Planleggingsmodell!$H$34*((ArbeidTot-((((C35/SjokkK)^Planleggingsmodell!$J$33-Planleggingsmodell!$F$33)/Planleggingsmodell!$H$33)^(1/Planleggingsmodell!$J$33)))^Planleggingsmodell!$J$34))^(1/Planleggingsmodell!$J$34),-1000) -> -1000 | E35: =+SjokkS*(Planleggingsmodell!$F$34+Planleggingsmodell!$H$34*((ArbeidTot-((((C35/SjokkK-OljePenger/(SjokkK*PrisK))^Planleggingsmodell!$J$33-Planleggingsmodell!$F$33)/Planleggingsmodell!$H$33)^(1/Planleggingsmodell!$J$33)))^Planleggingsmodell!$J$34))^(1/Planleggingsmodell!$J$34) -> 1578760.143 | F35: =+((Planleggingsmodell!$C$32^Planleggingsmodell!$J$32-Planleggingsmodell!$F$32^(1-Planleggingsmodell!$J$32)*C35^Planleggingsmodell!$J$32)/(Planleggingsmodell!$H$32^(1-Planleggingsmodell!$J$32)))^(1/Planleggingsmodell!$J$32) -> 1606373.54 | G35: =+Planleggingsmodell!$C$27/Planleggingsmodell!$C$25-Planleggingsmodell!$D$11/Planleggingsmodell!$C$25*C35 -> 1586632 | H35: =+IF($M$3="Ja",($H$6-Planleggingsmodell!$D$11*Figur!C35)/Planleggingsmodell!$C$25,-1000) -> -1000 | I35: =IF($M$2="ja",Planleggingsmodell!$D$14*(Planleggingsmodell!$F$34+Planleggingsmodell!$H$34*((ArbeidTot-((((C35/Planleggingsmodell!$D$13)^Planleggingsmodell!$J$33-Planleggingsmodell!$F$33)/Planleggingsmodell!$H$33)^(1/Planleggingsmodell!$J$33)))^Planleggingsmodell!$J$34))^(1/Planleggingsmodell!$J$34),-1000) -> -1000 | J35: =Planleggingsmodell!$D$14*(Planleggingsmodell!$F$34+Planleggingsmodell!$H$34*((ArbeidTot-((((C35/Planleggingsmodell!$D$13-OljePengerOrg/(Planleggingsmodell!$D$13*PrisK))^Planleggingsmodell!$J$33-Planleggingsmodell!$F$33)/Planleggingsmodell!$H$33)^(1/Planleggingsmodell!$J$33)))^Planleggingsmodell!$J$34))^(1/Planleggingsmodell!$J$34) -> 1578760.143 | K35: =+((Planleggingsmodell!$D$32^Planleggingsmodell!$J$32-Planleggingsmodell!$F$32^(1-Planleggingsmodell!$J$32)*C35^Planleggingsmodell!$J$32)/(Planleggingsmodell!$H$32^(1-Planleggingsmodell!$J$32)))^(1/Planleggingsmodell!$J$32) -> 1606373.54 | L35: =+Planleggingsmodell!$D$27/Planleggingsmodell!$D$25-Planleggingsmodell!$D$11/Planleggingsmodell!$D$25*C35 -> 1586632
C36: 230000 | D36: =IF($M$2="Ja",SjokkS*(Planleggingsmodell!$F$34+Planleggingsmodell!$H$34*((ArbeidTot-((((C36/SjokkK)^Planleggingsmodell!$J$33-Planleggingsmodell!$F$33)/Planleggingsmodell!$H$33)^(1/Planleggingsmodell!$J$33)))^Planleggingsmodell!$J$34))^(1/Planleggingsmodell!$J$34),-1000) -> -1000 | E36: =+SjokkS*(Planleggingsmodell!$F$34+Planleggingsmodell!$H$34*((ArbeidTot-((((C36/SjokkK-OljePenger/(SjokkK*PrisK))^Planleggingsmodell!$J$33-Planleggingsmodell!$F$33)/Planleggingsmodell!$H$33)^(1/Planleggingsmodell!$J$33)))^Planleggingsmodell!$J$34))^(1/Planleggingsmodell!$J$34) -> 1571073.643 | F36: =+((Planleggingsmodell!$C$32^Planleggingsmodell!$J$32-Planleggingsmodell!$F$32^(1-Planleggingsmodell!$J$32)*C36^Planleggingsmodell!$J$32)/(Planleggingsmodell!$H$32^(1-Planleggingsmodell!$J$32)))^(1/Planleggingsmodell!$J$32) -> 1589528.286 | G36: =+Planleggingsmodell!$C$27/Planleggingsmodell!$C$25-Planleggingsmodell!$D$11/Planleggingsmodell!$C$25*C36 -> 1576632 | H36: =+IF($M$3="Ja",($H$6-Planleggingsmodell!$D$11*Figur!C36)/Planleggingsmodell!$C$25,-1000) -> -1000 | I36: =IF($M$2="ja",Planleggingsmodell!$D$14*(Planleggingsmodell!$F$34+Planleggingsmodell!$H$34*((ArbeidTot-((((C36/Planleggingsmodell!$D$13)^Planleggingsmodell!$J$33-Planleggingsmodell!$F$33)/Planleggingsmodell!$H$33)^(1/Planleggingsmodell!$J$33)))^Planleggingsmodell!$J$34))^(1/Planleggingsmodell!$J$34),-1000) -> -1000 | J36: =Planleggingsmodell!$D$14*(Planleggingsmodell!$F$34+Planleggingsmodell!$H$34*((ArbeidTot-((((C36/Planleggingsmodell!$D$13-OljePengerOrg/(Planleggingsmodell!$D$13*PrisK))^Planleggingsmodell!$J$33-Planleggingsmodell!$F$33)/Planleggingsmodell!$H$33)^(1/Planleggingsmodell!$J$33)))^Planleggingsmodell!$J$34))^(1/Planleggingsmodell!$J$34) -> 1571073.643 | K36: =+((Planleggingsmodell!$D$32^Planleggingsmodell!$J$32-Planleggingsmodell!$F$32^(1-Planleggingsmodell!$J$32)*C36^Planleggingsmodell!$J$32)/(Planleggingsmodell!$H$32^(1-Planleggingsmodell!$J$32)))^(1/Planleggingsmodell!$J$32) -> 1589528.286 | L36: =+Planleggingsmodell!$D$27/Planleggingsmodell!$D$25-Planleggingsmodell!$D$11/Planleggingsmodell!$D$25*C36 -> 1576632
C37: 240000 | D37: =IF($M$2="Ja",SjokkS*(Planleggingsmodell!$F$34+Planleggingsmodell!$H$34*((ArbeidTot-((((C37/SjokkK)^Planleggingsmodell!$J$33-Planleggingsmodell!$F$33)/Planleggingsmodell!$H$33)^(1/Planleggingsmodell!$J$33)))^Planleggingsmodell!$J$34))^(1/Planleggingsmodell!$J$34),-1000) -> -1000 | E37: =+SjokkS*(Planleggingsmodell!$F$34+Planleggingsmodell!$H$34*((ArbeidTot-((((C37/SjokkK-OljePenger/(SjokkK*PrisK))^Planleggingsmodell!$J$33-Planleggingsmodell!$F$33)/Planleggingsmodell!$H$33)^(1/Planleggingsmodell!$J$33)))^Planleggingsmodell!$J$34))^(1/Planleggingsmodell!$J$34) -> 1563024.233 | F37: =+((Planleggingsmodell!$C$32^Planleggingsmodell!$J$32-Planleggingsmodell!$F$32^(1-Planleggingsmodell!$J$32)*C37^Planleggingsmodell!$J$32)/(Planleggingsmodell!$H$32^(1-Planleggingsmodell!$J$32)))^(1/Planleggingsmodell!$J$32) -> 1574394.209 | G37: =+Planleggingsmodell!$C$27/Planleggingsmodell!$C$25-Planleggingsmodell!$D$11/Planleggingsmodell!$C$25*C37 -> 1566632 | H37: =+IF($M$3="Ja",($H$6-Planleggingsmodell!$D$11*Figur!C37)/Planleggingsmodell!$C$25,-1000) -> -1000 | I37: =IF($M$2="ja",Planleggingsmodell!$D$14*(Planleggingsmodell!$F$34+Planleggingsmodell!$H$34*((ArbeidTot-((((C37/Planleggingsmodell!$D$13)^Planleggingsmodell!$J$33-Planleggingsmodell!$F$33)/Planleggingsmodell!$H$33)^(1/Planleggingsmodell!$J$33)))^Planleggingsmodell!$J$34))^(1/Planleggingsmodell!$J$34),-1000) -> -1000 | J37: =Planleggingsmodell!$D$14*(Planleggingsmodell!$F$34+Planleggingsmodell!$H$34*((ArbeidTot-((((C37/Planleggingsmodell!$D$13-OljePengerOrg/(Planleggingsmodell!$D$13*PrisK))^Planleggingsmodell!$J$33-Planleggingsmodell!$F$33)/Planleggingsmodell!$H$33)^(1/Planleggingsmodell!$J$33)))^Planleggingsmodell!$J$34))^(1/Planleggingsmodell!$J$34) -> 1563024.233 | K37: =+((Planleggingsmodell!$D$32^Planleggingsmodell!$J$32-Planleggingsmodell!$F$32^(1-Planleggingsmodell!$J$32)*C37^Planleggingsmodell!$J$32)/(Planleggingsmodell!$H$32^(1-Planleggingsmodell!$J$32)))^(1/Planleggingsmodell!$J$32) -> 1574394.209 | L37: =+Planleggingsmodell!$D$27/Planleggingsmodell!$D$25-Planleggingsmodell!$D$11/Planleggingsmodell!$D$25*C37 -> 1566632
C38: 250000 | D38: =IF($M$2="Ja",SjokkS*(Planleggingsmodell!$F$34+Planleggingsmodell!$H$34*((ArbeidTot-((((C38/SjokkK)^Planleggingsmodell!$J$33-Planleggingsmodell!$F$33)/Planleggingsmodell!$H$33)^(1/Planleggingsmodell!$J$33)))^Planleggingsmodell!$J$34))^(1/Planleggingsmodell!$J$34),-1000) -> -1000 | E38: =+SjokkS*(Planleggingsmodell!$F$34+Planleggingsmodell!$H$34*((ArbeidTot-((((C38/SjokkK-OljePenger/(SjokkK*PrisK))^Planleggingsmodell!$J$33-Planleggingsmodell!$F$33)/Planleggingsmodell!$H$33)^(1/Planleggingsmodell!$J$33)))^Planleggingsmodell!$J$34))^(1/Planleggingsmodell!$J$34) -> 1554585.589 | F38: =+((Planleggingsmodell!$C$32^Planleggingsmodell!$J$32-Planleggingsmodell!$F$32^(1-Planleggingsmodell!$J$32)*C38^Planleggingsmodell!$J$32)/(Planleggingsmodell!$H$32^(1-Planleggingsmodell!$J$32)))^(1/Planleggingsmodell!$J$32) -> 1560723.174 | G38: =+Planleggingsmodell!$C$27/Planleggingsmodell!$C$25-Planleggingsmodell!$D$11/Planleggingsmodell!$C$25*C38 -> 1556632 | H38: =+IF($M$3="Ja",($H$6-Planleggingsmodell!$D$11*Figur!C38)/Planleggingsmodell!$C$25,-1000) -> -1000 | I38: =IF($M$2="ja",Planleggingsmodell!$D$14*(Planleggingsmodell!$F$34+Planleggingsmodell!$H$34*((ArbeidTot-((((C38/Planleggingsmodell!$D$13)^Planleggingsmodell!$J$33-Planleggingsmodell!$F$33)/Planleggingsmodell!$H$33)^(1/Planleggingsmodell!$J$33)))^Planleggingsmodell!$J$34))^(1/Planleggingsmodell!$J$34),-1000) -> -1000 | J38: =Planleggingsmodell!$D$14*(Planleggingsmodell!$F$34+Planleggingsmodell!$H$34*((ArbeidTot-((((C38/Planleggingsmodell!$D$13-OljePengerOrg/(Planleggingsmodell!$D$13*PrisK))^Planleggingsmodell!$J$33-Planleggingsmodell!$F$33)/Planleggingsmodell!$H$33)^(1/Planleggingsmodell!$J$33)))^Planleggingsmodell!$J$34))^(1/Planleggingsmodell!$J$34) -> 1554585.589 | K38: =+((Planleggingsmodell!$D$32^Planleggingsmodell!$J$32-Planleggingsmodell!$F$32^(1-Planleggingsmodell!$J$32)*C38^Planleggingsmodell!$J$32)/(Planleggingsmodell!$H$32^(1-Planleggingsmodell!$J$32)))^(1/Planleggingsmodell!$J$32) -> 1560723.174 | L38: =+Planleggingsmodell!$D$27/Planleggingsmodell!$D$25-Planleggingsmodell!$D$11/Planleggingsmodell!$D$25*C38 -> 1556632
C39: 260000 | D39: =IF($M$2="Ja",SjokkS*(Planleggingsmodell!$F$34+Planleggingsmodell!$H$34*((ArbeidTot-((((C39/SjokkK)^Planleggingsmodell!$J$33-Planleggingsmodell!$F$33)/Planleggingsmodell!$H$33)^(1/Planleggingsmodell!$J$33)))^Planleggingsmodell!$J$34))^(1/Planleggingsmodell!$J$34),-1000) -> -1000 | E39: =+SjokkS*(Planleggingsmodell!$F$34+Planleggingsmodell!$H$34*((ArbeidTot-((((C39/SjokkK-OljePenger/(SjokkK*PrisK))^Planleggingsmodell!$J$33-Planleggingsmodell!$F$33)/Planleggingsmodell!$H$33)^(1/Planleggingsmodell!$J$33)))^Planleggingsmodell!$J$34))^(1/Planleggingsmodell!$J$34) -> 1545728.78 | F39: =+((Planleggingsmodell!$C$32^Planleggingsmodell!$J$32-Planleggingsmodell!$F$32^(1-Planleggingsmodell!$J$32)*C39^Planleggingsmodell!$J$32)/(Planleggingsmodell!$H$32^(1-Planleggingsmodell!$J$32)))^(1/Planleggingsmodell!$J$32) -> 1548312.811 | G39: =+Planleggingsmodell!$C$27/Planleggingsmodell!$C$25-Planleggingsmodell!$D$11/Planleggingsmodell!$C$25*C39 -> 1546632 | H39: =+IF($M$3="Ja",($H$6-Planleggingsmodell!$D$11*Figur!C39)/Planleggingsmodell!$C$25,-1000) -> -1000 | I39: =IF($M$2="ja",Planleggingsmodell!$D$14*(Planleggingsmodell!$F$34+Planleggingsmodell!$H$34*((ArbeidTot-((((C39/Planleggingsmodell!$D$13)^Planleggingsmodell!$J$33-Planleggingsmodell!$F$33)/Planleggingsmodell!$H$33)^(1/Planleggingsmodell!$J$33)))^Planleggingsmodell!$J$34))^(1/Planleggingsmodell!$J$34),-1000) -> -1000 | J39: =Planleggingsmodell!$D$14*(Planleggingsmodell!$F$34+Planleggingsmodell!$H$34*((ArbeidTot-((((C39/Planleggingsmodell!$D$13-OljePengerOrg/(Planleggingsmodell!$D$13*PrisK))^Planleggingsmodell!$J$33-Planleggingsmodell!$F$33)/Planleggingsmodell!$H$33)^(1/Planleggingsmodell!$J$33)))^Planleggingsmodell!$J$34))^(1/Planleggingsmodell!$J$34) -> 1545728.78 | K39: =+((Planleggingsmodell!$D$32^Planleggingsmodell!$J$32-Planleggingsmodell!$F$32^(1-Planleggingsmodell!$J$32)*C39^Planleggingsmodell!$J$32)/(Planleggingsmodell!$H$32^(1-Planleggingsmodell!$J$32)))^(1/Planleggingsmodell!$J$32) -> 1548312.811 | L39: =+Planleggingsmodell!$D$27/Planleggingsmodell!$D$25-Planleggingsmodell!$D$11/Planleggingsmodell!$D$25*C39 -> 1546632
C40: 270000 | D40: =IF($M$2="Ja",SjokkS*(Planleggingsmodell!$F$34+Planleggingsmodell!$H$34*((ArbeidTot-((((C40/SjokkK)^Planleggingsmodell!$J$33-Planleggingsmodell!$F$33)/Planleggingsmodell!$H$33)^(1/Planleggingsmodell!$J$33)))^Planleggingsmodell!$J$34))^(1/Planleggingsmodell!$J$34),-1000) -> -1000 | E40: =+SjokkS*(Planleggingsmodell!$F$34+Planleggingsmodell!$H$34*((ArbeidTot-((((C40/SjokkK-OljePenger/(SjokkK*PrisK))^Planleggingsmodell!$J$33-Planleggingsmodell!$F$33)/Planleggingsmodell!$H$33)^(1/Planleggingsmodell!$J$33)))^Planleggingsmodell!$J$34))^(1/Planleggingsmodell!$J$34) -> 1536421.934 | F40: =+((Planleggingsmodell!$C$32^Planleggingsmodell!$J$32-Planleggingsmodell!$F$32^(1-Planleggingsmodell!$J$32)*C40^Planleggingsmodell!$J$32)/(Planleggingsmodell!$H$32^(1-Planleggingsmodell!$J$32)))^(1/Planleggingsmodell!$J$32) -> 1536996.425 | G40: =+Planleggingsmodell!$C$27/Planleggingsmodell!$C$25-Planleggingsmodell!$D$11/Planleggingsmodell!$C$25*C40 -> 1536632 | H40: =+IF($M$3="Ja",($H$6-Planleggingsmodell!$D$11*Figur!C40)/Planleggingsmodell!$C$25,-1000) -> -1000 | I40: =IF($M$2="ja",Planleggingsmodell!$D$14*(Planleggingsmodell!$F$34+Planleggingsmodell!$H$34*((ArbeidTot-((((C40/Planleggingsmodell!$D$13)^Planleggingsmodell!$J$33-Planleggingsmodell!$F$33)/Planleggingsmodell!$H$33)^(1/Planleggingsmodell!$J$33)))^Planleggingsmodell!$J$34))^(1/Planleggingsmodell!$J$34),-1000) -> -1000 | J40: =Planleggingsmodell!$D$14*(Planleggingsmodell!$F$34+Planleggingsmodell!$H$34*((ArbeidTot-((((C40/Planleggingsmodell!$D$13-OljePengerOrg/(Planleggingsmodell!$D$13*PrisK))^Planleggingsmodell!$J$33-Planleggingsmodell!$F$33)/Planleggingsmodell!$H$33)^(1/Planleggingsmodell!$J$33)))^Planleggingsmodell!$J$34))^(1/Planleggingsmodell!$J$34) -> 1536421.934 | K40: =+((Planleggingsmodell!$D$32^Planleggingsmodell!$J$32-Planleggingsmodell!$F$32^(1-Planleggingsmodell!$J$32)*C40^Planleggingsmodell!$J$32)/(Planleggingsmodell!$H$32^(1-Planleggingsmodell!$J$32)))^(1/Planleggingsmodell!$J$32) -> 1536996.425 | L40: =+Planleggingsmodell!$D$27/Planleggingsmodell!$D$25-Planleggingsmodell!$D$11/Planleggingsmodell!$D$25*C40 -> 1536632
C41: 280000 | D41: =IF($M$2="Ja",SjokkS*(Planleggingsmodell!$F$34+Planleggingsmodell!$H$34*((ArbeidTot-((((C41/SjokkK)^Planleggingsmodell!$J$33-Planleggingsmodell!$F$33)/Planleggingsmodell!$H$33)^(1/Planleggingsmodell!$J$33)))^Planleggingsmodell!$J$34))^(1/Planleggingsmodell!$J$34),-1000) -> -1000 | E41: =+SjokkS*(Planleggingsmodell!$F$34+Planleggingsmodell!$H$34*((ArbeidTot-((((C41/SjokkK-OljePenger/(SjokkK*PrisK))^Planleggingsmodell!$J$33-Planleggingsmodell!$F$33)/Planleggingsmodell!$H$33)^(1/Planleggingsmodell!$J$33)))^Planleggingsmodell!$J$34))^(1/Planleggingsmodell!$J$34) -> 1526629.855 | F41: =+((Planleggingsmodell!$C$32^Planleggingsmodell!$J$32-Planleggingsmodell!$F$32^(1-Planleggingsmodell!$J$32)*C41^Planleggingsmodell!$J$32)/(Planleggingsmodell!$H$32^(1-Planleggingsmodell!$J$32)))^(1/Planleggingsmodell!$J$32) -> 1526635.473 | G41: =+Planleggingsmodell!$C$27/Planleggingsmodell!$C$25-Planleggingsmodell!$D$11/Planleggingsmodell!$C$25*C41 -> 1526632 | H41: =+IF($M$3="Ja",($H$6-Planleggingsmodell!$D$11*Figur!C41)/Planleggingsmodell!$C$25,-1000) -> -1000 | I41: =IF($M$2="ja",Planleggingsmodell!$D$14*(Planleggingsmodell!$F$34+Planleggingsmodell!$H$34*((ArbeidTot-((((C41/Planleggingsmodell!$D$13)^Planleggingsmodell!$J$33-Planleggingsmodell!$F$33)/Planleggingsmodell!$H$33)^(1/Planleggingsmodell!$J$33)))^Planleggingsmodell!$J$34))^(1/Planleggingsmodell!$J$34),-1000) -> -1000 | J41: =Planleggingsmodell!$D$14*(Planleggingsmodell!$F$34+Planleggingsmodell!$H$34*((ArbeidTot-((((C41/Planleggingsmodell!$D$13-OljePengerOrg/(Planleggingsmodell!$D$13*PrisK))^Planleggingsmodell!$J$33-Planleggingsmodell!$F$33)/Planleggingsmodell!$H$33)^(1/Planleggingsmodell!$J$33)))^Planleggingsmodell!$J$34))^(1/Planleggingsmodell!$J$34) -> 1526629.855 | K41: =+((Planleggingsmodell!$D$32^Planleggingsmodell!$J$32-Planleggingsmodell!$F$32^(1-Planleggingsmodell!$J$32)*C41^Planleggingsmodell!$J$32)/(Planleggingsmodell!$H$32^(1-Planleggingsmodell!$J$32)))^(1/Planleggingsmodell!$J$32) -> 1526635.473 | L41: =+Planleggingsmodell!$D$27/Planleggingsmodell!$D$25-Planleggingsmodell!$D$11/Planleggingsmodell!$D$25*C41 -> 1526632
C42: 290000 | D42: =IF($M$2="Ja",SjokkS*(Planleggingsmodell!$F$34+Planleggingsmodell!$H$34*((ArbeidTot-((((C42/SjokkK)^Planleggingsmodell!$J$33-Planleggingsmodell!$F$33)/Planleggingsmodell!$H$33)^(1/Planleggingsmodell!$J$33)))^Planleggingsmodell!$J$34))^(1/Planleggingsmodell!$J$34),-1000) -> -1000 | E42: =+SjokkS*(Planleggingsmodell!$F$34+Planleggingsmodell!$H$34*((ArbeidTot-((((C42/SjokkK-OljePenger/(SjokkK*PrisK))^Planleggingsmodell!$J$33-Planleggingsmodell!$F$33)/Planleggingsmodell!$H$33)^(1/Planleggingsmodell!$J$33)))^Planleggingsmodell!$J$34))^(1/Planleggingsmodell!$J$34) -> 1516313.58 | F42: =+((Planleggingsmodell!$C$32^Planleggingsmodell!$J$32-Planleggingsmodell!$F$32^(1-Planleggingsmodell!$J$32)*C42^Planleggingsmodell!$J$32)/(Planleggingsmodell!$H$32^(1-Planleggingsmodell!$J$32)))^(1/Planleggingsmodell!$J$32) -> 1517113.854 | G42: =+Planleggingsmodell!$C$27/Planleggingsmodell!$C$25-Planleggingsmodell!$D$11/Planleggingsmodell!$C$25*C42 -> 1516632 | H42: =+IF($M$3="Ja",($H$6-Planleggingsmodell!$D$11*Figur!C42)/Planleggingsmodell!$C$25,-1000) -> -1000 | I42: =IF($M$2="ja",Planleggingsmodell!$D$14*(Planleggingsmodell!$F$34+Planleggingsmodell!$H$34*((ArbeidTot-((((C42/Planleggingsmodell!$D$13)^Planleggingsmodell!$J$33-Planleggingsmodell!$F$33)/Planleggingsmodell!$H$33)^(1/Planleggingsmodell!$J$33)))^Planleggingsmodell!$J$34))^(1/Planleggingsmodell!$J$34),-1000) -> -1000 | J42: =Planleggingsmodell!$D$14*(Planleggingsmodell!$F$34+Planleggingsmodell!$H$34*((ArbeidTot-((((C42/Planleggingsmodell!$D$13-OljePengerOrg/(Planleggingsmodell!$D$13*PrisK))^Planleggingsmodell!$J$33-Planleggingsmodell!$F$33)/Planleggingsmodell!$H$33)^(1/Planleggingsmodell!$J$33)))^Planleggingsmodell!$J$34))^(1/Planleggingsmodell!$J$34) -> 1516313.58 | K42: =+((Planleggingsmodell!$D$32^Planleggingsmodell!$J$32-Planleggingsmodell!$F$32^(1-Planleggingsmodell!$J$32)*C42^Planleggingsmodell!$J$32)/(Planleggingsmodell!$H$32^(1-Planleggingsmodell!$J$32)))^(1/Planleggingsmodell!$J$32) -> 1517113.854 | L42: =+Planleggingsmodell!$D$27/Planleggingsmodell!$D$25-Planleggingsmodell!$D$11/Planleggingsmodell!$D$25*C42 -> 1516632
C43: 300000 | D43: =IF($M$2="Ja",SjokkS*(Planleggingsmodell!$F$34+Planleggingsmodell!$H$34*((ArbeidTot-((((C43/SjokkK)^Planleggingsmodell!$J$33-Planleggingsmodell!$F$33)/Planleggingsmodell!$H$33)^(1/Planleggingsmodell!$J$33)))^Planleggingsmodell!$J$34))^(1/Planleggingsmodell!$J$34),-1000) -> -1000 | E43: =+SjokkS*(Planleggingsmodell!$F$34+Planleggingsmodell!$H$34*((ArbeidTot-((((C43/SjokkK-OljePenger/(SjokkK*PrisK))^Planleggingsmodell!$J$33-Planleggingsmodell!$F$33)/Planleggingsmodell!$H$33)^(1/Planleggingsmodell!$J$33)))^Planleggingsmodell!$J$34))^(1/Planleggingsmodell!$J$34) -> 1505429.859 | F43: =+((Planleggingsmodell!$C$32^Planleggingsmodell!$J$32-Planleggingsmodell!$F$32^(1-Planleggingsmodell!$J$32)*C43^Planleggingsmodell!$J$32)/(Planleggingsmodell!$H$32^(1-Planleggingsmodell!$J$32)))^(1/Planleggingsmodell!$J$32) -> 1508333.55 | G43: =+Planleggingsmodell!$C$27/Planleggingsmodell!$C$25-Planleggingsmodell!$D$11/Planleggingsmodell!$C$25*C43 -> 1506632 | H43: =+IF($M$3="Ja",($H$6-Planleggingsmodell!$D$11*Figur!C43)/Planleggingsmodell!$C$25,-1000) -> -1000 | I43: =IF($M$2="ja",Planleggingsmodell!$D$14*(Planleggingsmodell!$F$34+Planleggingsmodell!$H$34*((ArbeidTot-((((C43/Planleggingsmodell!$D$13)^Planleggingsmodell!$J$33-Planleggingsmodell!$F$33)/Planleggingsmodell!$H$33)^(1/Planleggingsmodell!$J$33)))^Planleggingsmodell!$J$34))^(1/Planleggingsmodell!$J$34),-1000) -> -1000 | J43: =Planleggingsmodell!$D$14*(Planleggingsmodell!$F$34+Planleggingsmodell!$H$34*((ArbeidTot-((((C43/Planleggingsmodell!$D$13-OljePengerOrg/(Planleggingsmodell!$D$13*PrisK))^Planleggingsmodell!$J$33-Planleggingsmodell!$F$33)/Planleggingsmodell!$H$33)^(1/Planleggingsmodell!$J$33)))^Planleggingsmodell!$J$34))^(1/Planleggingsmodell!$J$34) -> 1505429.859 | K43: =+((Planleggingsmodell!$D$32^Planleggingsmodell!$J$32-Planleggingsmodell!$F$32^(1-Planleggingsmodell!$J$32)*C43^Planleggingsmodell!$J$32)/(Planleggingsmodell!$H$32^(1-Planleggingsmodell!$J$32)))^(1/Planleggingsmodell!$J$32) -> 1508333.55 | L43: =+Planleggingsmodell!$D$27/Planleggingsmodell!$D$25-Planleggingsmodell!$D$11/Planleggingsmodell!$D$25*C43 -> 1506632
C44: 310000 | D44: =IF($M$2="Ja",SjokkS*(Planleggingsmodell!$F$34+Planleggingsmodell!$H$34*((ArbeidTot-((((C44/SjokkK)^Planleggingsmodell!$J$33-Planleggingsmodell!$F$33)/Planleggingsmodell!$H$33)^(1/Planleggingsmodell!$J$33)))^Planleggingsmodell!$J$34))^(1/Planleggingsmodell!$J$34),-1000) -> -1000 | E44: =+SjokkS*(Planleggingsmodell!$F$34+Planleggingsmodell!$H$34*((ArbeidTot-((((C44/SjokkK-OljePenger/(SjokkK*PrisK))^Planleggingsmodell!$J$33-Planleggingsmodell!$F$33)/Planleggingsmodell!$H$33)^(1/Planleggingsmodell!$J$33)))^Planleggingsmodell!$J$34))^(1/Planleggingsmodell!$J$34) -> 1493930.548 | F44: =+((Planleggingsmodell!$C$32^Planleggingsmodell!$J$32-Planleggingsmodell!$F$32^(1-Planleggingsmodell!$J$32)*C44^Planleggingsmodell!$J$32)/(Planleggingsmodell!$H$32^(1-Planleggingsmodell!$J$32)))^(1/Planleggingsmodell!$J$32) -> 1500211.229 | G44: =+Planleggingsmodell!$C$27/Planleggingsmodell!$C$25-Planleggingsmodell!$D$11/Planleggingsmodell!$C$25*C44 -> 1496632 | H44: =+IF($M$3="Ja",($H$6-Planleggingsmodell!$D$11*Figur!C44)/Planleggingsmodell!$C$25,-1000) -> -1000 | I44: =IF($M$2="ja",Planleggingsmodell!$D$14*(Planleggingsmodell!$F$34+Planleggingsmodell!$H$34*((ArbeidTot-((((C44/Planleggingsmodell!$D$13)^Planleggingsmodell!$J$33-Planleggingsmodell!$F$33)/Planleggingsmodell!$H$33)^(1/Planleggingsmodell!$J$33)))^Planleggingsmodell!$J$34))^(1/Planleggingsmodell!$J$34),-1000) -> -1000 | J44: =Planleggingsmodell!$D$14*(Planleggingsmodell!$F$34+Planleggingsmodell!$H$34*((ArbeidTot-((((C44/Planleggingsmodell!$D$13-OljePengerOrg/(Planleggingsmodell!$D$13*PrisK))^Planleggingsmodell!$J$33-Planleggingsmodell!$F$33)/Planleggingsmodell!$H$33)^(1/Planleggingsmodell!$J$33)))^Planleggingsmodell!$J$34))^(1/Planleggingsmodell!$J$34) -> 1493930.548 | K44: =+((Planleggingsmodell!$D$32^Planleggingsmodell!$J$32-Planleggingsmodell!$F$32^(1-Planleggingsmodell!$J$32)*C44^Planleggingsmodell!$J$32)/(Planleggingsmodell!$H$32^(1-Planleggingsmodell!$J$32)))^(1/Planleggingsmodell!$J$32) -> 1500211.229 | L44: =+Planleggingsmodell!$D$27/Planleggingsmodell!$D$25-Planleggingsmodell!$D$11/Planleggingsmodell!$D$25*C44 -> 1496632
C45: 320000 | D45: =IF($M$2="Ja",SjokkS*(Planleggingsmodell!$F$34+Planleggingsmodell!$H$34*((ArbeidTot-((((C45/SjokkK)^Planleggingsmodell!$J$33-Planleggingsmodell!$F$33)/Planleggingsmodell!$H$33)^(1/Planleggingsmodell!$J$33)))^Planleggingsmodell!$J$34))^(1/Planleggingsmodell!$J$34),-1000) -> -1000 | E45: =+SjokkS*(Planleggingsmodell!$F$34+Planleggingsmodell!$H$34*((ArbeidTot-((((C45/SjokkK-OljePenger/(SjokkK*PrisK))^Planleggingsmodell!$J$33-Planleggingsmodell!$F$33)/Planleggingsmodell!$H$33)^(1/Planleggingsmodell!$J$33)))^Planleggingsmodell!$J$34))^(1/Planleggingsmodell!$J$34) -> 1481761.901 | F45: =+((Planleggingsmodell!$C$32^Planleggingsmodell!$J$32-Planleggingsmodell!$F$32^(1-Planleggingsmodell!$J$32)*C45^Planleggingsmodell!$J$32)/(Planleggingsmodell!$H$32^(1-Planleggingsmodell!$J$32)))^(1/Planleggingsmodell!$J$32) -> 1492675.601 | G45: =+Planleggingsmodell!$C$27/Planleggingsmodell!$C$25-Planleggingsmodell!$D$11/Planleggingsmodell!$C$25*C45 -> 1486632 | H45: =+IF($M$3="Ja",($H$6-Planleggingsmodell!$D$11*Figur!C45)/Planleggingsmodell!$C$25,-1000) -> -1000 | I45: =IF($M$2="ja",Planleggingsmodell!$D$14*(Planleggingsmodell!$F$34+Planleggingsmodell!$H$34*((ArbeidTot-((((C45/Planleggingsmodell!$D$13)^Planleggingsmodell!$J$33-Planleggingsmodell!$F$33)/Planleggingsmodell!$H$33)^(1/Planleggingsmodell!$J$33)))^Planleggingsmodell!$J$34))^(1/Planleggingsmodell!$J$34),-1000) -> -1000 | J45: =Planleggingsmodell!$D$14*(Planleggingsmodell!$F$34+Planleggingsmodell!$H$34*((ArbeidTot-((((C45/Planleggingsmodell!$D$13-OljePengerOrg/(Planleggingsmodell!$D$13*PrisK))^Planleggingsmodell!$J$33-Planleggingsmodell!$F$33)/Planleggingsmodell!$H$33)^(1/Planleggingsmodell!$J$33)))^Planleggingsmodell!$J$34))^(1/Planleggingsmodell!$J$34) -> 1481761.901 | K45: =+((Planleggingsmodell!$D$32^Planleggingsmodell!$J$32-Planleggingsmodell!$F$32^(1-Planleggingsmodell!$J$32)*C45^Planleggingsmodell!$J$32)/(Planleggingsmodell!$H$32^(1-Planleggingsmodell!$J$32)))^(1/Planleggingsmodell!$J$32) -> 1492675.601 | L45: =+Planleggingsmodell!$D$27/Planleggingsmodell!$D$25-Planleggingsmodell!$D$11/Planleggingsmodell!$D$25*C45 -> 1486632
C46: 330000 | D46: =IF($M$2="Ja",SjokkS*(Planleggingsmodell!$F$34+Planleggingsmodell!$H$34*((ArbeidTot-((((C46/SjokkK)^Planleggingsmodell!$J$33-Planleggingsmodell!$F$33)/Planleggingsmodell!$H$33)^(1/Planleggingsmodell!$J$33)))^Planleggingsmodell!$J$34))^(1/Planleggingsmodell!$J$34),-1000) -> -1000 | E46: =+SjokkS*(Planleggingsmodell!$F$34+Planleggingsmodell!$H$34*((ArbeidTot-((((C46/SjokkK-OljePenger/(SjokkK*PrisK))^Planleggingsmodell!$J$33-Planleggingsmodell!$F$33)/Planleggingsmodell!$H$33)^(1/Planleggingsmodell!$J$33)))^Planleggingsmodell!$J$34))^(1/Planleggingsmodell!$J$34) -> 1468863.727 | F46: =+((Planleggingsmodell!$C$32^Planleggingsmodell!$J$32-Planleggingsmodell!$F$32^(1-Planleggingsmodell!$J$32)*C46^Planleggingsmodell!$J$32)/(Planleggingsmodell!$H$32^(1-Planleggingsmodell!$J$32)))^(1/Planleggingsmodell!$J$32) -> 1485665.315 | G46: =+Planleggingsmodell!$C$27/Planleggingsmodell!$C$25-Planleggingsmodell!$D$11/Planleggingsmodell!$C$25*C46 -> 1476632 | H46: =+IF($M$3="Ja",($H$6-Planleggingsmodell!$D$11*Figur!C46)/Planleggingsmodell!$C$25,-1000) -> -1000 | I46: =IF($M$2="ja",Planleggingsmodell!$D$14*(Planleggingsmodell!$F$34+Planleggingsmodell!$H$34*((ArbeidTot-((((C46/Planleggingsmodell!$D$13)^Planleggingsmodell!$J$33-Planleggingsmodell!$F$33)/Planleggingsmodell!$H$33)^(1/Planleggingsmodell!$J$33)))^Planleggingsmodell!$J$34))^(1/Planleggingsmodell!$J$34),-1000) -> -1000 | J46: =Planleggingsmodell!$D$14*(Planleggingsmodell!$F$34+Planleggingsmodell!$H$34*((ArbeidTot-((((C46/Planleggingsmodell!$D$13-OljePengerOrg/(Planleggingsmodell!$D$13*PrisK))^Planleggingsmodell!$J$33-Planleggingsmodell!$F$33)/Planleggingsmodell!$H$33)^(1/Planleggingsmodell!$J$33)))^Planleggingsmodell!$J$34))^(1/Planleggingsmodell!$J$34) -> 1468863.727 | K46: =+((Planleggingsmodell!$D$32^Planleggingsmodell!$J$32-Planleggingsmodell!$F$32^(1-Planleggingsmodell!$J$32)*C46^Planleggingsmodell!$J$32)/(Planleggingsmodell!$H$32^(1-Planleggingsmodell!$J$32)))^(1/Planleggingsmodell!$J$32) -> 1485665.315 | L46: =+Planleggingsmodell!$D$27/Planleggingsmodell!$D$25-Planleggingsmodell!$D$11/Planleggingsmodell!$D$25*C46 -> 1476632
C47: 340000 | D47: =IF($M$2="Ja",SjokkS*(Planleggingsmodell!$F$34+Planleggingsmodell!$H$34*((ArbeidTot-((((C47/SjokkK)^Planleggingsmodell!$J$33-Planleggingsmodell!$F$33)/Planleggingsmodell!$H$33)^(1/Planleggingsmodell!$J$33)))^Planleggingsmodell!$J$34))^(1/Planleggingsmodell!$J$34),-1000) -> -1000 | E47: =+SjokkS*(Planleggingsmodell!$F$34+Planleggingsmodell!$H$34*((ArbeidTot-((((C47/SjokkK-OljePenger/(SjokkK*PrisK))^Planleggingsmodell!$J$33-Planleggingsmodell!$F$33)/Planleggingsmodell!$H$33)^(1/Planleggingsmodell!$J$33)))^Planleggingsmodell!$J$34))^(1/Planleggingsmodell!$J$34) -> 1455168.393 | F47: =+((Planleggingsmodell!$C$32^Planleggingsmodell!$J$32-Planleggingsmodell!$F$32^(1-Planleggingsmodell!$J$32)*C47^Planleggingsmodell!$J$32)/(Planleggingsmodell!$H$32^(1-Planleggingsmodell!$J$32)))^(1/Planleggingsmodell!$J$32) -> 1479127.284 | G47: =+Planleggingsmodell!$C$27/Planleggingsmodell!$C$25-Planleggingsmodell!$D$11/Planleggingsmodell!$C$25*C47 -> 1466632 | H47: =+IF($M$3="Ja",($H$6-Planleggingsmodell!$D$11*Figur!C47)/Planleggingsmodell!$C$25,-1000) -> -1000 | I47: =IF($M$2="ja",Planleggingsmodell!$D$14*(Planleggingsmodell!$F$34+Planleggingsmodell!$H$34*((ArbeidTot-((((C47/Planleggingsmodell!$D$13)^Planleggingsmodell!$J$33-Planleggingsmodell!$F$33)/Planleggingsmodell!$H$33)^(1/Planleggingsmodell!$J$33)))^Planleggingsmodell!$J$34))^(1/Planleggingsmodell!$J$34),-1000) -> -1000 | J47: =Planleggingsmodell!$D$14*(Planleggingsmodell!$F$34+Planleggingsmodell!$H$34*((ArbeidTot-((((C47/Planleggingsmodell!$D$13-OljePengerOrg/(Planleggingsmodell!$D$13*PrisK))^Planleggingsmodell!$J$33-Planleggingsmodell!$F$33)/Planleggingsmodell!$H$33)^(1/Planleggingsmodell!$J$33)))^Planleggingsmodell!$J$34))^(1/Planleggingsmodell!$J$34) -> 1455168.393 | K47: =+((Planleggingsmodell!$D$32^Planleggingsmodell!$J$32-Planleggingsmodell!$F$32^(1-Planleggingsmodell!$J$32)*C47^Planleggingsmodell!$J$32)/(Planleggingsmodell!$H$32^(1-Planleggingsmodell!$J$32)))^(1/Planleggingsmodell!$J$32) -> 1479127.284 | L47: =+Planleggingsmodell!$D$27/Planleggingsmodell!$D$25-Planleggingsmodell!$D$11/Planleggingsmodell!$D$25*C47 -> 1466632
C48: 350000 | D48: =IF($M$2="Ja",SjokkS*(Planleggingsmodell!$F$34+Planleggingsmodell!$H$34*((ArbeidTot-((((C48/SjokkK)^Planleggingsmodell!$J$33-Planleggingsmodell!$F$33)/Planleggingsmodell!$H$33)^(1/Planleggingsmodell!$J$33)))^Planleggingsmodell!$J$34))^(1/Planleggingsmodell!$J$34),-1000) -> -1000 | E48: =+SjokkS*(Planleggingsmodell!$F$34+Planleggingsmodell!$H$34*((ArbeidTot-((((C48/SjokkK-OljePenger/(SjokkK*PrisK))^Planleggingsmodell!$J$33-Planleggingsmodell!$F$33)/Planleggingsmodell!$H$33)^(1/Planleggingsmodell!$J$33)))^Planleggingsmodell!$J$34))^(1/Planleggingsmodell!$J$34) -> 1440599.642 | F48: =+((Planleggingsmodell!$C$32^Planleggingsmodell!$J$32-Planleggingsmodell!$F$32^(1-Planleggingsmodell!$J$32)*C48^Planleggingsmodell!$J$32)/(Planleggingsmodell!$H$32^(1-Planleggingsmodell!$J$32)))^(1/Planleggingsmodell!$J$32) -> 1473015.343 | G48: =+Planleggingsmodell!$C$27/Planleggingsmodell!$C$25-Planleggingsmodell!$D$11/Planleggingsmodell!$C$25*C48 -> 1456632 | H48: =+IF($M$3="Ja",($H$6-Planleggingsmodell!$D$11*Figur!C48)/Planleggingsmodell!$C$25,-1000) -> -1000 | I48: =IF($M$2="ja",Planleggingsmodell!$D$14*(Planleggingsmodell!$F$34+Planleggingsmodell!$H$34*((ArbeidTot-((((C48/Planleggingsmodell!$D$13)^Planleggingsmodell!$J$33-Planleggingsmodell!$F$33)/Planleggingsmodell!$H$33)^(1/Planleggingsmodell!$J$33)))^Planleggingsmodell!$J$34))^(1/Planleggingsmodell!$J$34),-1000) -> -1000 | J48: =Planleggingsmodell!$D$14*(Planleggingsmodell!$F$34+Planleggingsmodell!$H$34*((ArbeidTot-((((C48/Planleggingsmodell!$D$13-OljePengerOrg/(Planleggingsmodell!$D$13*PrisK))^Planleggingsmodell!$J$33-Planleggingsmodell!$F$33)/Planleggingsmodell!$H$33)^(1/Planleggingsmodell!$J$33)))^Planleggingsmodell!$J$34))^(1/Planleggingsmodell!$J$34) -> 1440599.642 | K48: =+((Planleggingsmodell!$D$32^Planleggingsmodell!$J$32-Planleggingsmodell!$F$32^(1-Planleggingsmodell!$J$32)*C48^Planleggingsmodell!$J$32)/(Planleggingsmodell!$H$32^(1-Planleggingsmodell!$J$32)))^(1/Planleggingsmodell!$J$32) -> 1473015.343 | L48: =+Planleggingsmodell!$D$27/Planleggingsmodell!$D$25-Planleggingsmodell!$D$11/Planleggingsmodell!$D$25*C48 -> 1456632
C49: 360000 | D49: =IF($M$2="Ja",SjokkS*(Planleggingsmodell!$F$34+Planleggingsmodell!$H$34*((ArbeidTot-((((C49/SjokkK)^Planleggingsmodell!$J$33-Planleggingsmodell!$F$33)/Planleggingsmodell!$H$33)^(1/Planleggingsmodell!$J$33)))^Planleggingsmodell!$J$34))^(1/Planleggingsmodell!$J$34),-1000) -> -1000 | E49: =+SjokkS*(Planleggingsmodell!$F$34+Planleggingsmodell!$H$34*((ArbeidTot-((((C49/SjokkK-OljePenger/(SjokkK*PrisK))^Planleggingsmodell!$J$33-Planleggingsmodell!$F$33)/Planleggingsmodell!$H$33)^(1/Planleggingsmodell!$J$33)))^Planleggingsmodell!$J$34))^(1/Planleggingsmodell!$J$34) -> 1425071.168 | F49: =+((Planleggingsmodell!$C$32^Planleggingsmodell!$J$32-Planleggingsmodell!$F$32^(1-Planleggingsmodell!$J$32)*C49^Planleggingsmodell!$J$32)/(Planleggingsmodell!$H$32^(1-Planleggingsmodell!$J$32)))^(1/Planleggingsmodell!$J$32) -> 1467289.154 | G49: =+Planleggingsmodell!$C$27/Planleggingsmodell!$C$25-Planleggingsmodell!$D$11/Planleggingsmodell!$C$25*C49 -> 1446632 | H49: =+IF($M$3="Ja",($H$6-Planleggingsmodell!$D$11*Figur!C49)/Planleggingsmodell!$C$25,-1000) -> -1000 | I49: =IF($M$2="ja",Planleggingsmodell!$D$14*(Planleggingsmodell!$F$34+Planleggingsmodell!$H$34*((ArbeidTot-((((C49/Planleggingsmodell!$D$13)^Planleggingsmodell!$J$33-Planleggingsmodell!$F$33)/Planleggingsmodell!$H$33)^(1/Planleggingsmodell!$J$33)))^Planleggingsmodell!$J$34))^(1/Planleggingsmodell!$J$34),-1000) -> -1000 | J49: =Planleggingsmodell!$D$14*(Planleggingsmodell!$F$34+Planleggingsmodell!$H$34*((ArbeidTot-((((C49/Planleggingsmodell!$D$13-OljePengerOrg/(Planleggingsmodell!$D$13*PrisK))^Planleggingsmodell!$J$33-Planleggingsmodell!$F$33)/Planleggingsmodell!$H$33)^(1/Planleggingsmodell!$J$33)))^Planleggingsmodell!$J$34))^(1/Planleggingsmodell!$J$34) -> 1425071.168 | K49: =+((Planleggingsmodell!$D$32^Planleggingsmodell!$J$32-Planleggingsmodell!$F$32^(1-Planleggingsmodell!$J$32)*C49^Planleggingsmodell!$J$32)/(Planleggingsmodell!$H$32^(1-Planleggingsmodell!$J$32)))^(1/Planleggingsmodell!$J$32) -> 1467289.154 | L49: =+Planleggingsmodell!$D$27/Planleggingsmodell!$D$25-Planleggingsmodell!$D$11/Planleggingsmodell!$D$25*C49 -> 1446632
C50: 370000 | D50: =IF($M$2="Ja",SjokkS*(Planleggingsmodell!$F$34+Planleggingsmodell!$H$34*((ArbeidTot-((((C50/SjokkK)^Planleggingsmodell!$J$33-Planleggingsmodell!$F$33)/Planleggingsmodell!$H$33)^(1/Planleggingsmodell!$J$33)))^Planleggingsmodell!$J$34))^(1/Planleggingsmodell!$J$34),-1000) -> -1000 | E50: =+SjokkS*(Planleggingsmodell!$F$34+Planleggingsmodell!$H$34*((ArbeidTot-((((C50/SjokkK-OljePenger/(SjokkK*PrisK))^Planleggingsmodell!$J$33-Planleggingsmodell!$F$33)/Planleggingsmodell!$H$33)^(1/Planleggingsmodell!$J$33)))^Planleggingsmodell!$J$34))^(1/Planleggingsmodell!$J$34) -> 1408484.909 | F50: =+((Planleggingsmodell!$C$32^Planleggingsmodell!$J$32-Planleggingsmodell!$F$32^(1-Planleggingsmodell!$J$32)*C50^Planleggingsmodell!$J$32)/(Planleggingsmodell!$H$32^(1-Planleggingsmodell!$J$32)))^(1/Planleggingsmodell!$J$32) -> 1461913.313 | G50: =+Planleggingsmodell!$C$27/Planleggingsmodell!$C$25-Planleggingsmodell!$D$11/Planleggingsmodell!$C$25*C50 -> 1436632 | H50: =+IF($M$3="Ja",($H$6-Planleggingsmodell!$D$11*Figur!C50)/Planleggingsmodell!$C$25,-1000) -> -1000 | I50: =IF($M$2="ja",Planleggingsmodell!$D$14*(Planleggingsmodell!$F$34+Planleggingsmodell!$H$34*((ArbeidTot-((((C50/Planleggingsmodell!$D$13)^Planleggingsmodell!$J$33-Planleggingsmodell!$F$33)/Planleggingsmodell!$H$33)^(1/Planleggingsmodell!$J$33)))^Planleggingsmodell!$J$34))^(1/Planleggingsmodell!$J$34),-1000) -> -1000 | J50: =Planleggingsmodell!$D$14*(Planleggingsmodell!$F$34+Planleggingsmodell!$H$34*((ArbeidTot-((((C50/Planleggingsmodell!$D$13-OljePengerOrg/(Planleggingsmodell!$D$13*PrisK))^Planleggingsmodell!$J$33-Planleggingsmodell!$F$33)/Planleggingsmodell!$H$33)^(1/Planleggingsmodell!$J$33)))^Planleggingsmodell!$J$34))^(1/Planleggingsmodell!$J$34) -> 1408484.909 | K50: =+((Planleggingsmodell!$D$32^Planleggingsmodell!$J$32-Planleggingsmodell!$F$32^(1-Planleggingsmodell!$J$32)*C50^Planleggingsmodell!$J$32)/(Planleggingsmodell!$H$32^(1-Planleggingsmodell!$J$32)))^(1/Planleggingsmodell!$J$32) -> 1461913.313 | L50: =+Planleggingsmodell!$D$27/Planleggingsmodell!$D$25-Planleggingsmodell!$D$11/Planleggingsmodell!$D$25*C50 -> 1436632
C51: 380000 | D51: =IF($M$2="Ja",SjokkS*(Planleggingsmodell!$F$34+Planleggingsmodell!$H$34*((ArbeidTot-((((C51/SjokkK)^Planleggingsmodell!$J$33-Planleggingsmodell!$F$33)/Planleggingsmodell!$H$33)^(1/Planleggingsmodell!$J$33)))^Planleggingsmodell!$J$34))^(1/Planleggingsmodell!$J$34),-1000) -> -1000 | E51: =+SjokkS*(Planleggingsmodell!$F$34+Planleggingsmodell!$H$34*((ArbeidTot-((((C51/SjokkK-OljePenger/(SjokkK*PrisK))^Planleggingsmodell!$J$33-Planleggingsmodell!$F$33)/Planleggingsmodell!$H$33)^(1/Planleggingsmodell!$J$33)))^Planleggingsmodell!$J$34))^(1/Planleggingsmodell!$J$34) -> 1390728.971 | F51: =+((Planleggingsmodell!$C$32^Planleggingsmodell!$J$32-Planleggingsmodell!$F$32^(1-Planleggingsmodell!$J$32)*C51^Planleggingsmodell!$J$32)/(Planleggingsmodell!$H$32^(1-Planleggingsmodell!$J$32)))^(1/Planleggingsmodell!$J$32) -> 1456856.623 | G51: =+Planleggingsmodell!$C$27/Planleggingsmodell!$C$25-Planleggingsmodell!$D$11/Planleggingsmodell!$C$25*C51 -> 1426632 | H51: =+IF($M$3="Ja",($H$6-Planleggingsmodell!$D$11*Figur!C51)/Planleggingsmodell!$C$25,-1000) -> -1000 | I51: =IF($M$2="ja",Planleggingsmodell!$D$14*(Planleggingsmodell!$F$34+Planleggingsmodell!$H$34*((ArbeidTot-((((C51/Planleggingsmodell!$D$13)^Planleggingsmodell!$J$33-Planleggingsmodell!$F$33)/Planleggingsmodell!$H$33)^(1/Planleggingsmodell!$J$33)))^Planleggingsmodell!$J$34))^(1/Planleggingsmodell!$J$34),-1000) -> -1000 | J51: =Planleggingsmodell!$D$14*(Planleggingsmodell!$F$34+Planleggingsmodell!$H$34*((ArbeidTot-((((C51/Planleggingsmodell!$D$13-OljePengerOrg/(Planleggingsmodell!$D$13*PrisK))^Planleggingsmodell!$J$33-Planleggingsmodell!$F$33)/Planleggingsmodell!$H$33)^(1/Planleggingsmodell!$J$33)))^Planleggingsmodell!$J$34))^(1/Planleggingsmodell!$J$34) -> 1390728.971 | K51: =+((Planleggingsmodell!$D$32^Planleggingsmodell!$J$32-Planleggingsmodell!$F$32^(1-Planleggingsmodell!$J$32)*C51^Planleggingsmodell!$J$32)/(Planleggingsmodell!$H$32^(1-Planleggingsmodell!$J$32)))^(1/Planleggingsmodell!$J$32) -> 1456856.623 | L51: =+Planleggingsmodell!$D$27/Planleggingsmodell!$D$25-Planleggingsmodell!$D$11/Planleggingsmodell!$D$25*C51 -> 1426632
C52: 390000 | D52: =IF($M$2="Ja",SjokkS*(Planleggingsmodell!$F$34+Planleggingsmodell!$H$34*((ArbeidTot-((((C52/SjokkK)^Planleggingsmodell!$J$33-Planleggingsmodell!$F$33)/Planleggingsmodell!$H$33)^(1/Planleggingsmodell!$J$33)))^Planleggingsmodell!$J$34))^(1/Planleggingsmodell!$J$34),-1000) -> -1000 | E52: =+SjokkS*(Planleggingsmodell!$F$34+Planleggingsmodell!$H$34*((ArbeidTot-((((C52/SjokkK-OljePenger/(SjokkK*PrisK))^Planleggingsmodell!$J$33-Planleggingsmodell!$F$33)/Planleggingsmodell!$H$33)^(1/Planleggingsmodell!$J$33)))^Planleggingsmodell!$J$34))^(1/Planleggingsmodell!$J$34) -> 1371675.1 | F52: =+((Planleggingsmodell!$C$32^Planleggingsmodell!$J$32-Planleggingsmodell!$F$32^(1-Planleggingsmodell!$J$32)*C52^Planleggingsmodell!$J$32)/(Planleggingsmodell!$H$32^(1-Planleggingsmodell!$J$32)))^(1/Planleggingsmodell!$J$32) -> 1452091.481 | G52: =+Planleggingsmodell!$C$27/Planleggingsmodell!$C$25-Planleggingsmodell!$D$11/Planleggingsmodell!$C$25*C52 -> 1416632 | H52: =+IF($M$3="Ja",($H$6-Planleggingsmodell!$D$11*Figur!C52)/Planleggingsmodell!$C$25,-1000) -> -1000 | I52: =IF($M$2="ja",Planleggingsmodell!$D$14*(Planleggingsmodell!$F$34+Planleggingsmodell!$H$34*((ArbeidTot-((((C52/Planleggingsmodell!$D$13)^Planleggingsmodell!$J$33-Planleggingsmodell!$F$33)/Planleggingsmodell!$H$33)^(1/Planleggingsmodell!$J$33)))^Planleggingsmodell!$J$34))^(1/Planleggingsmodell!$J$34),-1000) -> -1000 | J52: =Planleggingsmodell!$D$14*(Planleggingsmodell!$F$34+Planleggingsmodell!$H$34*((ArbeidTot-((((C52/Planleggingsmodell!$D$13-OljePengerOrg/(Planleggingsmodell!$D$13*PrisK))^Planleggingsmodell!$J$33-Planleggingsmodell!$F$33)/Planleggingsmodell!$H$33)^(1/Planleggingsmodell!$J$33)))^Planleggingsmodell!$J$34))^(1/Planleggingsmodell!$J$34) -> 1371675.1 | K52: =+((Planleggingsmodell!$D$32^Planleggingsmodell!$J$32-Planleggingsmodell!$F$32^(1-Planleggingsmodell!$J$32)*C52^Planleggingsmodell!$J$32)/(Planleggingsmodell!$H$32^(1-Planleggingsmodell!$J$32)))^(1/Planleggingsmodell!$J$32) -> 1452091.481 | L52: =+Planleggingsmodell!$D$27/Planleggingsmodell!$D$25-Planleggingsmodell!$D$11/Planleggingsmodell!$D$25*C52 -> 1416632
C53: 400000 | D53: =IF($M$2="Ja",SjokkS*(Planleggingsmodell!$F$34+Planleggingsmodell!$H$34*((ArbeidTot-((((C53/SjokkK)^Planleggingsmodell!$J$33-Planleggingsmodell!$F$33)/Planleggingsmodell!$H$33)^(1/Planleggingsmodell!$J$33)))^Planleggingsmodell!$J$34))^(1/Planleggingsmodell!$J$34),-1000) -> -1000 | E53: =+SjokkS*(Planleggingsmodell!$F$34+Planleggingsmodell!$H$34*((ArbeidTot-((((C53/SjokkK-OljePenger/(SjokkK*PrisK))^Planleggingsmodell!$J$33-Planleggingsmodell!$F$33)/Planleggingsmodell!$H$33)^(1/Planleggingsmodell!$J$33)))^Planleggingsmodell!$J$34))^(1/Planleggingsmodell!$J$34) -> 1351175.582 | F53: =+((Planleggingsmodell!$C$32^Planleggingsmodell!$J$32-Planleggingsmodell!$F$32^(1-Planleggingsmodell!$J$32)*C53^Planleggingsmodell!$J$32)/(Planleggingsmodell!$H$32^(1-Planleggingsmodell!$J$32)))^(1/Planleggingsmodell!$J$32) -> 1447593.379 | G53: =+Planleggingsmodell!$C$27/Planleggingsmodell!$C$25-Planleggingsmodell!$D$11/Planleggingsmodell!$C$25*C53 -> 1406632 | H53: =+IF($M$3="Ja",($H$6-Planleggingsmodell!$D$11*Figur!C53)/Planleggingsmodell!$C$25,-1000) -> -1000 | I53: =IF($M$2="ja",Planleggingsmodell!$D$14*(Planleggingsmodell!$F$34+Planleggingsmodell!$H$34*((ArbeidTot-((((C53/Planleggingsmodell!$D$13)^Planleggingsmodell!$J$33-Planleggingsmodell!$F$33)/Planleggingsmodell!$H$33)^(1/Planleggingsmodell!$J$33)))^Planleggingsmodell!$J$34))^(1/Planleggingsmodell!$J$34),-1000) -> -1000 | J53: =Planleggingsmodell!$D$14*(Planleggingsmodell!$F$34+Planleggingsmodell!$H$34*((ArbeidTot-((((C53/Planleggingsmodell!$D$13-OljePengerOrg/(Planleggingsmodell!$D$13*PrisK))^Planleggingsmodell!$J$33-Planleggingsmodell!$F$33)/Planleggingsmodell!$H$33)^(1/Planleggingsmodell!$J$33)))^Planleggingsmodell!$J$34))^(1/Planleggingsmodell!$J$34) -> 1351175.582 | K53: =+((Planleggingsmodell!$D$32^Planleggingsmodell!$J$32-Planleggingsmodell!$F$32^(1-Planleggingsmodell!$J$32)*C53^Planleggingsmodell!$J$32)/(Planleggingsmodell!$H$32^(1-Planleggingsmodell!$J$32)))^(1/Planleggingsmodell!$J$32) -> 1447593.379 | L53: =+Planleggingsmodell!$D$27/Planleggingsmodell!$D$25-Planleggingsmodell!$D$11/Planleggingsmodell!$D$25*C53 -> 1406632
C54: 410000 | D54: =IF($M$2="Ja",SjokkS*(Planleggingsmodell!$F$34+Planleggingsmodell!$H$34*((ArbeidTot-((((C54/SjokkK)^Planleggingsmodell!$J$33-Planleggingsmodell!$F$33)/Planleggingsmodell!$H$33)^(1/Planleggingsmodell!$J$33)))^Planleggingsmodell!$J$34))^(1/Planleggingsmodell!$J$34),-1000) -> -1000 | E54: =+SjokkS*(Planleggingsmodell!$F$34+Planleggingsmodell!$H$34*((ArbeidTot-((((C54/SjokkK-OljePenger/(SjokkK*PrisK))^Planleggingsmodell!$J$33-Planleggingsmodell!$F$33)/Planleggingsmodell!$H$33)^(1/Planleggingsmodell!$J$33)))^Planleggingsmodell!$J$34))^(1/Planleggingsmodell!$J$34) -> 1329059.405 | F54: =+((Planleggingsmodell!$C$32^Planleggingsmodell!$J$32-Planleggingsmodell!$F$32^(1-Planleggingsmodell!$J$32)*C54^Planleggingsmodell!$J$32)/(Planleggingsmodell!$H$32^(1-Planleggingsmodell!$J$32)))^(1/Planleggingsmodell!$J$32) -> 1443340.483 | G54: =+Planleggingsmodell!$C$27/Planleggingsmodell!$C$25-Planleggingsmodell!$D$11/Planleggingsmodell!$C$25*C54 -> 1396632 | H54: =+IF($M$3="Ja",($H$6-Planleggingsmodell!$D$11*Figur!C54)/Planleggingsmodell!$C$25,-1000) -> -1000 | I54: =IF($M$2="ja",Planleggingsmodell!$D$14*(Planleggingsmodell!$F$34+Planleggingsmodell!$H$34*((ArbeidTot-((((C54/Planleggingsmodell!$D$13)^Planleggingsmodell!$J$33-Planleggingsmodell!$F$33)/Planleggingsmodell!$H$33)^(1/Planleggingsmodell!$J$33)))^Planleggingsmodell!$J$34))^(1/Planleggingsmodell!$J$34),-1000) -> -1000 | J54: =Planleggingsmodell!$D$14*(Planleggingsmodell!$F$34+Planleggingsmodell!$H$34*((ArbeidTot-((((C54/Planleggingsmodell!$D$13-OljePengerOrg/(Planleggingsmodell!$D$13*PrisK))^Planleggingsmodell!$J$33-Planleggingsmodell!$F$33)/Planleggingsmodell!$H$33)^(1/Planleggingsmodell!$J$33)))^Planleggingsmodell!$J$34))^(1/Planleggingsmodell!$J$34) -> 1329059.405 | K54: =+((Planleggingsmodell!$D$32^Planleggingsmodell!$J$32-Planleggingsmodell!$F$32^(1-Planleggingsmodell!$J$32)*C54^Planleggingsmodell!$J$32)/(Planleggingsmodell!$H$32^(1-Planleggingsmodell!$J$32)))^(1/Planleggingsmodell!$J$32) -> 1443340.483 | L54: =+Planleggingsmodell!$D$27/Planleggingsmodell!$D$25-Planleggingsmodell!$D$11/Planleggingsmodell!$D$25*C54 -> 1396632
C55: 420000 | D55: =IF($M$2="Ja",SjokkS*(Planleggingsmodell!$F$34+Planleggingsmodell!$H$34*((ArbeidTot-((((C55/SjokkK)^Planleggingsmodell!$J$33-Planleggingsmodell!$F$33)/Planleggingsmodell!$H$33)^(1/Planleggingsmodell!$J$33)))^Planleggingsmodell!$J$34))^(1/Planleggingsmodell!$J$34),-1000) -> -1000 | E55: =+SjokkS*(Planleggingsmodell!$F$34+Planleggingsmodell!$H$34*((ArbeidTot-((((C55/SjokkK-OljePenger/(SjokkK*PrisK))^Planleggingsmodell!$J$33-Planleggingsmodell!$F$33)/Planleggingsmodell!$H$33)^(1/Planleggingsmodell!$J$33)))^Planleggingsmodell!$J$34))^(1/Planleggingsmodell!$J$34) -> 1305127.476 | F55: =+((Planleggingsmodell!$C$32^Planleggingsmodell!$J$32-Planleggingsmodell!$F$32^(1-Planleggingsmodell!$J$32)*C55^Planleggingsmodell!$J$32)/(Planleggingsmodell!$H$32^(1-Planleggingsmodell!$J$32)))^(1/Planleggingsmodell!$J$32) -> 1439313.273 | G55: =+Planleggingsmodell!$C$27/Planleggingsmodell!$C$25-Planleggingsmodell!$D$11/Planleggingsmodell!$C$25*C55 -> 1386632 | H55: =+IF($M$3="Ja",($H$6-Planleggingsmodell!$D$11*Figur!C55)/Planleggingsmodell!$C$25,-1000) -> -1000 | I55: =IF($M$2="ja",Planleggingsmodell!$D$14*(Planleggingsmodell!$F$34+Planleggingsmodell!$H$34*((ArbeidTot-((((C55/Planleggingsmodell!$D$13)^Planleggingsmodell!$J$33-Planleggingsmodell!$F$33)/Planleggingsmodell!$H$33)^(1/Planleggingsmodell!$J$33)))^Planleggingsmodell!$J$34))^(1/Planleggingsmodell!$J$34),-1000) -> -1000 | J55: =Planleggingsmodell!$D$14*(Planleggingsmodell!$F$34+Planleggingsmodell!$H$34*((ArbeidTot-((((C55/Planleggingsmodell!$D$13-OljePengerOrg/(Planleggingsmodell!$D$13*PrisK))^Planleggingsmodell!$J$33-Planleggingsmodell!$F$33)/Planleggingsmodell!$H$33)^(1/Planleggingsmodell!$J$33)))^Planleggingsmodell!$J$34))^(1/Planleggingsmodell!$J$34) -> 1305127.476 | K55: =+((Planleggingsmodell!$D$32^Planleggingsmodell!$J$32-Planleggingsmodell!$F$32^(1-Planleggingsmodell!$J$32)*C55^Planleggingsmodell!$J$32)/(Planleggingsmodell!$H$32^(1-Planleggingsmodell!$J$32)))^(1/Planleggingsmodell!$J$32) -> 1439313.273 | L55: =+Planleggingsmodell!$D$27/Planleggingsmodell!$D$25-Planleggingsmodell!$D$11/Planleggingsmodell!$D$25*C55 -> 1386632
C56: 430000 | D56: =IF($M$2="Ja",SjokkS*(Planleggingsmodell!$F$34+Planleggingsmodell!$H$34*((ArbeidTot-((((C56/SjokkK)^Planleggingsmodell!$J$33-Planleggingsmodell!$F$33)/Planleggingsmodell!$H$33)^(1/Planleggingsmodell!$J$33)))^Planleggingsmodell!$J$34))^(1/Planleggingsmodell!$J$34),-1000) -> -1000 | E56: =+SjokkS*(Planleggingsmodell!$F$34+Planleggingsmodell!$H$34*((ArbeidTot-((((C56/SjokkK-OljePenger/(SjokkK*PrisK))^Planleggingsmodell!$J$33-Planleggingsmodell!$F$33)/Planleggingsmodell!$H$33)^(1/Planleggingsmodell!$J$33)))^Planleggingsmodell!$J$34))^(1/Planleggingsmodell!$J$34) -> 1279146.61 | F56: =+((Planleggingsmodell!$C$32^Planleggingsmodell!$J$32-Planleggingsmodell!$F$32^(1-Planleggingsmodell!$J$32)*C56^Planleggingsmodell!$J$32)/(Planleggingsmodell!$H$32^(1-Planleggingsmodell!$J$32)))^(1/Planleggingsmodell!$J$32) -> 1435494.25 | G56: =+Planleggingsmodell!$C$27/Planleggingsmodell!$C$25-Planleggingsmodell!$D$11/Planleggingsmodell!$C$25*C56 -> 1376632 | H56: =+IF($M$3="Ja",($H$6-Planleggingsmodell!$D$11*Figur!C56)/Planleggingsmodell!$C$25,-1000) -> -1000 | I56: =IF($M$2="ja",Planleggingsmodell!$D$14*(Planleggingsmodell!$F$34+Planleggingsmodell!$H$34*((ArbeidTot-((((C56/Planleggingsmodell!$D$13)^Planleggingsmodell!$J$33-Planleggingsmodell!$F$33)/Planleggingsmodell!$H$33)^(1/Planleggingsmodell!$J$33)))^Planleggingsmodell!$J$34))^(1/Planleggingsmodell!$J$34),-1000) -> -1000 | J56: =Planleggingsmodell!$D$14*(Planleggingsmodell!$F$34+Planleggingsmodell!$H$34*((ArbeidTot-((((C56/Planleggingsmodell!$D$13-OljePengerOrg/(Planleggingsmodell!$D$13*PrisK))^Planleggingsmodell!$J$33-Planleggingsmodell!$F$33)/Planleggingsmodell!$H$33)^(1/Planleggingsmodell!$J$33)))^Planleggingsmodell!$J$34))^(1/Planleggingsmodell!$J$34) -> 1279146.61 | K56: =+((Planleggingsmodell!$D$32^Planleggingsmodell!$J$32-Planleggingsmodell!$F$32^(1-Planleggingsmodell!$J$32)*C56^Planleggingsmodell!$J$32)/(Planleggingsmodell!$H$32^(1-Planleggingsmodell!$J$32)))^(1/Planleggingsmodell!$J$32) -> 1435494.25 | L56: =+Planleggingsmodell!$D$27/Planleggingsmodell!$D$25-Planleggingsmodell!$D$11/Planleggingsmodell!$D$25*C56 -> 1376632
C57: 440000 | D57: =IF($M$2="Ja",SjokkS*(Planleggingsmodell!$F$34+Planleggingsmodell!$H$34*((ArbeidTot-((((C57/SjokkK)^Planleggingsmodell!$J$33-Planleggingsmodell!$F$33)/Planleggingsmodell!$H$33)^(1/Planleggingsmodell!$J$33)))^Planleggingsmodell!$J$34))^(1/Planleggingsmodell!$J$34),-1000) -> -1000 | E57: =+SjokkS*(Planleggingsmodell!$F$34+Planleggingsmodell!$H$34*((ArbeidTot-((((C57/SjokkK-OljePenger/(SjokkK*PrisK))^Planleggingsmodell!$J$33-Planleggingsmodell!$F$33)/Planleggingsmodell!$H$33)^(1/Planleggingsmodell!$J$33)))^Planleggingsmodell!$J$34))^(1/Planleggingsmodell!$J$34) -> 1250841.91 | F57: =+((Planleggingsmodell!$C$32^Planleggingsmodell!$J$32-Planleggingsmodell!$F$32^(1-Planleggingsmodell!$J$32)*C57^Planleggingsmodell!$J$32)/(Planleggingsmodell!$H$32^(1-Planleggingsmodell!$J$32)))^(1/Planleggingsmodell!$J$32) -> 1431867.676 | G57: =+Planleggingsmodell!$C$27/Planleggingsmodell!$C$25-Planleggingsmodell!$D$11/Planleggingsmodell!$C$25*C57 -> 1366632 | H57: =+IF($M$3="Ja",($H$6-Planleggingsmodell!$D$11*Figur!C57)/Planleggingsmodell!$C$25,-1000) -> -1000 | I57: =IF($M$2="ja",Planleggingsmodell!$D$14*(Planleggingsmodell!$F$34+Planleggingsmodell!$H$34*((ArbeidTot-((((C57/Planleggingsmodell!$D$13)^Planleggingsmodell!$J$33-Planleggingsmodell!$F$33)/Planleggingsmodell!$H$33)^(1/Planleggingsmodell!$J$33)))^Planleggingsmodell!$J$34))^(1/Planleggingsmodell!$J$34),-1000) -> -1000 | J57: =Planleggingsmodell!$D$14*(Planleggingsmodell!$F$34+Planleggingsmodell!$H$34*((ArbeidTot-((((C57/Planleggingsmodell!$D$13-OljePengerOrg/(Planleggingsmodell!$D$13*PrisK))^Planleggingsmodell!$J$33-Planleggingsmodell!$F$33)/Planleggingsmodell!$H$33)^(1/Planleggingsmodell!$J$33)))^Planleggingsmodell!$J$34))^(1/Planleggingsmodell!$J$34) -> 1250841.91 | K57: =+((Planleggingsmodell!$D$32^Planleggingsmodell!$J$32-Planleggingsmodell!$F$32^(1-Planleggingsmodell!$J$32)*C57^Planleggingsmodell!$J$32)/(Planleggingsmodell!$H$32^(1-Planleggingsmodell!$J$32)))^(1/Planleggingsmodell!$J$32) -> 1431867.676 | L57: =+Planleggingsmodell!$D$27/Planleggingsmodell!$D$25-Planleggingsmodell!$D$11/Planleggingsmodell!$D$25*C57 -> 1366632
C58: 450000 | D58: =IF($M$2="Ja",SjokkS*(Planleggingsmodell!$F$34+Planleggingsmodell!$H$34*((ArbeidTot-((((C58/SjokkK)^Planleggingsmodell!$J$33-Planleggingsmodell!$F$33)/Planleggingsmodell!$H$33)^(1/Planleggingsmodell!$J$33)))^Planleggingsmodell!$J$34))^(1/Planleggingsmodell!$J$34),-1000) -> -1000 | E58: =+SjokkS*(Planleggingsmodell!$F$34+Planleggingsmodell!$H$34*((ArbeidTot-((((C58/SjokkK-OljePenger/(SjokkK*PrisK))^Planleggingsmodell!$J$33-Planleggingsmodell!$F$33)/Planleggingsmodell!$H$33)^(1/Planleggingsmodell!$J$33)))^Planleggingsmodell!$J$34))^(1/Planleggingsmodell!$J$34) -> 1219887 | F58: =+((Planleggingsmodell!$C$32^Planleggingsmodell!$J$32-Planleggingsmodell!$F$32^(1-Planleggingsmodell!$J$32)*C58^Planleggingsmodell!$J$32)/(Planleggingsmodell!$H$32^(1-Planleggingsmodell!$J$32)))^(1/Planleggingsmodell!$J$32) -> 1428419.363 | G58: =+Planleggingsmodell!$C$27/Planleggingsmodell!$C$25-Planleggingsmodell!$D$11/Planleggingsmodell!$C$25*C58 -> 1356632 | H58: =+IF($M$3="Ja",($H$6-Planleggingsmodell!$D$11*Figur!C58)/Planleggingsmodell!$C$25,-1000) -> -1000 | I58: =IF($M$2="ja",Planleggingsmodell!$D$14*(Planleggingsmodell!$F$34+Planleggingsmodell!$H$34*((ArbeidTot-((((C58/Planleggingsmodell!$D$13)^Planleggingsmodell!$J$33-Planleggingsmodell!$F$33)/Planleggingsmodell!$H$33)^(1/Planleggingsmodell!$J$33)))^Planleggingsmodell!$J$34))^(1/Planleggingsmodell!$J$34),-1000) -> -1000 | J58: =Planleggingsmodell!$D$14*(Planleggingsmodell!$F$34+Planleggingsmodell!$H$34*((ArbeidTot-((((C58/Planleggingsmodell!$D$13-OljePengerOrg/(Planleggingsmodell!$D$13*PrisK))^Planleggingsmodell!$J$33-Planleggingsmodell!$F$33)/Planleggingsmodell!$H$33)^(1/Planleggingsmodell!$J$33)))^Planleggingsmodell!$J$34))^(1/Planleggingsmodell!$J$34) -> 1219887 | K58: =+((Planleggingsmodell!$D$32^Planleggingsmodell!$J$32-Planleggingsmodell!$F$32^(1-Planleggingsmodell!$J$32)*C58^Planleggingsmodell!$J$32)/(Planleggingsmodell!$H$32^(1-Planleggingsmodell!$J$32)))^(1/Planleggingsmodell!$J$32) -> 1428419.363 | L58: =+Planleggingsmodell!$D$27/Planleggingsmodell!$D$25-Planleggingsmodell!$D$11/Planleggingsmodell!$D$25*C58 -> 1356632
C59: 460000 | D59: =IF($M$2="Ja",SjokkS*(Planleggingsmodell!$F$34+Planleggingsmodell!$H$34*((ArbeidTot-((((C59/SjokkK)^Planleggingsmodell!$J$33-Planleggingsmodell!$F$33)/Planleggingsmodell!$H$33)^(1/Planleggingsmodell!$J$33)))^Planleggingsmodell!$J$34))^(1/Planleggingsmodell!$J$34),-1000) -> -1000 | E59: =+SjokkS*(Planleggingsmodell!$F$34+Planleggingsmodell!$H$34*((ArbeidTot-((((C59/SjokkK-OljePenger/(SjokkK*PrisK))^Planleggingsmodell!$J$33-Planleggingsmodell!$F$33)/Planleggingsmodell!$H$33)^(1/Planleggingsmodell!$J$33)))^Planleggingsmodell!$J$34))^(1/Planleggingsmodell!$J$34) -> 1185891.384 | F59: =+((Planleggingsmodell!$C$32^Planleggingsmodell!$J$32-Planleggingsmodell!$F$32^(1-Planleggingsmodell!$J$32)*C59^Planleggingsmodell!$J$32)/(Planleggingsmodell!$H$32^(1-Planleggingsmodell!$J$32)))^(1/Planleggingsmodell!$J$32) -> 1425136.482 | G59: =+Planleggingsmodell!$C$27/Planleggingsmodell!$C$25-Planleggingsmodell!$D$11/Planleggingsmodell!$C$25*C59 -> 1346632 | H59: =+IF($M$3="Ja",($H$6-Planleggingsmodell!$D$11*Figur!C59)/Planleggingsmodell!$C$25,-1000) -> -1000 | I59: =IF($M$2="ja",Planleggingsmodell!$D$14*(Planleggingsmodell!$F$34+Planleggingsmodell!$H$34*((ArbeidTot-((((C59/Planleggingsmodell!$D$13)^Planleggingsmodell!$J$33-Planleggingsmodell!$F$33)/Planleggingsmodell!$H$33)^(1/Planleggingsmodell!$J$33)))^Planleggingsmodell!$J$34))^(1/Planleggingsmodell!$J$34),-1000) -> -1000 | J59: =Planleggingsmodell!$D$14*(Planleggingsmodell!$F$34+Planleggingsmodell!$H$34*((ArbeidTot-((((C59/Planleggingsmodell!$D$13-OljePengerOrg/(Planleggingsmodell!$D$13*PrisK))^Planleggingsmodell!$J$33-Planleggingsmodell!$F$33)/Planleggingsmodell!$H$33)^(1/Planleggingsmodell!$J$33)))^Planleggingsmodell!$J$34))^(1/Planleggingsmodell!$J$34) -> 1185891.384 | K59: =+((Planleggingsmodell!$D$32^Planleggingsmodell!$J$32-Planleggingsmodell!$F$32^(1-Planleggingsmodell!$J$32)*C59^Planleggingsmodell!$J$32)/(Planleggingsmodell!$H$32^(1-Planleggingsmodell!$J$32)))^(1/Planleggingsmodell!$J$32) -> 1425136.482 | L59: =+Planleggingsmodell!$D$27/Planleggingsmodell!$D$25-Planleggingsmodell!$D$11/Planleggingsmodell!$D$25*C59 -> 1346632
C60: 470000 | D60: =IF($M$2="Ja",SjokkS*(Planleggingsmodell!$F$34+Planleggingsmodell!$H$34*((ArbeidTot-((((C60/SjokkK)^Planleggingsmodell!$J$33-Planleggingsmodell!$F$33)/Planleggingsmodell!$H$33)^(1/Planleggingsmodell!$J$33)))^Planleggingsmodell!$J$34))^(1/Planleggingsmodell!$J$34),-1000) -> -1000 | E60: =+SjokkS*(Planleggingsmodell!$F$34+Planleggingsmodell!$H$34*((ArbeidTot-((((C60/SjokkK-OljePenger/(SjokkK*PrisK))^Planleggingsmodell!$J$33-Planleggingsmodell!$F$33)/Planleggingsmodell!$H$33)^(1/Planleggingsmodell!$J$33)))^Planleggingsmodell!$J$34))^(1/Planleggingsmodell!$J$34) -> 1148383.886 | F60: =+((Planleggingsmodell!$C$32^Planleggingsmodell!$J$32-Planleggingsmodell!$F$32^(1-Planleggingsmodell!$J$32)*C60^Planleggingsmodell!$J$32)/(Planleggingsmodell!$H$32^(1-Planleggingsmodell!$J$32)))^(1/Planleggingsmodell!$J$32) -> 1422007.408 | G60: =+Planleggingsmodell!$C$27/Planleggingsmodell!$C$25-Planleggingsmodell!$D$11/Planleggingsmodell!$C$25*C60 -> 1336632 | H60: =+IF($M$3="Ja",($H$6-Planleggingsmodell!$D$11*Figur!C60)/Planleggingsmodell!$C$25,-1000) -> -1000 | I60: =IF($M$2="ja",Planleggingsmodell!$D$14*(Planleggingsmodell!$F$34+Planleggingsmodell!$H$34*((ArbeidTot-((((C60/Planleggingsmodell!$D$13)^Planleggingsmodell!$J$33-Planleggingsmodell!$F$33)/Planleggingsmodell!$H$33)^(1/Planleggingsmodell!$J$33)))^Planleggingsmodell!$J$34))^(1/Planleggingsmodell!$J$34),-1000) -> -1000 | J60: =Planleggingsmodell!$D$14*(Planleggingsmodell!$F$34+Planleggingsmodell!$H$34*((ArbeidTot-((((C60/Planleggingsmodell!$D$13-OljePengerOrg/(Planleggingsmodell!$D$13*PrisK))^Planleggingsmodell!$J$33-Planleggingsmodell!$F$33)/Planleggingsmodell!$H$33)^(1/Planleggingsmodell!$J$33)))^Planleggingsmodell!$J$34))^(1/Planleggingsmodell!$J$34) -> 1148383.886 | K60: =+((Planleggingsmodell!$D$32^Planleggingsmodell!$J$32-Planleggingsmodell!$F$32^(1-Planleggingsmodell!$J$32)*C60^Planleggingsmodell!$J$32)/(Planleggingsmodell!$H$32^(1-Planleggingsmodell!$J$32)))^(1/Planleggingsmodell!$J$32) -> 1422007.408 | L60: =+Planleggingsmodell!$D$27/Planleggingsmodell!$D$25-Planleggingsmodell!$D$11/Planleggingsmodell!$D$25*C60 -> 1336632
C61: 480000 | D61: =IF($M$2="Ja",SjokkS*(Planleggingsmodell!$F$34+Planleggingsmodell!$H$34*((ArbeidTot-((((C61/SjokkK)^Planleggingsmodell!$J$33-Planleggingsmodell!$F$33)/Planleggingsmodell!$H$33)^(1/Planleggingsmodell!$J$33)))^Planleggingsmodell!$J$34))^(1/Planleggingsmodell!$J$34),-1000) -> -1000 | E61: =+SjokkS*(Planleggingsmodell!$F$34+Planleggingsmodell!$H$34*((ArbeidTot-((((C61/SjokkK-OljePenger/(SjokkK*PrisK))^Planleggingsmodell!$J$33-Planleggingsmodell!$F$33)/Planleggingsmodell!$H$33)^(1/Planleggingsmodell!$J$33)))^Planleggingsmodell!$J$34))^(1/Planleggingsmodell!$J$34) -> 1106790.681 | F61: =+((Planleggingsmodell!$C$32^Planleggingsmodell!$J$32-Planleggingsmodell!$F$32^(1-Planleggingsmodell!$J$32)*C61^Planleggingsmodell!$J$32)/(Planleggingsmodell!$H$32^(1-Planleggingsmodell!$J$32)))^(1/Planleggingsmodell!$J$32) -> 1419021.578 | G61: =+Planleggingsmodell!$C$27/Planleggingsmodell!$C$25-Planleggingsmodell!$D$11/Planleggingsmodell!$C$25*C61 -> 1326632 | H61: =+IF($M$3="Ja",($H$6-Planleggingsmodell!$D$11*Figur!C61)/Planleggingsmodell!$C$25,-1000) -> -1000 | I61: =IF($M$2="ja",Planleggingsmodell!$D$14*(Planleggingsmodell!$F$34+Planleggingsmodell!$H$34*((ArbeidTot-((((C61/Planleggingsmodell!$D$13)^Planleggingsmodell!$J$33-Planleggingsmodell!$F$33)/Planleggingsmodell!$H$33)^(1/Planleggingsmodell!$J$33)))^Planleggingsmodell!$J$34))^(1/Planleggingsmodell!$J$34),-1000) -> -1000 | J61: =Planleggingsmodell!$D$14*(Planleggingsmodell!$F$34+Planleggingsmodell!$H$34*((ArbeidTot-((((C61/Planleggingsmodell!$D$13-OljePengerOrg/(Planleggingsmodell!$D$13*PrisK))^Planleggingsmodell!$J$33-Planleggingsmodell!$F$33)/Planleggingsmodell!$H$33)^(1/Planleggingsmodell!$J$33)))^Planleggingsmodell!$J$34))^(1/Planleggingsmodell!$J$34) -> 1106790.681 | K61: =+((Planleggingsmodell!$D$32^Planleggingsmodell!$J$32-Planleggingsmodell!$F$32^(1-Planleggingsmodell!$J$32)*C61^Planleggingsmodell!$J$32)/(Planleggingsmodell!$H$32^(1-Planleggingsmodell!$J$32)))^(1/Planleggingsmodell!$J$32) -> 1419021.578 | L61: =+Planleggingsmodell!$D$27/Planleggingsmodell!$D$25-Planleggingsmodell!$D$11/Planleggingsmodell!$D$25*C61 -> 1326632
C62: 490000 | D62: =IF($M$2="Ja",SjokkS*(Planleggingsmodell!$F$34+Planleggingsmodell!$H$34*((ArbeidTot-((((C62/SjokkK)^Planleggingsmodell!$J$33-Planleggingsmodell!$F$33)/Planleggingsmodell!$H$33)^(1/Planleggingsmodell!$J$33)))^Planleggingsmodell!$J$34))^(1/Planleggingsmodell!$J$34),-1000) -> -1000 | E62: =+SjokkS*(Planleggingsmodell!$F$34+Planleggingsmodell!$H$34*((ArbeidTot-((((C62/SjokkK-OljePenger/(SjokkK*PrisK))^Planleggingsmodell!$J$33-Planleggingsmodell!$F$33)/Planleggingsmodell!$H$33)^(1/Planleggingsmodell!$J$33)))^Planleggingsmodell!$J$34))^(1/Planleggingsmodell!$J$34) -> 1060405.728 | F62: =+((Planleggingsmodell!$C$32^Planleggingsmodell!$J$32-Planleggingsmodell!$F$32^(1-Planleggingsmodell!$J$32)*C62^Planleggingsmodell!$J$32)/(Planleggingsmodell!$H$32^(1-Planleggingsmodell!$J$32)))^(1/Planleggingsmodell!$J$32) -> 1416169.377 | G62: =+Planleggingsmodell!$C$27/Planleggingsmodell!$C$25-Planleggingsmodell!$D$11/Planleggingsmodell!$C$25*C62 -> 1316632 | H62: =+IF($M$3="Ja",($H$6-Planleggingsmodell!$D$11*Figur!C62)/Planleggingsmodell!$C$25,-1000) -> -1000 | I62: =IF($M$2="ja",Planleggingsmodell!$D$14*(Planleggingsmodell!$F$34+Planleggingsmodell!$H$34*((ArbeidTot-((((C62/Planleggingsmodell!$D$13)^Planleggingsmodell!$J$33-Planleggingsmodell!$F$33)/Planleggingsmodell!$H$33)^(1/Planleggingsmodell!$J$33)))^Planleggingsmodell!$J$34))^(1/Planleggingsmodell!$J$34),-1000) -> -1000 | J62: =Planleggingsmodell!$D$14*(Planleggingsmodell!$F$34+Planleggingsmodell!$H$34*((ArbeidTot-((((C62/Planleggingsmodell!$D$13-OljePengerOrg/(Planleggingsmodell!$D$13*PrisK))^Planleggingsmodell!$J$33-Planleggingsmodell!$F$33)/Planleggingsmodell!$H$33)^(1/Planleggingsmodell!$J$33)))^Planleggingsmodell!$J$34))^(1/Planleggingsmodell!$J$34) -> 1060405.728 | K62: =+((Planleggingsmodell!$D$32^Planleggingsmodell!$J$32-Planleggingsmodell!$F$32^(1-Planleggingsmodell!$J$32)*C62^Planleggingsmodell!$J$32)/(Planleggingsmodell!$H$32^(1-Planleggingsmodell!$J$32)))^(1/Planleggingsmodell!$J$32) -> 1416169.377 | L62: =+Planleggingsmodell!$D$27/Planleggingsmodell!$D$25-Planleggingsmodell!$D$11/Planleggingsmodell!$D$25*C62 -> 1316632
C63: 500000 | D63: =IF($M$2="Ja",SjokkS*(Planleggingsmodell!$F$34+Planleggingsmodell!$H$34*((ArbeidTot-((((C63/SjokkK)^Planleggingsmodell!$J$33-Planleggingsmodell!$F$33)/Planleggingsmodell!$H$33)^(1/Planleggingsmodell!$J$33)))^Planleggingsmodell!$J$34))^(1/Planleggingsmodell!$J$34),-1000) -> -1000 | E63: =+SjokkS*(Planleggingsmodell!$F$34+Planleggingsmodell!$H$34*((ArbeidTot-((((C63/SjokkK-OljePenger/(SjokkK*PrisK))^Planleggingsmodell!$J$33-Planleggingsmodell!$F$33)/Planleggingsmodell!$H$33)^(1/Planleggingsmodell!$J$33)))^Planleggingsmodell!$J$34))^(1/Planleggingsmodell!$J$34) -> 1008350.361 | F63: =+((Planleggingsmodell!$C$32^Planleggingsmodell!$J$32-Planleggingsmodell!$F$32^(1-Planleggingsmodell!$J$32)*C63^Planleggingsmodell!$J$32)/(Planleggingsmodell!$H$32^(1-Planleggingsmodell!$J$32)))^(1/Planleggingsmodell!$J$32) -> 1413442.03 | G63: =+Planleggingsmodell!$C$27/Planleggingsmodell!$C$25-Planleggingsmodell!$D$11/Planleggingsmodell!$C$25*C63 -> 1306632 | H63: =+IF($M$3="Ja",($H$6-Planleggingsmodell!$D$11*Figur!C63)/Planleggingsmodell!$C$25,-1000) -> -1000 | I63: =IF($M$2="ja",Planleggingsmodell!$D$14*(Planleggingsmodell!$F$34+Planleggingsmodell!$H$34*((ArbeidTot-((((C63/Planleggingsmodell!$D$13)^Planleggingsmodell!$J$33-Planleggingsmodell!$F$33)/Planleggingsmodell!$H$33)^(1/Planleggingsmodell!$J$33)))^Planleggingsmodell!$J$34))^(1/Planleggingsmodell!$J$34),-1000) -> -1000 | J63: =Planleggingsmodell!$D$14*(Planleggingsmodell!$F$34+Planleggingsmodell!$H$34*((ArbeidTot-((((C63/Planleggingsmodell!$D$13-OljePengerOrg/(Planleggingsmodell!$D$13*PrisK))^Planleggingsmodell!$J$33-Planleggingsmodell!$F$33)/Planleggingsmodell!$H$33)^(1/Planleggingsmodell!$J$33)))^Planleggingsmodell!$J$34))^(1/Planleggingsmodell!$J$34) -> 1008350.361 | K63: =+((Planleggingsmodell!$D$32^Planleggingsmodell!$J$32-Planleggingsmodell!$F$32^(1-Planleggingsmodell!$J$32)*C63^Planleggingsmodell!$J$32)/(Planleggingsmodell!$H$32^(1-Planleggingsmodell!$J$32)))^(1/Planleggingsmodell!$J$32) -> 1413442.03 | L63: =+Planleggingsmodell!$D$27/Planleggingsmodell!$D$25-Planleggingsmodell!$D$11/Planleggingsmodell!$D$25*C63 -> 1306632
C64: 510000 | D64: =IF($M$2="Ja",SjokkS*(Planleggingsmodell!$F$34+Planleggingsmodell!$H$34*((ArbeidTot-((((C64/SjokkK)^Planleggingsmodell!$J$33-Planleggingsmodell!$F$33)/Planleggingsmodell!$H$33)^(1/Planleggingsmodell!$J$33)))^Planleggingsmodell!$J$34))^(1/Planleggingsmodell!$J$34),-1000) -> -1000 | E64: =+SjokkS*(Planleggingsmodell!$F$34+Planleggingsmodell!$H$34*((ArbeidTot-((((C64/SjokkK-OljePenger/(SjokkK*PrisK))^Planleggingsmodell!$J$33-Planleggingsmodell!$F$33)/Planleggingsmodell!$H$33)^(1/Planleggingsmodell!$J$33)))^Planleggingsmodell!$J$34))^(1/Planleggingsmodell!$J$34) -> 949517.1035 | F64: =+((Planleggingsmodell!$C$32^Planleggingsmodell!$J$32-Planleggingsmodell!$F$32^(1-Planleggingsmodell!$J$32)*C64^Planleggingsmodell!$J$32)/(Planleggingsmodell!$H$32^(1-Planleggingsmodell!$J$32)))^(1/Planleggingsmodell!$J$32) -> 1410831.515 | G64: =+Planleggingsmodell!$C$27/Planleggingsmodell!$C$25-Planleggingsmodell!$D$11/Planleggingsmodell!$C$25*C64 -> 1296632 | H64: =+IF($M$3="Ja",($H$6-Planleggingsmodell!$D$11*Figur!C64)/Planleggingsmodell!$C$25,-1000) -> -1000 | I64: =IF($M$2="ja",Planleggingsmodell!$D$14*(Planleggingsmodell!$F$34+Planleggingsmodell!$H$34*((ArbeidTot-((((C64/Planleggingsmodell!$D$13)^Planleggingsmodell!$J$33-Planleggingsmodell!$F$33)/Planleggingsmodell!$H$33)^(1/Planleggingsmodell!$J$33)))^Planleggingsmodell!$J$34))^(1/Planleggingsmodell!$J$34),-1000) -> -1000 | J64: =Planleggingsmodell!$D$14*(Planleggingsmodell!$F$34+Planleggingsmodell!$H$34*((ArbeidTot-((((C64/Planleggingsmodell!$D$13-OljePengerOrg/(Planleggingsmodell!$D$13*PrisK))^Planleggingsmodell!$J$33-Planleggingsmodell!$F$33)/Planleggingsmodell!$H$33)^(1/Planleggingsmodell!$J$33)))^Planleggingsmodell!$J$34))^(1/Planleggingsmodell!$J$34) -> 949517.1035 | K64: =+((Planleggingsmodell!$D$32^Planleggingsmodell!$J$32-Planleggingsmodell!$F$32^(1-Planleggingsmodell!$J$32)*C64^Planleggingsmodell!$J$32)/(Planleggingsmodell!$H$32^(1-Planleggingsmodell!$J$32)))^(1/Planleggingsmodell!$J$32) -> 1410831.515 | L64: =+Planleggingsmodell!$D$27/Planleggingsmodell!$D$25-Planleggingsmodell!$D$11/Planleggingsmodell!$D$25*C64 -> 1296632
C65: 520000 | D65: =IF($M$2="Ja",SjokkS*(Planleggingsmodell!$F$34+Planleggingsmodell!$H$34*((ArbeidTot-((((C65/SjokkK)^Planleggingsmodell!$J$33-Planleggingsmodell!$F$33)/Planleggingsmodell!$H$33)^(1/Planleggingsmodell!$J$33)))^Planleggingsmodell!$J$34))^(1/Planleggingsmodell!$J$34),-1000) -> -1000 | E65: =+SjokkS*(Planleggingsmodell!$F$34+Planleggingsmodell!$H$34*((ArbeidTot-((((C65/SjokkK-OljePenger/(SjokkK*PrisK))^Planleggingsmodell!$J$33-Planleggingsmodell!$F$33)/Planleggingsmodell!$H$33)^(1/Planleggingsmodell!$J$33)))^Planleggingsmodell!$J$34))^(1/Planleggingsmodell!$J$34) -> 882489.9955 | F65: =+((Planleggingsmodell!$C$32^Planleggingsmodell!$J$32-Planleggingsmodell!$F$32^(1-Planleggingsmodell!$J$32)*C65^Planleggingsmodell!$J$32)/(Planleggingsmodell!$H$32^(1-Planleggingsmodell!$J$32)))^(1/Planleggingsmodell!$J$32) -> 1408330.481 | G65: =+Planleggingsmodell!$C$27/Planleggingsmodell!$C$25-Planleggingsmodell!$D$11/Planleggingsmodell!$C$25*C65 -> 1286632 | H65: =+IF($M$3="Ja",($H$6-Planleggingsmodell!$D$11*Figur!C65)/Planleggingsmodell!$C$25,-1000) -> -1000 | I65: =IF($M$2="ja",Planleggingsmodell!$D$14*(Planleggingsmodell!$F$34+Planleggingsmodell!$H$34*((ArbeidTot-((((C65/Planleggingsmodell!$D$13)^Planleggingsmodell!$J$33-Planleggingsmodell!$F$33)/Planleggingsmodell!$H$33)^(1/Planleggingsmodell!$J$33)))^Planleggingsmodell!$J$34))^(1/Planleggingsmodell!$J$34),-1000) -> -1000 | J65: =Planleggingsmodell!$D$14*(Planleggingsmodell!$F$34+Planleggingsmodell!$H$34*((ArbeidTot-((((C65/Planleggingsmodell!$D$13-OljePengerOrg/(Planleggingsmodell!$D$13*PrisK))^Planleggingsmodell!$J$33-Planleggingsmodell!$F$33)/Planleggingsmodell!$H$33)^(1/Planleggingsmodell!$J$33)))^Planleggingsmodell!$J$34))^(1/Planleggingsmodell!$J$34) -> 882489.9955 | K65: =+((Planleggingsmodell!$D$32^Planleggingsmodell!$J$32-Planleggingsmodell!$F$32^(1-Planleggingsmodell!$J$32)*C65^Planleggingsmodell!$J$32)/(Planleggingsmodell!$H$32^(1-Planleggingsmodell!$J$32)))^(1/Planleggingsmodell!$J$32) -> 1408330.481 | L65: =+Planleggingsmodell!$D$27/Planleggingsmodell!$D$25-Planleggingsmodell!$D$11/Planleggingsmodell!$D$25*C65 -> 1286632
C66: 530000 | D66: =IF($M$2="Ja",SjokkS*(Planleggingsmodell!$F$34+Planleggingsmodell!$H$34*((ArbeidTot-((((C66/SjokkK)^Planleggingsmodell!$J$33-Planleggingsmodell!$F$33)/Planleggingsmodell!$H$33)^(1/Planleggingsmodell!$J$33)))^Planleggingsmodell!$J$34))^(1/Planleggingsmodell!$J$34),-1000) -> -1000 | E66: =+SjokkS*(Planleggingsmodell!$F$34+Planleggingsmodell!$H$34*((ArbeidTot-((((C66/SjokkK-OljePenger/(SjokkK*PrisK))^Planleggingsmodell!$J$33-Planleggingsmodell!$F$33)/Planleggingsmodell!$H$33)^(1/Planleggingsmodell!$J$33)))^Planleggingsmodell!$J$34))^(1/Planleggingsmodell!$J$34) -> 805429.1477 | F66: =+((Planleggingsmodell!$C$32^Planleggingsmodell!$J$32-Planleggingsmodell!$F$32^(1-Planleggingsmodell!$J$32)*C66^Planleggingsmodell!$J$32)/(Planleggingsmodell!$H$32^(1-Planleggingsmodell!$J$32)))^(1/Planleggingsmodell!$J$32) -> 1405932.184 | G66: =+Planleggingsmodell!$C$27/Planleggingsmodell!$C$25-Planleggingsmodell!$D$11/Planleggingsmodell!$C$25*C66 -> 1276632 | H66: =+IF($M$3="Ja",($H$6-Planleggingsmodell!$D$11*Figur!C66)/Planleggingsmodell!$C$25,-1000) -> -1000 | I66: =IF($M$2="ja",Planleggingsmodell!$D$14*(Planleggingsmodell!$F$34+Planleggingsmodell!$H$34*((ArbeidTot-((((C66/Planleggingsmodell!$D$13)^Planleggingsmodell!$J$33-Planleggingsmodell!$F$33)/Planleggingsmodell!$H$33)^(1/Planleggingsmodell!$J$33)))^Planleggingsmodell!$J$34))^(1/Planleggingsmodell!$J$34),-1000) -> -1000 | J66: =Planleggingsmodell!$D$14*(Planleggingsmodell!$F$34+Planleggingsmodell!$H$34*((ArbeidTot-((((C66/Planleggingsmodell!$D$13-OljePengerOrg/(Planleggingsmodell!$D$13*PrisK))^Planleggingsmodell!$J$33-Planleggingsmodell!$F$33)/Planleggingsmodell!$H$33)^(1/Planleggingsmodell!$J$33)))^Planleggingsmodell!$J$34))^(1/Planleggingsmodell!$J$34) -> 805429.1477 | K66: =+((Planleggingsmodell!$D$32^Planleggingsmodell!$J$32-Planleggingsmodell!$F$32^(1-Planleggingsmodell!$J$32)*C66^Planleggingsmodell!$J$32)/(Planleggingsmodell!$H$32^(1-Planleggingsmodell!$J$32)))^(1/Planleggingsmodell!$J$32) -> 1405932.184 | L66: =+Planleggingsmodell!$D$27/Planleggingsmodell!$D$25-Planleggingsmodell!$D$11/Planleggingsmodell!$D$25*C66 -> 1276632
C67: 540000 | D67: =IF($M$2="Ja",SjokkS*(Planleggingsmodell!$F$34+Planleggingsmodell!$H$34*((ArbeidTot-((((C67/SjokkK)^Planleggingsmodell!$J$33-Planleggingsmodell!$F$33)/Planleggingsmodell!$H$33)^(1/Planleggingsmodell!$J$33)))^Planleggingsmodell!$J$34))^(1/Planleggingsmodell!$J$34),-1000) -> -1000 | E67: =+SjokkS*(Planleggingsmodell!$F$34+Planleggingsmodell!$H$34*((ArbeidTot-((((C67/SjokkK-OljePenger/(SjokkK*PrisK))^Planleggingsmodell!$J$33-Planleggingsmodell!$F$33)/Planleggingsmodell!$H$33)^(1/Planleggingsmodell!$J$33)))^Planleggingsmodell!$J$34))^(1/Planleggingsmodell!$J$34) -> 715899.2542 | F67: =+((Planleggingsmodell!$C$32^Planleggingsmodell!$J$32-Planleggingsmodell!$F$32^(1-Planleggingsmodell!$J$32)*C67^Planleggingsmodell!$J$32)/(Planleggingsmodell!$H$32^(1-Planleggingsmodell!$J$32)))^(1/Planleggingsmodell!$J$32) -> 1403630.42 | G67: =+Planleggingsmodell!$C$27/Planleggingsmodell!$C$25-Planleggingsmodell!$D$11/Planleggingsmodell!$C$25*C67 -> 1266632 | H67: =+IF($M$3="Ja",($H$6-Planleggingsmodell!$D$11*Figur!C67)/Planleggingsmodell!$C$25,-1000) -> -1000 | I67: =IF($M$2="ja",Planleggingsmodell!$D$14*(Planleggingsmodell!$F$34+Planleggingsmodell!$H$34*((ArbeidTot-((((C67/Planleggingsmodell!$D$13)^Planleggingsmodell!$J$33-Planleggingsmodell!$F$33)/Planleggingsmodell!$H$33)^(1/Planleggingsmodell!$J$33)))^Planleggingsmodell!$J$34))^(1/Planleggingsmodell!$J$34),-1000) -> -1000 | J67: =Planleggingsmodell!$D$14*(Planleggingsmodell!$F$34+Planleggingsmodell!$H$34*((ArbeidTot-((((C67/Planleggingsmodell!$D$13-OljePengerOrg/(Planleggingsmodell!$D$13*PrisK))^Planleggingsmodell!$J$33-Planleggingsmodell!$F$33)/Planleggingsmodell!$H$33)^(1/Planleggingsmodell!$J$33)))^Planleggingsmodell!$J$34))^(1/Planleggingsmodell!$J$34) -> 715899.2542 | K67: =+((Planleggingsmodell!$D$32^Planleggingsmodell!$J$32-Planleggingsmodell!$F$32^(1-Planleggingsmodell!$J$32)*C67^Planleggingsmodell!$J$32)/(Planleggingsmodell!$H$32^(1-Planleggingsmodell!$J$32)))^(1/Planleggingsmodell!$J$32) -> 1403630.42 | L67: =+Planleggingsmodell!$D$27/Planleggingsmodell!$D$25-Planleggingsmodell!$D$11/Planleggingsmodell!$D$25*C67 -> 1266632
C68: 550000 | D68: =IF($M$2="Ja",SjokkS*(Planleggingsmodell!$F$34+Planleggingsmodell!$H$34*((ArbeidTot-((((C68/SjokkK)^Planleggingsmodell!$J$33-Planleggingsmodell!$F$33)/Planleggingsmodell!$H$33)^(1/Planleggingsmodell!$J$33)))^Planleggingsmodell!$J$34))^(1/Planleggingsmodell!$J$34),-1000) -> -1000 | E68: =+SjokkS*(Planleggingsmodell!$F$34+Planleggingsmodell!$H$34*((ArbeidTot-((((C68/SjokkK-OljePenger/(SjokkK*PrisK))^Planleggingsmodell!$J$33-Planleggingsmodell!$F$33)/Planleggingsmodell!$H$33)^(1/Planleggingsmodell!$J$33)))^Planleggingsmodell!$J$34))^(1/Planleggingsmodell!$J$34) -> 610607.533 | F68: =+((Planleggingsmodell!$C$32^Planleggingsmodell!$J$32-Planleggingsmodell!$F$32^(1-Planleggingsmodell!$J$32)*C68^Planleggingsmodell!$J$32)/(Planleggingsmodell!$H$32^(1-Planleggingsmodell!$J$32)))^(1/Planleggingsmodell!$J$32) -> 1401419.476 | G68: =+Planleggingsmodell!$C$27/Planleggingsmodell!$C$25-Planleggingsmodell!$D$11/Planleggingsmodell!$C$25*C68 -> 1256632 | H68: =+IF($M$3="Ja",($H$6-Planleggingsmodell!$D$11*Figur!C68)/Planleggingsmodell!$C$25,-1000) -> -1000 | I68: =IF($M$2="ja",Planleggingsmodell!$D$14*(Planleggingsmodell!$F$34+Planleggingsmodell!$H$34*((ArbeidTot-((((C68/Planleggingsmodell!$D$13)^Planleggingsmodell!$J$33-Planleggingsmodell!$F$33)/Planleggingsmodell!$H$33)^(1/Planleggingsmodell!$J$33)))^Planleggingsmodell!$J$34))^(1/Planleggingsmodell!$J$34),-1000) -> -1000 | J68: =Planleggingsmodell!$D$14*(Planleggingsmodell!$F$34+Planleggingsmodell!$H$34*((ArbeidTot-((((C68/Planleggingsmodell!$D$13-OljePengerOrg/(Planleggingsmodell!$D$13*PrisK))^Planleggingsmodell!$J$33-Planleggingsmodell!$F$33)/Planleggingsmodell!$H$33)^(1/Planleggingsmodell!$J$33)))^Planleggingsmodell!$J$34))^(1/Planleggingsmodell!$J$34) -> 610607.533 | K68: =+((Planleggingsmodell!$D$32^Planleggingsmodell!$J$32-Planleggingsmodell!$F$32^(1-Planleggingsmodell!$J$32)*C68^Planleggingsmodell!$J$32)/(Planleggingsmodell!$H$32^(1-Planleggingsmodell!$J$32)))^(1/Planleggingsmodell!$J$32) -> 1401419.476 | L68: =+Planleggingsmodell!$D$27/Planleggingsmodell!$D$25-Planleggingsmodell!$D$11/Planleggingsmodell!$D$25*C68 -> 1256632
C69: 560000 | D69: =IF($M$2="Ja",SjokkS*(Planleggingsmodell!$F$34+Planleggingsmodell!$H$34*((ArbeidTot-((((C69/SjokkK)^Planleggingsmodell!$J$33-Planleggingsmodell!$F$33)/Planleggingsmodell!$H$33)^(1/Planleggingsmodell!$J$33)))^Planleggingsmodell!$J$34))^(1/Planleggingsmodell!$J$34),-1000) -> -1000 | E69: =+SjokkS*(Planleggingsmodell!$F$34+Planleggingsmodell!$H$34*((ArbeidTot-((((C69/SjokkK-OljePenger/(SjokkK*PrisK))^Planleggingsmodell!$J$33-Planleggingsmodell!$F$33)/Planleggingsmodell!$H$33)^(1/Planleggingsmodell!$J$33)))^Planleggingsmodell!$J$34))^(1/Planleggingsmodell!$J$34) -> 484989.8999 | F69: =+((Planleggingsmodell!$C$32^Planleggingsmodell!$J$32-Planleggingsmodell!$F$32^(1-Planleggingsmodell!$J$32)*C69^Planleggingsmodell!$J$32)/(Planleggingsmodell!$H$32^(1-Planleggingsmodell!$J$32)))^(1/Planleggingsmodell!$J$32) -> 1399294.081 | G69: =+Planleggingsmodell!$C$27/Planleggingsmodell!$C$25-Planleggingsmodell!$D$11/Planleggingsmodell!$C$25*C69 -> 1246632 | H69: =+IF($M$3="Ja",($H$6-Planleggingsmodell!$D$11*Figur!C69)/Planleggingsmodell!$C$25,-1000) -> -1000 | I69: =IF($M$2="ja",Planleggingsmodell!$D$14*(Planleggingsmodell!$F$34+Planleggingsmodell!$H$34*((ArbeidTot-((((C69/Planleggingsmodell!$D$13)^Planleggingsmodell!$J$33-Planleggingsmodell!$F$33)/Planleggingsmodell!$H$33)^(1/Planleggingsmodell!$J$33)))^Planleggingsmodell!$J$34))^(1/Planleggingsmodell!$J$34),-1000) -> -1000 | J69: =Planleggingsmodell!$D$14*(Planleggingsmodell!$F$34+Planleggingsmodell!$H$34*((ArbeidTot-((((C69/Planleggingsmodell!$D$13-OljePengerOrg/(Planleggingsmodell!$D$13*PrisK))^Planleggingsmodell!$J$33-Planleggingsmodell!$F$33)/Planleggingsmodell!$H$33)^(1/Planleggingsmodell!$J$33)))^Planleggingsmodell!$J$34))^(1/Planleggingsmodell!$J$34) -> 484989.8999 | K69: =+((Planleggingsmodell!$D$32^Planleggingsmodell!$J$32-Planleggingsmodell!$F$32^(1-Planleggingsmodell!$J$32)*C69^Planleggingsmodell!$J$32)/(Planleggingsmodell!$H$32^(1-Planleggingsmodell!$J$32)))^(1/Planleggingsmodell!$J$32) -> 1399294.081 | L69: =+Planleggingsmodell!$D$27/Planleggingsmodell!$D$25-Planleggingsmodell!$D$11/Planleggingsmodell!$D$25*C69 -> 1246632
C70: 570000 | D70: =IF($M$2="Ja",SjokkS*(Planleggingsmodell!$F$34+Planleggingsmodell!$H$34*((ArbeidTot-((((C70/SjokkK)^Planleggingsmodell!$J$33-Planleggingsmodell!$F$33)/Planleggingsmodell!$H$33)^(1/Planleggingsmodell!$J$33)))^Planleggingsmodell!$J$34))^(1/Planleggingsmodell!$J$34),-1000) -> -1000 | E70: =+SjokkS*(Planleggingsmodell!$F$34+Planleggingsmodell!$H$34*((ArbeidTot-((((C70/SjokkK-OljePenger/(SjokkK*PrisK))^Planleggingsmodell!$J$33-Planleggingsmodell!$F$33)/Planleggingsmodell!$H$33)^(1/Planleggingsmodell!$J$33)))^Planleggingsmodell!$J$34))^(1/Planleggingsmodell!$J$34) -> 332531.8791 | F70: =+((Planleggingsmodell!$C$32^Planleggingsmodell!$J$32-Planleggingsmodell!$F$32^(1-Planleggingsmodell!$J$32)*C70^Planleggingsmodell!$J$32)/(Planleggingsmodell!$H$32^(1-Planleggingsmodell!$J$32)))^(1/Planleggingsmodell!$J$32) -> 1397249.363 | G70: =+Planleggingsmodell!$C$27/Planleggingsmodell!$C$25-Planleggingsmodell!$D$11/Planleggingsmodell!$C$25*C70 -> 1236632 | H70: =+IF($M$3="Ja",($H$6-Planleggingsmodell!$D$11*Figur!C70)/Planleggingsmodell!$C$25,-1000) -> -1000 | I70: =IF($M$2="ja",Planleggingsmodell!$D$14*(Planleggingsmodell!$F$34+Planleggingsmodell!$H$34*((ArbeidTot-((((C70/Planleggingsmodell!$D$13)^Planleggingsmodell!$J$33-Planleggingsmodell!$F$33)/Planleggingsmodell!$H$33)^(1/Planleggingsmodell!$J$33)))^Planleggingsmodell!$J$34))^(1/Planleggingsmodell!$J$34),-1000) -> -1000 | J70: =Planleggingsmodell!$D$14*(Planleggingsmodell!$F$34+Planleggingsmodell!$H$34*((ArbeidTot-((((C70/Planleggingsmodell!$D$13-OljePengerOrg/(Planleggingsmodell!$D$13*PrisK))^Planleggingsmodell!$J$33-Planleggingsmodell!$F$33)/Planleggingsmodell!$H$33)^(1/Planleggingsmodell!$J$33)))^Planleggingsmodell!$J$34))^(1/Planleggingsmodell!$J$34) -> 332531.8791 | K70: =+((Planleggingsmodell!$D$32^Planleggingsmodell!$J$32-Planleggingsmodell!$F$32^(1-Planleggingsmodell!$J$32)*C70^Planleggingsmodell!$J$32)/(Planleggingsmodell!$H$32^(1-Planleggingsmodell!$J$32)))^(1/Planleggingsmodell!$J$32) -> 1397249.363 | L70: =+Planleggingsmodell!$D$27/Planleggingsmodell!$D$25-Planleggingsmodell!$D$11/Planleggingsmodell!$D$25*C70 -> 1236632
C71: 580000 | D71: =IF($M$2="Ja",SjokkS*(Planleggingsmodell!$F$34+Planleggingsmodell!$H$34*((ArbeidTot-((((C71/SjokkK)^Planleggingsmodell!$J$33-Planleggingsmodell!$F$33)/Planleggingsmodell!$H$33)^(1/Planleggingsmodell!$J$33)))^Planleggingsmodell!$J$34))^(1/Planleggingsmodell!$J$34),-1000) -> -1000 | E71: =+SjokkS*(Planleggingsmodell!$F$34+Planleggingsmodell!$H$34*((ArbeidTot-((((C71/SjokkK-OljePenger/(SjokkK*PrisK))^Planleggingsmodell!$J$33-Planleggingsmodell!$F$33)/Planleggingsmodell!$H$33)^(1/Planleggingsmodell!$J$33)))^Planleggingsmodell!$J$34))^(1/Planleggingsmodell!$J$34) -> 143602.1488 | F71: =+((Planleggingsmodell!$C$32^Planleggingsmodell!$J$32-Planleggingsmodell!$F$32^(1-Planleggingsmodell!$J$32)*C71^Planleggingsmodell!$J$32)/(Planleggingsmodell!$H$32^(1-Planleggingsmodell!$J$32)))^(1/Planleggingsmodell!$J$32) -> 1395280.815 | G71: =+Planleggingsmodell!$C$27/Planleggingsmodell!$C$25-Planleggingsmodell!$D$11/Planleggingsmodell!$C$25*C71 -> 1226632 | H71: =+IF($M$3="Ja",($H$6-Planleggingsmodell!$D$11*Figur!C71)/Planleggingsmodell!$C$25,-1000) -> -1000 | I71: =IF($M$2="ja",Planleggingsmodell!$D$14*(Planleggingsmodell!$F$34+Planleggingsmodell!$H$34*((ArbeidTot-((((C71/Planleggingsmodell!$D$13)^Planleggingsmodell!$J$33-Planleggingsmodell!$F$33)/Planleggingsmodell!$H$33)^(1/Planleggingsmodell!$J$33)))^Planleggingsmodell!$J$34))^(1/Planleggingsmodell!$J$34),-1000) -> -1000 | J71: =Planleggingsmodell!$D$14*(Planleggingsmodell!$F$34+Planleggingsmodell!$H$34*((ArbeidTot-((((C71/Planleggingsmodell!$D$13-OljePengerOrg/(Planleggingsmodell!$D$13*PrisK))^Planleggingsmodell!$J$33-Planleggingsmodell!$F$33)/Planleggingsmodell!$H$33)^(1/Planleggingsmodell!$J$33)))^Planleggingsmodell!$J$34))^(1/Planleggingsmodell!$J$34) -> 143602.1488 | K71: =+((Planleggingsmodell!$D$32^Planleggingsmodell!$J$32-Planleggingsmodell!$F$32^(1-Planleggingsmodell!$J$32)*C71^Planleggingsmodell!$J$32)/(Planleggingsmodell!$H$32^(1-Planleggingsmodell!$J$32)))^(1/Planleggingsmodell!$J$32) -> 1395280.815 | L71: =+Planleggingsmodell!$D$27/Planleggingsmodell!$D$25-Planleggingsmodell!$D$11/Planleggingsmodell!$D$25*C71 -> 1226632
C72: 590000 | D72: =IF($M$2="Ja",SjokkS*(Planleggingsmodell!$F$34+Planleggingsmodell!$H$34*((ArbeidTot-((((C72/SjokkK)^Planleggingsmodell!$J$33-Planleggingsmodell!$F$33)/Planleggingsmodell!$H$33)^(1/Planleggingsmodell!$J$33)))^Planleggingsmodell!$J$34))^(1/Planleggingsmodell!$J$34),-1000) -> -1000 | E72: =+SjokkS*(Planleggingsmodell!$F$34+Planleggingsmodell!$H$34*((ArbeidTot-((((C72/SjokkK-OljePenger/(SjokkK*PrisK))^Planleggingsmodell!$J$33-Planleggingsmodell!$F$33)/Planleggingsmodell!$H$33)^(1/Planleggingsmodell!$J$33)))^Planleggingsmodell!$J$34))^(1/Planleggingsmodell!$J$34) -> -96664.78161 | F72: =+((Planleggingsmodell!$C$32^Planleggingsmodell!$J$32-Planleggingsmodell!$F$32^(1-Planleggingsmodell!$J$32)*C72^Planleggingsmodell!$J$32)/(Planleggingsmodell!$H$32^(1-Planleggingsmodell!$J$32)))^(1/Planleggingsmodell!$J$32) -> 1393384.259 | G72: =+Planleggingsmodell!$C$27/Planleggingsmodell!$C$25-Planleggingsmodell!$D$11/Planleggingsmodell!$C$25*C72 -> 1216632 | H72: =+IF($M$3="Ja",($H$6-Planleggingsmodell!$D$11*Figur!C72)/Planleggingsmodell!$C$25,-1000) -> -1000 | I72: =IF($M$2="ja",Planleggingsmodell!$D$14*(Planleggingsmodell!$F$34+Planleggingsmodell!$H$34*((ArbeidTot-((((C72/Planleggingsmodell!$D$13)^Planleggingsmodell!$J$33-Planleggingsmodell!$F$33)/Planleggingsmodell!$H$33)^(1/Planleggingsmodell!$J$33)))^Planleggingsmodell!$J$34))^(1/Planleggingsmodell!$J$34),-1000) -> -1000 | J72: =Planleggingsmodell!$D$14*(Planleggingsmodell!$F$34+Planleggingsmodell!$H$34*((ArbeidTot-((((C72/Planleggingsmodell!$D$13-OljePengerOrg/(Planleggingsmodell!$D$13*PrisK))^Planleggingsmodell!$J$33-Planleggingsmodell!$F$33)/Planleggingsmodell!$H$33)^(1/Planleggingsmodell!$J$33)))^Planleggingsmodell!$J$34))^(1/Planleggingsmodell!$J$34) -> -96664.78161 | K72: =+((Planleggingsmodell!$D$32^Planleggingsmodell!$J$32-Planleggingsmodell!$F$32^(1-Planleggingsmodell!$J$32)*C72^Planleggingsmodell!$J$32)/(Planleggingsmodell!$H$32^(1-Planleggingsmodell!$J$32)))^(1/Planleggingsmodell!$J$32) -> 1393384.259 | L72: =+Planleggingsmodell!$D$27/Planleggingsmodell!$D$25-Planleggingsmodell!$D$11/Planleggingsmodell!$D$25*C72 -> 1216632
C73: 600000 | D73: =IF($M$2="Ja",SjokkS*(Planleggingsmodell!$F$34+Planleggingsmodell!$H$34*((ArbeidTot-((((C73/SjokkK)^Planleggingsmodell!$J$33-Planleggingsmodell!$F$33)/Planleggingsmodell!$H$33)^(1/Planleggingsmodell!$J$33)))^Planleggingsmodell!$J$34))^(1/Planleggingsmodell!$J$34),-1000) -> -1000 | E73: =+SjokkS*(Planleggingsmodell!$F$34+Planleggingsmodell!$H$34*((ArbeidTot-((((C73/SjokkK-OljePenger/(SjokkK*PrisK))^Planleggingsmodell!$J$33-Planleggingsmodell!$F$33)/Planleggingsmodell!$H$33)^(1/Planleggingsmodell!$J$33)))^Planleggingsmodell!$J$34))^(1/Planleggingsmodell!$J$34) -> -412483.2625 | F73: =+((Planleggingsmodell!$C$32^Planleggingsmodell!$J$32-Planleggingsmodell!$F$32^(1-Planleggingsmodell!$J$32)*C73^Planleggingsmodell!$J$32)/(Planleggingsmodell!$H$32^(1-Planleggingsmodell!$J$32)))^(1/Planleggingsmodell!$J$32) -> 1391555.815 | G73: =+Planleggingsmodell!$C$27/Planleggingsmodell!$C$25-Planleggingsmodell!$D$11/Planleggingsmodell!$C$25*C73 -> 1206632 | H73: =+IF($M$3="Ja",($H$6-Planleggingsmodell!$D$11*Figur!C73)/Planleggingsmodell!$C$25,-1000) -> -1000 | I73: =IF($M$2="ja",Planleggingsmodell!$D$14*(Planleggingsmodell!$F$34+Planleggingsmodell!$H$34*((ArbeidTot-((((C73/Planleggingsmodell!$D$13)^Planleggingsmodell!$J$33-Planleggingsmodell!$F$33)/Planleggingsmodell!$H$33)^(1/Planleggingsmodell!$J$33)))^Planleggingsmodell!$J$34))^(1/Planleggingsmodell!$J$34),-1000) -> -1000 | J73: =Planleggingsmodell!$D$14*(Planleggingsmodell!$F$34+Planleggingsmodell!$H$34*((ArbeidTot-((((C73/Planleggingsmodell!$D$13-OljePengerOrg/(Planleggingsmodell!$D$13*PrisK))^Planleggingsmodell!$J$33-Planleggingsmodell!$F$33)/Planleggingsmodell!$H$33)^(1/Planleggingsmodell!$J$33)))^Planleggingsmodell!$J$34))^(1/Planleggingsmodell!$J$34) -> -412483.2625 | K73: =+((Planleggingsmodell!$D$32^Planleggingsmodell!$J$32-Planleggingsmodell!$F$32^(1-Planleggingsmodell!$J$32)*C73^Planleggingsmodell!$J$32)/(Planleggingsmodell!$H$32^(1-Planleggingsmodell!$J$32)))^(1/Planleggingsmodell!$J$32) -> 1391555.815 | L73: =+Planleggingsmodell!$D$27/Planleggingsmodell!$D$25-Planleggingsmodell!$D$11/Planleggingsmodell!$D$25*C73 -> 1206632
C74: 610000 | D74: =IF($M$2="Ja",SjokkS*(Planleggingsmodell!$F$34+Planleggingsmodell!$H$34*((ArbeidTot-((((C74/SjokkK)^Planleggingsmodell!$J$33-Planleggingsmodell!$F$33)/Planleggingsmodell!$H$33)^(1/Planleggingsmodell!$J$33)))^Planleggingsmodell!$J$34))^(1/Planleggingsmodell!$J$34),-1000) -> -1000 | E74: =+SjokkS*(Planleggingsmodell!$F$34+Planleggingsmodell!$H$34*((ArbeidTot-((((C74/SjokkK-OljePenger/(SjokkK*PrisK))^Planleggingsmodell!$J$33-Planleggingsmodell!$F$33)/Planleggingsmodell!$H$33)^(1/Planleggingsmodell!$J$33)))^Planleggingsmodell!$J$34))^(1/Planleggingsmodell!$J$34) -> -846136.8946 | F74: =+((Planleggingsmodell!$C$32^Planleggingsmodell!$J$32-Planleggingsmodell!$F$32^(1-Planleggingsmodell!$J$32)*C74^Planleggingsmodell!$J$32)/(Planleggingsmodell!$H$32^(1-Planleggingsmodell!$J$32)))^(1/Planleggingsmodell!$J$32) -> 1389791.88 | G74: =+Planleggingsmodell!$C$27/Planleggingsmodell!$C$25-Planleggingsmodell!$D$11/Planleggingsmodell!$C$25*C74 -> 1196632 | H74: =+IF($M$3="Ja",($H$6-Planleggingsmodell!$D$11*Figur!C74)/Planleggingsmodell!$C$25,-1000) -> -1000 | I74: =IF($M$2="ja",Planleggingsmodell!$D$14*(Planleggingsmodell!$F$34+Planleggingsmodell!$H$34*((ArbeidTot-((((C74/Planleggingsmodell!$D$13)^Planleggingsmodell!$J$33-Planleggingsmodell!$F$33)/Planleggingsmodell!$H$33)^(1/Planleggingsmodell!$J$33)))^Planleggingsmodell!$J$34))^(1/Planleggingsmodell!$J$34),-1000) -> -1000 | J74: =Planleggingsmodell!$D$14*(Planleggingsmodell!$F$34+Planleggingsmodell!$H$34*((ArbeidTot-((((C74/Planleggingsmodell!$D$13-OljePengerOrg/(Planleggingsmodell!$D$13*PrisK))^Planleggingsmodell!$J$33-Planleggingsmodell!$F$33)/Planleggingsmodell!$H$33)^(1/Planleggingsmodell!$J$33)))^Planleggingsmodell!$J$34))^(1/Planleggingsmodell!$J$34) -> -846136.8946 | K74: =+((Planleggingsmodell!$D$32^Planleggingsmodell!$J$32-Planleggingsmodell!$F$32^(1-Planleggingsmodell!$J$32)*C74^Planleggingsmodell!$J$32)/(Planleggingsmodell!$H$32^(1-Planleggingsmodell!$J$32)))^(1/Planleggingsmodell!$J$32) -> 1389791.88 | L74: =+Planleggingsmodell!$D$27/Planleggingsmodell!$D$25-Planleggingsmodell!$D$11/Planleggingsmodell!$D$25*C74 -> 1196632
C75: 620000 | D75: =IF($M$2="Ja",SjokkS*(Planleggingsmodell!$F$34+Planleggingsmodell!$H$34*((ArbeidTot-((((C75/SjokkK)^Planleggingsmodell!$J$33-Planleggingsmodell!$F$33)/Planleggingsmodell!$H$33)^(1/Planleggingsmodell!$J$33)))^Planleggingsmodell!$J$34))^(1/Planleggingsmodell!$J$34),-1000) -> -1000 | E75: =+SjokkS*(Planleggingsmodell!$F$34+Planleggingsmodell!$H$34*((ArbeidTot-((((C75/SjokkK-OljePenger/(SjokkK*PrisK))^Planleggingsmodell!$J$33-Planleggingsmodell!$F$33)/Planleggingsmodell!$H$33)^(1/Planleggingsmodell!$J$33)))^Planleggingsmodell!$J$34))^(1/Planleggingsmodell!$J$34) -> -1478698.511 | F75: =+((Planleggingsmodell!$C$32^Planleggingsmodell!$J$32-Planleggingsmodell!$F$32^(1-Planleggingsmodell!$J$32)*C75^Planleggingsmodell!$J$32)/(Planleggingsmodell!$H$32^(1-Planleggingsmodell!$J$32)))^(1/Planleggingsmodell!$J$32) -> 1388089.099 | G75: =+Planleggingsmodell!$C$27/Planleggingsmodell!$C$25-Planleggingsmodell!$D$11/Planleggingsmodell!$C$25*C75 -> 1186632 | H75: =+IF($M$3="Ja",($H$6-Planleggingsmodell!$D$11*Figur!C75)/Planleggingsmodell!$C$25,-1000) -> -1000 | I75: =IF($M$2="ja",Planleggingsmodell!$D$14*(Planleggingsmodell!$F$34+Planleggingsmodell!$H$34*((ArbeidTot-((((C75/Planleggingsmodell!$D$13)^Planleggingsmodell!$J$33-Planleggingsmodell!$F$33)/Planleggingsmodell!$H$33)^(1/Planleggingsmodell!$J$33)))^Planleggingsmodell!$J$34))^(1/Planleggingsmodell!$J$34),-1000) -> -1000 | J75: =Planleggingsmodell!$D$14*(Planleggingsmodell!$F$34+Planleggingsmodell!$H$34*((ArbeidTot-((((C75/Planleggingsmodell!$D$13-OljePengerOrg/(Planleggingsmodell!$D$13*PrisK))^Planleggingsmodell!$J$33-Planleggingsmodell!$F$33)/Planleggingsmodell!$H$33)^(1/Planleggingsmodell!$J$33)))^Planleggingsmodell!$J$34))^(1/Planleggingsmodell!$J$34) -> -1478698.511 | K75: =+((Planleggingsmodell!$D$32^Planleggingsmodell!$J$32-Planleggingsmodell!$F$32^(1-Planleggingsmodell!$J$32)*C75^Planleggingsmodell!$J$32)/(Planleggingsmodell!$H$32^(1-Planleggingsmodell!$J$32)))^(1/Planleggingsmodell!$J$32) -> 1388089.099 | L75: =+Planleggingsmodell!$D$27/Planleggingsmodell!$D$25-Planleggingsmodell!$D$11/Planleggingsmodell!$D$25*C75 -> 1186632
C76: 630000 | D76: =IF($M$2="Ja",SjokkS*(Planleggingsmodell!$F$34+Planleggingsmodell!$H$34*((ArbeidTot-((((C76/SjokkK)^Planleggingsmodell!$J$33-Planleggingsmodell!$F$33)/Planleggingsmodell!$H$33)^(1/Planleggingsmodell!$J$33)))^Planleggingsmodell!$J$34))^(1/Planleggingsmodell!$J$34),-1000) -> -1000 | E76: =+SjokkS*(Planleggingsmodell!$F$34+Planleggingsmodell!$H$34*((ArbeidTot-((((C76/SjokkK-OljePenger/(SjokkK*PrisK))^Planleggingsmodell!$J$33-Planleggingsmodell!$F$33)/Planleggingsmodell!$H$33)^(1/Planleggingsmodell!$J$33)))^Planleggingsmodell!$J$34))^(1/Planleggingsmodell!$J$34) -> -2487746.34 | F76: =+((Planleggingsmodell!$C$32^Planleggingsmodell!$J$32-Planleggingsmodell!$F$32^(1-Planleggingsmodell!$J$32)*C76^Planleggingsmodell!$J$32)/(Planleggingsmodell!$H$32^(1-Planleggingsmodell!$J$32)))^(1/Planleggingsmodell!$J$32) -> 1386444.346 | G76: =+Planleggingsmodell!$C$27/Planleggingsmodell!$C$25-Planleggingsmodell!$D$11/Planleggingsmodell!$C$25*C76 -> 1176632 | H76: =+IF($M$3="Ja",($H$6-Planleggingsmodell!$D$11*Figur!C76)/Planleggingsmodell!$C$25,-1000) -> -1000 | I76: =IF($M$2="ja",Planleggingsmodell!$D$14*(Planleggingsmodell!$F$34+Planleggingsmodell!$H$34*((ArbeidTot-((((C76/Planleggingsmodell!$D$13)^Planleggingsmodell!$J$33-Planleggingsmodell!$F$33)/Planleggingsmodell!$H$33)^(1/Planleggingsmodell!$J$33)))^Planleggingsmodell!$J$34))^(1/Planleggingsmodell!$J$34),-1000) -> -1000 | J76: =Planleggingsmodell!$D$14*(Planleggingsmodell!$F$34+Planleggingsmodell!$H$34*((ArbeidTot-((((C76/Planleggingsmodell!$D$13-OljePengerOrg/(Planleggingsmodell!$D$13*PrisK))^Planleggingsmodell!$J$33-Planleggingsmodell!$F$33)/Planleggingsmodell!$H$33)^(1/Planleggingsmodell!$J$33)))^Planleggingsmodell!$J$34))^(1/Planleggingsmodell!$J$34) -> -2487746.34 | K76: =+((Planleggingsmodell!$D$32^Planleggingsmodell!$J$32-Planleggingsmodell!$F$32^(1-Planleggingsmodell!$J$32)*C76^Planleggingsmodell!$J$32)/(Planleggingsmodell!$H$32^(1-Planleggingsmodell!$J$32)))^(1/Planleggingsmodell!$J$32) -> 1386444.346 | L76: =+Planleggingsmodell!$D$27/Planleggingsmodell!$D$25-Planleggingsmodell!$D$11/Planleggingsmodell!$D$25*C76 -> 1176632
A77: =IF(A78="","",IF(IFERROR(D77*E77*F77*I77*J77*K77,1)=1,ROW(),"")) ->  | C77: 640000 | D77: =IF($M$2="Ja",SjokkS*(Planleggingsmodell!$F$34+Planleggingsmodell!$H$34*((ArbeidTot-((((C77/SjokkK)^Planleggingsmodell!$J$33-Planleggingsmodell!$F$33)/Planleggingsmodell!$H$33)^(1/Planleggingsmodell!$J$33)))^Planleggingsmodell!$J$34))^(1/Planleggingsmodell!$J$34),-1000) -> -1000 | E77: =+SjokkS*(Planleggingsmodell!$F$34+Planleggingsmodell!$H$34*((ArbeidTot-((((C77/SjokkK-OljePenger/(SjokkK*PrisK))^Planleggingsmodell!$J$33-Planleggingsmodell!$F$33)/Planleggingsmodell!$H$33)^(1/Planleggingsmodell!$J$33)))^Planleggingsmodell!$J$34))^(1/Planleggingsmodell!$J$34) -> -4351794.77 | F77: =+((Planleggingsmodell!$C$32^Planleggingsmodell!$J$32-Planleggingsmodell!$F$32^(1-Planleggingsmodell!$J$32)*C77^Planleggingsmodell!$J$32)/(Planleggingsmodell!$H$32^(1-Planleggingsmodell!$J$32)))^(1/Planleggingsmodell!$J$32) -> 1384854.703 | G77: =+Planleggingsmodell!$C$27/Planleggingsmodell!$C$25-Planleggingsmodell!$D$11/Planleggingsmodell!$C$25*C77 -> 1166632 | H77: =+IF($M$3="Ja",($H$6-Planleggingsmodell!$D$11*Figur!C77)/Planleggingsmodell!$C$25,-1000) -> -1000 | I77: =IF($M$2="ja",Planleggingsmodell!$D$14*(Planleggingsmodell!$F$34+Planleggingsmodell!$H$34*((ArbeidTot-((((C77/Planleggingsmodell!$D$13)^Planleggingsmodell!$J$33-Planleggingsmodell!$F$33)/Planleggingsmodell!$H$33)^(1/Planleggingsmodell!$J$33)))^Planleggingsmodell!$J$34))^(1/Planleggingsmodell!$J$34),-1000) -> -1000 | J77: =Planleggingsmodell!$D$14*(Planleggingsmodell!$F$34+Planleggingsmodell!$H$34*((ArbeidTot-((((C77/Planleggingsmodell!$D$13-OljePengerOrg/(Planleggingsmodell!$D$13*PrisK))^Planleggingsmodell!$J$33-Planleggingsmodell!$F$33)/Planleggingsmodell!$H$33)^(1/Planleggingsmodell!$J$33)))^Planleggingsmodell!$J$34))^(1/Planleggingsmodell!$J$34) -> -4351794.77 | K77: =+((Planleggingsmodell!$D$32^Planleggingsmodell!$J$32-Planleggingsmodell!$F$32^(1-Planleggingsmodell!$J$32)*C77^Planleggingsmodell!$J$32)/(Planleggingsmodell!$H$32^(1-Planleggingsmodell!$J$32)))^(1/Planleggingsmodell!$J$32) -> 1384854.703 | L77: =+Planleggingsmodell!$D$27/Planleggingsmodell!$D$25-Planleggingsmodell!$D$11/Planleggingsmodell!$D$25*C77 -> 1166632
C78: 650000 | D78: =IF($M$2="Ja",SjokkS*(Planleggingsmodell!$F$34+Planleggingsmodell!$H$34*((ArbeidTot-((((C78/SjokkK)^Planleggingsmodell!$J$33-Planleggingsmodell!$F$33)/Planleggingsmodell!$H$33)^(1/Planleggingsmodell!$J$33)))^Planleggingsmodell!$J$34))^(1/Planleggingsmodell!$J$34),-1000) -> -1000 | E78: =+SjokkS*(Planleggingsmodell!$F$34+Planleggingsmodell!$H$34*((ArbeidTot-((((C78/SjokkK-OljePenger/(SjokkK*PrisK))^Planleggingsmodell!$J$33-Planleggingsmodell!$F$33)/Planleggingsmodell!$H$33)^(1/Planleggingsmodell!$J$33)))^Planleggingsmodell!$J$34))^(1/Planleggingsmodell!$J$34) -> -8956397.42 | F78: =+((Planleggingsmodell!$C$32^Planleggingsmodell!$J$32-Planleggingsmodell!$F$32^(1-Planleggingsmodell!$J$32)*C78^Planleggingsmodell!$J$32)/(Planleggingsmodell!$H$32^(1-Planleggingsmodell!$J$32)))^(1/Planleggingsmodell!$J$32) -> 1383317.448 | G78: =+Planleggingsmodell!$C$27/Planleggingsmodell!$C$25-Planleggingsmodell!$D$11/Planleggingsmodell!$C$25*C78 -> 1156632 | H78: =+IF($M$3="Ja",($H$6-Planleggingsmodell!$D$11*Figur!C78)/Planleggingsmodell!$C$25,-1000) -> -1000 | I78: =IF($M$2="ja",Planleggingsmodell!$D$14*(Planleggingsmodell!$F$34+Planleggingsmodell!$H$34*((ArbeidTot-((((C78/Planleggingsmodell!$D$13)^Planleggingsmodell!$J$33-Planleggingsmodell!$F$33)/Planleggingsmodell!$H$33)^(1/Planleggingsmodell!$J$33)))^Planleggingsmodell!$J$34))^(1/Planleggingsmodell!$J$34),-1000) -> -1000 | J78: =Planleggingsmodell!$D$14*(Planleggingsmodell!$F$34+Planleggingsmodell!$H$34*((ArbeidTot-((((C78/Planleggingsmodell!$D$13-OljePengerOrg/(Planleggingsmodell!$D$13*PrisK))^Planleggingsmodell!$J$33-Planleggingsmodell!$F$33)/Planleggingsmodell!$H$33)^(1/Planleggingsmodell!$J$33)))^Planleggingsmodell!$J$34))^(1/Planleggingsmodell!$J$34) -> -8956397.42 | K78: =+((Planleggingsmodell!$D$32^Planleggingsmodell!$J$32-Planleggingsmodell!$F$32^(1-Planleggingsmodell!$J$32)*C78^Planleggingsmodell!$J$32)/(Planleggingsmodell!$H$32^(1-Planleggingsmodell!$J$32)))^(1/Planleggingsmodell!$J$32) -> 1383317.448 | L78: =+Planleggingsmodell!$D$27/Planleggingsmodell!$D$25-Planleggingsmodell!$D$11/Planleggingsmodell!$D$25*C78 -> 1156632
B79: =IF(B78="","",IF(IFERROR(D79*E79*F79*I79*J79*K79,1)=1,ROW(),"")) ->  | C79: =+C78+10000 -> 660000 | D79: =IF($M$2="Ja",SjokkS*(Planleggingsmodell!$F$34+Planleggingsmodell!$H$34*((ArbeidTot-((((C79/SjokkK)^Planleggingsmodell!$J$33-Planleggingsmodell!$F$33)/Planleggingsmodell!$H$33)^(1/Planleggingsmodell!$J$33)))^Planleggingsmodell!$J$34))^(1/Planleggingsmodell!$J$34),-1000) -> -1000 | E79: =+SjokkS*(Planleggingsmodell!$F$34+Planleggingsmodell!$H$34*((ArbeidTot-((((C79/SjokkK-OljePenger/(SjokkK*PrisK))^Planleggingsmodell!$J$33-Planleggingsmodell!$F$33)/Planleggingsmodell!$H$33)^(1/Planleggingsmodell!$J$33)))^Planleggingsmodell!$J$34))^(1/Planleggingsmodell!$J$34) -> -39117695.43 | F79: =+((Planleggingsmodell!$C$32^Planleggingsmodell!$J$32-Planleggingsmodell!$F$32^(1-Planleggingsmodell!$J$32)*C79^Planleggingsmodell!$J$32)/(Planleggingsmodell!$H$32^(1-Planleggingsmodell!$J$32)))^(1/Planleggingsmodell!$J$32) -> 1381830.032 | G79: =+Planleggingsmodell!$C$27/Planleggingsmodell!$C$25-Planleggingsmodell!$D$11/Planleggingsmodell!$C$25*C79 -> 1146632 | H79: =+IF($M$3="Ja",($H$6-Planleggingsmodell!$D$11*Figur!C79)/Planleggingsmodell!$C$25,-1000) -> -1000 | I79: =IF($M$2="ja",Planleggingsmodell!$D$14*(Planleggingsmodell!$F$34+Planleggingsmodell!$H$34*((ArbeidTot-((((C79/Planleggingsmodell!$D$13)^Planleggingsmodell!$J$33-Planleggingsmodell!$F$33)/Planleggingsmodell!$H$33)^(1/Planleggingsmodell!$J$33)))^Planleggingsmodell!$J$34))^(1/Planleggingsmodell!$J$34),-1000) -> -1000 | J79: =Planleggingsmodell!$D$14*(Planleggingsmodell!$F$34+Planleggingsmodell!$H$34*((ArbeidTot-((((C79/Planleggingsmodell!$D$13-OljePengerOrg/(Planleggingsmodell!$D$13*PrisK))^Planleggingsmodell!$J$33-Planleggingsmodell!$F$33)/Planleggingsmodell!$H$33)^(1/Planleggingsmodell!$J$33)))^Planleggingsmodell!$J$34))^(1/Planleggingsmodell!$J$34) -> -39117695.43 | K79: =+((Planleggingsmodell!$D$32^Planleggingsmodell!$J$32-Planleggingsmodell!$F$32^(1-Planleggingsmodell!$J$32)*C79^Planleggingsmodell!$J$32)/(Planleggingsmodell!$H$32^(1-Planleggingsmodell!$J$32)))^(1/Planleggingsmodell!$J$32) -> 1381830.032 | L79: =+Planleggingsmodell!$D$27/Planleggingsmodell!$D$25-Planleggingsmodell!$D$11/Planleggingsmodell!$D$25*C79 -> 1146632
C80: 670000 | D80: =IF($M$2="Ja",SjokkS*(Planleggingsmodell!$F$34+Planleggingsmodell!$H$34*((ArbeidTot-((((C80/SjokkK)^Planleggingsmodell!$J$33-Planleggingsmodell!$F$33)/Planleggingsmodell!$H$33)^(1/Planleggingsmodell!$J$33)))^Planleggingsmodell!$J$34))^(1/Planleggingsmodell!$J$34),-1000) -> -1000 | E80: =+SjokkS*(Planleggingsmodell!$F$34+Planleggingsmodell!$H$34*((ArbeidTot-((((C80/SjokkK-OljePenger/(SjokkK*PrisK))^Planleggingsmodell!$J$33-Planleggingsmodell!$F$33)/Planleggingsmodell!$H$33)^(1/Planleggingsmodell!$J$33)))^Planleggingsmodell!$J$34))^(1/Planleggingsmodell!$J$34) -> 25025771.64 | F80: =+((Planleggingsmodell!$C$32^Planleggingsmodell!$J$32-Planleggingsmodell!$F$32^(1-Planleggingsmodell!$J$32)*C80^Planleggingsmodell!$J$32)/(Planleggingsmodell!$H$32^(1-Planleggingsmodell!$J$32)))^(1/Planleggingsmodell!$J$32) -> 1380390.07 | G80: =+Planleggingsmodell!$C$27/Planleggingsmodell!$C$25-Planleggingsmodell!$D$11/Planleggingsmodell!$C$25*C80 -> 1136632 | H80: =+IF($M$3="Ja",($H$6-Planleggingsmodell!$D$11*Figur!C80)/Planleggingsmodell!$C$25,-1000) -> -1000 | I80: =IF($M$2="ja",Planleggingsmodell!$D$14*(Planleggingsmodell!$F$34+Planleggingsmodell!$H$34*((ArbeidTot-((((C80/Planleggingsmodell!$D$13)^Planleggingsmodell!$J$33-Planleggingsmodell!$F$33)/Planleggingsmodell!$H$33)^(1/Planleggingsmodell!$J$33)))^Planleggingsmodell!$J$34))^(1/Planleggingsmodell!$J$34),-1000) -> -1000 | J80: =Planleggingsmodell!$D$14*(Planleggingsmodell!$F$34+Planleggingsmodell!$H$34*((ArbeidTot-((((C80/Planleggingsmodell!$D$13-OljePengerOrg/(Planleggingsmodell!$D$13*PrisK))^Planleggingsmodell!$J$33-Planleggingsmodell!$F$33)/Planleggingsmodell!$H$33)^(1/Planleggingsmodell!$J$33)))^Planleggingsmodell!$J$34))^(1/Planleggingsmodell!$J$34) -> 25025771.64 | K80: =+((Planleggingsmodell!$D$32^Planleggingsmodell!$J$32-Planleggingsmodell!$F$32^(1-Planleggingsmodell!$J$32)*C80^Planleggingsmodell!$J$32)/(Planleggingsmodell!$H$32^(1-Planleggingsmodell!$J$32)))^(1/Planleggingsmodell!$J$32) -> 1380390.07 | L80: =+Planleggingsmodell!$D$27/Planleggingsmodell!$D$25-Planleggingsmodell!$D$11/Planleggingsmodell!$D$25*C80 -> 1136632
C81: 680000 | D81: =IF($M$2="Ja",SjokkS*(Planleggingsmodell!$F$34+Planleggingsmodell!$H$34*((ArbeidTot-((((C81/SjokkK)^Planleggingsmodell!$J$33-Planleggingsmodell!$F$33)/Planleggingsmodell!$H$33)^(1/Planleggingsmodell!$J$33)))^Planleggingsmodell!$J$34))^(1/Planleggingsmodell!$J$34),-1000) -> -1000 | E81: =+SjokkS*(Planleggingsmodell!$F$34+Planleggingsmodell!$H$34*((ArbeidTot-((((C81/SjokkK-OljePenger/(SjokkK*PrisK))^Planleggingsmodell!$J$33-Planleggingsmodell!$F$33)/Planleggingsmodell!$H$33)^(1/Planleggingsmodell!$J$33)))^Planleggingsmodell!$J$34))^(1/Planleggingsmodell!$J$34) -> 10929080.56 | F81: =+((Planleggingsmodell!$C$32^Planleggingsmodell!$J$32-Planleggingsmodell!$F$32^(1-Planleggingsmodell!$J$32)*C81^Planleggingsmodell!$J$32)/(Planleggingsmodell!$H$32^(1-Planleggingsmodell!$J$32)))^(1/Planleggingsmodell!$J$32) -> 1378995.327 | G81: =+Planleggingsmodell!$C$27/Planleggingsmodell!$C$25-Planleggingsmodell!$D$11/Planleggingsmodell!$C$25*C81 -> 1126632 | H81: =+IF($M$3="Ja",($H$6-Planleggingsmodell!$D$11*Figur!C81)/Planleggingsmodell!$C$25,-1000) -> -1000 | I81: =IF($M$2="ja",Planleggingsmodell!$D$14*(Planleggingsmodell!$F$34+Planleggingsmodell!$H$34*((ArbeidTot-((((C81/Planleggingsmodell!$D$13)^Planleggingsmodell!$J$33-Planleggingsmodell!$F$33)/Planleggingsmodell!$H$33)^(1/Planleggingsmodell!$J$33)))^Planleggingsmodell!$J$34))^(1/Planleggingsmodell!$J$34),-1000) -> -1000 | J81: =Planleggingsmodell!$D$14*(Planleggingsmodell!$F$34+Planleggingsmodell!$H$34*((ArbeidTot-((((C81/Planleggingsmodell!$D$13-OljePengerOrg/(Planleggingsmodell!$D$13*PrisK))^Planleggingsmodell!$J$33-Planleggingsmodell!$F$33)/Planleggingsmodell!$H$33)^(1/Planleggingsmodell!$J$33)))^Planleggingsmodell!$J$34))^(1/Planleggingsmodell!$J$34) -> 10929080.56 | K81: =+((Planleggingsmodell!$D$32^Planleggingsmodell!$J$32-Planleggingsmodell!$F$32^(1-Planleggingsmodell!$J$32)*C81^Planleggingsmodell!$J$32)/(Planleggingsmodell!$H$32^(1-Planleggingsmodell!$J$32)))^(1/Planleggingsmodell!$J$32) -> 1378995.327 | L81: =+Planleggingsmodell!$D$27/Planleggingsmodell!$D$25-Planleggingsmodell!$D$11/Planleggingsmodell!$D$25*C81 -> 1126632
C82: 690000 | D82: =IF($M$2="Ja",SjokkS*(Planleggingsmodell!$F$34+Planleggingsmodell!$H$34*((ArbeidTot-((((C82/SjokkK)^Planleggingsmodell!$J$33-Planleggingsmodell!$F$33)/Planleggingsmodell!$H$33)^(1/Planleggingsmodell!$J$33)))^Planleggingsmodell!$J$34))^(1/Planleggingsmodell!$J$34),-1000) -> -1000 | E82: =+SjokkS*(Planleggingsmodell!$F$34+Planleggingsmodell!$H$34*((ArbeidTot-((((C82/SjokkK-OljePenger/(SjokkK*PrisK))^Planleggingsmodell!$J$33-Planleggingsmodell!$F$33)/Planleggingsmodell!$H$33)^(1/Planleggingsmodell!$J$33)))^Planleggingsmodell!$J$34))^(1/Planleggingsmodell!$J$34) -> 7513093.18 | F82: =+((Planleggingsmodell!$C$32^Planleggingsmodell!$J$32-Planleggingsmodell!$F$32^(1-Planleggingsmodell!$J$32)*C82^Planleggingsmodell!$J$32)/(Planleggingsmodell!$H$32^(1-Planleggingsmodell!$J$32)))^(1/Planleggingsmodell!$J$32) -> 1377643.706 | G82: =+Planleggingsmodell!$C$27/Planleggingsmodell!$C$25-Planleggingsmodell!$D$11/Planleggingsmodell!$C$25*C82 -> 1116632 | H82: =+IF($M$3="Ja",($H$6-Planleggingsmodell!$D$11*Figur!C82)/Planleggingsmodell!$C$25,-1000) -> -1000 | I82: =IF($M$2="ja",Planleggingsmodell!$D$14*(Planleggingsmodell!$F$34+Planleggingsmodell!$H$34*((ArbeidTot-((((C82/Planleggingsmodell!$D$13)^Planleggingsmodell!$J$33-Planleggingsmodell!$F$33)/Planleggingsmodell!$H$33)^(1/Planleggingsmodell!$J$33)))^Planleggingsmodell!$J$34))^(1/Planleggingsmodell!$J$34),-1000) -> -1000 | J82: =Planleggingsmodell!$D$14*(Planleggingsmodell!$F$34+Planleggingsmodell!$H$34*((ArbeidTot-((((C82/Planleggingsmodell!$D$13-OljePengerOrg/(Planleggingsmodell!$D$13*PrisK))^Planleggingsmodell!$J$33-Planleggingsmodell!$F$33)/Planleggingsmodell!$H$33)^(1/Planleggingsmodell!$J$33)))^Planleggingsmodell!$J$34))^(1/Planleggingsmodell!$J$34) -> 7513093.18 | K82: =+((Planleggingsmodell!$D$32^Planleggingsmodell!$J$32-Planleggingsmodell!$F$32^(1-Planleggingsmodell!$J$32)*C82^Planleggingsmodell!$J$32)/(Planleggingsmodell!$H$32^(1-Planleggingsmodell!$J$32)))^(1/Planleggingsmodell!$J$32) -> 1377643.706 | L82: =+Planleggingsmodell!$D$27/Planleggingsmodell!$D$25-Planleggingsmodell!$D$11/Planleggingsmodell!$D$25*C82 -> 1116632
C83: 700000 | D83: =IF($M$2="Ja",SjokkS*(Planleggingsmodell!$F$34+Planleggingsmodell!$H$34*((ArbeidTot-((((C83/SjokkK)^Planleggingsmodell!$J$33-Planleggingsmodell!$F$33)/Planleggingsmodell!$H$33)^(1/Planleggingsmodell!$J$33)))^Planleggingsmodell!$J$34))^(1/Planleggingsmodell!$J$34),-1000) -> -1000 | E83: =+SjokkS*(Planleggingsmodell!$F$34+Planleggingsmodell!$H$34*((ArbeidTot-((((C83/SjokkK-OljePenger/(SjokkK*PrisK))^Planleggingsmodell!$J$33-Planleggingsmodell!$F$33)/Planleggingsmodell!$H$33)^(1/Planleggingsmodell!$J$33)))^Planleggingsmodell!$J$34))^(1/Planleggingsmodell!$J$34) -> 5974199.409 | F83: =+((Planleggingsmodell!$C$32^Planleggingsmodell!$J$32-Planleggingsmodell!$F$32^(1-Planleggingsmodell!$J$32)*C83^Planleggingsmodell!$J$32)/(Planleggingsmodell!$H$32^(1-Planleggingsmodell!$J$32)))^(1/Planleggingsmodell!$J$32) -> 1376333.237 | G83: =+Planleggingsmodell!$C$27/Planleggingsmodell!$C$25-Planleggingsmodell!$D$11/Planleggingsmodell!$C$25*C83 -> 1106632 | H83: =+IF($M$3="Ja",($H$6-Planleggingsmodell!$D$11*Figur!C83)/Planleggingsmodell!$C$25,-1000) -> -1000 | I83: =IF($M$2="ja",Planleggingsmodell!$D$14*(Planleggingsmodell!$F$34+Planleggingsmodell!$H$34*((ArbeidTot-((((C83/Planleggingsmodell!$D$13)^Planleggingsmodell!$J$33-Planleggingsmodell!$F$33)/Planleggingsmodell!$H$33)^(1/Planleggingsmodell!$J$33)))^Planleggingsmodell!$J$34))^(1/Planleggingsmodell!$J$34),-1000) -> -1000 | J83: =Planleggingsmodell!$D$14*(Planleggingsmodell!$F$34+Planleggingsmodell!$H$34*((ArbeidTot-((((C83/Planleggingsmodell!$D$13-OljePengerOrg/(Planleggingsmodell!$D$13*PrisK))^Planleggingsmodell!$J$33-Planleggingsmodell!$F$33)/Planleggingsmodell!$H$33)^(1/Planleggingsmodell!$J$33)))^Planleggingsmodell!$J$34))^(1/Planleggingsmodell!$J$34) -> 5974199.409 | K83: =+((Planleggingsmodell!$D$32^Planleggingsmodell!$J$32-Planleggingsmodell!$F$32^(1-Planleggingsmodell!$J$32)*C83^Planleggingsmodell!$J$32)/(Planleggingsmodell!$H$32^(1-Planleggingsmodell!$J$32)))^(1/Planleggingsmodell!$J$32) -> 1376333.237 | L83: =+Planleggingsmodell!$D$27/Planleggingsmodell!$D$25-Planleggingsmodell!$D$11/Planleggingsmodell!$D$25*C83 -> 1106632
C84: 710000 | D84: =IF($M$2="Ja",SjokkS*(Planleggingsmodell!$F$34+Planleggingsmodell!$H$34*((ArbeidTot-((((C84/SjokkK)^Planleggingsmodell!$J$33-Planleggingsmodell!$F$33)/Planleggingsmodell!$H$33)^(1/Planleggingsmodell!$J$33)))^Planleggingsmodell!$J$34))^(1/Planleggingsmodell!$J$34),-1000) -> -1000 | E84: =+SjokkS*(Planleggingsmodell!$F$34+Planleggingsmodell!$H$34*((ArbeidTot-((((C84/SjokkK-OljePenger/(SjokkK*PrisK))^Planleggingsmodell!$J$33-Planleggingsmodell!$F$33)/Planleggingsmodell!$H$33)^(1/Planleggingsmodell!$J$33)))^Planleggingsmodell!$J$34))^(1/Planleggingsmodell!$J$34) -> 5098671.118 | F84: =+((Planleggingsmodell!$C$32^Planleggingsmodell!$J$32-Planleggingsmodell!$F$32^(1-Planleggingsmodell!$J$32)*C84^Planleggingsmodell!$J$32)/(Planleggingsmodell!$H$32^(1-Planleggingsmodell!$J$32)))^(1/Planleggingsmodell!$J$32) -> 1375062.07 | G84: =+Planleggingsmodell!$C$27/Planleggingsmodell!$C$25-Planleggingsmodell!$D$11/Planleggingsmodell!$C$25*C84 -> 1096632 | H84: =+IF($M$3="Ja",($H$6-Planleggingsmodell!$D$11*Figur!C84)/Planleggingsmodell!$C$25,-1000) -> -1000 | I84: =IF($M$2="ja",Planleggingsmodell!$D$14*(Planleggingsmodell!$F$34+Planleggingsmodell!$H$34*((ArbeidTot-((((C84/Planleggingsmodell!$D$13)^Planleggingsmodell!$J$33-Planleggingsmodell!$F$33)/Planleggingsmodell!$H$33)^(1/Planleggingsmodell!$J$33)))^Planleggingsmodell!$J$34))^(1/Planleggingsmodell!$J$34),-1000) -> -1000 | J84: =Planleggingsmodell!$D$14*(Planleggingsmodell!$F$34+Planleggingsmodell!$H$34*((ArbeidTot-((((C84/Planleggingsmodell!$D$13-OljePengerOrg/(Planleggingsmodell!$D$13*PrisK))^Planleggingsmodell!$J$33-Planleggingsmodell!$F$33)/Planleggingsmodell!$H$33)^(1/Planleggingsmodell!$J$33)))^Planleggingsmodell!$J$34))^(1/Planleggingsmodell!$J$34) -> 5098671.118 | K84: =+((Planleggingsmodell!$D$32^Planleggingsmodell!$J$32-Planleggingsmodell!$F$32^(1-Planleggingsmodell!$J$32)*C84^Planleggingsmodell!$J$32)/(Planleggingsmodell!$H$32^(1-Planleggingsmodell!$J$32)))^(1/Planleggingsmodell!$J$32) -> 1375062.07 | L84: =+Planleggingsmodell!$D$27/Planleggingsmodell!$D$25-Planleggingsmodell!$D$11/Planleggingsmodell!$D$25*C84 -> 1096632
C85: 720000 | D85: =IF($M$2="Ja",SjokkS*(Planleggingsmodell!$F$34+Planleggingsmodell!$H$34*((ArbeidTot-((((C85/SjokkK)^Planleggingsmodell!$J$33-Planleggingsmodell!$F$33)/Planleggingsmodell!$H$33)^(1/Planleggingsmodell!$J$33)))^Planleggingsmodell!$J$34))^(1/Planleggingsmodell!$J$34),-1000) -> -1000 | E85: =+SjokkS*(Planleggingsmodell!$F$34+Planleggingsmodell!$H$34*((ArbeidTot-((((C85/SjokkK-OljePenger/(SjokkK*PrisK))^Planleggingsmodell!$J$33-Planleggingsmodell!$F$33)/Planleggingsmodell!$H$33)^(1/Planleggingsmodell!$J$33)))^Planleggingsmodell!$J$34))^(1/Planleggingsmodell!$J$34) -> 4533632.798 | F85: =+((Planleggingsmodell!$C$32^Planleggingsmodell!$J$32-Planleggingsmodell!$F$32^(1-Planleggingsmodell!$J$32)*C85^Planleggingsmodell!$J$32)/(Planleggingsmodell!$H$32^(1-Planleggingsmodell!$J$32)))^(1/Planleggingsmodell!$J$32) -> 1373828.462 | G85: =+Planleggingsmodell!$C$27/Planleggingsmodell!$C$25-Planleggingsmodell!$D$11/Planleggingsmodell!$C$25*C85 -> 1086632 | H85: =+IF($M$3="Ja",($H$6-Planleggingsmodell!$D$11*Figur!C85)/Planleggingsmodell!$C$25,-1000) -> -1000 | I85: =IF($M$2="ja",Planleggingsmodell!$D$14*(Planleggingsmodell!$F$34+Planleggingsmodell!$H$34*((ArbeidTot-((((C85/Planleggingsmodell!$D$13)^Planleggingsmodell!$J$33-Planleggingsmodell!$F$33)/Planleggingsmodell!$H$33)^(1/Planleggingsmodell!$J$33)))^Planleggingsmodell!$J$34))^(1/Planleggingsmodell!$J$34),-1000) -> -1000 | J85: =Planleggingsmodell!$D$14*(Planleggingsmodell!$F$34+Planleggingsmodell!$H$34*((ArbeidTot-((((C85/Planleggingsmodell!$D$13-OljePengerOrg/(Planleggingsmodell!$D$13*PrisK))^Planleggingsmodell!$J$33-Planleggingsmodell!$F$33)/Planleggingsmodell!$H$33)^(1/Planleggingsmodell!$J$33)))^Planleggingsmodell!$J$34))^(1/Planleggingsmodell!$J$34) -> 4533632.798 | K85: =+((Planleggingsmodell!$D$32^Planleggingsmodell!$J$32-Planleggingsmodell!$F$32^(1-Planleggingsmodell!$J$32)*C85^Planleggingsmodell!$J$32)/(Planleggingsmodell!$H$32^(1-Planleggingsmodell!$J$32)))^(1/Planleggingsmodell!$J$32) -> 1373828.462 | L85: =+Planleggingsmodell!$D$27/Planleggingsmodell!$D$25-Planleggingsmodell!$D$11/Planleggingsmodell!$D$25*C85 -> 1086632
C86: 730000 | D86: =IF($M$2="Ja",SjokkS*(Planleggingsmodell!$F$34+Planleggingsmodell!$H$34*((ArbeidTot-((((C86/SjokkK)^Planleggingsmodell!$J$33-Planleggingsmodell!$F$33)/Planleggingsmodell!$H$33)^(1/Planleggingsmodell!$J$33)))^Planleggingsmodell!$J$34))^(1/Planleggingsmodell!$J$34),-1000) -> -1000 | E86: =+SjokkS*(Planleggingsmodell!$F$34+Planleggingsmodell!$H$34*((ArbeidTot-((((C86/SjokkK-OljePenger/(SjokkK*PrisK))^Planleggingsmodell!$J$33-Planleggingsmodell!$F$33)/Planleggingsmodell!$H$33)^(1/Planleggingsmodell!$J$33)))^Planleggingsmodell!$J$34))^(1/Planleggingsmodell!$J$34) -> 4138795.564 | F86: =+((Planleggingsmodell!$C$32^Planleggingsmodell!$J$32-Planleggingsmodell!$F$32^(1-Planleggingsmodell!$J$32)*C86^Planleggingsmodell!$J$32)/(Planleggingsmodell!$H$32^(1-Planleggingsmodell!$J$32)))^(1/Planleggingsmodell!$J$32) -> 1372630.772 | G86: =+Planleggingsmodell!$C$27/Planleggingsmodell!$C$25-Planleggingsmodell!$D$11/Planleggingsmodell!$C$25*C86 -> 1076632 | H86: =+IF($M$3="Ja",($H$6-Planleggingsmodell!$D$11*Figur!C86)/Planleggingsmodell!$C$25,-1000) -> -1000 | I86: =IF($M$2="ja",Planleggingsmodell!$D$14*(Planleggingsmodell!$F$34+Planleggingsmodell!$H$34*((ArbeidTot-((((C86/Planleggingsmodell!$D$13)^Planleggingsmodell!$J$33-Planleggingsmodell!$F$33)/Planleggingsmodell!$H$33)^(1/Planleggingsmodell!$J$33)))^Planleggingsmodell!$J$34))^(1/Planleggingsmodell!$J$34),-1000) -> -1000 | J86: =Planleggingsmodell!$D$14*(Planleggingsmodell!$F$34+Planleggingsmodell!$H$34*((ArbeidTot-((((C86/Planleggingsmodell!$D$13-OljePengerOrg/(Planleggingsmodell!$D$13*PrisK))^Planleggingsmodell!$J$33-Planleggingsmodell!$F$33)/Planleggingsmodell!$H$33)^(1/Planleggingsmodell!$J$33)))^Planleggingsmodell!$J$34))^(1/Planleggingsmodell!$J$34) -> 4138795.564 | K86: =+((Planleggingsmodell!$D$32^Planleggingsmodell!$J$32-Planleggingsmodell!$F$32^(1-Planleggingsmodell!$J$32)*C86^Planleggingsmodell!$J$32)/(Planleggingsmodell!$H$32^(1-Planleggingsmodell!$J$32)))^(1/Planleggingsmodell!$J$32) -> 1372630.772 | L86: =+Planleggingsmodell!$D$27/Planleggingsmodell!$D$25-Planleggingsmodell!$D$11/Planleggingsmodell!$D$25*C86 -> 1076632
C87: 740000 | D87: =IF($M$2="Ja",SjokkS*(Planleggingsmodell!$F$34+Planleggingsmodell!$H$34*((ArbeidTot-((((C87/SjokkK)^Planleggingsmodell!$J$33-Planleggingsmodell!$F$33)/Planleggingsmodell!$H$33)^(1/Planleggingsmodell!$J$33)))^Planleggingsmodell!$J$34))^(1/Planleggingsmodell!$J$34),-1000) -> -1000 | E87: =+SjokkS*(Planleggingsmodell!$F$34+Planleggingsmodell!$H$34*((ArbeidTot-((((C87/SjokkK-OljePenger/(SjokkK*PrisK))^Planleggingsmodell!$J$33-Planleggingsmodell!$F$33)/Planleggingsmodell!$H$33)^(1/Planleggingsmodell!$J$33)))^Planleggingsmodell!$J$34))^(1/Planleggingsmodell!$J$34) -> 3847323.518 | F87: =+((Planleggingsmodell!$C$32^Planleggingsmodell!$J$32-Planleggingsmodell!$F$32^(1-Planleggingsmodell!$J$32)*C87^Planleggingsmodell!$J$32)/(Planleggingsmodell!$H$32^(1-Planleggingsmodell!$J$32)))^(1/Planleggingsmodell!$J$32) -> 1371467.456 | G87: =+Planleggingsmodell!$C$27/Planleggingsmodell!$C$25-Planleggingsmodell!$D$11/Planleggingsmodell!$C$25*C87 -> 1066632 | H87: =+IF($M$3="Ja",($H$6-Planleggingsmodell!$D$11*Figur!C87)/Planleggingsmodell!$C$25,-1000) -> -1000 | I87: =IF($M$2="ja",Planleggingsmodell!$D$14*(Planleggingsmodell!$F$34+Planleggingsmodell!$H$34*((ArbeidTot-((((C87/Planleggingsmodell!$D$13)^Planleggingsmodell!$J$33-Planleggingsmodell!$F$33)/Planleggingsmodell!$H$33)^(1/Planleggingsmodell!$J$33)))^Planleggingsmodell!$J$34))^(1/Planleggingsmodell!$J$34),-1000) -> -1000 | J87: =Planleggingsmodell!$D$14*(Planleggingsmodell!$F$34+Planleggingsmodell!$H$34*((ArbeidTot-((((C87/Planleggingsmodell!$D$13-OljePengerOrg/(Planleggingsmodell!$D$13*PrisK))^Planleggingsmodell!$J$33-Planleggingsmodell!$F$33)/Planleggingsmodell!$H$33)^(1/Planleggingsmodell!$J$33)))^Planleggingsmodell!$J$34))^(1/Planleggingsmodell!$J$34) -> 3847323.518 | K87: =+((Planleggingsmodell!$D$32^Planleggingsmodell!$J$32-Planleggingsmodell!$F$32^(1-Planleggingsmodell!$J$32)*C87^Planleggingsmodell!$J$32)/(Planleggingsmodell!$H$32^(1-Planleggingsmodell!$J$32)))^(1/Planleggingsmodell!$J$32) -> 1371467.456 | L87: =+Planleggingsmodell!$D$27/Planleggingsmodell!$D$25-Planleggingsmodell!$D$11/Planleggingsmodell!$D$25*C87 -> 1066632
C88: 750000 | D88: =IF($M$2="Ja",SjokkS*(Planleggingsmodell!$F$34+Planleggingsmodell!$H$34*((ArbeidTot-((((C88/SjokkK)^Planleggingsmodell!$J$33-Planleggingsmodell!$F$33)/Planleggingsmodell!$H$33)^(1/Planleggingsmodell!$J$33)))^Planleggingsmodell!$J$34))^(1/Planleggingsmodell!$J$34),-1000) -> -1000 | E88: =+SjokkS*(Planleggingsmodell!$F$34+Planleggingsmodell!$H$34*((ArbeidTot-((((C88/SjokkK-OljePenger/(SjokkK*PrisK))^Planleggingsmodell!$J$33-Planleggingsmodell!$F$33)/Planleggingsmodell!$H$33)^(1/Planleggingsmodell!$J$33)))^Planleggingsmodell!$J$34))^(1/Planleggingsmodell!$J$34) -> 3623324.541 | F88: =+((Planleggingsmodell!$C$32^Planleggingsmodell!$J$32-Planleggingsmodell!$F$32^(1-Planleggingsmodell!$J$32)*C88^Planleggingsmodell!$J$32)/(Planleggingsmodell!$H$32^(1-Planleggingsmodell!$J$32)))^(1/Planleggingsmodell!$J$32) -> 1370337.053 | G88: =+Planleggingsmodell!$C$27/Planleggingsmodell!$C$25-Planleggingsmodell!$D$11/Planleggingsmodell!$C$25*C88 -> 1056632 | H88: =+IF($M$3="Ja",($H$6-Planleggingsmodell!$D$11*Figur!C88)/Planleggingsmodell!$C$25,-1000) -> -1000 | I88: =IF($M$2="ja",Planleggingsmodell!$D$14*(Planleggingsmodell!$F$34+Planleggingsmodell!$H$34*((ArbeidTot-((((C88/Planleggingsmodell!$D$13)^Planleggingsmodell!$J$33-Planleggingsmodell!$F$33)/Planleggingsmodell!$H$33)^(1/Planleggingsmodell!$J$33)))^Planleggingsmodell!$J$34))^(1/Planleggingsmodell!$J$34),-1000) -> -1000 | J88: =Planleggingsmodell!$D$14*(Planleggingsmodell!$F$34+Planleggingsmodell!$H$34*((ArbeidTot-((((C88/Planleggingsmodell!$D$13-OljePengerOrg/(Planleggingsmodell!$D$13*PrisK))^Planleggingsmodell!$J$33-Planleggingsmodell!$F$33)/Planleggingsmodell!$H$33)^(1/Planleggingsmodell!$J$33)))^Planleggingsmodell!$J$34))^(1/Planleggingsmodell!$J$34) -> 3623324.541 | K88: =+((Planleggingsmodell!$D$32^Planleggingsmodell!$J$32-Planleggingsmodell!$F$32^(1-Planleggingsmodell!$J$32)*C88^Planleggingsmodell!$J$32)/(Planleggingsmodell!$H$32^(1-Planleggingsmodell!$J$32)))^(1/Planleggingsmodell!$J$32) -> 1370337.053 | L88: =+Planleggingsmodell!$D$27/Planleggingsmodell!$D$25-Planleggingsmodell!$D$11/Planleggingsmodell!$D$25*C88 -> 1056632
C89: 760000 | D89: =IF($M$2="Ja",SjokkS*(Planleggingsmodell!$F$34+Planleggingsmodell!$H$34*((ArbeidTot-((((C89/SjokkK)^Planleggingsmodell!$J$33-Planleggingsmodell!$F$33)/Planleggingsmodell!$H$33)^(1/Planleggingsmodell!$J$33)))^Planleggingsmodell!$J$34))^(1/Planleggingsmodell!$J$34),-1000) -> -1000 | E89: =+SjokkS*(Planleggingsmodell!$F$34+Planleggingsmodell!$H$34*((ArbeidTot-((((C89/SjokkK-OljePenger/(SjokkK*PrisK))^Planleggingsmodell!$J$33-Planleggingsmodell!$F$33)/Planleggingsmodell!$H$33)^(1/Planleggingsmodell!$J$33)))^Planleggingsmodell!$J$34))^(1/Planleggingsmodell!$J$34) -> 3445800.04 | F89: =+((Planleggingsmodell!$C$32^Planleggingsmodell!$J$32-Planleggingsmodell!$F$32^(1-Planleggingsmodell!$J$32)*C89^Planleggingsmodell!$J$32)/(Planleggingsmodell!$H$32^(1-Planleggingsmodell!$J$32)))^(1/Planleggingsmodell!$J$32) -> 1369238.187 | G89: =+Planleggingsmodell!$C$27/Planleggingsmodell!$C$25-Planleggingsmodell!$D$11/Planleggingsmodell!$C$25*C89 -> 1046632 | H89: =+IF($M$3="Ja",($H$6-Planleggingsmodell!$D$11*Figur!C89)/Planleggingsmodell!$C$25,-1000) -> -1000 | I89: =IF($M$2="ja",Planleggingsmodell!$D$14*(Planleggingsmodell!$F$34+Planleggingsmodell!$H$34*((ArbeidTot-((((C89/Planleggingsmodell!$D$13)^Planleggingsmodell!$J$33-Planleggingsmodell!$F$33)/Planleggingsmodell!$H$33)^(1/Planleggingsmodell!$J$33)))^Planleggingsmodell!$J$34))^(1/Planleggingsmodell!$J$34),-1000) -> -1000 | J89: =Planleggingsmodell!$D$14*(Planleggingsmodell!$F$34+Planleggingsmodell!$H$34*((ArbeidTot-((((C89/Planleggingsmodell!$D$13-OljePengerOrg/(Planleggingsmodell!$D$13*PrisK))^Planleggingsmodell!$J$33-Planleggingsmodell!$F$33)/Planleggingsmodell!$H$33)^(1/Planleggingsmodell!$J$33)))^Planleggingsmodell!$J$34))^(1/Planleggingsmodell!$J$34) -> 3445800.04 | K89: =+((Planleggingsmodell!$D$32^Planleggingsmodell!$J$32-Planleggingsmodell!$F$32^(1-Planleggingsmodell!$J$32)*C89^Planleggingsmodell!$J$32)/(Planleggingsmodell!$H$32^(1-Planleggingsmodell!$J$32)))^(1/Planleggingsmodell!$J$32) -> 1369238.187 | L89: =+Planleggingsmodell!$D$27/Planleggingsmodell!$D$25-Planleggingsmodell!$D$11/Planleggingsmodell!$D$25*C89 -> 1046632
C90: 770000 | D90: =IF($M$2="Ja",SjokkS*(Planleggingsmodell!$F$34+Planleggingsmodell!$H$34*((ArbeidTot-((((C90/SjokkK)^Planleggingsmodell!$J$33-Planleggingsmodell!$F$33)/Planleggingsmodell!$H$33)^(1/Planleggingsmodell!$J$33)))^Planleggingsmodell!$J$34))^(1/Planleggingsmodell!$J$34),-1000) -> -1000 | E90: =+SjokkS*(Planleggingsmodell!$F$34+Planleggingsmodell!$H$34*((ArbeidTot-((((C90/SjokkK-OljePenger/(SjokkK*PrisK))^Planleggingsmodell!$J$33-Planleggingsmodell!$F$33)/Planleggingsmodell!$H$33)^(1/Planleggingsmodell!$J$33)))^Planleggingsmodell!$J$34))^(1/Planleggingsmodell!$J$34) -> 3301645.885 | F90: =+((Planleggingsmodell!$C$32^Planleggingsmodell!$J$32-Planleggingsmodell!$F$32^(1-Planleggingsmodell!$J$32)*C90^Planleggingsmodell!$J$32)/(Planleggingsmodell!$H$32^(1-Planleggingsmodell!$J$32)))^(1/Planleggingsmodell!$J$32) -> 1368169.556 | G90: =+Planleggingsmodell!$C$27/Planleggingsmodell!$C$25-Planleggingsmodell!$D$11/Planleggingsmodell!$C$25*C90 -> 1036632 | H90: =+IF($M$3="Ja",($H$6-Planleggingsmodell!$D$11*Figur!C90)/Planleggingsmodell!$C$25,-1000) -> -1000 | I90: =IF($M$2="ja",Planleggingsmodell!$D$14*(Planleggingsmodell!$F$34+Planleggingsmodell!$H$34*((ArbeidTot-((((C90/Planleggingsmodell!$D$13)^Planleggingsmodell!$J$33-Planleggingsmodell!$F$33)/Planleggingsmodell!$H$33)^(1/Planleggingsmodell!$J$33)))^Planleggingsmodell!$J$34))^(1/Planleggingsmodell!$J$34),-1000) -> -1000 | J90: =Planleggingsmodell!$D$14*(Planleggingsmodell!$F$34+Planleggingsmodell!$H$34*((ArbeidTot-((((C90/Planleggingsmodell!$D$13-OljePengerOrg/(Planleggingsmodell!$D$13*PrisK))^Planleggingsmodell!$J$33-Planleggingsmodell!$F$33)/Planleggingsmodell!$H$33)^(1/Planleggingsmodell!$J$33)))^Planleggingsmodell!$J$34))^(1/Planleggingsmodell!$J$34) -> 3301645.885 | K90: =+((Planleggingsmodell!$D$32^Planleggingsmodell!$J$32-Planleggingsmodell!$F$32^(1-Planleggingsmodell!$J$32)*C90^Planleggingsmodell!$J$32)/(Planleggingsmodell!$H$32^(1-Planleggingsmodell!$J$32)))^(1/Planleggingsmodell!$J$32) -> 1368169.556 | L90: =+Planleggingsmodell!$D$27/Planleggingsmodell!$D$25-Planleggingsmodell!$D$11/Planleggingsmodell!$D$25*C90 -> 1036632
C91: 780000 | D91: =IF($M$2="Ja",SjokkS*(Planleggingsmodell!$F$34+Planleggingsmodell!$H$34*((ArbeidTot-((((C91/SjokkK)^Planleggingsmodell!$J$33-Planleggingsmodell!$F$33)/Planleggingsmodell!$H$33)^(1/Planleggingsmodell!$J$33)))^Planleggingsmodell!$J$34))^(1/Planleggingsmodell!$J$34),-1000) -> -1000 | E91: =+SjokkS*(Planleggingsmodell!$F$34+Planleggingsmodell!$H$34*((ArbeidTot-((((C91/SjokkK-OljePenger/(SjokkK*PrisK))^Planleggingsmodell!$J$33-Planleggingsmodell!$F$33)/Planleggingsmodell!$H$33)^(1/Planleggingsmodell!$J$33)))^Planleggingsmodell!$J$34))^(1/Planleggingsmodell!$J$34) -> 3182261.218 | F91: =+((Planleggingsmodell!$C$32^Planleggingsmodell!$J$32-Planleggingsmodell!$F$32^(1-Planleggingsmodell!$J$32)*C91^Planleggingsmodell!$J$32)/(Planleggingsmodell!$H$32^(1-Planleggingsmodell!$J$32)))^(1/Planleggingsmodell!$J$32) -> 1367129.928 | G91: =+Planleggingsmodell!$C$27/Planleggingsmodell!$C$25-Planleggingsmodell!$D$11/Planleggingsmodell!$C$25*C91 -> 1026632 | H91: =+IF($M$3="Ja",($H$6-Planleggingsmodell!$D$11*Figur!C91)/Planleggingsmodell!$C$25,-1000) -> -1000 | I91: =IF($M$2="ja",Planleggingsmodell!$D$14*(Planleggingsmodell!$F$34+Planleggingsmodell!$H$34*((ArbeidTot-((((C91/Planleggingsmodell!$D$13)^Planleggingsmodell!$J$33-Planleggingsmodell!$F$33)/Planleggingsmodell!$H$33)^(1/Planleggingsmodell!$J$33)))^Planleggingsmodell!$J$34))^(1/Planleggingsmodell!$J$34),-1000) -> -1000 | J91: =Planleggingsmodell!$D$14*(Planleggingsmodell!$F$34+Planleggingsmodell!$H$34*((ArbeidTot-((((C91/Planleggingsmodell!$D$13-OljePengerOrg/(Planleggingsmodell!$D$13*PrisK))^Planleggingsmodell!$J$33-Planleggingsmodell!$F$33)/Planleggingsmodell!$H$33)^(1/Planleggingsmodell!$J$33)))^Planleggingsmodell!$J$34))^(1/Planleggingsmodell!$J$34) -> 3182261.218 | K91: =+((Planleggingsmodell!$D$32^Planleggingsmodell!$J$32-Planleggingsmodell!$F$32^(1-Planleggingsmodell!$J$32)*C91^Planleggingsmodell!$J$32)/(Planleggingsmodell!$H$32^(1-Planleggingsmodell!$J$32)))^(1/Planleggingsmodell!$J$32) -> 1367129.928 | L91: =+Planleggingsmodell!$D$27/Planleggingsmodell!$D$25-Planleggingsmodell!$D$11/Planleggingsmodell!$D$25*C91 -> 1026632
C92: 790000 | D92: =IF($M$2="Ja",SjokkS*(Planleggingsmodell!$F$34+Planleggingsmodell!$H$34*((ArbeidTot-((((C92/SjokkK)^Planleggingsmodell!$J$33-Planleggingsmodell!$F$33)/Planleggingsmodell!$H$33)^(1/Planleggingsmodell!$J$33)))^Planleggingsmodell!$J$34))^(1/Planleggingsmodell!$J$34),-1000) -> -1000 | E92: =+SjokkS*(Planleggingsmodell!$F$34+Planleggingsmodell!$H$34*((ArbeidTot-((((C92/SjokkK-OljePenger/(SjokkK*PrisK))^Planleggingsmodell!$J$33-Planleggingsmodell!$F$33)/Planleggingsmodell!$H$33)^(1/Planleggingsmodell!$J$33)))^Planleggingsmodell!$J$34))^(1/Planleggingsmodell!$J$34) -> 3081767.044 | F92: =+((Planleggingsmodell!$C$32^Planleggingsmodell!$J$32-Planleggingsmodell!$F$32^(1-Planleggingsmodell!$J$32)*C92^Planleggingsmodell!$J$32)/(Planleggingsmodell!$H$32^(1-Planleggingsmodell!$J$32)))^(1/Planleggingsmodell!$J$32) -> 1366118.14 | G92: =+Planleggingsmodell!$C$27/Planleggingsmodell!$C$25-Planleggingsmodell!$D$11/Planleggingsmodell!$C$25*C92 -> 1016632 | H92: =+IF($M$3="Ja",($H$6-Planleggingsmodell!$D$11*Figur!C92)/Planleggingsmodell!$C$25,-1000) -> -1000 | I92: =IF($M$2="ja",Planleggingsmodell!$D$14*(Planleggingsmodell!$F$34+Planleggingsmodell!$H$34*((ArbeidTot-((((C92/Planleggingsmodell!$D$13)^Planleggingsmodell!$J$33-Planleggingsmodell!$F$33)/Planleggingsmodell!$H$33)^(1/Planleggingsmodell!$J$33)))^Planleggingsmodell!$J$34))^(1/Planleggingsmodell!$J$34),-1000) -> -1000 | J92: =Planleggingsmodell!$D$14*(Planleggingsmodell!$F$34+Planleggingsmodell!$H$34*((ArbeidTot-((((C92/Planleggingsmodell!$D$13-OljePengerOrg/(Planleggingsmodell!$D$13*PrisK))^Planleggingsmodell!$J$33-Planleggingsmodell!$F$33)/Planleggingsmodell!$H$33)^(1/Planleggingsmodell!$J$33)))^Planleggingsmodell!$J$34))^(1/Planleggingsmodell!$J$34) -> 3081767.044 | K92: =+((Planleggingsmodell!$D$32^Planleggingsmodell!$J$32-Planleggingsmodell!$F$32^(1-Planleggingsmodell!$J$32)*C92^Planleggingsmodell!$J$32)/(Planleggingsmodell!$H$32^(1-Planleggingsmodell!$J$32)))^(1/Planleggingsmodell!$J$32) -> 1366118.14 | L92: =+Planleggingsmodell!$D$27/Planleggingsmodell!$D$25-Planleggingsmodell!$D$11/Planleggingsmodell!$D$25*C92 -> 1016632
C93: 800000 | D93: =IF($M$2="Ja",SjokkS*(Planleggingsmodell!$F$34+Planleggingsmodell!$H$34*((ArbeidTot-((((C93/SjokkK)^Planleggingsmodell!$J$33-Planleggingsmodell!$F$33)/Planleggingsmodell!$H$33)^(1/Planleggingsmodell!$J$33)))^Planleggingsmodell!$J$34))^(1/Planleggingsmodell!$J$34),-1000) -> -1000 | E93: =+SjokkS*(Planleggingsmodell!$F$34+Planleggingsmodell!$H$34*((ArbeidTot-((((C93/SjokkK-OljePenger/(SjokkK*PrisK))^Planleggingsmodell!$J$33-Planleggingsmodell!$F$33)/Planleggingsmodell!$H$33)^(1/Planleggingsmodell!$J$33)))^Planleggingsmodell!$J$34))^(1/Planleggingsmodell!$J$34) -> 2996008.458 | F93: =+((Planleggingsmodell!$C$32^Planleggingsmodell!$J$32-Planleggingsmodell!$F$32^(1-Planleggingsmodell!$J$32)*C93^Planleggingsmodell!$J$32)/(Planleggingsmodell!$H$32^(1-Planleggingsmodell!$J$32)))^(1/Planleggingsmodell!$J$32) -> 1365133.087 | G93: =+Planleggingsmodell!$C$27/Planleggingsmodell!$C$25-Planleggingsmodell!$D$11/Planleggingsmodell!$C$25*C93 -> 1006632 | H93: =+IF($M$3="Ja",($H$6-Planleggingsmodell!$D$11*Figur!C93)/Planleggingsmodell!$C$25,-1000) -> -1000 | I93: =IF($M$2="ja",Planleggingsmodell!$D$14*(Planleggingsmodell!$F$34+Planleggingsmodell!$H$34*((ArbeidTot-((((C93/Planleggingsmodell!$D$13)^Planleggingsmodell!$J$33-Planleggingsmodell!$F$33)/Planleggingsmodell!$H$33)^(1/Planleggingsmodell!$J$33)))^Planleggingsmodell!$J$34))^(1/Planleggingsmodell!$J$34),-1000) -> -1000 | J93: =Planleggingsmodell!$D$14*(Planleggingsmodell!$F$34+Planleggingsmodell!$H$34*((ArbeidTot-((((C93/Planleggingsmodell!$D$13-OljePengerOrg/(Planleggingsmodell!$D$13*PrisK))^Planleggingsmodell!$J$33-Planleggingsmodell!$F$33)/Planleggingsmodell!$H$33)^(1/Planleggingsmodell!$J$33)))^Planleggingsmodell!$J$34))^(1/Planleggingsmodell!$J$34) -> 2996008.458 | K93: =+((Planleggingsmodell!$D$32^Planleggingsmodell!$J$32-Planleggingsmodell!$F$32^(1-Planleggingsmodell!$J$32)*C93^Planleggingsmodell!$J$32)/(Planleggingsmodell!$H$32^(1-Planleggingsmodell!$J$32)))^(1/Planleggingsmodell!$J$32) -> 1365133.087 | L93: =+Planleggingsmodell!$D$27/Planleggingsmodell!$D$25-Planleggingsmodell!$D$11/Planleggingsmodell!$D$25*C93 -> 1006632
C94: 810000 | D94: =IF($M$2="Ja",SjokkS*(Planleggingsmodell!$F$34+Planleggingsmodell!$H$34*((ArbeidTot-((((C94/SjokkK)^Planleggingsmodell!$J$33-Planleggingsmodell!$F$33)/Planleggingsmodell!$H$33)^(1/Planleggingsmodell!$J$33)))^Planleggingsmodell!$J$34))^(1/Planleggingsmodell!$J$34),-1000) -> -1000 | E94: =+SjokkS*(Planleggingsmodell!$F$34+Planleggingsmodell!$H$34*((ArbeidTot-((((C94/SjokkK-OljePenger/(SjokkK*PrisK))^Planleggingsmodell!$J$33-Planleggingsmodell!$F$33)/Planleggingsmodell!$H$33)^(1/Planleggingsmodell!$J$33)))^Planleggingsmodell!$J$34))^(1/Planleggingsmodell!$J$34) -> 2921965.801 | F94: =+((Planleggingsmodell!$C$32^Planleggingsmodell!$J$32-Planleggingsmodell!$F$32^(1-Planleggingsmodell!$J$32)*C94^Planleggingsmodell!$J$32)/(Planleggingsmodell!$H$32^(1-Planleggingsmodell!$J$32)))^(1/Planleggingsmodell!$J$32) -> 1364173.724 | G94: =+Planleggingsmodell!$C$27/Planleggingsmodell!$C$25-Planleggingsmodell!$D$11/Planleggingsmodell!$C$25*C94 -> 996632 | H94: =+IF($M$3="Ja",($H$6-Planleggingsmodell!$D$11*Figur!C94)/Planleggingsmodell!$C$25,-1000) -> -1000 | I94: =IF($M$2="ja",Planleggingsmodell!$D$14*(Planleggingsmodell!$F$34+Planleggingsmodell!$H$34*((ArbeidTot-((((C94/Planleggingsmodell!$D$13)^Planleggingsmodell!$J$33-Planleggingsmodell!$F$33)/Planleggingsmodell!$H$33)^(1/Planleggingsmodell!$J$33)))^Planleggingsmodell!$J$34))^(1/Planleggingsmodell!$J$34),-1000) -> -1000 | J94: =Planleggingsmodell!$D$14*(Planleggingsmodell!$F$34+Planleggingsmodell!$H$34*((ArbeidTot-((((C94/Planleggingsmodell!$D$13-OljePengerOrg/(Planleggingsmodell!$D$13*PrisK))^Planleggingsmodell!$J$33-Planleggingsmodell!$F$33)/Planleggingsmodell!$H$33)^(1/Planleggingsmodell!$J$33)))^Planleggingsmodell!$J$34))^(1/Planleggingsmodell!$J$34) -> 2921965.801 | K94: =+((Planleggingsmodell!$D$32^Planleggingsmodell!$J$32-Planleggingsmodell!$F$32^(1-Planleggingsmodell!$J$32)*C94^Planleggingsmodell!$J$32)/(Planleggingsmodell!$H$32^(1-Planleggingsmodell!$J$32)))^(1/Planleggingsmodell!$J$32) -> 1364173.724 | L94: =+Planleggingsmodell!$D$27/Planleggingsmodell!$D$25-Planleggingsmodell!$D$11/Planleggingsmodell!$D$25*C94 -> 996632
C95: 820000 | D95: =IF($M$2="Ja",SjokkS*(Planleggingsmodell!$F$34+Planleggingsmodell!$H$34*((ArbeidTot-((((C95/SjokkK)^Planleggingsmodell!$J$33-Planleggingsmodell!$F$33)/Planleggingsmodell!$H$33)^(1/Planleggingsmodell!$J$33)))^Planleggingsmodell!$J$34))^(1/Planleggingsmodell!$J$34),-1000) -> -1000 | E95: =+SjokkS*(Planleggingsmodell!$F$34+Planleggingsmodell!$H$34*((ArbeidTot-((((C95/SjokkK-OljePenger/(SjokkK*PrisK))^Planleggingsmodell!$J$33-Planleggingsmodell!$F$33)/Planleggingsmodell!$H$33)^(1/Planleggingsmodell!$J$33)))^Planleggingsmodell!$J$34))^(1/Planleggingsmodell!$J$34) -> 2857391.723 | F95: =+((Planleggingsmodell!$C$32^Planleggingsmodell!$J$32-Planleggingsmodell!$F$32^(1-Planleggingsmodell!$J$32)*C95^Planleggingsmodell!$J$32)/(Planleggingsmodell!$H$32^(1-Planleggingsmodell!$J$32)))^(1/Planleggingsmodell!$J$32) -> 1363239.059 | G95: =+Planleggingsmodell!$C$27/Planleggingsmodell!$C$25-Planleggingsmodell!$D$11/Planleggingsmodell!$C$25*C95 -> 986632 | H95: =+IF($M$3="Ja",($H$6-Planleggingsmodell!$D$11*Figur!C95)/Planleggingsmodell!$C$25,-1000) -> -1000 | I95: =IF($M$2="ja",Planleggingsmodell!$D$14*(Planleggingsmodell!$F$34+Planleggingsmodell!$H$34*((ArbeidTot-((((C95/Planleggingsmodell!$D$13)^Planleggingsmodell!$J$33-Planleggingsmodell!$F$33)/Planleggingsmodell!$H$33)^(1/Planleggingsmodell!$J$33)))^Planleggingsmodell!$J$34))^(1/Planleggingsmodell!$J$34),-1000) -> -1000 | J95: =Planleggingsmodell!$D$14*(Planleggingsmodell!$F$34+Planleggingsmodell!$H$34*((ArbeidTot-((((C95/Planleggingsmodell!$D$13-OljePengerOrg/(Planleggingsmodell!$D$13*PrisK))^Planleggingsmodell!$J$33-Planleggingsmodell!$F$33)/Planleggingsmodell!$H$33)^(1/Planleggingsmodell!$J$33)))^Planleggingsmodell!$J$34))^(1/Planleggingsmodell!$J$34) -> 2857391.723 | K95: =+((Planleggingsmodell!$D$32^Planleggingsmodell!$J$32-Planleggingsmodell!$F$32^(1-Planleggingsmodell!$J$32)*C95^Planleggingsmodell!$J$32)/(Planleggingsmodell!$H$32^(1-Planleggingsmodell!$J$32)))^(1/Planleggingsmodell!$J$32) -> 1363239.059 | L95: =+Planleggingsmodell!$D$27/Planleggingsmodell!$D$25-Planleggingsmodell!$D$11/Planleggingsmodell!$D$25*C95 -> 986632
C96: 830000 | D96: =IF($M$2="Ja",SjokkS*(Planleggingsmodell!$F$34+Planleggingsmodell!$H$34*((ArbeidTot-((((C96/SjokkK)^Planleggingsmodell!$J$33-Planleggingsmodell!$F$33)/Planleggingsmodell!$H$33)^(1/Planleggingsmodell!$J$33)))^Planleggingsmodell!$J$34))^(1/Planleggingsmodell!$J$34),-1000) -> -1000 | E96: =+SjokkS*(Planleggingsmodell!$F$34+Planleggingsmodell!$H$34*((ArbeidTot-((((C96/SjokkK-OljePenger/(SjokkK*PrisK))^Planleggingsmodell!$J$33-Planleggingsmodell!$F$33)/Planleggingsmodell!$H$33)^(1/Planleggingsmodell!$J$33)))^Planleggingsmodell!$J$34))^(1/Planleggingsmodell!$J$34) -> 2800579.112 | F96: =+((Planleggingsmodell!$C$32^Planleggingsmodell!$J$32-Planleggingsmodell!$F$32^(1-Planleggingsmodell!$J$32)*C96^Planleggingsmodell!$J$32)/(Planleggingsmodell!$H$32^(1-Planleggingsmodell!$J$32)))^(1/Planleggingsmodell!$J$32) -> 1362328.15 | G96: =+Planleggingsmodell!$C$27/Planleggingsmodell!$C$25-Planleggingsmodell!$D$11/Planleggingsmodell!$C$25*C96 -> 976632 | H96: =+IF($M$3="Ja",($H$6-Planleggingsmodell!$D$11*Figur!C96)/Planleggingsmodell!$C$25,-1000) -> -1000 | I96: =IF($M$2="ja",Planleggingsmodell!$D$14*(Planleggingsmodell!$F$34+Planleggingsmodell!$H$34*((ArbeidTot-((((C96/Planleggingsmodell!$D$13)^Planleggingsmodell!$J$33-Planleggingsmodell!$F$33)/Planleggingsmodell!$H$33)^(1/Planleggingsmodell!$J$33)))^Planleggingsmodell!$J$34))^(1/Planleggingsmodell!$J$34),-1000) -> -1000 | J96: =Planleggingsmodell!$D$14*(Planleggingsmodell!$F$34+Planleggingsmodell!$H$34*((ArbeidTot-((((C96/Planleggingsmodell!$D$13-OljePengerOrg/(Planleggingsmodell!$D$13*PrisK))^Planleggingsmodell!$J$33-Planleggingsmodell!$F$33)/Planleggingsmodell!$H$33)^(1/Planleggingsmodell!$J$33)))^Planleggingsmodell!$J$34))^(1/Planleggingsmodell!$J$34) -> 2800579.112 | K96: =+((Planleggingsmodell!$D$32^Planleggingsmodell!$J$32-Planleggingsmodell!$F$32^(1-Planleggingsmodell!$J$32)*C96^Planleggingsmodell!$J$32)/(Planleggingsmodell!$H$32^(1-Planleggingsmodell!$J$32)))^(1/Planleggingsmodell!$J$32) -> 1362328.15 | L96: =+Planleggingsmodell!$D$27/Planleggingsmodell!$D$25-Planleggingsmodell!$D$11/Planleggingsmodell!$D$25*C96 -> 976632
C97: 840000 | D97: =IF($M$2="Ja",SjokkS*(Planleggingsmodell!$F$34+Planleggingsmodell!$H$34*((ArbeidTot-((((C97/SjokkK)^Planleggingsmodell!$J$33-Planleggingsmodell!$F$33)/Planleggingsmodell!$H$33)^(1/Planleggingsmodell!$J$33)))^Planleggingsmodell!$J$34))^(1/Planleggingsmodell!$J$34),-1000) -> -1000 | E97: =+SjokkS*(Planleggingsmodell!$F$34+Planleggingsmodell!$H$34*((ArbeidTot-((((C97/SjokkK-OljePenger/(SjokkK*PrisK))^Planleggingsmodell!$J$33-Planleggingsmodell!$F$33)/Planleggingsmodell!$H$33)^(1/Planleggingsmodell!$J$33)))^Planleggingsmodell!$J$34))^(1/Planleggingsmodell!$J$34) -> 2750207.967 | F97: =+((Planleggingsmodell!$C$32^Planleggingsmodell!$J$32-Planleggingsmodell!$F$32^(1-Planleggingsmodell!$J$32)*C97^Planleggingsmodell!$J$32)/(Planleggingsmodell!$H$32^(1-Planleggingsmodell!$J$32)))^(1/Planleggingsmodell!$J$32) -> 1361440.103 | G97: =+Planleggingsmodell!$C$27/Planleggingsmodell!$C$25-Planleggingsmodell!$D$11/Planleggingsmodell!$C$25*C97 -> 966632 | H97: =+IF($M$3="Ja",($H$6-Planleggingsmodell!$D$11*Figur!C97)/Planleggingsmodell!$C$25,-1000) -> -1000 | I97: =IF($M$2="ja",Planleggingsmodell!$D$14*(Planleggingsmodell!$F$34+Planleggingsmodell!$H$34*((ArbeidTot-((((C97/Planleggingsmodell!$D$13)^Planleggingsmodell!$J$33-Planleggingsmodell!$F$33)/Planleggingsmodell!$H$33)^(1/Planleggingsmodell!$J$33)))^Planleggingsmodell!$J$34))^(1/Planleggingsmodell!$J$34),-1000) -> -1000 | J97: =Planleggingsmodell!$D$14*(Planleggingsmodell!$F$34+Planleggingsmodell!$H$34*((ArbeidTot-((((C97/Planleggingsmodell!$D$13-OljePengerOrg/(Planleggingsmodell!$D$13*PrisK))^Planleggingsmodell!$J$33-Planleggingsmodell!$F$33)/Planleggingsmodell!$H$33)^(1/Planleggingsmodell!$J$33)))^Planleggingsmodell!$J$34))^(1/Planleggingsmodell!$J$34) -> 2750207.967 | K97: =+((Planleggingsmodell!$D$32^Planleggingsmodell!$J$32-Planleggingsmodell!$F$32^(1-Planleggingsmodell!$J$32)*C97^Planleggingsmodell!$J$32)/(Planleggingsmodell!$H$32^(1-Planleggingsmodell!$J$32)))^(1/Planleggingsmodell!$J$32) -> 1361440.103 | L97: =+Planleggingsmodell!$D$27/Planleggingsmodell!$D$25-Planleggingsmodell!$D$11/Planleggingsmodell!$D$25*C97 -> 966632
C98: 850000 | D98: =IF($M$2="Ja",SjokkS*(Planleggingsmodell!$F$34+Planleggingsmodell!$H$34*((ArbeidTot-((((C98/SjokkK)^Planleggingsmodell!$J$33-Planleggingsmodell!$F$33)/Planleggingsmodell!$H$33)^(1/Planleggingsmodell!$J$33)))^Planleggingsmodell!$J$34))^(1/Planleggingsmodell!$J$34),-1000) -> -1000 | E98: =+SjokkS*(Planleggingsmodell!$F$34+Planleggingsmodell!$H$34*((ArbeidTot-((((C98/SjokkK-OljePenger/(SjokkK*PrisK))^Planleggingsmodell!$J$33-Planleggingsmodell!$F$33)/Planleggingsmodell!$H$33)^(1/Planleggingsmodell!$J$33)))^Planleggingsmodell!$J$34))^(1/Planleggingsmodell!$J$34) -> 2705241.551 | F98: =+((Planleggingsmodell!$C$32^Planleggingsmodell!$J$32-Planleggingsmodell!$F$32^(1-Planleggingsmodell!$J$32)*C98^Planleggingsmodell!$J$32)/(Planleggingsmodell!$H$32^(1-Planleggingsmodell!$J$32)))^(1/Planleggingsmodell!$J$32) -> 1360574.067 | G98: =+Planleggingsmodell!$C$27/Planleggingsmodell!$C$25-Planleggingsmodell!$D$11/Planleggingsmodell!$C$25*C98 -> 956632 | H98: =+IF($M$3="Ja",($H$6-Planleggingsmodell!$D$11*Figur!C98)/Planleggingsmodell!$C$25,-1000) -> -1000 | I98: =IF($M$2="ja",Planleggingsmodell!$D$14*(Planleggingsmodell!$F$34+Planleggingsmodell!$H$34*((ArbeidTot-((((C98/Planleggingsmodell!$D$13)^Planleggingsmodell!$J$33-Planleggingsmodell!$F$33)/Planleggingsmodell!$H$33)^(1/Planleggingsmodell!$J$33)))^Planleggingsmodell!$J$34))^(1/Planleggingsmodell!$J$34),-1000) -> -1000 | J98: =Planleggingsmodell!$D$14*(Planleggingsmodell!$F$34+Planleggingsmodell!$H$34*((ArbeidTot-((((C98/Planleggingsmodell!$D$13-OljePengerOrg/(Planleggingsmodell!$D$13*PrisK))^Planleggingsmodell!$J$33-Planleggingsmodell!$F$33)/Planleggingsmodell!$H$33)^(1/Planleggingsmodell!$J$33)))^Planleggingsmodell!$J$34))^(1/Planleggingsmodell!$J$34) -> 2705241.551 | K98: =+((Planleggingsmodell!$D$32^Planleggingsmodell!$J$32-Planleggingsmodell!$F$32^(1-Planleggingsmodell!$J$32)*C98^Planleggingsmodell!$J$32)/(Planleggingsmodell!$H$32^(1-Planleggingsmodell!$J$32)))^(1/Planleggingsmodell!$J$32) -> 1360574.067 | L98: =+Planleggingsmodell!$D$27/Planleggingsmodell!$D$25-Planleggingsmodell!$D$11/Planleggingsmodell!$D$25*C98 -> 956632
C99: 860000 | D99: =IF($M$2="Ja",SjokkS*(Planleggingsmodell!$F$34+Planleggingsmodell!$H$34*((ArbeidTot-((((C99/SjokkK)^Planleggingsmodell!$J$33-Planleggingsmodell!$F$33)/Planleggingsmodell!$H$33)^(1/Planleggingsmodell!$J$33)))^Planleggingsmodell!$J$34))^(1/Planleggingsmodell!$J$34),-1000) -> -1000 | E99: =+SjokkS*(Planleggingsmodell!$F$34+Planleggingsmodell!$H$34*((ArbeidTot-((((C99/SjokkK-OljePenger/(SjokkK*PrisK))^Planleggingsmodell!$J$33-Planleggingsmodell!$F$33)/Planleggingsmodell!$H$33)^(1/Planleggingsmodell!$J$33)))^Planleggingsmodell!$J$34))^(1/Planleggingsmodell!$J$34) -> 2664854.279 | F99: =+((Planleggingsmodell!$C$32^Planleggingsmodell!$J$32-Planleggingsmodell!$F$32^(1-Planleggingsmodell!$J$32)*C99^Planleggingsmodell!$J$32)/(Planleggingsmodell!$H$32^(1-Planleggingsmodell!$J$32)))^(1/Planleggingsmodell!$J$32) -> 1359729.235 | G99: =+Planleggingsmodell!$C$27/Planleggingsmodell!$C$25-Planleggingsmodell!$D$11/Planleggingsmodell!$C$25*C99 -> 946632 | H99: =+IF($M$3="Ja",($H$6-Planleggingsmodell!$D$11*Figur!C99)/Planleggingsmodell!$C$25,-1000) -> -1000 | I99: =IF($M$2="ja",Planleggingsmodell!$D$14*(Planleggingsmodell!$F$34+Planleggingsmodell!$H$34*((ArbeidTot-((((C99/Planleggingsmodell!$D$13)^Planleggingsmodell!$J$33-Planleggingsmodell!$F$33)/Planleggingsmodell!$H$33)^(1/Planleggingsmodell!$J$33)))^Planleggingsmodell!$J$34))^(1/Planleggingsmodell!$J$34),-1000) -> -1000 | J99: =Planleggingsmodell!$D$14*(Planleggingsmodell!$F$34+Planleggingsmodell!$H$34*((ArbeidTot-((((C99/Planleggingsmodell!$D$13-OljePengerOrg/(Planleggingsmodell!$D$13*PrisK))^Planleggingsmodell!$J$33-Planleggingsmodell!$F$33)/Planleggingsmodell!$H$33)^(1/Planleggingsmodell!$J$33)))^Planleggingsmodell!$J$34))^(1/Planleggingsmodell!$J$34) -> 2664854.279 | K99: =+((Planleggingsmodell!$D$32^Planleggingsmodell!$J$32-Planleggingsmodell!$F$32^(1-Planleggingsmodell!$J$32)*C99^Planleggingsmodell!$J$32)/(Planleggingsmodell!$H$32^(1-Planleggingsmodell!$J$32)))^(1/Planleggingsmodell!$J$32) -> 1359729.235 | L99: =+Planleggingsmodell!$D$27/Planleggingsmodell!$D$25-Planleggingsmodell!$D$11/Planleggingsmodell!$D$25*C99 -> 946632
C100: 870000 | D100: =IF($M$2="Ja",SjokkS*(Planleggingsmodell!$F$34+Planleggingsmodell!$H$34*((ArbeidTot-((((C100/SjokkK)^Planleggingsmodell!$J$33-Planleggingsmodell!$F$33)/Planleggingsmodell!$H$33)^(1/Planleggingsmodell!$J$33)))^Planleggingsmodell!$J$34))^(1/Planleggingsmodell!$J$34),-1000) -> -1000 | E100: =+SjokkS*(Planleggingsmodell!$F$34+Planleggingsmodell!$H$34*((ArbeidTot-((((C100/SjokkK-OljePenger/(SjokkK*PrisK))^Planleggingsmodell!$J$33-Planleggingsmodell!$F$33)/Planleggingsmodell!$H$33)^(1/Planleggingsmodell!$J$33)))^Planleggingsmodell!$J$34))^(1/Planleggingsmodell!$J$34) -> 2628380.569 | F100: =+((Planleggingsmodell!$C$32^Planleggingsmodell!$J$32-Planleggingsmodell!$F$32^(1-Planleggingsmodell!$J$32)*C100^Planleggingsmodell!$J$32)/(Planleggingsmodell!$H$32^(1-Planleggingsmodell!$J$32)))^(1/Planleggingsmodell!$J$32) -> 1358904.836 | G100: =+Planleggingsmodell!$C$27/Planleggingsmodell!$C$25-Planleggingsmodell!$D$11/Planleggingsmodell!$C$25*C100 -> 936632 | H100: =+IF($M$3="Ja",($H$6-Planleggingsmodell!$D$11*Figur!C100)/Planleggingsmodell!$C$25,-1000) -> -1000 | I100: =IF($M$2="ja",Planleggingsmodell!$D$14*(Planleggingsmodell!$F$34+Planleggingsmodell!$H$34*((ArbeidTot-((((C100/Planleggingsmodell!$D$13)^Planleggingsmodell!$J$33-Planleggingsmodell!$F$33)/Planleggingsmodell!$H$33)^(1/Planleggingsmodell!$J$33)))^Planleggingsmodell!$J$34))^(1/Planleggingsmodell!$J$34),-1000) -> -1000 | J100: =Planleggingsmodell!$D$14*(Planleggingsmodell!$F$34+Planleggingsmodell!$H$34*((ArbeidTot-((((C100/Planleggingsmodell!$D$13-OljePengerOrg/(Planleggingsmodell!$D$13*PrisK))^Planleggingsmodell!$J$33-Planleggingsmodell!$F$33)/Planleggingsmodell!$H$33)^(1/Planleggingsmodell!$J$33)))^Planleggingsmodell!$J$34))^(1/Planleggingsmodell!$J$34) -> 2628380.569 | K100: =+((Planleggingsmodell!$D$32^Planleggingsmodell!$J$32-Planleggingsmodell!$F$32^(1-Planleggingsmodell!$J$32)*C100^Planleggingsmodell!$J$32)/(Planleggingsmodell!$H$32^(1-Planleggingsmodell!$J$32)))^(1/Planleggingsmodell!$J$32) -> 1358904.836 | L100: =+Planleggingsmodell!$D$27/Planleggingsmodell!$D$25-Planleggingsmodell!$D$11/Planleggingsmodell!$D$25*C100 -> 936632
C101: 880000 | D101: =IF($M$2="Ja",SjokkS*(Planleggingsmodell!$F$34+Planleggingsmodell!$H$34*((ArbeidTot-((((C101/SjokkK)^Planleggingsmodell!$J$33-Planleggingsmodell!$F$33)/Planleggingsmodell!$H$33)^(1/Planleggingsmodell!$J$33)))^Planleggingsmodell!$J$34))^(1/Planleggingsmodell!$J$34),-1000) -> -1000 | E101: =+SjokkS*(Planleggingsmodell!$F$34+Planleggingsmodell!$H$34*((ArbeidTot-((((C101/SjokkK-OljePenger/(SjokkK*PrisK))^Planleggingsmodell!$J$33-Planleggingsmodell!$F$33)/Planleggingsmodell!$H$33)^(1/Planleggingsmodell!$J$33)))^Planleggingsmodell!$J$34))^(1/Planleggingsmodell!$J$34) -> 2595277.864 | F101: =+((Planleggingsmodell!$C$32^Planleggingsmodell!$J$32-Planleggingsmodell!$F$32^(1-Planleggingsmodell!$J$32)*C101^Planleggingsmodell!$J$32)/(Planleggingsmodell!$H$32^(1-Planleggingsmodell!$J$32)))^(1/Planleggingsmodell!$J$32) -> 1358100.14 | G101: =+Planleggingsmodell!$C$27/Planleggingsmodell!$C$25-Planleggingsmodell!$D$11/Planleggingsmodell!$C$25*C101 -> 926632 | H101: =+IF($M$3="Ja",($H$6-Planleggingsmodell!$D$11*Figur!C101)/Planleggingsmodell!$C$25,-1000) -> -1000 | I101: =IF($M$2="ja",Planleggingsmodell!$D$14*(Planleggingsmodell!$F$34+Planleggingsmodell!$H$34*((ArbeidTot-((((C101/Planleggingsmodell!$D$13)^Planleggingsmodell!$J$33-Planleggingsmodell!$F$33)/Planleggingsmodell!$H$33)^(1/Planleggingsmodell!$J$33)))^Planleggingsmodell!$J$34))^(1/Planleggingsmodell!$J$34),-1000) -> -1000 | J101: =Planleggingsmodell!$D$14*(Planleggingsmodell!$F$34+Planleggingsmodell!$H$34*((ArbeidTot-((((C101/Planleggingsmodell!$D$13-OljePengerOrg/(Planleggingsmodell!$D$13*PrisK))^Planleggingsmodell!$J$33-Planleggingsmodell!$F$33)/Planleggingsmodell!$H$33)^(1/Planleggingsmodell!$J$33)))^Planleggingsmodell!$J$34))^(1/Planleggingsmodell!$J$34) -> 2595277.864 | K101: =+((Planleggingsmodell!$D$32^Planleggingsmodell!$J$32-Planleggingsmodell!$F$32^(1-Planleggingsmodell!$J$32)*C101^Planleggingsmodell!$J$32)/(Planleggingsmodell!$H$32^(1-Planleggingsmodell!$J$32)))^(1/Planleggingsmodell!$J$32) -> 1358100.14 | L101: =+Planleggingsmodell!$D$27/Planleggingsmodell!$D$25-Planleggingsmodell!$D$11/Planleggingsmodell!$D$25*C101 -> 926632
C102: 890000 | D102: =IF($M$2="Ja",SjokkS*(Planleggingsmodell!$F$34+Planleggingsmodell!$H$34*((ArbeidTot-((((C102/SjokkK)^Planleggingsmodell!$J$33-Planleggingsmodell!$F$33)/Planleggingsmodell!$H$33)^(1/Planleggingsmodell!$J$33)))^Planleggingsmodell!$J$34))^(1/Planleggingsmodell!$J$34),-1000) -> -1000 | E102: =+SjokkS*(Planleggingsmodell!$F$34+Planleggingsmodell!$H$34*((ArbeidTot-((((C102/SjokkK-OljePenger/(SjokkK*PrisK))^Planleggingsmodell!$J$33-Planleggingsmodell!$F$33)/Planleggingsmodell!$H$33)^(1/Planleggingsmodell!$J$33)))^Planleggingsmodell!$J$34))^(1/Planleggingsmodell!$J$34) -> 2565099.472 | F102: =+((Planleggingsmodell!$C$32^Planleggingsmodell!$J$32-Planleggingsmodell!$F$32^(1-Planleggingsmodell!$J$32)*C102^Planleggingsmodell!$J$32)/(Planleggingsmodell!$H$32^(1-Planleggingsmodell!$J$32)))^(1/Planleggingsmodell!$J$32) -> 1357314.447 | G102: =+Planleggingsmodell!$C$27/Planleggingsmodell!$C$25-Planleggingsmodell!$D$11/Planleggingsmodell!$C$25*C102 -> 916632 | H102: =+IF($M$3="Ja",($H$6-Planleggingsmodell!$D$11*Figur!C102)/Planleggingsmodell!$C$25,-1000) -> -1000 | I102: =IF($M$2="ja",Planleggingsmodell!$D$14*(Planleggingsmodell!$F$34+Planleggingsmodell!$H$34*((ArbeidTot-((((C102/Planleggingsmodell!$D$13)^Planleggingsmodell!$J$33-Planleggingsmodell!$F$33)/Planleggingsmodell!$H$33)^(1/Planleggingsmodell!$J$33)))^Planleggingsmodell!$J$34))^(1/Planleggingsmodell!$J$34),-1000) -> -1000 | J102: =Planleggingsmodell!$D$14*(Planleggingsmodell!$F$34+Planleggingsmodell!$H$34*((ArbeidTot-((((C102/Planleggingsmodell!$D$13-OljePengerOrg/(Planleggingsmodell!$D$13*PrisK))^Planleggingsmodell!$J$33-Planleggingsmodell!$F$33)/Planleggingsmodell!$H$33)^(1/Planleggingsmodell!$J$33)))^Planleggingsmodell!$J$34))^(1/Planleggingsmodell!$J$34) -> 2565099.472 | K102: =+((Planleggingsmodell!$D$32^Planleggingsmodell!$J$32-Planleggingsmodell!$F$32^(1-Planleggingsmodell!$J$32)*C102^Planleggingsmodell!$J$32)/(Planleggingsmodell!$H$32^(1-Planleggingsmodell!$J$32)))^(1/Planleggingsmodell!$J$32) -> 1357314.447 | L102: =+Planleggingsmodell!$D$27/Planleggingsmodell!$D$25-Planleggingsmodell!$D$11/Planleggingsmodell!$D$25*C102 -> 916632
C103: 900000 | D103: =IF($M$2="Ja",SjokkS*(Planleggingsmodell!$F$34+Planleggingsmodell!$H$34*((ArbeidTot-((((C103/SjokkK)^Planleggingsmodell!$J$33-Planleggingsmodell!$F$33)/Planleggingsmodell!$H$33)^(1/Planleggingsmodell!$J$33)))^Planleggingsmodell!$J$34))^(1/Planleggingsmodell!$J$34),-1000) -> -1000 | E103: =+SjokkS*(Planleggingsmodell!$F$34+Planleggingsmodell!$H$34*((ArbeidTot-((((C103/SjokkK-OljePenger/(SjokkK*PrisK))^Planleggingsmodell!$J$33-Planleggingsmodell!$F$33)/Planleggingsmodell!$H$33)^(1/Planleggingsmodell!$J$33)))^Planleggingsmodell!$J$34))^(1/Planleggingsmodell!$J$34) -> 2537474.28 | F103: =+((Planleggingsmodell!$C$32^Planleggingsmodell!$J$32-Planleggingsmodell!$F$32^(1-Planleggingsmodell!$J$32)*C103^Planleggingsmodell!$J$32)/(Planleggingsmodell!$H$32^(1-Planleggingsmodell!$J$32)))^(1/Planleggingsmodell!$J$32) -> 1356547.092 | G103: =+Planleggingsmodell!$C$27/Planleggingsmodell!$C$25-Planleggingsmodell!$D$11/Planleggingsmodell!$C$25*C103 -> 906632 | H103: =+IF($M$3="Ja",($H$6-Planleggingsmodell!$D$11*Figur!C103)/Planleggingsmodell!$C$25,-1000) -> -1000 | I103: =IF($M$2="ja",Planleggingsmodell!$D$14*(Planleggingsmodell!$F$34+Planleggingsmodell!$H$34*((ArbeidTot-((((C103/Planleggingsmodell!$D$13)^Planleggingsmodell!$J$33-Planleggingsmodell!$F$33)/Planleggingsmodell!$H$33)^(1/Planleggingsmodell!$J$33)))^Planleggingsmodell!$J$34))^(1/Planleggingsmodell!$J$34),-1000) -> -1000 | J103: =Planleggingsmodell!$D$14*(Planleggingsmodell!$F$34+Planleggingsmodell!$H$34*((ArbeidTot-((((C103/Planleggingsmodell!$D$13-OljePengerOrg/(Planleggingsmodell!$D$13*PrisK))^Planleggingsmodell!$J$33-Planleggingsmodell!$F$33)/Planleggingsmodell!$H$33)^(1/Planleggingsmodell!$J$33)))^Planleggingsmodell!$J$34))^(1/Planleggingsmodell!$J$34) -> 2537474.28 | K103: =+((Planleggingsmodell!$D$32^Planleggingsmodell!$J$32-Planleggingsmodell!$F$32^(1-Planleggingsmodell!$J$32)*C103^Planleggingsmodell!$J$32)/(Planleggingsmodell!$H$32^(1-Planleggingsmodell!$J$32)))^(1/Planleggingsmodell!$J$32) -> 1356547.092 | L103: =+Planleggingsmodell!$D$27/Planleggingsmodell!$D$25-Planleggingsmodell!$D$11/Planleggingsmodell!$D$25*C103 -> 906632
C104: 910000 | D104: =IF($M$2="Ja",SjokkS*(Planleggingsmodell!$F$34+Planleggingsmodell!$H$34*((ArbeidTot-((((C104/SjokkK)^Planleggingsmodell!$J$33-Planleggingsmodell!$F$33)/Planleggingsmodell!$H$33)^(1/Planleggingsmodell!$J$33)))^Planleggingsmodell!$J$34))^(1/Planleggingsmodell!$J$34),-1000) -> -1000 | E104: =+SjokkS*(Planleggingsmodell!$F$34+Planleggingsmodell!$H$34*((ArbeidTot-((((C104/SjokkK-OljePenger/(SjokkK*PrisK))^Planleggingsmodell!$J$33-Planleggingsmodell!$F$33)/Planleggingsmodell!$H$33)^(1/Planleggingsmodell!$J$33)))^Planleggingsmodell!$J$34))^(1/Planleggingsmodell!$J$34) -> 2512091.424 | F104: =+((Planleggingsmodell!$C$32^Planleggingsmodell!$J$32-Planleggingsmodell!$F$32^(1-Planleggingsmodell!$J$32)*C104^Planleggingsmodell!$J$32)/(Planleggingsmodell!$H$32^(1-Planleggingsmodell!$J$32)))^(1/Planleggingsmodell!$J$32) -> 1355797.441 | G104: =+Planleggingsmodell!$C$27/Planleggingsmodell!$C$25-Planleggingsmodell!$D$11/Planleggingsmodell!$C$25*C104 -> 896632 | H104: =+IF($M$3="Ja",($H$6-Planleggingsmodell!$D$11*Figur!C104)/Planleggingsmodell!$C$25,-1000) -> -1000 | I104: =IF($M$2="ja",Planleggingsmodell!$D$14*(Planleggingsmodell!$F$34+Planleggingsmodell!$H$34*((ArbeidTot-((((C104/Planleggingsmodell!$D$13)^Planleggingsmodell!$J$33-Planleggingsmodell!$F$33)/Planleggingsmodell!$H$33)^(1/Planleggingsmodell!$J$33)))^Planleggingsmodell!$J$34))^(1/Planleggingsmodell!$J$34),-1000) -> -1000 | J104: =Planleggingsmodell!$D$14*(Planleggingsmodell!$F$34+Planleggingsmodell!$H$34*((ArbeidTot-((((C104/Planleggingsmodell!$D$13-OljePengerOrg/(Planleggingsmodell!$D$13*PrisK))^Planleggingsmodell!$J$33-Planleggingsmodell!$F$33)/Planleggingsmodell!$H$33)^(1/Planleggingsmodell!$J$33)))^Planleggingsmodell!$J$34))^(1/Planleggingsmodell!$J$34) -> 2512091.424 | K104: =+((Planleggingsmodell!$D$32^Planleggingsmodell!$J$32-Planleggingsmodell!$F$32^(1-Planleggingsmodell!$J$32)*C104^Planleggingsmodell!$J$32)/(Planleggingsmodell!$H$32^(1-Planleggingsmodell!$J$32)))^(1/Planleggingsmodell!$J$32) -> 1355797.441 | L104: =+Planleggingsmodell!$D$27/Planleggingsmodell!$D$25-Planleggingsmodell!$D$11/Planleggingsmodell!$D$25*C104 -> 896632
C105: 920000 | D105: =IF($M$2="Ja",SjokkS*(Planleggingsmodell!$F$34+Planleggingsmodell!$H$34*((ArbeidTot-((((C105/SjokkK)^Planleggingsmodell!$J$33-Planleggingsmodell!$F$33)/Planleggingsmodell!$H$33)^(1/Planleggingsmodell!$J$33)))^Planleggingsmodell!$J$34))^(1/Planleggingsmodell!$J$34),-1000) -> -1000 | E105: =+SjokkS*(Planleggingsmodell!$F$34+Planleggingsmodell!$H$34*((ArbeidTot-((((C105/SjokkK-OljePenger/(SjokkK*PrisK))^Planleggingsmodell!$J$33-Planleggingsmodell!$F$33)/Planleggingsmodell!$H$33)^(1/Planleggingsmodell!$J$33)))^Planleggingsmodell!$J$34))^(1/Planleggingsmodell!$J$34) -> 2488688.536 | F105: =+((Planleggingsmodell!$C$32^Planleggingsmodell!$J$32-Planleggingsmodell!$F$32^(1-Planleggingsmodell!$J$32)*C105^Planleggingsmodell!$J$32)/(Planleggingsmodell!$H$32^(1-Planleggingsmodell!$J$32)))^(1/Planleggingsmodell!$J$32) -> 1355064.888 | G105: =+Planleggingsmodell!$C$27/Planleggingsmodell!$C$25-Planleggingsmodell!$D$11/Planleggingsmodell!$C$25*C105 -> 886632 | H105: =+IF($M$3="Ja",($H$6-Planleggingsmodell!$D$11*Figur!C105)/Planleggingsmodell!$C$25,-1000) -> -1000 | I105: =IF($M$2="ja",Planleggingsmodell!$D$14*(Planleggingsmodell!$F$34+Planleggingsmodell!$H$34*((ArbeidTot-((((C105/Planleggingsmodell!$D$13)^Planleggingsmodell!$J$33-Planleggingsmodell!$F$33)/Planleggingsmodell!$H$33)^(1/Planleggingsmodell!$J$33)))^Planleggingsmodell!$J$34))^(1/Planleggingsmodell!$J$34),-1000) -> -1000 | J105: =Planleggingsmodell!$D$14*(Planleggingsmodell!$F$34+Planleggingsmodell!$H$34*((ArbeidTot-((((C105/Planleggingsmodell!$D$13-OljePengerOrg/(Planleggingsmodell!$D$13*PrisK))^Planleggingsmodell!$J$33-Planleggingsmodell!$F$33)/Planleggingsmodell!$H$33)^(1/Planleggingsmodell!$J$33)))^Planleggingsmodell!$J$34))^(1/Planleggingsmodell!$J$34) -> 2488688.536 | K105: =+((Planleggingsmodell!$D$32^Planleggingsmodell!$J$32-Planleggingsmodell!$F$32^(1-Planleggingsmodell!$J$32)*C105^Planleggingsmodell!$J$32)/(Planleggingsmodell!$H$32^(1-Planleggingsmodell!$J$32)))^(1/Planleggingsmodell!$J$32) -> 1355064.888 | L105: =+Planleggingsmodell!$D$27/Planleggingsmodell!$D$25-Planleggingsmodell!$D$11/Planleggingsmodell!$D$25*C105 -> 886632
C106: 930000 | D106: =IF($M$2="Ja",SjokkS*(Planleggingsmodell!$F$34+Planleggingsmodell!$H$34*((ArbeidTot-((((C106/SjokkK)^Planleggingsmodell!$J$33-Planleggingsmodell!$F$33)/Planleggingsmodell!$H$33)^(1/Planleggingsmodell!$J$33)))^Planleggingsmodell!$J$34))^(1/Planleggingsmodell!$J$34),-1000) -> -1000 | E106: =+SjokkS*(Planleggingsmodell!$F$34+Planleggingsmodell!$H$34*((ArbeidTot-((((C106/SjokkK-OljePenger/(SjokkK*PrisK))^Planleggingsmodell!$J$33-Planleggingsmodell!$F$33)/Planleggingsmodell!$H$33)^(1/Planleggingsmodell!$J$33)))^Planleggingsmodell!$J$34))^(1/Planleggingsmodell!$J$34) -> 2467042.645 | F106: =+((Planleggingsmodell!$C$32^Planleggingsmodell!$J$32-Planleggingsmodell!$F$32^(1-Planleggingsmodell!$J$32)*C106^Planleggingsmodell!$J$32)/(Planleggingsmodell!$H$32^(1-Planleggingsmodell!$J$32)))^(1/Planleggingsmodell!$J$32) -> 1354348.855 | G106: =+Planleggingsmodell!$C$27/Planleggingsmodell!$C$25-Planleggingsmodell!$D$11/Planleggingsmodell!$C$25*C106 -> 876632 | H106: =+IF($M$3="Ja",($H$6-Planleggingsmodell!$D$11*Figur!C106)/Planleggingsmodell!$C$25,-1000) -> -1000 | I106: =IF($M$2="ja",Planleggingsmodell!$D$14*(Planleggingsmodell!$F$34+Planleggingsmodell!$H$34*((ArbeidTot-((((C106/Planleggingsmodell!$D$13)^Planleggingsmodell!$J$33-Planleggingsmodell!$F$33)/Planleggingsmodell!$H$33)^(1/Planleggingsmodell!$J$33)))^Planleggingsmodell!$J$34))^(1/Planleggingsmodell!$J$34),-1000) -> -1000 | J106: =Planleggingsmodell!$D$14*(Planleggingsmodell!$F$34+Planleggingsmodell!$H$34*((ArbeidTot-((((C106/Planleggingsmodell!$D$13-OljePengerOrg/(Planleggingsmodell!$D$13*PrisK))^Planleggingsmodell!$J$33-Planleggingsmodell!$F$33)/Planleggingsmodell!$H$33)^(1/Planleggingsmodell!$J$33)))^Planleggingsmodell!$J$34))^(1/Planleggingsmodell!$J$34) -> 2467042.645 | K106: =+((Planleggingsmodell!$D$32^Planleggingsmodell!$J$32-Planleggingsmodell!$F$32^(1-Planleggingsmodell!$J$32)*C106^Planleggingsmodell!$J$32)/(Planleggingsmodell!$H$32^(1-Planleggingsmodell!$J$32)))^(1/Planleggingsmodell!$J$32) -> 1354348.855 | L106: =+Planleggingsmodell!$D$27/Planleggingsmodell!$D$25-Planleggingsmodell!$D$11/Planleggingsmodell!$D$25*C106 -> 876632
A107: =IF(A108="","",IF(IFERROR(D107*E107*F107*I107*J107*K107,1)=1,ROW(),"")) ->  | C107: 940000 | D107: =IF($M$2="Ja",SjokkS*(Planleggingsmodell!$F$34+Planleggingsmodell!$H$34*((ArbeidTot-((((C107/SjokkK)^Planleggingsmodell!$J$33-Planleggingsmodell!$F$33)/Planleggingsmodell!$H$33)^(1/Planleggingsmodell!$J$33)))^Planleggingsmodell!$J$34))^(1/Planleggingsmodell!$J$34),-1000) -> -1000 | E107: =+SjokkS*(Planleggingsmodell!$F$34+Planleggingsmodell!$H$34*((ArbeidTot-((((C107/SjokkK-OljePenger/(SjokkK*PrisK))^Planleggingsmodell!$J$33-Planleggingsmodell!$F$33)/Planleggingsmodell!$H$33)^(1/Planleggingsmodell!$J$33)))^Planleggingsmodell!$J$34))^(1/Planleggingsmodell!$J$34) -> 2446963.046 | F107: =+((Planleggingsmodell!$C$32^Planleggingsmodell!$J$32-Planleggingsmodell!$F$32^(1-Planleggingsmodell!$J$32)*C107^Planleggingsmodell!$J$32)/(Planleggingsmodell!$H$32^(1-Planleggingsmodell!$J$32)))^(1/Planleggingsmodell!$J$32) -> 1353648.789 | G107: =+Planleggingsmodell!$C$27/Planleggingsmodell!$C$25-Planleggingsmodell!$D$11/Planleggingsmodell!$C$25*C107 -> 866632 | H107: =+IF($M$3="Ja",($H$6-Planleggingsmodell!$D$11*Figur!C107)/Planleggingsmodell!$C$25,-1000) -> -1000 | I107: =IF($M$2="ja",Planleggingsmodell!$D$14*(Planleggingsmodell!$F$34+Planleggingsmodell!$H$34*((ArbeidTot-((((C107/Planleggingsmodell!$D$13)^Planleggingsmodell!$J$33-Planleggingsmodell!$F$33)/Planleggingsmodell!$H$33)^(1/Planleggingsmodell!$J$33)))^Planleggingsmodell!$J$34))^(1/Planleggingsmodell!$J$34),-1000) -> -1000 | J107: =Planleggingsmodell!$D$14*(Planleggingsmodell!$F$34+Planleggingsmodell!$H$34*((ArbeidTot-((((C107/Planleggingsmodell!$D$13-OljePengerOrg/(Planleggingsmodell!$D$13*PrisK))^Planleggingsmodell!$J$33-Planleggingsmodell!$F$33)/Planleggingsmodell!$H$33)^(1/Planleggingsmodell!$J$33)))^Planleggingsmodell!$J$34))^(1/Planleggingsmodell!$J$34) -> 2446963.046 | K107: =+((Planleggingsmodell!$D$32^Planleggingsmodell!$J$32-Planleggingsmodell!$F$32^(1-Planleggingsmodell!$J$32)*C107^Planleggingsmodell!$J$32)/(Planleggingsmodell!$H$32^(1-Planleggingsmodell!$J$32)))^(1/Planleggingsmodell!$J$32) -> 1353648.789 | L107: =+Planleggingsmodell!$D$27/Planleggingsmodell!$D$25-Planleggingsmodell!$D$11/Planleggingsmodell!$D$25*C107 -> 866632
C108: 950000 | D108: =IF($M$2="Ja",SjokkS*(Planleggingsmodell!$F$34+Planleggingsmodell!$H$34*((ArbeidTot-((((C108/SjokkK)^Planleggingsmodell!$J$33-Planleggingsmodell!$F$33)/Planleggingsmodell!$H$33)^(1/Planleggingsmodell!$J$33)))^Planleggingsmodell!$J$34))^(1/Planleggingsmodell!$J$34),-1000) -> -1000 | E108: =+SjokkS*(Planleggingsmodell!$F$34+Planleggingsmodell!$H$34*((ArbeidTot-((((C108/SjokkK-OljePenger/(SjokkK*PrisK))^Planleggingsmodell!$J$33-Planleggingsmodell!$F$33)/Planleggingsmodell!$H$33)^(1/Planleggingsmodell!$J$33)))^Planleggingsmodell!$J$34))^(1/Planleggingsmodell!$J$34) -> 2428285.671 | F108: =+((Planleggingsmodell!$C$32^Planleggingsmodell!$J$32-Planleggingsmodell!$F$32^(1-Planleggingsmodell!$J$32)*C108^Planleggingsmodell!$J$32)/(Planleggingsmodell!$H$32^(1-Planleggingsmodell!$J$32)))^(1/Planleggingsmodell!$J$32) -> 1352964.162 | G108: =+Planleggingsmodell!$C$27/Planleggingsmodell!$C$25-Planleggingsmodell!$D$11/Planleggingsmodell!$C$25*C108 -> 856632 | H108: =+IF($M$3="Ja",($H$6-Planleggingsmodell!$D$11*Figur!C108)/Planleggingsmodell!$C$25,-1000) -> -1000 | I108: =IF($M$2="ja",Planleggingsmodell!$D$14*(Planleggingsmodell!$F$34+Planleggingsmodell!$H$34*((ArbeidTot-((((C108/Planleggingsmodell!$D$13)^Planleggingsmodell!$J$33-Planleggingsmodell!$F$33)/Planleggingsmodell!$H$33)^(1/Planleggingsmodell!$J$33)))^Planleggingsmodell!$J$34))^(1/Planleggingsmodell!$J$34),-1000) -> -1000 | J108: =Planleggingsmodell!$D$14*(Planleggingsmodell!$F$34+Planleggingsmodell!$H$34*((ArbeidTot-((((C108/Planleggingsmodell!$D$13-OljePengerOrg/(Planleggingsmodell!$D$13*PrisK))^Planleggingsmodell!$J$33-Planleggingsmodell!$F$33)/Planleggingsmodell!$H$33)^(1/Planleggingsmodell!$J$33)))^Planleggingsmodell!$J$34))^(1/Planleggingsmodell!$J$34) -> 2428285.671 | K108: =+((Planleggingsmodell!$D$32^Planleggingsmodell!$J$32-Planleggingsmodell!$F$32^(1-Planleggingsmodell!$J$32)*C108^Planleggingsmodell!$J$32)/(Planleggingsmodell!$H$32^(1-Planleggingsmodell!$J$32)))^(1/Planleggingsmodell!$J$32) -> 1352964.162 | L108: =+Planleggingsmodell!$D$27/Planleggingsmodell!$D$25-Planleggingsmodell!$D$11/Planleggingsmodell!$D$25*C108 -> 856632
C109: 960000 | D109: =IF($M$2="Ja",SjokkS*(Planleggingsmodell!$F$34+Planleggingsmodell!$H$34*((ArbeidTot-((((C109/SjokkK)^Planleggingsmodell!$J$33-Planleggingsmodell!$F$33)/Planleggingsmodell!$H$33)^(1/Planleggingsmodell!$J$33)))^Planleggingsmodell!$J$34))^(1/Planleggingsmodell!$J$34),-1000) -> -1000 | E109: =+SjokkS*(Planleggingsmodell!$F$34+Planleggingsmodell!$H$34*((ArbeidTot-((((C109/SjokkK-OljePenger/(SjokkK*PrisK))^Planleggingsmodell!$J$33-Planleggingsmodell!$F$33)/Planleggingsmodell!$H$33)^(1/Planleggingsmodell!$J$33)))^Planleggingsmodell!$J$34))^(1/Planleggingsmodell!$J$34) -> 2410868.592 | F109: =+((Planleggingsmodell!$C$32^Planleggingsmodell!$J$32-Planleggingsmodell!$F$32^(1-Planleggingsmodell!$J$32)*C109^Planleggingsmodell!$J$32)/(Planleggingsmodell!$H$32^(1-Planleggingsmodell!$J$32)))^(1/Planleggingsmodell!$J$32) -> 1352294.469 | G109: =+Planleggingsmodell!$C$27/Planleggingsmodell!$C$25-Planleggingsmodell!$D$11/Planleggingsmodell!$C$25*C109 -> 846632 | H109: =+IF($M$3="Ja",($H$6-Planleggingsmodell!$D$11*Figur!C109)/Planleggingsmodell!$C$25,-1000) -> -1000 | I109: =IF($M$2="ja",Planleggingsmodell!$D$14*(Planleggingsmodell!$F$34+Planleggingsmodell!$H$34*((ArbeidTot-((((C109/Planleggingsmodell!$D$13)^Planleggingsmodell!$J$33-Planleggingsmodell!$F$33)/Planleggingsmodell!$H$33)^(1/Planleggingsmodell!$J$33)))^Planleggingsmodell!$J$34))^(1/Planleggingsmodell!$J$34),-1000) -> -1000 | J109: =Planleggingsmodell!$D$14*(Planleggingsmodell!$F$34+Planleggingsmodell!$H$34*((ArbeidTot-((((C109/Planleggingsmodell!$D$13-OljePengerOrg/(Planleggingsmodell!$D$13*PrisK))^Planleggingsmodell!$J$33-Planleggingsmodell!$F$33)/Planleggingsmodell!$H$33)^(1/Planleggingsmodell!$J$33)))^Planleggingsmodell!$J$34))^(1/Planleggingsmodell!$J$34) -> 2410868.592 | K109: =+((Planleggingsmodell!$D$32^Planleggingsmodell!$J$32-Planleggingsmodell!$F$32^(1-Planleggingsmodell!$J$32)*C109^Planleggingsmodell!$J$32)/(Planleggingsmodell!$H$32^(1-Planleggingsmodell!$J$32)))^(1/Planleggingsmodell!$J$32) -> 1352294.469 | L109: =+Planleggingsmodell!$D$27/Planleggingsmodell!$D$25-Planleggingsmodell!$D$11/Planleggingsmodell!$D$25*C109 -> 846632
C110: 970000 | D110: =IF($M$2="Ja",SjokkS*(Planleggingsmodell!$F$34+Planleggingsmodell!$H$34*((ArbeidTot-((((C110/SjokkK)^Planleggingsmodell!$J$33-Planleggingsmodell!$F$33)/Planleggingsmodell!$H$33)^(1/Planleggingsmodell!$J$33)))^Planleggingsmodell!$J$34))^(1/Planleggingsmodell!$J$34),-1000) -> -1000 | E110: =+SjokkS*(Planleggingsmodell!$F$34+Planleggingsmodell!$H$34*((ArbeidTot-((((C110/SjokkK-OljePenger/(SjokkK*PrisK))^Planleggingsmodell!$J$33-Planleggingsmodell!$F$33)/Planleggingsmodell!$H$33)^(1/Planleggingsmodell!$J$33)))^Planleggingsmodell!$J$34))^(1/Planleggingsmodell!$J$34) -> 2394588.41 | F110: =+((Planleggingsmodell!$C$32^Planleggingsmodell!$J$32-Planleggingsmodell!$F$32^(1-Planleggingsmodell!$J$32)*C110^Planleggingsmodell!$J$32)/(Planleggingsmodell!$H$32^(1-Planleggingsmodell!$J$32)))^(1/Planleggingsmodell!$J$32) -> 1351639.226 | G110: =+Planleggingsmodell!$C$27/Planleggingsmodell!$C$25-Planleggingsmodell!$D$11/Planleggingsmodell!$C$25*C110 -> 836632 | H110: =+IF($M$3="Ja",($H$6-Planleggingsmodell!$D$11*Figur!C110)/Planleggingsmodell!$C$25,-1000) -> -1000 | I110: =IF($M$2="ja",Planleggingsmodell!$D$14*(Planleggingsmodell!$F$34+Planleggingsmodell!$H$34*((ArbeidTot-((((C110/Planleggingsmodell!$D$13)^Planleggingsmodell!$J$33-Planleggingsmodell!$F$33)/Planleggingsmodell!$H$33)^(1/Planleggingsmodell!$J$33)))^Planleggingsmodell!$J$34))^(1/Planleggingsmodell!$J$34),-1000) -> -1000 | J110: =Planleggingsmodell!$D$14*(Planleggingsmodell!$F$34+Planleggingsmodell!$H$34*((ArbeidTot-((((C110/Planleggingsmodell!$D$13-OljePengerOrg/(Planleggingsmodell!$D$13*PrisK))^Planleggingsmodell!$J$33-Planleggingsmodell!$F$33)/Planleggingsmodell!$H$33)^(1/Planleggingsmodell!$J$33)))^Planleggingsmodell!$J$34))^(1/Planleggingsmodell!$J$34) -> 2394588.41 | K110: =+((Planleggingsmodell!$D$32^Planleggingsmodell!$J$32-Planleggingsmodell!$F$32^(1-Planleggingsmodell!$J$32)*C110^Planleggingsmodell!$J$32)/(Planleggingsmodell!$H$32^(1-Planleggingsmodell!$J$32)))^(1/Planleggingsmodell!$J$32) -> 1351639.226 | L110: =+Planleggingsmodell!$D$27/Planleggingsmodell!$D$25-Planleggingsmodell!$D$11/Planleggingsmodell!$D$25*C110 -> 836632
C111: 980000 | D111: =IF($M$2="Ja",SjokkS*(Planleggingsmodell!$F$34+Planleggingsmodell!$H$34*((ArbeidTot-((((C111/SjokkK)^Planleggingsmodell!$J$33-Planleggingsmodell!$F$33)/Planleggingsmodell!$H$33)^(1/Planleggingsmodell!$J$33)))^Planleggingsmodell!$J$34))^(1/Planleggingsmodell!$J$34),-1000) -> -1000 | E111: =+SjokkS*(Planleggingsmodell!$F$34+Planleggingsmodell!$H$34*((ArbeidTot-((((C111/SjokkK-OljePenger/(SjokkK*PrisK))^Planleggingsmodell!$J$33-Planleggingsmodell!$F$33)/Planleggingsmodell!$H$33)^(1/Planleggingsmodell!$J$33)))^Planleggingsmodell!$J$34))^(1/Planleggingsmodell!$J$34) -> 2379337.329 | F111: =+((Planleggingsmodell!$C$32^Planleggingsmodell!$J$32-Planleggingsmodell!$F$32^(1-Planleggingsmodell!$J$32)*C111^Planleggingsmodell!$J$32)/(Planleggingsmodell!$H$32^(1-Planleggingsmodell!$J$32)))^(1/Planleggingsmodell!$J$32) -> 1350997.97 | G111: =+Planleggingsmodell!$C$27/Planleggingsmodell!$C$25-Planleggingsmodell!$D$11/Planleggingsmodell!$C$25*C111 -> 826632 | H111: =+IF($M$3="Ja",($H$6-Planleggingsmodell!$D$11*Figur!C111)/Planleggingsmodell!$C$25,-1000) -> -1000 | I111: =IF($M$2="ja",Planleggingsmodell!$D$14*(Planleggingsmodell!$F$34+Planleggingsmodell!$H$34*((ArbeidTot-((((C111/Planleggingsmodell!$D$13)^Planleggingsmodell!$J$33-Planleggingsmodell!$F$33)/Planleggingsmodell!$H$33)^(1/Planleggingsmodell!$J$33)))^Planleggingsmodell!$J$34))^(1/Planleggingsmodell!$J$34),-1000) -> -1000 | J111: =Planleggingsmodell!$D$14*(Planleggingsmodell!$F$34+Planleggingsmodell!$H$34*((ArbeidTot-((((C111/Planleggingsmodell!$D$13-OljePengerOrg/(Planleggingsmodell!$D$13*PrisK))^Planleggingsmodell!$J$33-Planleggingsmodell!$F$33)/Planleggingsmodell!$H$33)^(1/Planleggingsmodell!$J$33)))^Planleggingsmodell!$J$34))^(1/Planleggingsmodell!$J$34) -> 2379337.329 | K111: =+((Planleggingsmodell!$D$32^Planleggingsmodell!$J$32-Planleggingsmodell!$F$32^(1-Planleggingsmodell!$J$32)*C111^Planleggingsmodell!$J$32)/(Planleggingsmodell!$H$32^(1-Planleggingsmodell!$J$32)))^(1/Planleggingsmodell!$J$32) -> 1350997.97 | L111: =+Planleggingsmodell!$D$27/Planleggingsmodell!$D$25-Planleggingsmodell!$D$11/Planleggingsmodell!$D$25*C111 -> 826632
C112: 990000 | D112: =IF($M$2="Ja",SjokkS*(Planleggingsmodell!$F$34+Planleggingsmodell!$H$34*((ArbeidTot-((((C112/SjokkK)^Planleggingsmodell!$J$33-Planleggingsmodell!$F$33)/Planleggingsmodell!$H$33)^(1/Planleggingsmodell!$J$33)))^Planleggingsmodell!$J$34))^(1/Planleggingsmodell!$J$34),-1000) -> -1000 | E112: =+SjokkS*(Planleggingsmodell!$F$34+Planleggingsmodell!$H$34*((ArbeidTot-((((C112/SjokkK-OljePenger/(SjokkK*PrisK))^Planleggingsmodell!$J$33-Planleggingsmodell!$F$33)/Planleggingsmodell!$H$33)^(1/Planleggingsmodell!$J$33)))^Planleggingsmodell!$J$34))^(1/Planleggingsmodell!$J$34) -> 2365020.76 | F112: =+((Planleggingsmodell!$C$32^Planleggingsmodell!$J$32-Planleggingsmodell!$F$32^(1-Planleggingsmodell!$J$32)*C112^Planleggingsmodell!$J$32)/(Planleggingsmodell!$H$32^(1-Planleggingsmodell!$J$32)))^(1/Planleggingsmodell!$J$32) -> 1350370.26 | G112: =+Planleggingsmodell!$C$27/Planleggingsmodell!$C$25-Planleggingsmodell!$D$11/Planleggingsmodell!$C$25*C112 -> 816632 | H112: =+IF($M$3="Ja",($H$6-Planleggingsmodell!$D$11*Figur!C112)/Planleggingsmodell!$C$25,-1000) -> -1000 | I112: =IF($M$2="ja",Planleggingsmodell!$D$14*(Planleggingsmodell!$F$34+Planleggingsmodell!$H$34*((ArbeidTot-((((C112/Planleggingsmodell!$D$13)^Planleggingsmodell!$J$33-Planleggingsmodell!$F$33)/Planleggingsmodell!$H$33)^(1/Planleggingsmodell!$J$33)))^Planleggingsmodell!$J$34))^(1/Planleggingsmodell!$J$34),-1000) -> -1000 | J112: =Planleggingsmodell!$D$14*(Planleggingsmodell!$F$34+Planleggingsmodell!$H$34*((ArbeidTot-((((C112/Planleggingsmodell!$D$13-OljePengerOrg/(Planleggingsmodell!$D$13*PrisK))^Planleggingsmodell!$J$33-Planleggingsmodell!$F$33)/Planleggingsmodell!$H$33)^(1/Planleggingsmodell!$J$33)))^Planleggingsmodell!$J$34))^(1/Planleggingsmodell!$J$34) -> 2365020.76 | K112: =+((Planleggingsmodell!$D$32^Planleggingsmodell!$J$32-Planleggingsmodell!$F$32^(1-Planleggingsmodell!$J$32)*C112^Planleggingsmodell!$J$32)/(Planleggingsmodell!$H$32^(1-Planleggingsmodell!$J$32)))^(1/Planleggingsmodell!$J$32) -> 1350370.26 | L112: =+Planleggingsmodell!$D$27/Planleggingsmodell!$D$25-Planleggingsmodell!$D$11/Planleggingsmodell!$D$25*C112 -> 816632
C113: 1000000 | D113: =IF($M$2="Ja",SjokkS*(Planleggingsmodell!$F$34+Planleggingsmodell!$H$34*((ArbeidTot-((((C113/SjokkK)^Planleggingsmodell!$J$33-Planleggingsmodell!$F$33)/Planleggingsmodell!$H$33)^(1/Planleggingsmodell!$J$33)))^Planleggingsmodell!$J$34))^(1/Planleggingsmodell!$J$34),-1000) -> -1000 | E113: =+SjokkS*(Planleggingsmodell!$F$34+Planleggingsmodell!$H$34*((ArbeidTot-((((C113/SjokkK-OljePenger/(SjokkK*PrisK))^Planleggingsmodell!$J$33-Planleggingsmodell!$F$33)/Planleggingsmodell!$H$33)^(1/Planleggingsmodell!$J$33)))^Planleggingsmodell!$J$34))^(1/Planleggingsmodell!$J$34) -> 2351555.363 | F113: =+((Planleggingsmodell!$C$32^Planleggingsmodell!$J$32-Planleggingsmodell!$F$32^(1-Planleggingsmodell!$J$32)*C113^Planleggingsmodell!$J$32)/(Planleggingsmodell!$H$32^(1-Planleggingsmodell!$J$32)))^(1/Planleggingsmodell!$J$32) -> 1349755.669 | G113: =+Planleggingsmodell!$C$27/Planleggingsmodell!$C$25-Planleggingsmodell!$D$11/Planleggingsmodell!$C$25*C113 -> 806632 | H113: =+IF($M$3="Ja",($H$6-Planleggingsmodell!$D$11*Figur!C113)/Planleggingsmodell!$C$25,-1000) -> -1000 | I113: =IF($M$2="ja",Planleggingsmodell!$D$14*(Planleggingsmodell!$F$34+Planleggingsmodell!$H$34*((ArbeidTot-((((C113/Planleggingsmodell!$D$13)^Planleggingsmodell!$J$33-Planleggingsmodell!$F$33)/Planleggingsmodell!$H$33)^(1/Planleggingsmodell!$J$33)))^Planleggingsmodell!$J$34))^(1/Planleggingsmodell!$J$34),-1000) -> -1000 | J113: =Planleggingsmodell!$D$14*(Planleggingsmodell!$F$34+Planleggingsmodell!$H$34*((ArbeidTot-((((C113/Planleggingsmodell!$D$13-OljePengerOrg/(Planleggingsmodell!$D$13*PrisK))^Planleggingsmodell!$J$33-Planleggingsmodell!$F$33)/Planleggingsmodell!$H$33)^(1/Planleggingsmodell!$J$33)))^Planleggingsmodell!$J$34))^(1/Planleggingsmodell!$J$34) -> 2351555.363 | K113: =+((Planleggingsmodell!$D$32^Planleggingsmodell!$J$32-Planleggingsmodell!$F$32^(1-Planleggingsmodell!$J$32)*C113^Planleggingsmodell!$J$32)/(Planleggingsmodell!$H$32^(1-Planleggingsmodell!$J$32)))^(1/Planleggingsmodell!$J$32) -> 1349755.669 | L113: =+Planleggingsmodell!$D$27/Planleggingsmodell!$D$25-Planleggingsmodell!$D$11/Planleggingsmodell!$D$25*C113 -> 806632
C114: 1010000 | D114: =IF($M$2="Ja",SjokkS*(Planleggingsmodell!$F$34+Planleggingsmodell!$H$34*((ArbeidTot-((((C114/SjokkK)^Planleggingsmodell!$J$33-Planleggingsmodell!$F$33)/Planleggingsmodell!$H$33)^(1/Planleggingsmodell!$J$33)))^Planleggingsmodell!$J$34))^(1/Planleggingsmodell!$J$34),-1000) -> -1000 | E114: =+SjokkS*(Planleggingsmodell!$F$34+Planleggingsmodell!$H$34*((ArbeidTot-((((C114/SjokkK-OljePenger/(SjokkK*PrisK))^Planleggingsmodell!$J$33-Planleggingsmodell!$F$33)/Planleggingsmodell!$H$33)^(1/Planleggingsmodell!$J$33)))^Planleggingsmodell!$J$34))^(1/Planleggingsmodell!$J$34) -> 2338867.422 | F114: =+((Planleggingsmodell!$C$32^Planleggingsmodell!$J$32-Planleggingsmodell!$F$32^(1-Planleggingsmodell!$J$32)*C114^Planleggingsmodell!$J$32)/(Planleggingsmodell!$H$32^(1-Planleggingsmodell!$J$32)))^(1/Planleggingsmodell!$J$32) -> 1349153.791 | G114: =+Planleggingsmodell!$C$27/Planleggingsmodell!$C$25-Planleggingsmodell!$D$11/Planleggingsmodell!$C$25*C114 -> 796632 | H114: =+IF($M$3="Ja",($H$6-Planleggingsmodell!$D$11*Figur!C114)/Planleggingsmodell!$C$25,-1000) -> -1000 | I114: =IF($M$2="ja",Planleggingsmodell!$D$14*(Planleggingsmodell!$F$34+Planleggingsmodell!$H$34*((ArbeidTot-((((C114/Planleggingsmodell!$D$13)^Planleggingsmodell!$J$33-Planleggingsmodell!$F$33)/Planleggingsmodell!$H$33)^(1/Planleggingsmodell!$J$33)))^Planleggingsmodell!$J$34))^(1/Planleggingsmodell!$J$34),-1000) -> -1000 | J114: =Planleggingsmodell!$D$14*(Planleggingsmodell!$F$34+Planleggingsmodell!$H$34*((ArbeidTot-((((C114/Planleggingsmodell!$D$13-OljePengerOrg/(Planleggingsmodell!$D$13*PrisK))^Planleggingsmodell!$J$33-Planleggingsmodell!$F$33)/Planleggingsmodell!$H$33)^(1/Planleggingsmodell!$J$33)))^Planleggingsmodell!$J$34))^(1/Planleggingsmodell!$J$34) -> 2338867.422 | K114: =+((Planleggingsmodell!$D$32^Planleggingsmodell!$J$32-Planleggingsmodell!$F$32^(1-Planleggingsmodell!$J$32)*C114^Planleggingsmodell!$J$32)/(Planleggingsmodell!$H$32^(1-Planleggingsmodell!$J$32)))^(1/Planleggingsmodell!$J$32) -> 1349153.791 | L114: =+Planleggingsmodell!$D$27/Planleggingsmodell!$D$25-Planleggingsmodell!$D$11/Planleggingsmodell!$D$25*C114 -> 796632
C115: 1020000 | D115: =IF($M$2="Ja",SjokkS*(Planleggingsmodell!$F$34+Planleggingsmodell!$H$34*((ArbeidTot-((((C115/SjokkK)^Planleggingsmodell!$J$33-Planleggingsmodell!$F$33)/Planleggingsmodell!$H$33)^(1/Planleggingsmodell!$J$33)))^Planleggingsmodell!$J$34))^(1/Planleggingsmodell!$J$34),-1000) -> -1000 | E115: =+SjokkS*(Planleggingsmodell!$F$34+Planleggingsmodell!$H$34*((ArbeidTot-((((C115/SjokkK-OljePenger/(SjokkK*PrisK))^Planleggingsmodell!$J$33-Planleggingsmodell!$F$33)/Planleggingsmodell!$H$33)^(1/Planleggingsmodell!$J$33)))^Planleggingsmodell!$J$34))^(1/Planleggingsmodell!$J$34) -> 2326891.493 | F115: =+((Planleggingsmodell!$C$32^Planleggingsmodell!$J$32-Planleggingsmodell!$F$32^(1-Planleggingsmodell!$J$32)*C115^Planleggingsmodell!$J$32)/(Planleggingsmodell!$H$32^(1-Planleggingsmodell!$J$32)))^(1/Planleggingsmodell!$J$32) -> 1348564.235 | G115: =+Planleggingsmodell!$C$27/Planleggingsmodell!$C$25-Planleggingsmodell!$D$11/Planleggingsmodell!$C$25*C115 -> 786632 | H115: =+IF($M$3="Ja",($H$6-Planleggingsmodell!$D$11*Figur!C115)/Planleggingsmodell!$C$25,-1000) -> -1000 | I115: =IF($M$2="ja",Planleggingsmodell!$D$14*(Planleggingsmodell!$F$34+Planleggingsmodell!$H$34*((ArbeidTot-((((C115/Planleggingsmodell!$D$13)^Planleggingsmodell!$J$33-Planleggingsmodell!$F$33)/Planleggingsmodell!$H$33)^(1/Planleggingsmodell!$J$33)))^Planleggingsmodell!$J$34))^(1/Planleggingsmodell!$J$34),-1000) -> -1000 | J115: =Planleggingsmodell!$D$14*(Planleggingsmodell!$F$34+Planleggingsmodell!$H$34*((ArbeidTot-((((C115/Planleggingsmodell!$D$13-OljePengerOrg/(Planleggingsmodell!$D$13*PrisK))^Planleggingsmodell!$J$33-Planleggingsmodell!$F$33)/Planleggingsmodell!$H$33)^(1/Planleggingsmodell!$J$33)))^Planleggingsmodell!$J$34))^(1/Planleggingsmodell!$J$34) -> 2326891.493 | K115: =+((Planleggingsmodell!$D$32^Planleggingsmodell!$J$32-Planleggingsmodell!$F$32^(1-Planleggingsmodell!$J$32)*C115^Planleggingsmodell!$J$32)/(Planleggingsmodell!$H$32^(1-Planleggingsmodell!$J$32)))^(1/Planleggingsmodell!$J$32) -> 1348564.235 | L115: =+Planleggingsmodell!$D$27/Planleggingsmodell!$D$25-Planleggingsmodell!$D$11/Planleggingsmodell!$D$25*C115 -> 786632
C116: 1030000 | D116: =IF($M$2="Ja",SjokkS*(Planleggingsmodell!$F$34+Planleggingsmodell!$H$34*((ArbeidTot-((((C116/SjokkK)^Planleggingsmodell!$J$33-Planleggingsmodell!$F$33)/Planleggingsmodell!$H$33)^(1/Planleggingsmodell!$J$33)))^Planleggingsmodell!$J$34))^(1/Planleggingsmodell!$J$34),-1000) -> -1000 | E116: =+SjokkS*(Planleggingsmodell!$F$34+Planleggingsmodell!$H$34*((ArbeidTot-((((C116/SjokkK-OljePenger/(SjokkK*PrisK))^Planleggingsmodell!$J$33-Planleggingsmodell!$F$33)/Planleggingsmodell!$H$33)^(1/Planleggingsmodell!$J$33)))^Planleggingsmodell!$J$34))^(1/Planleggingsmodell!$J$34) -> 2315569.278 | F116: =+((Planleggingsmodell!$C$32^Planleggingsmodell!$J$32-Planleggingsmodell!$F$32^(1-Planleggingsmodell!$J$32)*C116^Planleggingsmodell!$J$32)/(Planleggingsmodell!$H$32^(1-Planleggingsmodell!$J$32)))^(1/Planleggingsmodell!$J$32) -> 1347986.627 | G116: =+Planleggingsmodell!$C$27/Planleggingsmodell!$C$25-Planleggingsmodell!$D$11/Planleggingsmodell!$C$25*C116 -> 776632 | H116: =+IF($M$3="Ja",($H$6-Planleggingsmodell!$D$11*Figur!C116)/Planleggingsmodell!$C$25,-1000) -> -1000 | I116: =IF($M$2="ja",Planleggingsmodell!$D$14*(Planleggingsmodell!$F$34+Planleggingsmodell!$H$34*((ArbeidTot-((((C116/Planleggingsmodell!$D$13)^Planleggingsmodell!$J$33-Planleggingsmodell!$F$33)/Planleggingsmodell!$H$33)^(1/Planleggingsmodell!$J$33)))^Planleggingsmodell!$J$34))^(1/Planleggingsmodell!$J$34),-1000) -> -1000 | J116: =Planleggingsmodell!$D$14*(Planleggingsmodell!$F$34+Planleggingsmodell!$H$34*((ArbeidTot-((((C116/Planleggingsmodell!$D$13-OljePengerOrg/(Planleggingsmodell!$D$13*PrisK))^Planleggingsmodell!$J$33-Planleggingsmodell!$F$33)/Planleggingsmodell!$H$33)^(1/Planleggingsmodell!$J$33)))^Planleggingsmodell!$J$34))^(1/Planleggingsmodell!$J$34) -> 2315569.278 | K116: =+((Planleggingsmodell!$D$32^Planleggingsmodell!$J$32-Planleggingsmodell!$F$32^(1-Planleggingsmodell!$J$32)*C116^Planleggingsmodell!$J$32)/(Planleggingsmodell!$H$32^(1-Planleggingsmodell!$J$32)))^(1/Planleggingsmodell!$J$32) -> 1347986.627 | L116: =+Planleggingsmodell!$D$27/Planleggingsmodell!$D$25-Planleggingsmodell!$D$11/Planleggingsmodell!$D$25*C116 -> 776632
C117: 1040000 | D117: =IF($M$2="Ja",SjokkS*(Planleggingsmodell!$F$34+Planleggingsmodell!$H$34*((ArbeidTot-((((C117/SjokkK)^Planleggingsmodell!$J$33-Planleggingsmodell!$F$33)/Planleggingsmodell!$H$33)^(1/Planleggingsmodell!$J$33)))^Planleggingsmodell!$J$34))^(1/Planleggingsmodell!$J$34),-1000) -> -1000 | E117: =+SjokkS*(Planleggingsmodell!$F$34+Planleggingsmodell!$H$34*((ArbeidTot-((((C117/SjokkK-OljePenger/(SjokkK*PrisK))^Planleggingsmodell!$J$33-Planleggingsmodell!$F$33)/Planleggingsmodell!$H$33)^(1/Planleggingsmodell!$J$33)))^Planleggingsmodell!$J$34))^(1/Planleggingsmodell!$J$34) -> 2304848.674 | F117: =+((Planleggingsmodell!$C$32^Planleggingsmodell!$J$32-Planleggingsmodell!$F$32^(1-Planleggingsmodell!$J$32)*C117^Planleggingsmodell!$J$32)/(Planleggingsmodell!$H$32^(1-Planleggingsmodell!$J$32)))^(1/Planleggingsmodell!$J$32) -> 1347420.608 | G117: =+Planleggingsmodell!$C$27/Planleggingsmodell!$C$25-Planleggingsmodell!$D$11/Planleggingsmodell!$C$25*C117 -> 766632 | H117: =+IF($M$3="Ja",($H$6-Planleggingsmodell!$D$11*Figur!C117)/Planleggingsmodell!$C$25,-1000) -> -1000 | I117: =IF($M$2="ja",Planleggingsmodell!$D$14*(Planleggingsmodell!$F$34+Planleggingsmodell!$H$34*((ArbeidTot-((((C117/Planleggingsmodell!$D$13)^Planleggingsmodell!$J$33-Planleggingsmodell!$F$33)/Planleggingsmodell!$H$33)^(1/Planleggingsmodell!$J$33)))^Planleggingsmodell!$J$34))^(1/Planleggingsmodell!$J$34),-1000) -> -1000 | J117: =Planleggingsmodell!$D$14*(Planleggingsmodell!$F$34+Planleggingsmodell!$H$34*((ArbeidTot-((((C117/Planleggingsmodell!$D$13-OljePengerOrg/(Planleggingsmodell!$D$13*PrisK))^Planleggingsmodell!$J$33-Planleggingsmodell!$F$33)/Planleggingsmodell!$H$33)^(1/Planleggingsmodell!$J$33)))^Planleggingsmodell!$J$34))^(1/Planleggingsmodell!$J$34) -> 2304848.674 | K117: =+((Planleggingsmodell!$D$32^Planleggingsmodell!$J$32-Planleggingsmodell!$F$32^(1-Planleggingsmodell!$J$32)*C117^Planleggingsmodell!$J$32)/(Planleggingsmodell!$H$32^(1-Planleggingsmodell!$J$32)))^(1/Planleggingsmodell!$J$32) -> 1347420.608 | L117: =+Planleggingsmodell!$D$27/Planleggingsmodell!$D$25-Planleggingsmodell!$D$11/Planleggingsmodell!$D$25*C117 -> 766632
C118: 1050000 | D118: =IF($M$2="Ja",SjokkS*(Planleggingsmodell!$F$34+Planleggingsmodell!$H$34*((ArbeidTot-((((C118/SjokkK)^Planleggingsmodell!$J$33-Planleggingsmodell!$F$33)/Planleggingsmodell!$H$33)^(1/Planleggingsmodell!$J$33)))^Planleggingsmodell!$J$34))^(1/Planleggingsmodell!$J$34),-1000) -> -1000 | E118: =+SjokkS*(Planleggingsmodell!$F$34+Planleggingsmodell!$H$34*((ArbeidTot-((((C118/SjokkK-OljePenger/(SjokkK*PrisK))^Planleggingsmodell!$J$33-Planleggingsmodell!$F$33)/Planleggingsmodell!$H$33)^(1/Planleggingsmodell!$J$33)))^Planleggingsmodell!$J$34))^(1/Planleggingsmodell!$J$34) -> 2294682.972 | F118: =+((Planleggingsmodell!$C$32^Planleggingsmodell!$J$32-Planleggingsmodell!$F$32^(1-Planleggingsmodell!$J$32)*C118^Planleggingsmodell!$J$32)/(Planleggingsmodell!$H$32^(1-Planleggingsmodell!$J$32)))^(1/Planleggingsmodell!$J$32) -> 1346865.831 | G118: =+Planleggingsmodell!$C$27/Planleggingsmodell!$C$25-Planleggingsmodell!$D$11/Planleggingsmodell!$C$25*C118 -> 756632 | H118: =+IF($M$3="Ja",($H$6-Planleggingsmodell!$D$11*Figur!C118)/Planleggingsmodell!$C$25,-1000) -> -1000 | I118: =IF($M$2="ja",Planleggingsmodell!$D$14*(Planleggingsmodell!$F$34+Planleggingsmodell!$H$34*((ArbeidTot-((((C118/Planleggingsmodell!$D$13)^Planleggingsmodell!$J$33-Planleggingsmodell!$F$33)/Planleggingsmodell!$H$33)^(1/Planleggingsmodell!$J$33)))^Planleggingsmodell!$J$34))^(1/Planleggingsmodell!$J$34),-1000) -> -1000 | J118: =Planleggingsmodell!$D$14*(Planleggingsmodell!$F$34+Planleggingsmodell!$H$34*((ArbeidTot-((((C118/Planleggingsmodell!$D$13-OljePengerOrg/(Planleggingsmodell!$D$13*PrisK))^Planleggingsmodell!$J$33-Planleggingsmodell!$F$33)/Planleggingsmodell!$H$33)^(1/Planleggingsmodell!$J$33)))^Planleggingsmodell!$J$34))^(1/Planleggingsmodell!$J$34) -> 2294682.972 | K118: =+((Planleggingsmodell!$D$32^Planleggingsmodell!$J$32-Planleggingsmodell!$F$32^(1-Planleggingsmodell!$J$32)*C118^Planleggingsmodell!$J$32)/(Planleggingsmodell!$H$32^(1-Planleggingsmodell!$J$32)))^(1/Planleggingsmodell!$J$32) -> 1346865.831 | L118: =+Planleggingsmodell!$D$27/Planleggingsmodell!$D$25-Planleggingsmodell!$D$11/Planleggingsmodell!$D$25*C118 -> 756632
C119: 1060000 | D119: =IF($M$2="Ja",SjokkS*(Planleggingsmodell!$F$34+Planleggingsmodell!$H$34*((ArbeidTot-((((C119/SjokkK)^Planleggingsmodell!$J$33-Planleggingsmodell!$F$33)/Planleggingsmodell!$H$33)^(1/Planleggingsmodell!$J$33)))^Planleggingsmodell!$J$34))^(1/Planleggingsmodell!$J$34),-1000) -> -1000 | E119: =+SjokkS*(Planleggingsmodell!$F$34+Planleggingsmodell!$H$34*((ArbeidTot-((((C119/SjokkK-OljePenger/(SjokkK*PrisK))^Planleggingsmodell!$J$33-Planleggingsmodell!$F$33)/Planleggingsmodell!$H$33)^(1/Planleggingsmodell!$J$33)))^Planleggingsmodell!$J$34))^(1/Planleggingsmodell!$J$34) -> 2285030.176 | F119: =+((Planleggingsmodell!$C$32^Planleggingsmodell!$J$32-Planleggingsmodell!$F$32^(1-Planleggingsmodell!$J$32)*C119^Planleggingsmodell!$J$32)/(Planleggingsmodell!$H$32^(1-Planleggingsmodell!$J$32)))^(1/Planleggingsmodell!$J$32) -> 1346321.966 | G119: =+Planleggingsmodell!$C$27/Planleggingsmodell!$C$25-Planleggingsmodell!$D$11/Planleggingsmodell!$C$25*C119 -> 746632 | H119: =+IF($M$3="Ja",($H$6-Planleggingsmodell!$D$11*Figur!C119)/Planleggingsmodell!$C$25,-1000) -> -1000 | I119: =IF($M$2="ja",Planleggingsmodell!$D$14*(Planleggingsmodell!$F$34+Planleggingsmodell!$H$34*((ArbeidTot-((((C119/Planleggingsmodell!$D$13)^Planleggingsmodell!$J$33-Planleggingsmodell!$F$33)/Planleggingsmodell!$H$33)^(1/Planleggingsmodell!$J$33)))^Planleggingsmodell!$J$34))^(1/Planleggingsmodell!$J$34),-1000) -> -1000 | J119: =Planleggingsmodell!$D$14*(Planleggingsmodell!$F$34+Planleggingsmodell!$H$34*((ArbeidTot-((((C119/Planleggingsmodell!$D$13-OljePengerOrg/(Planleggingsmodell!$D$13*PrisK))^Planleggingsmodell!$J$33-Planleggingsmodell!$F$33)/Planleggingsmodell!$H$33)^(1/Planleggingsmodell!$J$33)))^Planleggingsmodell!$J$34))^(1/Planleggingsmodell!$J$34) -> 2285030.176 | K119: =+((Planleggingsmodell!$D$32^Planleggingsmodell!$J$32-Planleggingsmodell!$F$32^(1-Planleggingsmodell!$J$32)*C119^Planleggingsmodell!$J$32)/(Planleggingsmodell!$H$32^(1-Planleggingsmodell!$J$32)))^(1/Planleggingsmodell!$J$32) -> 1346321.966 | L119: =+Planleggingsmodell!$D$27/Planleggingsmodell!$D$25-Planleggingsmodell!$D$11/Planleggingsmodell!$D$25*C119 -> 746632
C120: 1070000 | D120: =IF($M$2="Ja",SjokkS*(Planleggingsmodell!$F$34+Planleggingsmodell!$H$34*((ArbeidTot-((((C120/SjokkK)^Planleggingsmodell!$J$33-Planleggingsmodell!$F$33)/Planleggingsmodell!$H$33)^(1/Planleggingsmodell!$J$33)))^Planleggingsmodell!$J$34))^(1/Planleggingsmodell!$J$34),-1000) -> -1000 | E120: =+SjokkS*(Planleggingsmodell!$F$34+Planleggingsmodell!$H$34*((ArbeidTot-((((C120/SjokkK-OljePenger/(SjokkK*PrisK))^Planleggingsmodell!$J$33-Planleggingsmodell!$F$33)/Planleggingsmodell!$H$33)^(1/Planleggingsmodell!$J$33)))^Planleggingsmodell!$J$34))^(1/Planleggingsmodell!$J$34) -> 2275852.422 | F120: =+((Planleggingsmodell!$C$32^Planleggingsmodell!$J$32-Planleggingsmodell!$F$32^(1-Planleggingsmodell!$J$32)*C120^Planleggingsmodell!$J$32)/(Planleggingsmodell!$H$32^(1-Planleggingsmodell!$J$32)))^(1/Planleggingsmodell!$J$32) -> 1345788.693 | G120: =+Planleggingsmodell!$C$27/Planleggingsmodell!$C$25-Planleggingsmodell!$D$11/Planleggingsmodell!$C$25*C120 -> 736632 | H120: =+IF($M$3="Ja",($H$6-Planleggingsmodell!$D$11*Figur!C120)/Planleggingsmodell!$C$25,-1000) -> -1000 | I120: =IF($M$2="ja",Planleggingsmodell!$D$14*(Planleggingsmodell!$F$34+Planleggingsmodell!$H$34*((ArbeidTot-((((C120/Planleggingsmodell!$D$13)^Planleggingsmodell!$J$33-Planleggingsmodell!$F$33)/Planleggingsmodell!$H$33)^(1/Planleggingsmodell!$J$33)))^Planleggingsmodell!$J$34))^(1/Planleggingsmodell!$J$34),-1000) -> -1000 | J120: =Planleggingsmodell!$D$14*(Planleggingsmodell!$F$34+Planleggingsmodell!$H$34*((ArbeidTot-((((C120/Planleggingsmodell!$D$13-OljePengerOrg/(Planleggingsmodell!$D$13*PrisK))^Planleggingsmodell!$J$33-Planleggingsmodell!$F$33)/Planleggingsmodell!$H$33)^(1/Planleggingsmodell!$J$33)))^Planleggingsmodell!$J$34))^(1/Planleggingsmodell!$J$34) -> 2275852.422 | K120: =+((Planleggingsmodell!$D$32^Planleggingsmodell!$J$32-Planleggingsmodell!$F$32^(1-Planleggingsmodell!$J$32)*C120^Planleggingsmodell!$J$32)/(Planleggingsmodell!$H$32^(1-Planleggingsmodell!$J$32)))^(1/Planleggingsmodell!$J$32) -> 1345788.693 | L120: =+Planleggingsmodell!$D$27/Planleggingsmodell!$D$25-Planleggingsmodell!$D$11/Planleggingsmodell!$D$25*C120 -> 736632
C121: 1080000 | D121: =IF($M$2="Ja",SjokkS*(Planleggingsmodell!$F$34+Planleggingsmodell!$H$34*((ArbeidTot-((((C121/SjokkK)^Planleggingsmodell!$J$33-Planleggingsmodell!$F$33)/Planleggingsmodell!$H$33)^(1/Planleggingsmodell!$J$33)))^Planleggingsmodell!$J$34))^(1/Planleggingsmodell!$J$34),-1000) -> -1000 | E121: =+SjokkS*(Planleggingsmodell!$F$34+Planleggingsmodell!$H$34*((ArbeidTot-((((C121/SjokkK-OljePenger/(SjokkK*PrisK))^Planleggingsmodell!$J$33-Planleggingsmodell!$F$33)/Planleggingsmodell!$H$33)^(1/Planleggingsmodell!$J$33)))^Planleggingsmodell!$J$34))^(1/Planleggingsmodell!$J$34) -> 2267115.487 | F121: =+((Planleggingsmodell!$C$32^Planleggingsmodell!$J$32-Planleggingsmodell!$F$32^(1-Planleggingsmodell!$J$32)*C121^Planleggingsmodell!$J$32)/(Planleggingsmodell!$H$32^(1-Planleggingsmodell!$J$32)))^(1/Planleggingsmodell!$J$32) -> 1345265.706 | G121: =+Planleggingsmodell!$C$27/Planleggingsmodell!$C$25-Planleggingsmodell!$D$11/Planleggingsmodell!$C$25*C121 -> 726632 | H121: =+IF($M$3="Ja",($H$6-Planleggingsmodell!$D$11*Figur!C121)/Planleggingsmodell!$C$25,-1000) -> -1000 | I121: =IF($M$2="ja",Planleggingsmodell!$D$14*(Planleggingsmodell!$F$34+Planleggingsmodell!$H$34*((ArbeidTot-((((C121/Planleggingsmodell!$D$13)^Planleggingsmodell!$J$33-Planleggingsmodell!$F$33)/Planleggingsmodell!$H$33)^(1/Planleggingsmodell!$J$33)))^Planleggingsmodell!$J$34))^(1/Planleggingsmodell!$J$34),-1000) -> -1000 | J121: =Planleggingsmodell!$D$14*(Planleggingsmodell!$F$34+Planleggingsmodell!$H$34*((ArbeidTot-((((C121/Planleggingsmodell!$D$13-OljePengerOrg/(Planleggingsmodell!$D$13*PrisK))^Planleggingsmodell!$J$33-Planleggingsmodell!$F$33)/Planleggingsmodell!$H$33)^(1/Planleggingsmodell!$J$33)))^Planleggingsmodell!$J$34))^(1/Planleggingsmodell!$J$34) -> 2267115.487 | K121: =+((Planleggingsmodell!$D$32^Planleggingsmodell!$J$32-Planleggingsmodell!$F$32^(1-Planleggingsmodell!$J$32)*C121^Planleggingsmodell!$J$32)/(Planleggingsmodell!$H$32^(1-Planleggingsmodell!$J$32)))^(1/Planleggingsmodell!$J$32) -> 1345265.706 | L121: =+Planleggingsmodell!$D$27/Planleggingsmodell!$D$25-Planleggingsmodell!$D$11/Planleggingsmodell!$D$25*C121 -> 726632
C122: 1090000 | D122: =IF($M$2="Ja",SjokkS*(Planleggingsmodell!$F$34+Planleggingsmodell!$H$34*((ArbeidTot-((((C122/SjokkK)^Planleggingsmodell!$J$33-Planleggingsmodell!$F$33)/Planleggingsmodell!$H$33)^(1/Planleggingsmodell!$J$33)))^Planleggingsmodell!$J$34))^(1/Planleggingsmodell!$J$34),-1000) -> -1000 | E122: =+SjokkS*(Planleggingsmodell!$F$34+Planleggingsmodell!$H$34*((ArbeidTot-((((C122/SjokkK-OljePenger/(SjokkK*PrisK))^Planleggingsmodell!$J$33-Planleggingsmodell!$F$33)/Planleggingsmodell!$H$33)^(1/Planleggingsmodell!$J$33)))^Planleggingsmodell!$J$34))^(1/Planleggingsmodell!$J$34) -> 2258788.355 | F122: =+((Planleggingsmodell!$C$32^Planleggingsmodell!$J$32-Planleggingsmodell!$F$32^(1-Planleggingsmodell!$J$32)*C122^Planleggingsmodell!$J$32)/(Planleggingsmodell!$H$32^(1-Planleggingsmodell!$J$32)))^(1/Planleggingsmodell!$J$32) -> 1344752.711 | G122: =+Planleggingsmodell!$C$27/Planleggingsmodell!$C$25-Planleggingsmodell!$D$11/Planleggingsmodell!$C$25*C122 -> 716632 | H122: =+IF($M$3="Ja",($H$6-Planleggingsmodell!$D$11*Figur!C122)/Planleggingsmodell!$C$25,-1000) -> -1000 | I122: =IF($M$2="ja",Planleggingsmodell!$D$14*(Planleggingsmodell!$F$34+Planleggingsmodell!$H$34*((ArbeidTot-((((C122/Planleggingsmodell!$D$13)^Planleggingsmodell!$J$33-Planleggingsmodell!$F$33)/Planleggingsmodell!$H$33)^(1/Planleggingsmodell!$J$33)))^Planleggingsmodell!$J$34))^(1/Planleggingsmodell!$J$34),-1000) -> -1000 | J122: =Planleggingsmodell!$D$14*(Planleggingsmodell!$F$34+Planleggingsmodell!$H$34*((ArbeidTot-((((C122/Planleggingsmodell!$D$13-OljePengerOrg/(Planleggingsmodell!$D$13*PrisK))^Planleggingsmodell!$J$33-Planleggingsmodell!$F$33)/Planleggingsmodell!$H$33)^(1/Planleggingsmodell!$J$33)))^Planleggingsmodell!$J$34))^(1/Planleggingsmodell!$J$34) -> 2258788.355 | K122: =+((Planleggingsmodell!$D$32^Planleggingsmodell!$J$32-Planleggingsmodell!$F$32^(1-Planleggingsmodell!$J$32)*C122^Planleggingsmodell!$J$32)/(Planleggingsmodell!$H$32^(1-Planleggingsmodell!$J$32)))^(1/Planleggingsmodell!$J$32) -> 1344752.711 | L122: =+Planleggingsmodell!$D$27/Planleggingsmodell!$D$25-Planleggingsmodell!$D$11/Planleggingsmodell!$D$25*C122 -> 716632
C123: 1100000 | D123: =IF($M$2="Ja",SjokkS*(Planleggingsmodell!$F$34+Planleggingsmodell!$H$34*((ArbeidTot-((((C123/SjokkK)^Planleggingsmodell!$J$33-Planleggingsmodell!$F$33)/Planleggingsmodell!$H$33)^(1/Planleggingsmodell!$J$33)))^Planleggingsmodell!$J$34))^(1/Planleggingsmodell!$J$34),-1000) -> -1000 | E123: =+SjokkS*(Planleggingsmodell!$F$34+Planleggingsmodell!$H$34*((ArbeidTot-((((C123/SjokkK-OljePenger/(SjokkK*PrisK))^Planleggingsmodell!$J$33-Planleggingsmodell!$F$33)/Planleggingsmodell!$H$33)^(1/Planleggingsmodell!$J$33)))^Planleggingsmodell!$J$34))^(1/Planleggingsmodell!$J$34) -> 2250842.854 | F123: =+((Planleggingsmodell!$C$32^Planleggingsmodell!$J$32-Planleggingsmodell!$F$32^(1-Planleggingsmodell!$J$32)*C123^Planleggingsmodell!$J$32)/(Planleggingsmodell!$H$32^(1-Planleggingsmodell!$J$32)))^(1/Planleggingsmodell!$J$32) -> 1344249.423 | G123: =+Planleggingsmodell!$C$27/Planleggingsmodell!$C$25-Planleggingsmodell!$D$11/Planleggingsmodell!$C$25*C123 -> 706632 | H123: =+IF($M$3="Ja",($H$6-Planleggingsmodell!$D$11*Figur!C123)/Planleggingsmodell!$C$25,-1000) -> -1000 | I123: =IF($M$2="ja",Planleggingsmodell!$D$14*(Planleggingsmodell!$F$34+Planleggingsmodell!$H$34*((ArbeidTot-((((C123/Planleggingsmodell!$D$13)^Planleggingsmodell!$J$33-Planleggingsmodell!$F$33)/Planleggingsmodell!$H$33)^(1/Planleggingsmodell!$J$33)))^Planleggingsmodell!$J$34))^(1/Planleggingsmodell!$J$34),-1000) -> -1000 | J123: =Planleggingsmodell!$D$14*(Planleggingsmodell!$F$34+Planleggingsmodell!$H$34*((ArbeidTot-((((C123/Planleggingsmodell!$D$13-OljePengerOrg/(Planleggingsmodell!$D$13*PrisK))^Planleggingsmodell!$J$33-Planleggingsmodell!$F$33)/Planleggingsmodell!$H$33)^(1/Planleggingsmodell!$J$33)))^Planleggingsmodell!$J$34))^(1/Planleggingsmodell!$J$34) -> 2250842.854 | K123: =+((Planleggingsmodell!$D$32^Planleggingsmodell!$J$32-Planleggingsmodell!$F$32^(1-Planleggingsmodell!$J$32)*C123^Planleggingsmodell!$J$32)/(Planleggingsmodell!$H$32^(1-Planleggingsmodell!$J$32)))^(1/Planleggingsmodell!$J$32) -> 1344249.423 | L123: =+Planleggingsmodell!$D$27/Planleggingsmodell!$D$25-Planleggingsmodell!$D$11/Planleggingsmodell!$D$25*C123 -> 706632
C124: 1110000 | D124: =IF($M$2="Ja",SjokkS*(Planleggingsmodell!$F$34+Planleggingsmodell!$H$34*((ArbeidTot-((((C124/SjokkK)^Planleggingsmodell!$J$33-Planleggingsmodell!$F$33)/Planleggingsmodell!$H$33)^(1/Planleggingsmodell!$J$33)))^Planleggingsmodell!$J$34))^(1/Planleggingsmodell!$J$34),-1000) -> -1000 | E124: =+SjokkS*(Planleggingsmodell!$F$34+Planleggingsmodell!$H$34*((ArbeidTot-((((C124/SjokkK-OljePenger/(SjokkK*PrisK))^Planleggingsmodell!$J$33-Planleggingsmodell!$F$33)/Planleggingsmodell!$H$33)^(1/Planleggingsmodell!$J$33)))^Planleggingsmodell!$J$34))^(1/Planleggingsmodell!$J$34) -> 2243253.338 | F124: =+((Planleggingsmodell!$C$32^Planleggingsmodell!$J$32-Planleggingsmodell!$F$32^(1-Planleggingsmodell!$J$32)*C124^Planleggingsmodell!$J$32)/(Planleggingsmodell!$H$32^(1-Planleggingsmodell!$J$32)))^(1/Planleggingsmodell!$J$32) -> 1343755.57 | G124: =+Planleggingsmodell!$C$27/Planleggingsmodell!$C$25-Planleggingsmodell!$D$11/Planleggingsmodell!$C$25*C124 -> 696632 | H124: =+IF($M$3="Ja",($H$6-Planleggingsmodell!$D$11*Figur!C124)/Planleggingsmodell!$C$25,-1000) -> -1000 | I124: =IF($M$2="ja",Planleggingsmodell!$D$14*(Planleggingsmodell!$F$34+Planleggingsmodell!$H$34*((ArbeidTot-((((C124/Planleggingsmodell!$D$13)^Planleggingsmodell!$J$33-Planleggingsmodell!$F$33)/Planleggingsmodell!$H$33)^(1/Planleggingsmodell!$J$33)))^Planleggingsmodell!$J$34))^(1/Planleggingsmodell!$J$34),-1000) -> -1000 | J124: =Planleggingsmodell!$D$14*(Planleggingsmodell!$F$34+Planleggingsmodell!$H$34*((ArbeidTot-((((C124/Planleggingsmodell!$D$13-OljePengerOrg/(Planleggingsmodell!$D$13*PrisK))^Planleggingsmodell!$J$33-Planleggingsmodell!$F$33)/Planleggingsmodell!$H$33)^(1/Planleggingsmodell!$J$33)))^Planleggingsmodell!$J$34))^(1/Planleggingsmodell!$J$34) -> 2243253.338 | K124: =+((Planleggingsmodell!$D$32^Planleggingsmodell!$J$32-Planleggingsmodell!$F$32^(1-Planleggingsmodell!$J$32)*C124^Planleggingsmodell!$J$32)/(Planleggingsmodell!$H$32^(1-Planleggingsmodell!$J$32)))^(1/Planleggingsmodell!$J$32) -> 1343755.57 | L124: =+Planleggingsmodell!$D$27/Planleggingsmodell!$D$25-Planleggingsmodell!$D$11/Planleggingsmodell!$D$25*C124 -> 696632
C125: 1120000 | D125: =IF($M$2="Ja",SjokkS*(Planleggingsmodell!$F$34+Planleggingsmodell!$H$34*((ArbeidTot-((((C125/SjokkK)^Planleggingsmodell!$J$33-Planleggingsmodell!$F$33)/Planleggingsmodell!$H$33)^(1/Planleggingsmodell!$J$33)))^Planleggingsmodell!$J$34))^(1/Planleggingsmodell!$J$34),-1000) -> -1000 | E125: =+SjokkS*(Planleggingsmodell!$F$34+Planleggingsmodell!$H$34*((ArbeidTot-((((C125/SjokkK-OljePenger/(SjokkK*PrisK))^Planleggingsmodell!$J$33-Planleggingsmodell!$F$33)/Planleggingsmodell!$H$33)^(1/Planleggingsmodell!$J$33)))^Planleggingsmodell!$J$34))^(1/Planleggingsmodell!$J$34) -> 2235996.405 | F125: =+((Planleggingsmodell!$C$32^Planleggingsmodell!$J$32-Planleggingsmodell!$F$32^(1-Planleggingsmodell!$J$32)*C125^Planleggingsmodell!$J$32)/(Planleggingsmodell!$H$32^(1-Planleggingsmodell!$J$32)))^(1/Planleggingsmodell!$J$32) -> 1343270.889 | G125: =+Planleggingsmodell!$C$27/Planleggingsmodell!$C$25-Planleggingsmodell!$D$11/Planleggingsmodell!$C$25*C125 -> 686632 | H125: =+IF($M$3="Ja",($H$6-Planleggingsmodell!$D$11*Figur!C125)/Planleggingsmodell!$C$25,-1000) -> -1000 | I125: =IF($M$2="ja",Planleggingsmodell!$D$14*(Planleggingsmodell!$F$34+Planleggingsmodell!$H$34*((ArbeidTot-((((C125/Planleggingsmodell!$D$13)^Planleggingsmodell!$J$33-Planleggingsmodell!$F$33)/Planleggingsmodell!$H$33)^(1/Planleggingsmodell!$J$33)))^Planleggingsmodell!$J$34))^(1/Planleggingsmodell!$J$34),-1000) -> -1000 | J125: =Planleggingsmodell!$D$14*(Planleggingsmodell!$F$34+Planleggingsmodell!$H$34*((ArbeidTot-((((C125/Planleggingsmodell!$D$13-OljePengerOrg/(Planleggingsmodell!$D$13*PrisK))^Planleggingsmodell!$J$33-Planleggingsmodell!$F$33)/Planleggingsmodell!$H$33)^(1/Planleggingsmodell!$J$33)))^Planleggingsmodell!$J$34))^(1/Planleggingsmodell!$J$34) -> 2235996.405 | K125: =+((Planleggingsmodell!$D$32^Planleggingsmodell!$J$32-Planleggingsmodell!$F$32^(1-Planleggingsmodell!$J$32)*C125^Planleggingsmodell!$J$32)/(Planleggingsmodell!$H$32^(1-Planleggingsmodell!$J$32)))^(1/Planleggingsmodell!$J$32) -> 1343270.889 | L125: =+Planleggingsmodell!$D$27/Planleggingsmodell!$D$25-Planleggingsmodell!$D$11/Planleggingsmodell!$D$25*C125 -> 686632
C126: 1130000 | D126: =IF($M$2="Ja",SjokkS*(Planleggingsmodell!$F$34+Planleggingsmodell!$H$34*((ArbeidTot-((((C126/SjokkK)^Planleggingsmodell!$J$33-Planleggingsmodell!$F$33)/Planleggingsmodell!$H$33)^(1/Planleggingsmodell!$J$33)))^Planleggingsmodell!$J$34))^(1/Planleggingsmodell!$J$34),-1000) -> -1000 | E126: =+SjokkS*(Planleggingsmodell!$F$34+Planleggingsmodell!$H$34*((ArbeidTot-((((C126/SjokkK-OljePenger/(SjokkK*PrisK))^Planleggingsmodell!$J$33-Planleggingsmodell!$F$33)/Planleggingsmodell!$H$33)^(1/Planleggingsmodell!$J$33)))^Planleggingsmodell!$J$34))^(1/Planleggingsmodell!$J$34) -> 2229050.664 | F126: =+((Planleggingsmodell!$C$32^Planleggingsmodell!$J$32-Planleggingsmodell!$F$32^(1-Planleggingsmodell!$J$32)*C126^Planleggingsmodell!$J$32)/(Planleggingsmodell!$H$32^(1-Planleggingsmodell!$J$32)))^(1/Planleggingsmodell!$J$32) -> 1342795.126 | G126: =+Planleggingsmodell!$C$27/Planleggingsmodell!$C$25-Planleggingsmodell!$D$11/Planleggingsmodell!$C$25*C126 -> 676632 | H126: =+IF($M$3="Ja",($H$6-Planleggingsmodell!$D$11*Figur!C126)/Planleggingsmodell!$C$25,-1000) -> -1000 | I126: =IF($M$2="ja",Planleggingsmodell!$D$14*(Planleggingsmodell!$F$34+Planleggingsmodell!$H$34*((ArbeidTot-((((C126/Planleggingsmodell!$D$13)^Planleggingsmodell!$J$33-Planleggingsmodell!$F$33)/Planleggingsmodell!$H$33)^(1/Planleggingsmodell!$J$33)))^Planleggingsmodell!$J$34))^(1/Planleggingsmodell!$J$34),-1000) -> -1000 | J126: =Planleggingsmodell!$D$14*(Planleggingsmodell!$F$34+Planleggingsmodell!$H$34*((ArbeidTot-((((C126/Planleggingsmodell!$D$13-OljePengerOrg/(Planleggingsmodell!$D$13*PrisK))^Planleggingsmodell!$J$33-Planleggingsmodell!$F$33)/Planleggingsmodell!$H$33)^(1/Planleggingsmodell!$J$33)))^Planleggingsmodell!$J$34))^(1/Planleggingsmodell!$J$34) -> 2229050.664 | K126: =+((Planleggingsmodell!$D$32^Planleggingsmodell!$J$32-Planleggingsmodell!$F$32^(1-Planleggingsmodell!$J$32)*C126^Planleggingsmodell!$J$32)/(Planleggingsmodell!$H$32^(1-Planleggingsmodell!$J$32)))^(1/Planleggingsmodell!$J$32) -> 1342795.126 | L126: =+Planleggingsmodell!$D$27/Planleggingsmodell!$D$25-Planleggingsmodell!$D$11/Planleggingsmodell!$D$25*C126 -> 676632
C127: 1140000 | D127: =IF($M$2="Ja",SjokkS*(Planleggingsmodell!$F$34+Planleggingsmodell!$H$34*((ArbeidTot-((((C127/SjokkK)^Planleggingsmodell!$J$33-Planleggingsmodell!$F$33)/Planleggingsmodell!$H$33)^(1/Planleggingsmodell!$J$33)))^Planleggingsmodell!$J$34))^(1/Planleggingsmodell!$J$34),-1000) -> -1000 | E127: =+SjokkS*(Planleggingsmodell!$F$34+Planleggingsmodell!$H$34*((ArbeidTot-((((C127/SjokkK-OljePenger/(SjokkK*PrisK))^Planleggingsmodell!$J$33-Planleggingsmodell!$F$33)/Planleggingsmodell!$H$33)^(1/Planleggingsmodell!$J$33)))^Planleggingsmodell!$J$34))^(1/Planleggingsmodell!$J$34) -> 2222396.518 | F127: =+((Planleggingsmodell!$C$32^Planleggingsmodell!$J$32-Planleggingsmodell!$F$32^(1-Planleggingsmodell!$J$32)*C127^Planleggingsmodell!$J$32)/(Planleggingsmodell!$H$32^(1-Planleggingsmodell!$J$32)))^(1/Planleggingsmodell!$J$32) -> 1342328.038 | G127: =+Planleggingsmodell!$C$27/Planleggingsmodell!$C$25-Planleggingsmodell!$D$11/Planleggingsmodell!$C$25*C127 -> 666632 | H127: =+IF($M$3="Ja",($H$6-Planleggingsmodell!$D$11*Figur!C127)/Planleggingsmodell!$C$25,-1000) -> -1000 | I127: =IF($M$2="ja",Planleggingsmodell!$D$14*(Planleggingsmodell!$F$34+Planleggingsmodell!$H$34*((ArbeidTot-((((C127/Planleggingsmodell!$D$13)^Planleggingsmodell!$J$33-Planleggingsmodell!$F$33)/Planleggingsmodell!$H$33)^(1/Planleggingsmodell!$J$33)))^Planleggingsmodell!$J$34))^(1/Planleggingsmodell!$J$34),-1000) -> -1000 | J127: =Planleggingsmodell!$D$14*(Planleggingsmodell!$F$34+Planleggingsmodell!$H$34*((ArbeidTot-((((C127/Planleggingsmodell!$D$13-OljePengerOrg/(Planleggingsmodell!$D$13*PrisK))^Planleggingsmodell!$J$33-Planleggingsmodell!$F$33)/Planleggingsmodell!$H$33)^(1/Planleggingsmodell!$J$33)))^Planleggingsmodell!$J$34))^(1/Planleggingsmodell!$J$34) -> 2222396.518 | K127: =+((Planleggingsmodell!$D$32^Planleggingsmodell!$J$32-Planleggingsmodell!$F$32^(1-Planleggingsmodell!$J$32)*C127^Planleggingsmodell!$J$32)/(Planleggingsmodell!$H$32^(1-Planleggingsmodell!$J$32)))^(1/Planleggingsmodell!$J$32) -> 1342328.038 | L127: =+Planleggingsmodell!$D$27/Planleggingsmodell!$D$25-Planleggingsmodell!$D$11/Planleggingsmodell!$D$25*C127 -> 666632
C128: 1150000 | D128: =IF($M$2="Ja",SjokkS*(Planleggingsmodell!$F$34+Planleggingsmodell!$H$34*((ArbeidTot-((((C128/SjokkK)^Planleggingsmodell!$J$33-Planleggingsmodell!$F$33)/Planleggingsmodell!$H$33)^(1/Planleggingsmodell!$J$33)))^Planleggingsmodell!$J$34))^(1/Planleggingsmodell!$J$34),-1000) -> -1000 | E128: =+SjokkS*(Planleggingsmodell!$F$34+Planleggingsmodell!$H$34*((ArbeidTot-((((C128/SjokkK-OljePenger/(SjokkK*PrisK))^Planleggingsmodell!$J$33-Planleggingsmodell!$F$33)/Planleggingsmodell!$H$33)^(1/Planleggingsmodell!$J$33)))^Planleggingsmodell!$J$34))^(1/Planleggingsmodell!$J$34) -> 2216015.982 | F128: =+((Planleggingsmodell!$C$32^Planleggingsmodell!$J$32-Planleggingsmodell!$F$32^(1-Planleggingsmodell!$J$32)*C128^Planleggingsmodell!$J$32)/(Planleggingsmodell!$H$32^(1-Planleggingsmodell!$J$32)))^(1/Planleggingsmodell!$J$32) -> 1341869.39 | G128: =+Planleggingsmodell!$C$27/Planleggingsmodell!$C$25-Planleggingsmodell!$D$11/Planleggingsmodell!$C$25*C128 -> 656632 | H128: =+IF($M$3="Ja",($H$6-Planleggingsmodell!$D$11*Figur!C128)/Planleggingsmodell!$C$25,-1000) -> -1000 | I128: =IF($M$2="ja",Planleggingsmodell!$D$14*(Planleggingsmodell!$F$34+Planleggingsmodell!$H$34*((ArbeidTot-((((C128/Planleggingsmodell!$D$13)^Planleggingsmodell!$J$33-Planleggingsmodell!$F$33)/Planleggingsmodell!$H$33)^(1/Planleggingsmodell!$J$33)))^Planleggingsmodell!$J$34))^(1/Planleggingsmodell!$J$34),-1000) -> -1000 | J128: =Planleggingsmodell!$D$14*(Planleggingsmodell!$F$34+Planleggingsmodell!$H$34*((ArbeidTot-((((C128/Planleggingsmodell!$D$13-OljePengerOrg/(Planleggingsmodell!$D$13*PrisK))^Planleggingsmodell!$J$33-Planleggingsmodell!$F$33)/Planleggingsmodell!$H$33)^(1/Planleggingsmodell!$J$33)))^Planleggingsmodell!$J$34))^(1/Planleggingsmodell!$J$34) -> 2216015.982 | K128: =+((Planleggingsmodell!$D$32^Planleggingsmodell!$J$32-Planleggingsmodell!$F$32^(1-Planleggingsmodell!$J$32)*C128^Planleggingsmodell!$J$32)/(Planleggingsmodell!$H$32^(1-Planleggingsmodell!$J$32)))^(1/Planleggingsmodell!$J$32) -> 1341869.39 | L128: =+Planleggingsmodell!$D$27/Planleggingsmodell!$D$25-Planleggingsmodell!$D$11/Planleggingsmodell!$D$25*C128 -> 656632
C129: 1160000 | D129: =IF($M$2="Ja",SjokkS*(Planleggingsmodell!$F$34+Planleggingsmodell!$H$34*((ArbeidTot-((((C129/SjokkK)^Planleggingsmodell!$J$33-Planleggingsmodell!$F$33)/Planleggingsmodell!$H$33)^(1/Planleggingsmodell!$J$33)))^Planleggingsmodell!$J$34))^(1/Planleggingsmodell!$J$34),-1000) -> -1000 | E129: =+SjokkS*(Planleggingsmodell!$F$34+Planleggingsmodell!$H$34*((ArbeidTot-((((C129/SjokkK-OljePenger/(SjokkK*PrisK))^Planleggingsmodell!$J$33-Planleggingsmodell!$F$33)/Planleggingsmodell!$H$33)^(1/Planleggingsmodell!$J$33)))^Planleggingsmodell!$J$34))^(1/Planleggingsmodell!$J$34) -> 2209892.521 | F129: =+((Planleggingsmodell!$C$32^Planleggingsmodell!$J$32-Planleggingsmodell!$F$32^(1-Planleggingsmodell!$J$32)*C129^Planleggingsmodell!$J$32)/(Planleggingsmodell!$H$32^(1-Planleggingsmodell!$J$32)))^(1/Planleggingsmodell!$J$32) -> 1341418.955 | G129: =+Planleggingsmodell!$C$27/Planleggingsmodell!$C$25-Planleggingsmodell!$D$11/Planleggingsmodell!$C$25*C129 -> 646632 | H129: =+IF($M$3="Ja",($H$6-Planleggingsmodell!$D$11*Figur!C129)/Planleggingsmodell!$C$25,-1000) -> -1000 | I129: =IF($M$2="ja",Planleggingsmodell!$D$14*(Planleggingsmodell!$F$34+Planleggingsmodell!$H$34*((ArbeidTot-((((C129/Planleggingsmodell!$D$13)^Planleggingsmodell!$J$33-Planleggingsmodell!$F$33)/Planleggingsmodell!$H$33)^(1/Planleggingsmodell!$J$33)))^Planleggingsmodell!$J$34))^(1/Planleggingsmodell!$J$34),-1000) -> -1000 | J129: =Planleggingsmodell!$D$14*(Planleggingsmodell!$F$34+Planleggingsmodell!$H$34*((ArbeidTot-((((C129/Planleggingsmodell!$D$13-OljePengerOrg/(Planleggingsmodell!$D$13*PrisK))^Planleggingsmodell!$J$33-Planleggingsmodell!$F$33)/Planleggingsmodell!$H$33)^(1/Planleggingsmodell!$J$33)))^Planleggingsmodell!$J$34))^(1/Planleggingsmodell!$J$34) -> 2209892.521 | K129: =+((Planleggingsmodell!$D$32^Planleggingsmodell!$J$32-Planleggingsmodell!$F$32^(1-Planleggingsmodell!$J$32)*C129^Planleggingsmodell!$J$32)/(Planleggingsmodell!$H$32^(1-Planleggingsmodell!$J$32)))^(1/Planleggingsmodell!$J$32) -> 1341418.955 | L129: =+Planleggingsmodell!$D$27/Planleggingsmodell!$D$25-Planleggingsmodell!$D$11/Planleggingsmodell!$D$25*C129 -> 646632
C130: 1170000 | D130: =IF($M$2="Ja",SjokkS*(Planleggingsmodell!$F$34+Planleggingsmodell!$H$34*((ArbeidTot-((((C130/SjokkK)^Planleggingsmodell!$J$33-Planleggingsmodell!$F$33)/Planleggingsmodell!$H$33)^(1/Planleggingsmodell!$J$33)))^Planleggingsmodell!$J$34))^(1/Planleggingsmodell!$J$34),-1000) -> -1000 | E130: =+SjokkS*(Planleggingsmodell!$F$34+Planleggingsmodell!$H$34*((ArbeidTot-((((C130/SjokkK-OljePenger/(SjokkK*PrisK))^Planleggingsmodell!$J$33-Planleggingsmodell!$F$33)/Planleggingsmodell!$H$33)^(1/Planleggingsmodell!$J$33)))^Planleggingsmodell!$J$34))^(1/Planleggingsmodell!$J$34) -> 2204010.903 | F130: =+((Planleggingsmodell!$C$32^Planleggingsmodell!$J$32-Planleggingsmodell!$F$32^(1-Planleggingsmodell!$J$32)*C130^Planleggingsmodell!$J$32)/(Planleggingsmodell!$H$32^(1-Planleggingsmodell!$J$32)))^(1/Planleggingsmodell!$J$32) -> 1340976.515 | G130: =+Planleggingsmodell!$C$27/Planleggingsmodell!$C$25-Planleggingsmodell!$D$11/Planleggingsmodell!$C$25*C130 -> 636632 | H130: =+IF($M$3="Ja",($H$6-Planleggingsmodell!$D$11*Figur!C130)/Planleggingsmodell!$C$25,-1000) -> -1000 | I130: =IF($M$2="ja",Planleggingsmodell!$D$14*(Planleggingsmodell!$F$34+Planleggingsmodell!$H$34*((ArbeidTot-((((C130/Planleggingsmodell!$D$13)^Planleggingsmodell!$J$33-Planleggingsmodell!$F$33)/Planleggingsmodell!$H$33)^(1/Planleggingsmodell!$J$33)))^Planleggingsmodell!$J$34))^(1/Planleggingsmodell!$J$34),-1000) -> -1000 | J130: =Planleggingsmodell!$D$14*(Planleggingsmodell!$F$34+Planleggingsmodell!$H$34*((ArbeidTot-((((C130/Planleggingsmodell!$D$13-OljePengerOrg/(Planleggingsmodell!$D$13*PrisK))^Planleggingsmodell!$J$33-Planleggingsmodell!$F$33)/Planleggingsmodell!$H$33)^(1/Planleggingsmodell!$J$33)))^Planleggingsmodell!$J$34))^(1/Planleggingsmodell!$J$34) -> 2204010.903 | K130: =+((Planleggingsmodell!$D$32^Planleggingsmodell!$J$32-Planleggingsmodell!$F$32^(1-Planleggingsmodell!$J$32)*C130^Planleggingsmodell!$J$32)/(Planleggingsmodell!$H$32^(1-Planleggingsmodell!$J$32)))^(1/Planleggingsmodell!$J$32) -> 1340976.515 | L130: =+Planleggingsmodell!$D$27/Planleggingsmodell!$D$25-Planleggingsmodell!$D$11/Planleggingsmodell!$D$25*C130 -> 636632
C131: 1180000 | D131: =IF($M$2="Ja",SjokkS*(Planleggingsmodell!$F$34+Planleggingsmodell!$H$34*((ArbeidTot-((((C131/SjokkK)^Planleggingsmodell!$J$33-Planleggingsmodell!$F$33)/Planleggingsmodell!$H$33)^(1/Planleggingsmodell!$J$33)))^Planleggingsmodell!$J$34))^(1/Planleggingsmodell!$J$34),-1000) -> -1000 | E131: =+SjokkS*(Planleggingsmodell!$F$34+Planleggingsmodell!$H$34*((ArbeidTot-((((C131/SjokkK-OljePenger/(SjokkK*PrisK))^Planleggingsmodell!$J$33-Planleggingsmodell!$F$33)/Planleggingsmodell!$H$33)^(1/Planleggingsmodell!$J$33)))^Planleggingsmodell!$J$34))^(1/Planleggingsmodell!$J$34) -> 2198357.08 | F131: =+((Planleggingsmodell!$C$32^Planleggingsmodell!$J$32-Planleggingsmodell!$F$32^(1-Planleggingsmodell!$J$32)*C131^Planleggingsmodell!$J$32)/(Planleggingsmodell!$H$32^(1-Planleggingsmodell!$J$32)))^(1/Planleggingsmodell!$J$32) -> 1340541.858 | G131: =+Planleggingsmodell!$C$27/Planleggingsmodell!$C$25-Planleggingsmodell!$D$11/Planleggingsmodell!$C$25*C131 -> 626632 | H131: =+IF($M$3="Ja",($H$6-Planleggingsmodell!$D$11*Figur!C131)/Planleggingsmodell!$C$25,-1000) -> -1000 | I131: =IF($M$2="ja",Planleggingsmodell!$D$14*(Planleggingsmodell!$F$34+Planleggingsmodell!$H$34*((ArbeidTot-((((C131/Planleggingsmodell!$D$13)^Planleggingsmodell!$J$33-Planleggingsmodell!$F$33)/Planleggingsmodell!$H$33)^(1/Planleggingsmodell!$J$33)))^Planleggingsmodell!$J$34))^(1/Planleggingsmodell!$J$34),-1000) -> -1000 | J131: =Planleggingsmodell!$D$14*(Planleggingsmodell!$F$34+Planleggingsmodell!$H$34*((ArbeidTot-((((C131/Planleggingsmodell!$D$13-OljePengerOrg/(Planleggingsmodell!$D$13*PrisK))^Planleggingsmodell!$J$33-Planleggingsmodell!$F$33)/Planleggingsmodell!$H$33)^(1/Planleggingsmodell!$J$33)))^Planleggingsmodell!$J$34))^(1/Planleggingsmodell!$J$34) -> 2198357.08 | K131: =+((Planleggingsmodell!$D$32^Planleggingsmodell!$J$32-Planleggingsmodell!$F$32^(1-Planleggingsmodell!$J$32)*C131^Planleggingsmodell!$J$32)/(Planleggingsmodell!$H$32^(1-Planleggingsmodell!$J$32)))^(1/Planleggingsmodell!$J$32) -> 1340541.858 | L131: =+Planleggingsmodell!$D$27/Planleggingsmodell!$D$25-Planleggingsmodell!$D$11/Planleggingsmodell!$D$25*C131 -> 626632
C132: 1190000 | D132: =IF($M$2="Ja",SjokkS*(Planleggingsmodell!$F$34+Planleggingsmodell!$H$34*((ArbeidTot-((((C132/SjokkK)^Planleggingsmodell!$J$33-Planleggingsmodell!$F$33)/Planleggingsmodell!$H$33)^(1/Planleggingsmodell!$J$33)))^Planleggingsmodell!$J$34))^(1/Planleggingsmodell!$J$34),-1000) -> -1000 | E132: =+SjokkS*(Planleggingsmodell!$F$34+Planleggingsmodell!$H$34*((ArbeidTot-((((C132/SjokkK-OljePenger/(SjokkK*PrisK))^Planleggingsmodell!$J$33-Planleggingsmodell!$F$33)/Planleggingsmodell!$H$33)^(1/Planleggingsmodell!$J$33)))^Planleggingsmodell!$J$34))^(1/Planleggingsmodell!$J$34) -> 2192918.07 | F132: =+((Planleggingsmodell!$C$32^Planleggingsmodell!$J$32-Planleggingsmodell!$F$32^(1-Planleggingsmodell!$J$32)*C132^Planleggingsmodell!$J$32)/(Planleggingsmodell!$H$32^(1-Planleggingsmodell!$J$32)))^(1/Planleggingsmodell!$J$32) -> 1340114.78 | G132: =+Planleggingsmodell!$C$27/Planleggingsmodell!$C$25-Planleggingsmodell!$D$11/Planleggingsmodell!$C$25*C132 -> 616632 | H132: =+IF($M$3="Ja",($H$6-Planleggingsmodell!$D$11*Figur!C132)/Planleggingsmodell!$C$25,-1000) -> -1000 | I132: =IF($M$2="ja",Planleggingsmodell!$D$14*(Planleggingsmodell!$F$34+Planleggingsmodell!$H$34*((ArbeidTot-((((C132/Planleggingsmodell!$D$13)^Planleggingsmodell!$J$33-Planleggingsmodell!$F$33)/Planleggingsmodell!$H$33)^(1/Planleggingsmodell!$J$33)))^Planleggingsmodell!$J$34))^(1/Planleggingsmodell!$J$34),-1000) -> -1000 | J132: =Planleggingsmodell!$D$14*(Planleggingsmodell!$F$34+Planleggingsmodell!$H$34*((ArbeidTot-((((C132/Planleggingsmodell!$D$13-OljePengerOrg/(Planleggingsmodell!$D$13*PrisK))^Planleggingsmodell!$J$33-Planleggingsmodell!$F$33)/Planleggingsmodell!$H$33)^(1/Planleggingsmodell!$J$33)))^Planleggingsmodell!$J$34))^(1/Planleggingsmodell!$J$34) -> 2192918.07 | K132: =+((Planleggingsmodell!$D$32^Planleggingsmodell!$J$32-Planleggingsmodell!$F$32^(1-Planleggingsmodell!$J$32)*C132^Planleggingsmodell!$J$32)/(Planleggingsmodell!$H$32^(1-Planleggingsmodell!$J$32)))^(1/Planleggingsmodell!$J$32) -> 1340114.78 | L132: =+Planleggingsmodell!$D$27/Planleggingsmodell!$D$25-Planleggingsmodell!$D$11/Planleggingsmodell!$D$25*C132 -> 616632
C133: 1200000 | D133: =IF($M$2="Ja",SjokkS*(Planleggingsmodell!$F$34+Planleggingsmodell!$H$34*((ArbeidTot-((((C133/SjokkK)^Planleggingsmodell!$J$33-Planleggingsmodell!$F$33)/Planleggingsmodell!$H$33)^(1/Planleggingsmodell!$J$33)))^Planleggingsmodell!$J$34))^(1/Planleggingsmodell!$J$34),-1000) -> -1000 | E133: =+SjokkS*(Planleggingsmodell!$F$34+Planleggingsmodell!$H$34*((ArbeidTot-((((C133/SjokkK-OljePenger/(SjokkK*PrisK))^Planleggingsmodell!$J$33-Planleggingsmodell!$F$33)/Planleggingsmodell!$H$33)^(1/Planleggingsmodell!$J$33)))^Planleggingsmodell!$J$34))^(1/Planleggingsmodell!$J$34) -> 2187681.858 | F133: =+((Planleggingsmodell!$C$32^Planleggingsmodell!$J$32-Planleggingsmodell!$F$32^(1-Planleggingsmodell!$J$32)*C133^Planleggingsmodell!$J$32)/(Planleggingsmodell!$H$32^(1-Planleggingsmodell!$J$32)))^(1/Planleggingsmodell!$J$32) -> 1339695.086 | G133: =+Planleggingsmodell!$C$27/Planleggingsmodell!$C$25-Planleggingsmodell!$D$11/Planleggingsmodell!$C$25*C133 -> 606632 | H133: =+IF($M$3="Ja",($H$6-Planleggingsmodell!$D$11*Figur!C133)/Planleggingsmodell!$C$25,-1000) -> -1000 | I133: =IF($M$2="ja",Planleggingsmodell!$D$14*(Planleggingsmodell!$F$34+Planleggingsmodell!$H$34*((ArbeidTot-((((C133/Planleggingsmodell!$D$13)^Planleggingsmodell!$J$33-Planleggingsmodell!$F$33)/Planleggingsmodell!$H$33)^(1/Planleggingsmodell!$J$33)))^Planleggingsmodell!$J$34))^(1/Planleggingsmodell!$J$34),-1000) -> -1000 | J133: =Planleggingsmodell!$D$14*(Planleggingsmodell!$F$34+Planleggingsmodell!$H$34*((ArbeidTot-((((C133/Planleggingsmodell!$D$13-OljePengerOrg/(Planleggingsmodell!$D$13*PrisK))^Planleggingsmodell!$J$33-Planleggingsmodell!$F$33)/Planleggingsmodell!$H$33)^(1/Planleggingsmodell!$J$33)))^Planleggingsmodell!$J$34))^(1/Planleggingsmodell!$J$34) -> 2187681.858 | K133: =+((Planleggingsmodell!$D$32^Planleggingsmodell!$J$32-Planleggingsmodell!$F$32^(1-Planleggingsmodell!$J$32)*C133^Planleggingsmodell!$J$32)/(Planleggingsmodell!$H$32^(1-Planleggingsmodell!$J$32)))^(1/Planleggingsmodell!$J$32) -> 1339695.086 | L133: =+Planleggingsmodell!$D$27/Planleggingsmodell!$D$25-Planleggingsmodell!$D$11/Planleggingsmodell!$D$25*C133 -> 606632
C134: 1210000 | D134: =IF($M$2="Ja",SjokkS*(Planleggingsmodell!$F$34+Planleggingsmodell!$H$34*((ArbeidTot-((((C134/SjokkK)^Planleggingsmodell!$J$33-Planleggingsmodell!$F$33)/Planleggingsmodell!$H$33)^(1/Planleggingsmodell!$J$33)))^Planleggingsmodell!$J$34))^(1/Planleggingsmodell!$J$34),-1000) -> -1000 | E134: =+SjokkS*(Planleggingsmodell!$F$34+Planleggingsmodell!$H$34*((ArbeidTot-((((C134/SjokkK-OljePenger/(SjokkK*PrisK))^Planleggingsmodell!$J$33-Planleggingsmodell!$F$33)/Planleggingsmodell!$H$33)^(1/Planleggingsmodell!$J$33)))^Planleggingsmodell!$J$34))^(1/Planleggingsmodell!$J$34) -> 2182637.309 | F134: =+((Planleggingsmodell!$C$32^Planleggingsmodell!$J$32-Planleggingsmodell!$F$32^(1-Planleggingsmodell!$J$32)*C134^Planleggingsmodell!$J$32)/(Planleggingsmodell!$H$32^(1-Planleggingsmodell!$J$32)))^(1/Planleggingsmodell!$J$32) -> 1339282.585 | G134: =+Planleggingsmodell!$C$27/Planleggingsmodell!$C$25-Planleggingsmodell!$D$11/Planleggingsmodell!$C$25*C134 -> 596632 | H134: =+IF($M$3="Ja",($H$6-Planleggingsmodell!$D$11*Figur!C134)/Planleggingsmodell!$C$25,-1000) -> -1000 | I134: =IF($M$2="ja",Planleggingsmodell!$D$14*(Planleggingsmodell!$F$34+Planleggingsmodell!$H$34*((ArbeidTot-((((C134/Planleggingsmodell!$D$13)^Planleggingsmodell!$J$33-Planleggingsmodell!$F$33)/Planleggingsmodell!$H$33)^(1/Planleggingsmodell!$J$33)))^Planleggingsmodell!$J$34))^(1/Planleggingsmodell!$J$34),-1000) -> -1000 | J134: =Planleggingsmodell!$D$14*(Planleggingsmodell!$F$34+Planleggingsmodell!$H$34*((ArbeidTot-((((C134/Planleggingsmodell!$D$13-OljePengerOrg/(Planleggingsmodell!$D$13*PrisK))^Planleggingsmodell!$J$33-Planleggingsmodell!$F$33)/Planleggingsmodell!$H$33)^(1/Planleggingsmodell!$J$33)))^Planleggingsmodell!$J$34))^(1/Planleggingsmodell!$J$34) -> 2182637.309 | K134: =+((Planleggingsmodell!$D$32^Planleggingsmodell!$J$32-Planleggingsmodell!$F$32^(1-Planleggingsmodell!$J$32)*C134^Planleggingsmodell!$J$32)/(Planleggingsmodell!$H$32^(1-Planleggingsmodell!$J$32)))^(1/Planleggingsmodell!$J$32) -> 1339282.585 | L134: =+Planleggingsmodell!$D$27/Planleggingsmodell!$D$25-Planleggingsmodell!$D$11/Planleggingsmodell!$D$25*C134 -> 596632
C135: 1220000 | D135: =IF($M$2="Ja",SjokkS*(Planleggingsmodell!$F$34+Planleggingsmodell!$H$34*((ArbeidTot-((((C135/SjokkK)^Planleggingsmodell!$J$33-Planleggingsmodell!$F$33)/Planleggingsmodell!$H$33)^(1/Planleggingsmodell!$J$33)))^Planleggingsmodell!$J$34))^(1/Planleggingsmodell!$J$34),-1000) -> -1000 | E135: =+SjokkS*(Planleggingsmodell!$F$34+Planleggingsmodell!$H$34*((ArbeidTot-((((C135/SjokkK-OljePenger/(SjokkK*PrisK))^Planleggingsmodell!$J$33-Planleggingsmodell!$F$33)/Planleggingsmodell!$H$33)^(1/Planleggingsmodell!$J$33)))^Planleggingsmodell!$J$34))^(1/Planleggingsmodell!$J$34) -> 2177774.089 | F135: =+((Planleggingsmodell!$C$32^Planleggingsmodell!$J$32-Planleggingsmodell!$F$32^(1-Planleggingsmodell!$J$32)*C135^Planleggingsmodell!$J$32)/(Planleggingsmodell!$H$32^(1-Planleggingsmodell!$J$32)))^(1/Planleggingsmodell!$J$32) -> 1338877.094 | G135: =+Planleggingsmodell!$C$27/Planleggingsmodell!$C$25-Planleggingsmodell!$D$11/Planleggingsmodell!$C$25*C135 -> 586632 | H135: =+IF($M$3="Ja",($H$6-Planleggingsmodell!$D$11*Figur!C135)/Planleggingsmodell!$C$25,-1000) -> -1000 | I135: =IF($M$2="ja",Planleggingsmodell!$D$14*(Planleggingsmodell!$F$34+Planleggingsmodell!$H$34*((ArbeidTot-((((C135/Planleggingsmodell!$D$13)^Planleggingsmodell!$J$33-Planleggingsmodell!$F$33)/Planleggingsmodell!$H$33)^(1/Planleggingsmodell!$J$33)))^Planleggingsmodell!$J$34))^(1/Planleggingsmodell!$J$34),-1000) -> -1000 | J135: =Planleggingsmodell!$D$14*(Planleggingsmodell!$F$34+Planleggingsmodell!$H$34*((ArbeidTot-((((C135/Planleggingsmodell!$D$13-OljePengerOrg/(Planleggingsmodell!$D$13*PrisK))^Planleggingsmodell!$J$33-Planleggingsmodell!$F$33)/Planleggingsmodell!$H$33)^(1/Planleggingsmodell!$J$33)))^Planleggingsmodell!$J$34))^(1/Planleggingsmodell!$J$34) -> 2177774.089 | K135: =+((Planleggingsmodell!$D$32^Planleggingsmodell!$J$32-Planleggingsmodell!$F$32^(1-Planleggingsmodell!$J$32)*C135^Planleggingsmodell!$J$32)/(Planleggingsmodell!$H$32^(1-Planleggingsmodell!$J$32)))^(1/Planleggingsmodell!$J$32) -> 1338877.094 | L135: =+Planleggingsmodell!$D$27/Planleggingsmodell!$D$25-Planleggingsmodell!$D$11/Planleggingsmodell!$D$25*C135 -> 586632
C136: 1230000 | D136: =IF($M$2="Ja",SjokkS*(Planleggingsmodell!$F$34+Planleggingsmodell!$H$34*((ArbeidTot-((((C136/SjokkK)^Planleggingsmodell!$J$33-Planleggingsmodell!$F$33)/Planleggingsmodell!$H$33)^(1/Planleggingsmodell!$J$33)))^Planleggingsmodell!$J$34))^(1/Planleggingsmodell!$J$34),-1000) -> -1000 | E136: =+SjokkS*(Planleggingsmodell!$F$34+Planleggingsmodell!$H$34*((ArbeidTot-((((C136/SjokkK-OljePenger/(SjokkK*PrisK))^Planleggingsmodell!$J$33-Planleggingsmodell!$F$33)/Planleggingsmodell!$H$33)^(1/Planleggingsmodell!$J$33)))^Planleggingsmodell!$J$34))^(1/Planleggingsmodell!$J$34) -> 2173082.594 | F136: =+((Planleggingsmodell!$C$32^Planleggingsmodell!$J$32-Planleggingsmodell!$F$32^(1-Planleggingsmodell!$J$32)*C136^Planleggingsmodell!$J$32)/(Planleggingsmodell!$H$32^(1-Planleggingsmodell!$J$32)))^(1/Planleggingsmodell!$J$32) -> 1338478.436 | G136: =+Planleggingsmodell!$C$27/Planleggingsmodell!$C$25-Planleggingsmodell!$D$11/Planleggingsmodell!$C$25*C136 -> 576632 | H136: =+IF($M$3="Ja",($H$6-Planleggingsmodell!$D$11*Figur!C136)/Planleggingsmodell!$C$25,-1000) -> -1000 | I136: =IF($M$2="ja",Planleggingsmodell!$D$14*(Planleggingsmodell!$F$34+Planleggingsmodell!$H$34*((ArbeidTot-((((C136/Planleggingsmodell!$D$13)^Planleggingsmodell!$J$33-Planleggingsmodell!$F$33)/Planleggingsmodell!$H$33)^(1/Planleggingsmodell!$J$33)))^Planleggingsmodell!$J$34))^(1/Planleggingsmodell!$J$34),-1000) -> -1000 | J136: =Planleggingsmodell!$D$14*(Planleggingsmodell!$F$34+Planleggingsmodell!$H$34*((ArbeidTot-((((C136/Planleggingsmodell!$D$13-OljePengerOrg/(Planleggingsmodell!$D$13*PrisK))^Planleggingsmodell!$J$33-Planleggingsmodell!$F$33)/Planleggingsmodell!$H$33)^(1/Planleggingsmodell!$J$33)))^Planleggingsmodell!$J$34))^(1/Planleggingsmodell!$J$34) -> 2173082.594 | K136: =+((Planleggingsmodell!$D$32^Planleggingsmodell!$J$32-Planleggingsmodell!$F$32^(1-Planleggingsmodell!$J$32)*C136^Planleggingsmodell!$J$32)/(Planleggingsmodell!$H$32^(1-Planleggingsmodell!$J$32)))^(1/Planleggingsmodell!$J$32) -> 1338478.436 | L136: =+Planleggingsmodell!$D$27/Planleggingsmodell!$D$25-Planleggingsmodell!$D$11/Planleggingsmodell!$D$25*C136 -> 576632
C137: 1240000 | D137: =IF($M$2="Ja",SjokkS*(Planleggingsmodell!$F$34+Planleggingsmodell!$H$34*((ArbeidTot-((((C137/SjokkK)^Planleggingsmodell!$J$33-Planleggingsmodell!$F$33)/Planleggingsmodell!$H$33)^(1/Planleggingsmodell!$J$33)))^Planleggingsmodell!$J$34))^(1/Planleggingsmodell!$J$34),-1000) -> -1000 | E137: =+SjokkS*(Planleggingsmodell!$F$34+Planleggingsmodell!$H$34*((ArbeidTot-((((C137/SjokkK-OljePenger/(SjokkK*PrisK))^Planleggingsmodell!$J$33-Planleggingsmodell!$F$33)/Planleggingsmodell!$H$33)^(1/Planleggingsmodell!$J$33)))^Planleggingsmodell!$J$34))^(1/Planleggingsmodell!$J$34) -> 2168553.887 | F137: =+((Planleggingsmodell!$C$32^Planleggingsmodell!$J$32-Planleggingsmodell!$F$32^(1-Planleggingsmodell!$J$32)*C137^Planleggingsmodell!$J$32)/(Planleggingsmodell!$H$32^(1-Planleggingsmodell!$J$32)))^(1/Planleggingsmodell!$J$32) -> 1338086.44 | G137: =+Planleggingsmodell!$C$27/Planleggingsmodell!$C$25-Planleggingsmodell!$D$11/Planleggingsmodell!$C$25*C137 -> 566632 | H137: =+IF($M$3="Ja",($H$6-Planleggingsmodell!$D$11*Figur!C137)/Planleggingsmodell!$C$25,-1000) -> -1000 | I137: =IF($M$2="ja",Planleggingsmodell!$D$14*(Planleggingsmodell!$F$34+Planleggingsmodell!$H$34*((ArbeidTot-((((C137/Planleggingsmodell!$D$13)^Planleggingsmodell!$J$33-Planleggingsmodell!$F$33)/Planleggingsmodell!$H$33)^(1/Planleggingsmodell!$J$33)))^Planleggingsmodell!$J$34))^(1/Planleggingsmodell!$J$34),-1000) -> -1000 | J137: =Planleggingsmodell!$D$14*(Planleggingsmodell!$F$34+Planleggingsmodell!$H$34*((ArbeidTot-((((C137/Planleggingsmodell!$D$13-OljePengerOrg/(Planleggingsmodell!$D$13*PrisK))^Planleggingsmodell!$J$33-Planleggingsmodell!$F$33)/Planleggingsmodell!$H$33)^(1/Planleggingsmodell!$J$33)))^Planleggingsmodell!$J$34))^(1/Planleggingsmodell!$J$34) -> 2168553.887 | K137: =+((Planleggingsmodell!$D$32^Planleggingsmodell!$J$32-Planleggingsmodell!$F$32^(1-Planleggingsmodell!$J$32)*C137^Planleggingsmodell!$J$32)/(Planleggingsmodell!$H$32^(1-Planleggingsmodell!$J$32)))^(1/Planleggingsmodell!$J$32) -> 1338086.44 | L137: =+Planleggingsmodell!$D$27/Planleggingsmodell!$D$25-Planleggingsmodell!$D$11/Planleggingsmodell!$D$25*C137 -> 566632
C138: 1250000 | D138: =IF($M$2="Ja",SjokkS*(Planleggingsmodell!$F$34+Planleggingsmodell!$H$34*((ArbeidTot-((((C138/SjokkK)^Planleggingsmodell!$J$33-Planleggingsmodell!$F$33)/Planleggingsmodell!$H$33)^(1/Planleggingsmodell!$J$33)))^Planleggingsmodell!$J$34))^(1/Planleggingsmodell!$J$34),-1000) -> -1000 | E138: =+SjokkS*(Planleggingsmodell!$F$34+Planleggingsmodell!$H$34*((ArbeidTot-((((C138/SjokkK-OljePenger/(SjokkK*PrisK))^Planleggingsmodell!$J$33-Planleggingsmodell!$F$33)/Planleggingsmodell!$H$33)^(1/Planleggingsmodell!$J$33)))^Planleggingsmodell!$J$34))^(1/Planleggingsmodell!$J$34) -> 2164179.638 | F138: =+((Planleggingsmodell!$C$32^Planleggingsmodell!$J$32-Planleggingsmodell!$F$32^(1-Planleggingsmodell!$J$32)*C138^Planleggingsmodell!$J$32)/(Planleggingsmodell!$H$32^(1-Planleggingsmodell!$J$32)))^(1/Planleggingsmodell!$J$32) -> 1337700.94 | G138: =+Planleggingsmodell!$C$27/Planleggingsmodell!$C$25-Planleggingsmodell!$D$11/Planleggingsmodell!$C$25*C138 -> 556632 | H138: =+IF($M$3="Ja",($H$6-Planleggingsmodell!$D$11*Figur!C138)/Planleggingsmodell!$C$25,-1000) -> -1000 | I138: =IF($M$2="ja",Planleggingsmodell!$D$14*(Planleggingsmodell!$F$34+Planleggingsmodell!$H$34*((ArbeidTot-((((C138/Planleggingsmodell!$D$13)^Planleggingsmodell!$J$33-Planleggingsmodell!$F$33)/Planleggingsmodell!$H$33)^(1/Planleggingsmodell!$J$33)))^Planleggingsmodell!$J$34))^(1/Planleggingsmodell!$J$34),-1000) -> -1000 | J138: =Planleggingsmodell!$D$14*(Planleggingsmodell!$F$34+Planleggingsmodell!$H$34*((ArbeidTot-((((C138/Planleggingsmodell!$D$13-OljePengerOrg/(Planleggingsmodell!$D$13*PrisK))^Planleggingsmodell!$J$33-Planleggingsmodell!$F$33)/Planleggingsmodell!$H$33)^(1/Planleggingsmodell!$J$33)))^Planleggingsmodell!$J$34))^(1/Planleggingsmodell!$J$34) -> 2164179.638 | K138: =+((Planleggingsmodell!$D$32^Planleggingsmodell!$J$32-Planleggingsmodell!$F$32^(1-Planleggingsmodell!$J$32)*C138^Planleggingsmodell!$J$32)/(Planleggingsmodell!$H$32^(1-Planleggingsmodell!$J$32)))^(1/Planleggingsmodell!$J$32) -> 1337700.94 | L138: =+Planleggingsmodell!$D$27/Planleggingsmodell!$D$25-Planleggingsmodell!$D$11/Planleggingsmodell!$D$25*C138 -> 556632
C139: 1260000 | D139: =IF($M$2="Ja",SjokkS*(Planleggingsmodell!$F$34+Planleggingsmodell!$H$34*((ArbeidTot-((((C139/SjokkK)^Planleggingsmodell!$J$33-Planleggingsmodell!$F$33)/Planleggingsmodell!$H$33)^(1/Planleggingsmodell!$J$33)))^Planleggingsmodell!$J$34))^(1/Planleggingsmodell!$J$34),-1000) -> -1000 | E139: =+SjokkS*(Planleggingsmodell!$F$34+Planleggingsmodell!$H$34*((ArbeidTot-((((C139/SjokkK-OljePenger/(SjokkK*PrisK))^Planleggingsmodell!$J$33-Planleggingsmodell!$F$33)/Planleggingsmodell!$H$33)^(1/Planleggingsmodell!$J$33)))^Planleggingsmodell!$J$34))^(1/Planleggingsmodell!$J$34) -> 2159952.078 | F139: =+((Planleggingsmodell!$C$32^Planleggingsmodell!$J$32-Planleggingsmodell!$F$32^(1-Planleggingsmodell!$J$32)*C139^Planleggingsmodell!$J$32)/(Planleggingsmodell!$H$32^(1-Planleggingsmodell!$J$32)))^(1/Planleggingsmodell!$J$32) -> 1337321.775 | G139: =+Planleggingsmodell!$C$27/Planleggingsmodell!$C$25-Planleggingsmodell!$D$11/Planleggingsmodell!$C$25*C139 -> 546632 | H139: =+IF($M$3="Ja",($H$6-Planleggingsmodell!$D$11*Figur!C139)/Planleggingsmodell!$C$25,-1000) -> -1000 | I139: =IF($M$2="ja",Planleggingsmodell!$D$14*(Planleggingsmodell!$F$34+Planleggingsmodell!$H$34*((ArbeidTot-((((C139/Planleggingsmodell!$D$13)^Planleggingsmodell!$J$33-Planleggingsmodell!$F$33)/Planleggingsmodell!$H$33)^(1/Planleggingsmodell!$J$33)))^Planleggingsmodell!$J$34))^(1/Planleggingsmodell!$J$34),-1000) -> -1000 | J139: =Planleggingsmodell!$D$14*(Planleggingsmodell!$F$34+Planleggingsmodell!$H$34*((ArbeidTot-((((C139/Planleggingsmodell!$D$13-OljePengerOrg/(Planleggingsmodell!$D$13*PrisK))^Planleggingsmodell!$J$33-Planleggingsmodell!$F$33)/Planleggingsmodell!$H$33)^(1/Planleggingsmodell!$J$33)))^Planleggingsmodell!$J$34))^(1/Planleggingsmodell!$J$34) -> 2159952.078 | K139: =+((Planleggingsmodell!$D$32^Planleggingsmodell!$J$32-Planleggingsmodell!$F$32^(1-Planleggingsmodell!$J$32)*C139^Planleggingsmodell!$J$32)/(Planleggingsmodell!$H$32^(1-Planleggingsmodell!$J$32)))^(1/Planleggingsmodell!$J$32) -> 1337321.775 | L139: =+Planleggingsmodell!$D$27/Planleggingsmodell!$D$25-Planleggingsmodell!$D$11/Planleggingsmodell!$D$25*C139 -> 546632
C140: 1270000 | D140: =IF($M$2="Ja",SjokkS*(Planleggingsmodell!$F$34+Planleggingsmodell!$H$34*((ArbeidTot-((((C140/SjokkK)^Planleggingsmodell!$J$33-Planleggingsmodell!$F$33)/Planleggingsmodell!$H$33)^(1/Planleggingsmodell!$J$33)))^Planleggingsmodell!$J$34))^(1/Planleggingsmodell!$J$34),-1000) -> -1000 | E140: =+SjokkS*(Planleggingsmodell!$F$34+Planleggingsmodell!$H$34*((ArbeidTot-((((C140/SjokkK-OljePenger/(SjokkK*PrisK))^Planleggingsmodell!$J$33-Planleggingsmodell!$F$33)/Planleggingsmodell!$H$33)^(1/Planleggingsmodell!$J$33)))^Planleggingsmodell!$J$34))^(1/Planleggingsmodell!$J$34) -> 2155863.951 | F140: =+((Planleggingsmodell!$C$32^Planleggingsmodell!$J$32-Planleggingsmodell!$F$32^(1-Planleggingsmodell!$J$32)*C140^Planleggingsmodell!$J$32)/(Planleggingsmodell!$H$32^(1-Planleggingsmodell!$J$32)))^(1/Planleggingsmodell!$J$32) -> 1336948.791 | G140: =+Planleggingsmodell!$C$27/Planleggingsmodell!$C$25-Planleggingsmodell!$D$11/Planleggingsmodell!$C$25*C140 -> 536632 | H140: =+IF($M$3="Ja",($H$6-Planleggingsmodell!$D$11*Figur!C140)/Planleggingsmodell!$C$25,-1000) -> -1000 | I140: =IF($M$2="ja",Planleggingsmodell!$D$14*(Planleggingsmodell!$F$34+Planleggingsmodell!$H$34*((ArbeidTot-((((C140/Planleggingsmodell!$D$13)^Planleggingsmodell!$J$33-Planleggingsmodell!$F$33)/Planleggingsmodell!$H$33)^(1/Planleggingsmodell!$J$33)))^Planleggingsmodell!$J$34))^(1/Planleggingsmodell!$J$34),-1000) -> -1000 | J140: =Planleggingsmodell!$D$14*(Planleggingsmodell!$F$34+Planleggingsmodell!$H$34*((ArbeidTot-((((C140/Planleggingsmodell!$D$13-OljePengerOrg/(Planleggingsmodell!$D$13*PrisK))^Planleggingsmodell!$J$33-Planleggingsmodell!$F$33)/Planleggingsmodell!$H$33)^(1/Planleggingsmodell!$J$33)))^Planleggingsmodell!$J$34))^(1/Planleggingsmodell!$J$34) -> 2155863.951 | K140: =+((Planleggingsmodell!$D$32^Planleggingsmodell!$J$32-Planleggingsmodell!$F$32^(1-Planleggingsmodell!$J$32)*C140^Planleggingsmodell!$J$32)/(Planleggingsmodell!$H$32^(1-Planleggingsmodell!$J$32)))^(1/Planleggingsmodell!$J$32) -> 1336948.791 | L140: =+Planleggingsmodell!$D$27/Planleggingsmodell!$D$25-Planleggingsmodell!$D$11/Planleggingsmodell!$D$25*C140 -> 536632
C141: 1280000 | D141: =IF($M$2="Ja",SjokkS*(Planleggingsmodell!$F$34+Planleggingsmodell!$H$34*((ArbeidTot-((((C141/SjokkK)^Planleggingsmodell!$J$33-Planleggingsmodell!$F$33)/Planleggingsmodell!$H$33)^(1/Planleggingsmodell!$J$33)))^Planleggingsmodell!$J$34))^(1/Planleggingsmodell!$J$34),-1000) -> -1000 | E141: =+SjokkS*(Planleggingsmodell!$F$34+Planleggingsmodell!$H$34*((ArbeidTot-((((C141/SjokkK-OljePenger/(SjokkK*PrisK))^Planleggingsmodell!$J$33-Planleggingsmodell!$F$33)/Planleggingsmodell!$H$33)^(1/Planleggingsmodell!$J$33)))^Planleggingsmodell!$J$34))^(1/Planleggingsmodell!$J$34) -> 2151908.47 | F141: =+((Planleggingsmodell!$C$32^Planleggingsmodell!$J$32-Planleggingsmodell!$F$32^(1-Planleggingsmodell!$J$32)*C141^Planleggingsmodell!$J$32)/(Planleggingsmodell!$H$32^(1-Planleggingsmodell!$J$32)))^(1/Planleggingsmodell!$J$32) -> 1336581.839 | G141: =+Planleggingsmodell!$C$27/Planleggingsmodell!$C$25-Planleggingsmodell!$D$11/Planleggingsmodell!$C$25*C141 -> 526632 | H141: =+IF($M$3="Ja",($H$6-Planleggingsmodell!$D$11*Figur!C141)/Planleggingsmodell!$C$25,-1000) -> -1000 | I141: =IF($M$2="ja",Planleggingsmodell!$D$14*(Planleggingsmodell!$F$34+Planleggingsmodell!$H$34*((ArbeidTot-((((C141/Planleggingsmodell!$D$13)^Planleggingsmodell!$J$33-Planleggingsmodell!$F$33)/Planleggingsmodell!$H$33)^(1/Planleggingsmodell!$J$33)))^Planleggingsmodell!$J$34))^(1/Planleggingsmodell!$J$34),-1000) -> -1000 | J141: =Planleggingsmodell!$D$14*(Planleggingsmodell!$F$34+Planleggingsmodell!$H$34*((ArbeidTot-((((C141/Planleggingsmodell!$D$13-OljePengerOrg/(Planleggingsmodell!$D$13*PrisK))^Planleggingsmodell!$J$33-Planleggingsmodell!$F$33)/Planleggingsmodell!$H$33)^(1/Planleggingsmodell!$J$33)))^Planleggingsmodell!$J$34))^(1/Planleggingsmodell!$J$34) -> 2151908.47 | K141: =+((Planleggingsmodell!$D$32^Planleggingsmodell!$J$32-Planleggingsmodell!$F$32^(1-Planleggingsmodell!$J$32)*C141^Planleggingsmodell!$J$32)/(Planleggingsmodell!$H$32^(1-Planleggingsmodell!$J$32)))^(1/Planleggingsmodell!$J$32) -> 1336581.839 | L141: =+Planleggingsmodell!$D$27/Planleggingsmodell!$D$25-Planleggingsmodell!$D$11/Planleggingsmodell!$D$25*C141 -> 526632
C142: 1290000 | D142: =IF($M$2="Ja",SjokkS*(Planleggingsmodell!$F$34+Planleggingsmodell!$H$34*((ArbeidTot-((((C142/SjokkK)^Planleggingsmodell!$J$33-Planleggingsmodell!$F$33)/Planleggingsmodell!$H$33)^(1/Planleggingsmodell!$J$33)))^Planleggingsmodell!$J$34))^(1/Planleggingsmodell!$J$34),-1000) -> -1000 | E142: =+SjokkS*(Planleggingsmodell!$F$34+Planleggingsmodell!$H$34*((ArbeidTot-((((C142/SjokkK-OljePenger/(SjokkK*PrisK))^Planleggingsmodell!$J$33-Planleggingsmodell!$F$33)/Planleggingsmodell!$H$33)^(1/Planleggingsmodell!$J$33)))^Planleggingsmodell!$J$34))^(1/Planleggingsmodell!$J$34) -> 2148079.281 | F142: =+((Planleggingsmodell!$C$32^Planleggingsmodell!$J$32-Planleggingsmodell!$F$32^(1-Planleggingsmodell!$J$32)*C142^Planleggingsmodell!$J$32)/(Planleggingsmodell!$H$32^(1-Planleggingsmodell!$J$32)))^(1/Planleggingsmodell!$J$32) -> 1336220.772 | G142: =+Planleggingsmodell!$C$27/Planleggingsmodell!$C$25-Planleggingsmodell!$D$11/Planleggingsmodell!$C$25*C142 -> 516632 | H142: =+IF($M$3="Ja",($H$6-Planleggingsmodell!$D$11*Figur!C142)/Planleggingsmodell!$C$25,-1000) -> -1000 | I142: =IF($M$2="ja",Planleggingsmodell!$D$14*(Planleggingsmodell!$F$34+Planleggingsmodell!$H$34*((ArbeidTot-((((C142/Planleggingsmodell!$D$13)^Planleggingsmodell!$J$33-Planleggingsmodell!$F$33)/Planleggingsmodell!$H$33)^(1/Planleggingsmodell!$J$33)))^Planleggingsmodell!$J$34))^(1/Planleggingsmodell!$J$34),-1000) -> -1000 | J142: =Planleggingsmodell!$D$14*(Planleggingsmodell!$F$34+Planleggingsmodell!$H$34*((ArbeidTot-((((C142/Planleggingsmodell!$D$13-OljePengerOrg/(Planleggingsmodell!$D$13*PrisK))^Planleggingsmodell!$J$33-Planleggingsmodell!$F$33)/Planleggingsmodell!$H$33)^(1/Planleggingsmodell!$J$33)))^Planleggingsmodell!$J$34))^(1/Planleggingsmodell!$J$34) -> 2148079.281 | K142: =+((Planleggingsmodell!$D$32^Planleggingsmodell!$J$32-Planleggingsmodell!$F$32^(1-Planleggingsmodell!$J$32)*C142^Planleggingsmodell!$J$32)/(Planleggingsmodell!$H$32^(1-Planleggingsmodell!$J$32)))^(1/Planleggingsmodell!$J$32) -> 1336220.772 | L142: =+Planleggingsmodell!$D$27/Planleggingsmodell!$D$25-Planleggingsmodell!$D$11/Planleggingsmodell!$D$25*C142 -> 516632
B143: =IF(B142="","",IF(IFERROR(D143*E143*F143*I143*J143*K143,1)=1,ROW(),"")) ->  | C143: =+C142+10000 -> 1300000 | D143: =IF($M$2="Ja",SjokkS*(Planleggingsmodell!$F$34+Planleggingsmodell!$H$34*((ArbeidTot-((((C143/SjokkK)^Planleggingsmodell!$J$33-Planleggingsmodell!$F$33)/Planleggingsmodell!$H$33)^(1/Planleggingsmodell!$J$33)))^Planleggingsmodell!$J$34))^(1/Planleggingsmodell!$J$34),-1000) -> -1000 | E143: =+SjokkS*(Planleggingsmodell!$F$34+Planleggingsmodell!$H$34*((ArbeidTot-((((C143/SjokkK-OljePenger/(SjokkK*PrisK))^Planleggingsmodell!$J$33-Planleggingsmodell!$F$33)/Planleggingsmodell!$H$33)^(1/Planleggingsmodell!$J$33)))^Planleggingsmodell!$J$34))^(1/Planleggingsmodell!$J$34) -> 2144370.433 | F143: =+((Planleggingsmodell!$C$32^Planleggingsmodell!$J$32-Planleggingsmodell!$F$32^(1-Planleggingsmodell!$J$32)*C143^Planleggingsmodell!$J$32)/(Planleggingsmodell!$H$32^(1-Planleggingsmodell!$J$32)))^(1/Planleggingsmodell!$J$32) -> 1335865.451 | G143: =+Planleggingsmodell!$C$27/Planleggingsmodell!$C$25-Planleggingsmodell!$D$11/Planleggingsmodell!$C$25*C143 -> 506632 | H143: =+IF($M$3="Ja",($H$6-Planleggingsmodell!$D$11*Figur!C143)/Planleggingsmodell!$C$25,-1000) -> -1000 | I143: =IF($M$2="ja",Planleggingsmodell!$D$14*(Planleggingsmodell!$F$34+Planleggingsmodell!$H$34*((ArbeidTot-((((C143/Planleggingsmodell!$D$13)^Planleggingsmodell!$J$33-Planleggingsmodell!$F$33)/Planleggingsmodell!$H$33)^(1/Planleggingsmodell!$J$33)))^Planleggingsmodell!$J$34))^(1/Planleggingsmodell!$J$34),-1000) -> -1000 | J143: =Planleggingsmodell!$D$14*(Planleggingsmodell!$F$34+Planleggingsmodell!$H$34*((ArbeidTot-((((C143/Planleggingsmodell!$D$13-OljePengerOrg/(Planleggingsmodell!$D$13*PrisK))^Planleggingsmodell!$J$33-Planleggingsmodell!$F$33)/Planleggingsmodell!$H$33)^(1/Planleggingsmodell!$J$33)))^Planleggingsmodell!$J$34))^(1/Planleggingsmodell!$J$34) -> 2144370.433 | K143: =+((Planleggingsmodell!$D$32^Planleggingsmodell!$J$32-Planleggingsmodell!$F$32^(1-Planleggingsmodell!$J$32)*C143^Planleggingsmodell!$J$32)/(Planleggingsmodell!$H$32^(1-Planleggingsmodell!$J$32)))^(1/Planleggingsmodell!$J$32) -> 1335865.451 | L143: =+Planleggingsmodell!$D$27/Planleggingsmodell!$D$25-Planleggingsmodell!$D$11/Planleggingsmodell!$D$25*C143 -> 506632
C144: 1310000 | D144: =IF($M$2="Ja",SjokkS*(Planleggingsmodell!$F$34+Planleggingsmodell!$H$34*((ArbeidTot-((((C144/SjokkK)^Planleggingsmodell!$J$33-Planleggingsmodell!$F$33)/Planleggingsmodell!$H$33)^(1/Planleggingsmodell!$J$33)))^Planleggingsmodell!$J$34))^(1/Planleggingsmodell!$J$34),-1000) -> -1000 | E144: =+SjokkS*(Planleggingsmodell!$F$34+Planleggingsmodell!$H$34*((ArbeidTot-((((C144/SjokkK-OljePenger/(SjokkK*PrisK))^Planleggingsmodell!$J$33-Planleggingsmodell!$F$33)/Planleggingsmodell!$H$33)^(1/Planleggingsmodell!$J$33)))^Planleggingsmodell!$J$34))^(1/Planleggingsmodell!$J$34) -> 2140776.339 | F144: =+((Planleggingsmodell!$C$32^Planleggingsmodell!$J$32-Planleggingsmodell!$F$32^(1-Planleggingsmodell!$J$32)*C144^Planleggingsmodell!$J$32)/(Planleggingsmodell!$H$32^(1-Planleggingsmodell!$J$32)))^(1/Planleggingsmodell!$J$32) -> 1335515.739 | G144: =+Planleggingsmodell!$C$27/Planleggingsmodell!$C$25-Planleggingsmodell!$D$11/Planleggingsmodell!$C$25*C144 -> 496632 | H144: =+IF($M$3="Ja",($H$6-Planleggingsmodell!$D$11*Figur!C144)/Planleggingsmodell!$C$25,-1000) -> -1000 | I144: =IF($M$2="ja",Planleggingsmodell!$D$14*(Planleggingsmodell!$F$34+Planleggingsmodell!$H$34*((ArbeidTot-((((C144/Planleggingsmodell!$D$13)^Planleggingsmodell!$J$33-Planleggingsmodell!$F$33)/Planleggingsmodell!$H$33)^(1/Planleggingsmodell!$J$33)))^Planleggingsmodell!$J$34))^(1/Planleggingsmodell!$J$34),-1000) -> -1000 | J144: =Planleggingsmodell!$D$14*(Planleggingsmodell!$F$34+Planleggingsmodell!$H$34*((ArbeidTot-((((C144/Planleggingsmodell!$D$13-OljePengerOrg/(Planleggingsmodell!$D$13*PrisK))^Planleggingsmodell!$J$33-Planleggingsmodell!$F$33)/Planleggingsmodell!$H$33)^(1/Planleggingsmodell!$J$33)))^Planleggingsmodell!$J$34))^(1/Planleggingsmodell!$J$34) -> 2140776.339 | K144: =+((Planleggingsmodell!$D$32^Planleggingsmodell!$J$32-Planleggingsmodell!$F$32^(1-Planleggingsmodell!$J$32)*C144^Planleggingsmodell!$J$32)/(Planleggingsmodell!$H$32^(1-Planleggingsmodell!$J$32)))^(1/Planleggingsmodell!$J$32) -> 1335515.739 | L144: =+Planleggingsmodell!$D$27/Planleggingsmodell!$D$25-Planleggingsmodell!$D$11/Planleggingsmodell!$D$25*C144 -> 496632
C145: 1320000 | D145: =IF($M$2="Ja",SjokkS*(Planleggingsmodell!$F$34+Planleggingsmodell!$H$34*((ArbeidTot-((((C145/SjokkK)^Planleggingsmodell!$J$33-Planleggingsmodell!$F$33)/Planleggingsmodell!$H$33)^(1/Planleggingsmodell!$J$33)))^Planleggingsmodell!$J$34))^(1/Planleggingsmodell!$J$34),-1000) -> -1000 | E145: =+SjokkS*(Planleggingsmodell!$F$34+Planleggingsmodell!$H$34*((ArbeidTot-((((C145/SjokkK-OljePenger/(SjokkK*PrisK))^Planleggingsmodell!$J$33-Planleggingsmodell!$F$33)/Planleggingsmodell!$H$33)^(1/Planleggingsmodell!$J$33)))^Planleggingsmodell!$J$34))^(1/Planleggingsmodell!$J$34) -> 2137291.755 | F145: =+((Planleggingsmodell!$C$32^Planleggingsmodell!$J$32-Planleggingsmodell!$F$32^(1-Planleggingsmodell!$J$32)*C145^Planleggingsmodell!$J$32)/(Planleggingsmodell!$H$32^(1-Planleggingsmodell!$J$32)))^(1/Planleggingsmodell!$J$32) -> 1335171.505 | G145: =+Planleggingsmodell!$C$27/Planleggingsmodell!$C$25-Planleggingsmodell!$D$11/Planleggingsmodell!$C$25*C145 -> 486632 | H145: =+IF($M$3="Ja",($H$6-Planleggingsmodell!$D$11*Figur!C145)/Planleggingsmodell!$C$25,-1000) -> -1000 | I145: =IF($M$2="ja",Planleggingsmodell!$D$14*(Planleggingsmodell!$F$34+Planleggingsmodell!$H$34*((ArbeidTot-((((C145/Planleggingsmodell!$D$13)^Planleggingsmodell!$J$33-Planleggingsmodell!$F$33)/Planleggingsmodell!$H$33)^(1/Planleggingsmodell!$J$33)))^Planleggingsmodell!$J$34))^(1/Planleggingsmodell!$J$34),-1000) -> -1000 | J145: =Planleggingsmodell!$D$14*(Planleggingsmodell!$F$34+Planleggingsmodell!$H$34*((ArbeidTot-((((C145/Planleggingsmodell!$D$13-OljePengerOrg/(Planleggingsmodell!$D$13*PrisK))^Planleggingsmodell!$J$33-Planleggingsmodell!$F$33)/Planleggingsmodell!$H$33)^(1/Planleggingsmodell!$J$33)))^Planleggingsmodell!$J$34))^(1/Planleggingsmodell!$J$34) -> 2137291.755 | K145: =+((Planleggingsmodell!$D$32^Planleggingsmodell!$J$32-Planleggingsmodell!$F$32^(1-Planleggingsmodell!$J$32)*C145^Planleggingsmodell!$J$32)/(Planleggingsmodell!$H$32^(1-Planleggingsmodell!$J$32)))^(1/Planleggingsmodell!$J$32) -> 1335171.505 | L145: =+Planleggingsmodell!$D$27/Planleggingsmodell!$D$25-Planleggingsmodell!$D$11/Planleggingsmodell!$D$25*C145 -> 486632
C146: 1330000 | D146: =IF($M$2="Ja",SjokkS*(Planleggingsmodell!$F$34+Planleggingsmodell!$H$34*((ArbeidTot-((((C146/SjokkK)^Planleggingsmodell!$J$33-Planleggingsmodell!$F$33)/Planleggingsmodell!$H$33)^(1/Planleggingsmodell!$J$33)))^Planleggingsmodell!$J$34))^(1/Planleggingsmodell!$J$34),-1000) -> -1000 | E146: =+SjokkS*(Planleggingsmodell!$F$34+Planleggingsmodell!$H$34*((ArbeidTot-((((C146/SjokkK-OljePenger/(SjokkK*PrisK))^Planleggingsmodell!$J$33-Planleggingsmodell!$F$33)/Planleggingsmodell!$H$33)^(1/Planleggingsmodell!$J$33)))^Planleggingsmodell!$J$34))^(1/Planleggingsmodell!$J$34) -> 2133911.751 | F146: =+((Planleggingsmodell!$C$32^Planleggingsmodell!$J$32-Planleggingsmodell!$F$32^(1-Planleggingsmodell!$J$32)*C146^Planleggingsmodell!$J$32)/(Planleggingsmodell!$H$32^(1-Planleggingsmodell!$J$32)))^(1/Planleggingsmodell!$J$32) -> 1334832.621 | G146: =+Planleggingsmodell!$C$27/Planleggingsmodell!$C$25-Planleggingsmodell!$D$11/Planleggingsmodell!$C$25*C146 -> 476632 | H146: =+IF($M$3="Ja",($H$6-Planleggingsmodell!$D$11*Figur!C146)/Planleggingsmodell!$C$25,-1000) -> -1000 | I146: =IF($M$2="ja",Planleggingsmodell!$D$14*(Planleggingsmodell!$F$34+Planleggingsmodell!$H$34*((ArbeidTot-((((C146/Planleggingsmodell!$D$13)^Planleggingsmodell!$J$33-Planleggingsmodell!$F$33)/Planleggingsmodell!$H$33)^(1/Planleggingsmodell!$J$33)))^Planleggingsmodell!$J$34))^(1/Planleggingsmodell!$J$34),-1000) -> -1000 | J146: =Planleggingsmodell!$D$14*(Planleggingsmodell!$F$34+Planleggingsmodell!$H$34*((ArbeidTot-((((C146/Planleggingsmodell!$D$13-OljePengerOrg/(Planleggingsmodell!$D$13*PrisK))^Planleggingsmodell!$J$33-Planleggingsmodell!$F$33)/Planleggingsmodell!$H$33)^(1/Planleggingsmodell!$J$33)))^Planleggingsmodell!$J$34))^(1/Planleggingsmodell!$J$34) -> 2133911.751 | K146: =+((Planleggingsmodell!$D$32^Planleggingsmodell!$J$32-Planleggingsmodell!$F$32^(1-Planleggingsmodell!$J$32)*C146^Planleggingsmodell!$J$32)/(Planleggingsmodell!$H$32^(1-Planleggingsmodell!$J$32)))^(1/Planleggingsmodell!$J$32) -> 1334832.621 | L146: =+Planleggingsmodell!$D$27/Planleggingsmodell!$D$25-Planleggingsmodell!$D$11/Planleggingsmodell!$D$25*C146 -> 476632
C147: 1340000 | D147: =IF($M$2="Ja",SjokkS*(Planleggingsmodell!$F$34+Planleggingsmodell!$H$34*((ArbeidTot-((((C147/SjokkK)^Planleggingsmodell!$J$33-Planleggingsmodell!$F$33)/Planleggingsmodell!$H$33)^(1/Planleggingsmodell!$J$33)))^Planleggingsmodell!$J$34))^(1/Planleggingsmodell!$J$34),-1000) -> -1000 | E147: =+SjokkS*(Planleggingsmodell!$F$34+Planleggingsmodell!$H$34*((ArbeidTot-((((C147/SjokkK-OljePenger/(SjokkK*PrisK))^Planleggingsmodell!$J$33-Planleggingsmodell!$F$33)/Planleggingsmodell!$H$33)^(1/Planleggingsmodell!$J$33)))^Planleggingsmodell!$J$34))^(1/Planleggingsmodell!$J$34) -> 2130631.688 | F147: =+((Planleggingsmodell!$C$32^Planleggingsmodell!$J$32-Planleggingsmodell!$F$32^(1-Planleggingsmodell!$J$32)*C147^Planleggingsmodell!$J$32)/(Planleggingsmodell!$H$32^(1-Planleggingsmodell!$J$32)))^(1/Planleggingsmodell!$J$32) -> 1334498.962 | G147: =+Planleggingsmodell!$C$27/Planleggingsmodell!$C$25-Planleggingsmodell!$D$11/Planleggingsmodell!$C$25*C147 -> 466632 | H147: =+IF($M$3="Ja",($H$6-Planleggingsmodell!$D$11*Figur!C147)/Planleggingsmodell!$C$25,-1000) -> -1000 | I147: =IF($M$2="ja",Planleggingsmodell!$D$14*(Planleggingsmodell!$F$34+Planleggingsmodell!$H$34*((ArbeidTot-((((C147/Planleggingsmodell!$D$13)^Planleggingsmodell!$J$33-Planleggingsmodell!$F$33)/Planleggingsmodell!$H$33)^(1/Planleggingsmodell!$J$33)))^Planleggingsmodell!$J$34))^(1/Planleggingsmodell!$J$34),-1000) -> -1000 | J147: =Planleggingsmodell!$D$14*(Planleggingsmodell!$F$34+Planleggingsmodell!$H$34*((ArbeidTot-((((C147/Planleggingsmodell!$D$13-OljePengerOrg/(Planleggingsmodell!$D$13*PrisK))^Planleggingsmodell!$J$33-Planleggingsmodell!$F$33)/Planleggingsmodell!$H$33)^(1/Planleggingsmodell!$J$33)))^Planleggingsmodell!$J$34))^(1/Planleggingsmodell!$J$34) -> 2130631.688 | K147: =+((Planleggingsmodell!$D$32^Planleggingsmodell!$J$32-Planleggingsmodell!$F$32^(1-Planleggingsmodell!$J$32)*C147^Planleggingsmodell!$J$32)/(Planleggingsmodell!$H$32^(1-Planleggingsmodell!$J$32)))^(1/Planleggingsmodell!$J$32) -> 1334498.962 | L147: =+Planleggingsmodell!$D$27/Planleggingsmodell!$D$25-Planleggingsmodell!$D$11/Planleggingsmodell!$D$25*C147 -> 466632
C148: 1350000 | D148: =IF($M$2="Ja",SjokkS*(Planleggingsmodell!$F$34+Planleggingsmodell!$H$34*((ArbeidTot-((((C148/SjokkK)^Planleggingsmodell!$J$33-Planleggingsmodell!$F$33)/Planleggingsmodell!$H$33)^(1/Planleggingsmodell!$J$33)))^Planleggingsmodell!$J$34))^(1/Planleggingsmodell!$J$34),-1000) -> -1000 | E148: =+SjokkS*(Planleggingsmodell!$F$34+Planleggingsmodell!$H$34*((ArbeidTot-((((C148/SjokkK-OljePenger/(SjokkK*PrisK))^Planleggingsmodell!$J$33-Planleggingsmodell!$F$33)/Planleggingsmodell!$H$33)^(1/Planleggingsmodell!$J$33)))^Planleggingsmodell!$J$34))^(1/Planleggingsmodell!$J$34) -> 2127447.199 | F148: =+((Planleggingsmodell!$C$32^Planleggingsmodell!$J$32-Planleggingsmodell!$F$32^(1-Planleggingsmodell!$J$32)*C148^Planleggingsmodell!$J$32)/(Planleggingsmodell!$H$32^(1-Planleggingsmodell!$J$32)))^(1/Planleggingsmodell!$J$32) -> 1334170.41 | G148: =+Planleggingsmodell!$C$27/Planleggingsmodell!$C$25-Planleggingsmodell!$D$11/Planleggingsmodell!$C$25*C148 -> 456632 | H148: =+IF($M$3="Ja",($H$6-Planleggingsmodell!$D$11*Figur!C148)/Planleggingsmodell!$C$25,-1000) -> -1000 | I148: =IF($M$2="ja",Planleggingsmodell!$D$14*(Planleggingsmodell!$F$34+Planleggingsmodell!$H$34*((ArbeidTot-((((C148/Planleggingsmodell!$D$13)^Planleggingsmodell!$J$33-Planleggingsmodell!$F$33)/Planleggingsmodell!$H$33)^(1/Planleggingsmodell!$J$33)))^Planleggingsmodell!$J$34))^(1/Planleggingsmodell!$J$34),-1000) -> -1000 | J148: =Planleggingsmodell!$D$14*(Planleggingsmodell!$F$34+Planleggingsmodell!$H$34*((ArbeidTot-((((C148/Planleggingsmodell!$D$13-OljePengerOrg/(Planleggingsmodell!$D$13*PrisK))^Planleggingsmodell!$J$33-Planleggingsmodell!$F$33)/Planleggingsmodell!$H$33)^(1/Planleggingsmodell!$J$33)))^Planleggingsmodell!$J$34))^(1/Planleggingsmodell!$J$34) -> 2127447.199 | K148: =+((Planleggingsmodell!$D$32^Planleggingsmodell!$J$32-Planleggingsmodell!$F$32^(1-Planleggingsmodell!$J$32)*C148^Planleggingsmodell!$J$32)/(Planleggingsmodell!$H$32^(1-Planleggingsmodell!$J$32)))^(1/Planleggingsmodell!$J$32) -> 1334170.41 | L148: =+Planleggingsmodell!$D$27/Planleggingsmodell!$D$25-Planleggingsmodell!$D$11/Planleggingsmodell!$D$25*C148 -> 456632
